{"text_format":"1","workbook":"xlsx","n_sheets":7,"sheets":["Configuration","Modèle liste élèves","Configuration Liste élèves","Modèle","LISTES DES ELEVES ","Semainier","LISTE DES PROFS"],"not_rendered":{"charts":1,"images":0,"macros":1,"external_links":0,"defined_names":16,"comments":4,"pivot_tables":1},"unopened":[],"bounds":{"document_bytes":16777216,"sheet_cells":100000,"rows_first":2000,"rows_last":500,"rows_between":2000,"halvings":0,"cell_chars":16384,"cell_head_chars":4096},"cells_cut":0,"cells_raw":0,"read":"whole","date_system":"1900"}

{"sheet":"Configuration","index":0,"n_rows":37,"n_cols":13,"rows_kept":37,"cut":false,"hidden":false,"merged":[[13,3,14,3],[15,3,16,3],[17,3,18,3],[19,3,20,3],[3,0,5,3],[6,2,6,3],[7,3,8,5],[9,3,10,3],[11,3,12,3]]}
[]
[]
[]
["Cahier journal V3"]
[]
[]
[2018,"-",2019,null,null,null,null,null,null,null,null,1,"Janvier"]
[null,null,null,"Vacances scolaires",null,null,null,null,null,null,null,2,"février"]
[null,null,null,null,null,null,null,null,null,null,null,3,"mars"]
["Année scolaire :",201862019,null,"Vacances d’été (année précédente)","début","2016-07-05",{"$f":"F10+1","v":"2016-07-06"},null,null,null,null,4,"avril"]
["Circonscription :","votre circconscription",null,null,"fin","2016-09-01","2016-09-02",null,null,null,null,5,"mai"]
["École :","CFA",null,"Vacances de la Toussaint","début","2016-10-19","2016-10-20",null,null,null,null,6,"juin"]
["Classe :","niveau",null,null,"fin","2016-11-03","2016-11-04",null,null,null,null,7,"juillet"]
["Nom de l’enseignant de la classe :","Mr DUPONT",null,"vacances de Noël","début","2016-12-17","2016-12-18",null,null,null,null,8,"août"]
[null,null,null,null,"fin","2017-01-03","2017-01-04",null,null,null,null,9,"septembre"]
[null,null,null,"Vacances d’hiver","début","2017-02-04","2017-02-05",null,null,null,null,10,"octobre"]
["Début date des programmations :","2017-09-04",null,null,"fin","2017-02-20","2017-02-21",null,null,null,null,11,"novembre"]
[null,null,null,"Vacances de printemps","début","2017-04-01","2017-04-02",null,null,null,null,12,"décembre"]
[null,null,null,null,"fin","2017-04-18","2017-04-19"]
[null,null,null,"Vacances d’été","début","2017-07-08","2017-07-09"]
[null,null,null,null,"fin","2017-09-01","2017-09-02"]
[]
[]
[]
[null,null,null,"Liste des jours fériés","Date"]
[null,null,null,"Jour de l’an",{"$f":"DATE(C7,1,1)","v":"2019-01-01"}]
[null,null,null,"Lundi de Pâques",{"$f":"ROUND(DATE($C$7,4,MOD(234-11*MOD($C$7,19),30))/7,0)*7-6","v":"2019-04-21"}]
[null,null,null,"Fête du travail",{"$f":"DATE(C7,5,1)","v":"2019-05-01"}]
[null,null,null,"8 mai 1945",{"$f":"DATE(C7,5,8)","v":"2019-05-08"}]
[null,null,null,"Jeudi de l’Ascension",{"$f":"$E$27+39","v":"2019-05-30"}]
[null,null,null,"Lundi de Pentecôte",{"$f":"E27+50","v":"2019-06-10"}]
[null,null,null,"Fête Nationale",{"$f":"DATE(C7,7,14)","v":"2019-07-14"}]
[null,null,null,"Assomption",{"$f":"DATE(A7,8,15)","v":"2018-08-15"}]
[null,null,null,"La Toussaint",{"$f":"DATE(A7,11,1)","v":"2018-11-01"}]
[null,null,null,"Armistice",{"$f":"DATE(A7,11,11)","v":"2018-11-11"}]
[null,null,null,"Noël",{"$f":"DATE(A7,12,25)","v":"2018-12-25"}]
[null,null,null,"etc.."]

{"sheet":"Modèle liste élèves","index":1,"n_rows":7,"n_cols":18,"rows_kept":7,"cut":false,"hidden":true,"merged":[[0,1,0,13]]}
[null,"Liste élèves"]
["École:",null,{"$f":"Configuration!B12","v":"CFA"}]
["Enseignant:",null,{"$f":"Configuration!B14","v":"Mr DUPONT"}]
["Année scolaire:",null,{"$f":"Configuration!B10","v":201862019}]
["Classe de:",null,{"$f":"Configuration!B13","v":"niveau"}]
[null,null,null," "," "," "," "," "," "," ",null," "," "," "," "," "," "," "]
["N°","Nom","Prénom","Niv"]

{"sheet":"Configuration Liste élèves","index":2,"n_rows":223,"n_cols":17,"rows_kept":223,"cut":false,"hidden":false,"merged":[[6,14,6,15],[1,14,1,15],[2,14,2,15],[3,14,3,15],[4,14,4,15],[5,14,5,15]]}
[]
[null,"Liste élèves",null,null,null,null,null,null,null,null,null,null,null,null,"absence matin",null,"―"]
[null,null,null,null,null,null,null,null,null,null,null,null,null,null,"Absence après-midi",null,"│"]
["Année scolaire",null,"2018-2019",null,null,null,null,null,null,null,null,null,null,null,"Absenc toute la journée",null,"+"]
[null,null,null,null,null,null,null,null,null,null,null,null,null,null,"retard",null,"● r"]
["Classe",null,"ccv 1",null,null,null,null,null,null,null,null,null,null,null,"présent",null,"●"]
[null,null,null,null,null,null,null,null,null,null,null,null,null,null,"Absences justifiées",null,"― j"]
["Rentrez ci-dessous votre liste d'élève (dans l'ordre alphabétique ou non )",null,null,null,null,null,null,null,null,null,null,null,null,null,null,null,"│ j"]
[null,null,null,null,null,null,null,null,null,null,null,null,null,null,null,null,"+ j"]
["Num","PRENOM","NOM","Niveau","Dates de naissance","Sexe",null,"année naissance"]
[{"$f":"IF(B11=\"\",\"\",0+1)","v":1},"Yohan ","SPIRAL ","AUDIO","1998-01-24","Masculin",{"$f":"IF(F11=\"Masculin\",1,0)","v":1},{"$f":"YEAR(E11)","v":1998},null,null,null,null,null,null,null,null,"Masculin"]
[{"$f":"IF(B12=\"\",\"\",A11+1)","v":2},"Mathias","LEITE","CCV2","1998-12-30","Masculin",{"$f":"IF(F12=\"Masculin\",1,0)","v":1},{"$f":"YEAR(E12)","v":1998},null,null,null,null,null,null,null,null,"Féminin"]
[3,"Cyrianne","ALLIEN","CCV3","1995-07-10","Féminin",0,1995]
[4,"Charlotte ","PICOUILLA","CCV2","1994-05-08","Féminin",0,1994]
[5,"Marie-Charlotte","PEPIN","CCV3","1996-12-18","Féminin",0,1996]
[6,"Ophélie ","DURA","CCV2","1995-01-19","Féminin",0,1995]
[7,"Matthieu ","DE VALENCE","CCV3","1995-07-10","Masculin",1,1995]
[8,"MARINE","REMI","CCV3","1993-05-16","Féminin",0,1993]
[9,"LEA","FERNANDES","CCV3","1996-04-09","Féminin",0,1996]
[10,"CYRIENNE","MESTRES","CCV3","1990-11-24","Féminin",0,1990]
[11,"MATTHIAS","MOISE","CCV1","1999-09-24","Masculin",1,1999]
[12,"CHARLENE","GARCIAS","CCV1","1999-06-08","Féminin",0,1999]
[13,"LUCAS","COURBY","CCV1","1999-03-06","Masculin",1,1999]
[14,"ALLAN","ROLFE","CCV3","1995-10-08","Masculin",1,1995]
[15,"LUDWIG","van hoeylanet","CCV1","1993-06-14","Masculin",1,1993]
[16,"EMELINE","BIEHLMANN","AUDIO","1998-02-13","Féminin",0,1998]
[17,"ARTHUR","GARCIA","CCV1","2000-03-23","Masculin",1,2000]
[18,"ALYSSA","SANTIAGO","CCV1","1999-01-22","Féminin",0,1999]
[19,"CORWIN","CHABIN","CCV1","1995-07-06","Masculin",1,1995]
[20,"MARINE","DELORME","CCV3","1997-01-29","Féminin",0,1997]
[21,"DE SAGA","KELIAN","AUDIO","1996-07-31","Masculin",1,1996]
[22,"ELODIE","TORRENTS","CCV1","1998-02-11","Féminin",0,1998]
[23,"ANNE SOPHIE","ABADIE","CCV2","1998-12-30","Féminin",0,1998]
[24,"FLORENT","PAYRASTRE","CCV1","1999-08-17","Masculin",1,1999,"Niveau","CCV3"]
[25,"EULALIE","DUBOSCQ","CCV2","1996-12-12","Féminin",0]
[26,"LUCAS","BARBIER","CCV1","1995-12-22","Masculin",1,1995,"Étiquettes de lignes","Nombre de Niveau"]
[27,"CYRIL","FERNANDEZ","CCV1","1992-02-03","Masculin",1,1992,"ALESSI",1]
[28,"JADE","LOPEZ","CCV1","1999-05-01","féminin",0,1999,"Matthieu ",1]
[29,"CAMILLE","GALEA","CCV3","1997-07-04","Féminin",0,1997,"ALLIEN",1]
[30,"Matthieu ","ALESSI","CCV3","1997-05-21","Masculin",1,1997,"Cyrianne",1]
[31,"SARAH","LAUTRE","CCV3","1997-04-24","Féminin",0,1997,"DE VALENCE",1]
[32,"NAZHIA","cherat","CCV2","1990-10-08","Féminin",0,1990,"Matthieu ",1]
[33,"LAURA","RANDLA","ANIM3","1996-04-01","Féminin",0,1996,"DELORME",1]
[34,"ANTONIN","FELIX","ANIM2","1995-03-13","Masculin",1,1995,"MARINE",1]
[35,"MARC","AUGEY","AUDIO","1995-03-28","Masculin",1,1995,"FERNANDES",1]
[36,"julianna","SISLET","CCV3","1997-11-04","Féminin",0,1997,"LEA",1]
[37,"julien","Armitano grivel","CCV1","00:00:00","Masculin",1,1900,"GALEA",1]
[38,"alexandre","MEILLERAY","CCV2","1998-03-11","Masculin",1,1998,"CAMILLE",1]
[39,"maelys","UBIERTA","CCV2","1994-05-08","Féminin",0,1994,"LAUTRE",1]
["",null,null,null,null,null,0,1900,"SARAH",1]
[{"$f":"IF(B51=\"\",\"\",#REF!+1)","v":""},null,null,null,null,null,{"$f":"SUM(G11:G50)","v":18},"garçons","MESTRES",1]
[{"$f":"IF(B52=\"\",\"\",A51+1)","v":""},null,null,null,null,null,{"$f":"COUNTA(G11:G50)-G51","v":22},"filles","CYRIENNE",1]
["",null,null,null,null,null,null,null,"PEPIN",1]
["",null,null,null,null,null,null,null,"Marie-Charlotte",1]
["",null,null,null,null,null,null,null,"REMI",1]
["",null,null,null,null,null,null,null,"MARINE",1]
["",null,null,null,null,null,null,null,"ROLFE",1]
["",null,null,null,null,null,null,null,"ALLAN",1]
["",null,null,null,null,null,null,null,"SISLET",1]
["",null,null,null,null,null,null,null,"julianna",1]
["",null,null,null,null,null,null,null,"Total général",12]
[""]
[""]
[""]
[""]
[""]
[""]
[""]
[""]
[""]
[""]
[""]
[""]
[""]
[""]
[""]
[""]
[""]
[""]
[""]
[""]
[""]
[""]
[{"$f":"IF(B84=\"\",\"\",A83+1)","v":""}]
[""]
[""]
[""]
[""]
[""]
[""]
[""]
[""]
[""]
[""]
[""]
[""]
[""]
[""]
[""]
[""]
[""]
[""]
[""]
[""]
[""]
[""]
[""]
[""]
[""]
[""]
[""]
[""]
[""]
[""]
["Num","Nom","Prénom"]
["Veuillez écrire votre liste d'élèves ci-dessous puis la trier par ordre alphabétique (si c'est pas déjà fait !)"]
[]
[]
[]
[]
[]
[]
[]
[]
[]
[]
[]
[{"$f":"IF(B128=\"\",\"\",A127+1)","v":""}]
[""]
[{"$f":"IF(B130=\"\",\"\",A129+1)","v":""}]
[""]
[""]
[""]
[""]
[""]
[""]
[""]
[""]
[""]
[""]
[""]
[""]
[""]
[""]
[""]
[""]
[""]
[""]
[""]
[""]
[""]
[""]
[""]
[""]
[""]
[""]
[""]
[""]
[""]
[""]
[""]
[""]
[""]
[""]
[""]
[""]
[""]
[""]
[""]
[""]
[""]
[""]
[""]
[""]
[""]
[""]
[""]
[""]
[""]
[""]
[""]
[""]
[""]
[""]
[""]
[""]
[""]
[""]
[""]
[""]
[""]
[""]
[""]
[{"$f":"IF(B194=\"\",\"\",A193+1)","v":""}]
[""]
[""]
[""]
[""]
[""]
[""]
[""]
[""]
[""]
[""]
[""]
[""]
[""]
[""]
[""]
[""]
[""]
[""]
[""]
[""]
[""]
[""]
[""]
[""]
[""]
[""]
[""]
[""]
[""]

{"sheet":"Modèle","index":3,"n_rows":226,"n_cols":7,"rows_kept":226,"cut":false,"hidden":true,"merged":[[0,1,0,2],[129,2,129,5],[130,2,130,5],[132,2,132,5],[133,2,133,5],[134,2,134,5],[135,2,135,5]]}
[null,"Liste d'appel",null,null,{"$f":"'Configuration Liste élèves'!C6","v":"ccv 1"}]
["le",{"$f":"TODAY()","v":"2018-09-11"},"Présences matin",null,{"$f":"IF(INDIRECT(\"G6\")=TODAY(),INDIRECT(\"G130\"),\"\")","v":""}]
[null,null,"Présences après-midi",null,{"$f":"IF(INDIRECT(\"G6\")=TODAY(),INDIRECT(\"G131\"),\"\")","v":""}]
[null,null,"Absences",null,{"$f":"IF(INDIRECT(\"G6\")=TODAY(),INDIRECT(\"G136\"),\"\")","v":""}]
[]
["Num","Noms","Prénoms","Dates en cours","Ret","Abs"]
[null,{"$f":"IF(A7=\"\",\"\",'Configuration Liste élèves'!B51)","v":""},{"$f":"IF(B7=\"\",\"\",'Configuration Liste élèves'!C51)","v":""},null,{"$f":"IF(B7=\"\",\"\",COUNTIF(INDIRECT(\"G\"&ROW()):INDIRECT(\"WH\"&ROW()),'Configuration Liste élèves'!$Q$5))","v":""},{"$f":"IF(B7=\"\",\"\",COUNTIF(INDIRECT(\"G\"&ROW()):INDIRECT(\"WH\"&ROW()),'Configuration Liste élèves'!$Q$2)+COUNTIF(INDIRECT(\"G\"&ROW()):INDIRECT(\"WH\"&ROW()),'Configuration Liste élèves'!$Q$3)+2*(COUNTIF(INDIRECT(\"G\"&ROW()):INDIRECT(\"WH\"&ROW()),'Configuration Liste élèves'!$Q$4+COUNTIF(INDIRECT(\"G\"&ROW()):INDIRECT(\"WH\"&ROW()),'Configuration Liste élèves'!$Q$7)+COUNTIF(INDIRECT(\"G\"&ROW()):INDIRECT(\"WH\"&ROW()),'Configuration Liste élèves'!$Q$8)+2*(COUNTIF(INDIRECT(\"G\"&ROW()):INDIRECT(\"WH\"&ROW()),'Configuration Liste élèves'!$Q$9)))))","v":""}]
[null,{"$f":"IF(A8=\"\",\"\",'Configuration Liste élèves'!B52)","v":""},{"$f":"IF(B8=\"\",\"\",'Configuration Liste élèves'!C52)","v":""},null,{"$f":"IF(B8=\"\",\"\",COUNTIF(INDIRECT(\"G\"&ROW()):INDIRECT(\"WH\"&ROW()),'Configuration Liste élèves'!$Q$5))","v":""},{"$f":"IF(B8=\"\",\"\",COUNTIF(INDIRECT(\"G\"&ROW()):INDIRECT(\"WH\"&ROW()),'Configuration Liste élèves'!$Q$2)+COUNTIF(INDIRECT(\"G\"&ROW()):INDIRECT(\"WH\"&ROW()),'Configuration Liste élèves'!$Q$3)+2*(COUNTIF(INDIRECT(\"G\"&ROW()):INDIRECT(\"WH\"&ROW()),'Configuration Liste élèves'!$Q$4+COUNTIF(INDIRECT(\"G\"&ROW()):INDIRECT(\"WH\"&ROW()),'Configuration Liste élèves'!$Q$7)+COUNTIF(INDIRECT(\"G\"&ROW()):INDIRECT(\"WH\"&ROW()),'Configuration Liste élèves'!$Q$8)+2*(COUNTIF(INDIRECT(\"G\"&ROW()):INDIRECT(\"WH\"&ROW()),'Configuration Liste élèves'!$Q$9)))))","v":""}]
[null,{"$f":"IF(A9=\"\",\"\",'Configuration Liste élèves'!B53)","v":""},{"$f":"IF(B9=\"\",\"\",'Configuration Liste élèves'!C53)","v":""},null,{"$f":"IF(B9=\"\",\"\",COUNTIF(INDIRECT(\"G\"&ROW()):INDIRECT(\"WH\"&ROW()),'Configuration Liste élèves'!$Q$5))","v":""},{"$f":"IF(B9=\"\",\"\",COUNTIF(INDIRECT(\"G\"&ROW()):INDIRECT(\"WH\"&ROW()),'Configuration Liste élèves'!$Q$2)+COUNTIF(INDIRECT(\"G\"&ROW()):INDIRECT(\"WH\"&ROW()),'Configuration Liste élèves'!$Q$3)+2*(COUNTIF(INDIRECT(\"G\"&ROW()):INDIRECT(\"WH\"&ROW()),'Configuration Liste élèves'!$Q$4+COUNTIF(INDIRECT(\"G\"&ROW()):INDIRECT(\"WH\"&ROW()),'Configuration Liste élèves'!$Q$7)+COUNTIF(INDIRECT(\"G\"&ROW()):INDIRECT(\"WH\"&ROW()),'Configuration Liste élèves'!$Q$8)+2*(COUNTIF(INDIRECT(\"G\"&ROW()):INDIRECT(\"WH\"&ROW()),'Configuration Liste élèves'!$Q$9)))))","v":""}]
[null,{"$f":"IF(A10=\"\",\"\",'Configuration Liste élèves'!B54)","v":""},{"$f":"IF(B10=\"\",\"\",'Configuration Liste élèves'!C54)","v":""},null,{"$f":"IF(B10=\"\",\"\",COUNTIF(INDIRECT(\"G\"&ROW()):INDIRECT(\"WH\"&ROW()),'Configuration Liste élèves'!$Q$5))","v":""},{"$f":"IF(B10=\"\",\"\",COUNTIF(INDIRECT(\"G\"&ROW()):INDIRECT(\"WH\"&ROW()),'Configuration Liste élèves'!$Q$2)+COUNTIF(INDIRECT(\"G\"&ROW()):INDIRECT(\"WH\"&ROW()),'Configuration Liste élèves'!$Q$3)+2*(COUNTIF(INDIRECT(\"G\"&ROW()):INDIRECT(\"WH\"&ROW()),'Configuration Liste élèves'!$Q$4+COUNTIF(INDIRECT(\"G\"&ROW()):INDIRECT(\"WH\"&ROW()),'Configuration Liste élèves'!$Q$7)+COUNTIF(INDIRECT(\"G\"&ROW()):INDIRECT(\"WH\"&ROW()),'Configuration Liste élèves'!$Q$8)+2*(COUNTIF(INDIRECT(\"G\"&ROW()):INDIRECT(\"WH\"&ROW()),'Configuration Liste élèves'!$Q$9)))))","v":""}]
[null,{"$f":"IF(A11=\"\",\"\",'Configuration Liste élèves'!B55)","v":""},{"$f":"IF(B11=\"\",\"\",'Configuration Liste élèves'!C55)","v":""},null,{"$f":"IF(B11=\"\",\"\",COUNTIF(INDIRECT(\"G\"&ROW()):INDIRECT(\"WH\"&ROW()),'Configuration Liste élèves'!$Q$5))","v":""},{"$f":"IF(B11=\"\",\"\",COUNTIF(INDIRECT(\"G\"&ROW()):INDIRECT(\"WH\"&ROW()),'Configuration Liste élèves'!$Q$2)+COUNTIF(INDIRECT(\"G\"&ROW()):INDIRECT(\"WH\"&ROW()),'Configuration Liste élèves'!$Q$3)+2*(COUNTIF(INDIRECT(\"G\"&ROW()):INDIRECT(\"WH\"&ROW()),'Configuration Liste élèves'!$Q$4+COUNTIF(INDIRECT(\"G\"&ROW()):INDIRECT(\"WH\"&ROW()),'Configuration Liste élèves'!$Q$7)+COUNTIF(INDIRECT(\"G\"&ROW()):INDIRECT(\"WH\"&ROW()),'Configuration Liste élèves'!$Q$8)+2*(COUNTIF(INDIRECT(\"G\"&ROW()):INDIRECT(\"WH\"&ROW()),'Configuration Liste élèves'!$Q$9)))))","v":""}]
[null,{"$f":"IF(A12=\"\",\"\",'Configuration Liste élèves'!B56)","v":""},{"$f":"IF(B12=\"\",\"\",'Configuration Liste élèves'!C56)","v":""},null,{"$f":"IF(B12=\"\",\"\",COUNTIF(INDIRECT(\"G\"&ROW()):INDIRECT(\"WH\"&ROW()),'Configuration Liste élèves'!$Q$5))","v":""},{"$f":"IF(B12=\"\",\"\",COUNTIF(INDIRECT(\"G\"&ROW()):INDIRECT(\"WH\"&ROW()),'Configuration Liste élèves'!$Q$2)+COUNTIF(INDIRECT(\"G\"&ROW()):INDIRECT(\"WH\"&ROW()),'Configuration Liste élèves'!$Q$3)+2*(COUNTIF(INDIRECT(\"G\"&ROW()):INDIRECT(\"WH\"&ROW()),'Configuration Liste élèves'!$Q$4+COUNTIF(INDIRECT(\"G\"&ROW()):INDIRECT(\"WH\"&ROW()),'Configuration Liste élèves'!$Q$7)+COUNTIF(INDIRECT(\"G\"&ROW()):INDIRECT(\"WH\"&ROW()),'Configuration Liste élèves'!$Q$8)+2*(COUNTIF(INDIRECT(\"G\"&ROW()):INDIRECT(\"WH\"&ROW()),'Configuration Liste élèves'!$Q$9)))))","v":""}]
[null,{"$f":"IF(A13=\"\",\"\",'Configuration Liste élèves'!B57)","v":""},{"$f":"IF(B13=\"\",\"\",'Configuration Liste élèves'!C57)","v":""},null,{"$f":"IF(B13=\"\",\"\",COUNTIF(INDIRECT(\"G\"&ROW()):INDIRECT(\"WH\"&ROW()),'Configuration Liste élèves'!$Q$5))","v":""},{"$f":"IF(B13=\"\",\"\",COUNTIF(INDIRECT(\"G\"&ROW()):INDIRECT(\"WH\"&ROW()),'Configuration Liste élèves'!$Q$2)+COUNTIF(INDIRECT(\"G\"&ROW()):INDIRECT(\"WH\"&ROW()),'Configuration Liste élèves'!$Q$3)+2*(COUNTIF(INDIRECT(\"G\"&ROW()):INDIRECT(\"WH\"&ROW()),'Configuration Liste élèves'!$Q$4+COUNTIF(INDIRECT(\"G\"&ROW()):INDIRECT(\"WH\"&ROW()),'Configuration Liste élèves'!$Q$7)+COUNTIF(INDIRECT(\"G\"&ROW()):INDIRECT(\"WH\"&ROW()),'Configuration Liste élèves'!$Q$8)+2*(COUNTIF(INDIRECT(\"G\"&ROW()):INDIRECT(\"WH\"&ROW()),'Configuration Liste élèves'!$Q$9)))))","v":""}]
[null,{"$f":"IF(A14=\"\",\"\",'Configuration Liste élèves'!B58)","v":""},{"$f":"IF(B14=\"\",\"\",'Configuration Liste élèves'!C58)","v":""},null,{"$f":"IF(B14=\"\",\"\",COUNTIF(INDIRECT(\"G\"&ROW()):INDIRECT(\"WH\"&ROW()),'Configuration Liste élèves'!$Q$5))","v":""},{"$f":"IF(B14=\"\",\"\",COUNTIF(INDIRECT(\"G\"&ROW()):INDIRECT(\"WH\"&ROW()),'Configuration Liste élèves'!$Q$2)+COUNTIF(INDIRECT(\"G\"&ROW()):INDIRECT(\"WH\"&ROW()),'Configuration Liste élèves'!$Q$3)+2*(COUNTIF(INDIRECT(\"G\"&ROW()):INDIRECT(\"WH\"&ROW()),'Configuration Liste élèves'!$Q$4+COUNTIF(INDIRECT(\"G\"&ROW()):INDIRECT(\"WH\"&ROW()),'Configuration Liste élèves'!$Q$7)+COUNTIF(INDIRECT(\"G\"&ROW()):INDIRECT(\"WH\"&ROW()),'Configuration Liste élèves'!$Q$8)+2*(COUNTIF(INDIRECT(\"G\"&ROW()):INDIRECT(\"WH\"&ROW()),'Configuration Liste élèves'!$Q$9)))))","v":""}]
[null,{"$f":"IF(A15=\"\",\"\",'Configuration Liste élèves'!B59)","v":""},{"$f":"IF(B15=\"\",\"\",'Configuration Liste élèves'!C59)","v":""},null,{"$f":"IF(B15=\"\",\"\",COUNTIF(INDIRECT(\"G\"&ROW()):INDIRECT(\"WH\"&ROW()),'Configuration Liste élèves'!$Q$5))","v":""},{"$f":"IF(B15=\"\",\"\",COUNTIF(INDIRECT(\"G\"&ROW()):INDIRECT(\"WH\"&ROW()),'Configuration Liste élèves'!$Q$2)+COUNTIF(INDIRECT(\"G\"&ROW()):INDIRECT(\"WH\"&ROW()),'Configuration Liste élèves'!$Q$3)+2*(COUNTIF(INDIRECT(\"G\"&ROW()):INDIRECT(\"WH\"&ROW()),'Configuration Liste élèves'!$Q$4+COUNTIF(INDIRECT(\"G\"&ROW()):INDIRECT(\"WH\"&ROW()),'Configuration Liste élèves'!$Q$7)+COUNTIF(INDIRECT(\"G\"&ROW()):INDIRECT(\"WH\"&ROW()),'Configuration Liste élèves'!$Q$8)+2*(COUNTIF(INDIRECT(\"G\"&ROW()):INDIRECT(\"WH\"&ROW()),'Configuration Liste élèves'!$Q$9)))))","v":""}]
[null,{"$f":"IF(A16=\"\",\"\",'Configuration Liste élèves'!B60)","v":""},{"$f":"IF(B16=\"\",\"\",'Configuration Liste élèves'!C60)","v":""},null,{"$f":"IF(B16=\"\",\"\",COUNTIF(INDIRECT(\"G\"&ROW()):INDIRECT(\"WH\"&ROW()),'Configuration Liste élèves'!$Q$5))","v":""},{"$f":"IF(B16=\"\",\"\",COUNTIF(INDIRECT(\"G\"&ROW()):INDIRECT(\"WH\"&ROW()),'Configuration Liste élèves'!$Q$2)+COUNTIF(INDIRECT(\"G\"&ROW()):INDIRECT(\"WH\"&ROW()),'Configuration Liste élèves'!$Q$3)+2*(COUNTIF(INDIRECT(\"G\"&ROW()):INDIRECT(\"WH\"&ROW()),'Configuration Liste élèves'!$Q$4+COUNTIF(INDIRECT(\"G\"&ROW()):INDIRECT(\"WH\"&ROW()),'Configuration Liste élèves'!$Q$7)+COUNTIF(INDIRECT(\"G\"&ROW()):INDIRECT(\"WH\"&ROW()),'Configuration Liste élèves'!$Q$8)+2*(COUNTIF(INDIRECT(\"G\"&ROW()):INDIRECT(\"WH\"&ROW()),'Configuration Liste élèves'!$Q$9)))))","v":""}]
[null,{"$f":"IF(A17=\"\",\"\",'Configuration Liste élèves'!B61)","v":""},{"$f":"IF(B17=\"\",\"\",'Configuration Liste élèves'!C61)","v":""},null,{"$f":"IF(B17=\"\",\"\",COUNTIF(INDIRECT(\"G\"&ROW()):INDIRECT(\"WH\"&ROW()),'Configuration Liste élèves'!$Q$5))","v":""},{"$f":"IF(B17=\"\",\"\",COUNTIF(INDIRECT(\"G\"&ROW()):INDIRECT(\"WH\"&ROW()),'Configuration Liste élèves'!$Q$2)+COUNTIF(INDIRECT(\"G\"&ROW()):INDIRECT(\"WH\"&ROW()),'Configuration Liste élèves'!$Q$3)+2*(COUNTIF(INDIRECT(\"G\"&ROW()):INDIRECT(\"WH\"&ROW()),'Configuration Liste élèves'!$Q$4+COUNTIF(INDIRECT(\"G\"&ROW()):INDIRECT(\"WH\"&ROW()),'Configuration Liste élèves'!$Q$7)+COUNTIF(INDIRECT(\"G\"&ROW()):INDIRECT(\"WH\"&ROW()),'Configuration Liste élèves'!$Q$8)+2*(COUNTIF(INDIRECT(\"G\"&ROW()):INDIRECT(\"WH\"&ROW()),'Configuration Liste élèves'!$Q$9)))))","v":""}]
[null,{"$f":"IF(A18=\"\",\"\",'Configuration Liste élèves'!B62)","v":""},{"$f":"IF(B18=\"\",\"\",'Configuration Liste élèves'!C62)","v":""},null,{"$f":"IF(B18=\"\",\"\",COUNTIF(INDIRECT(\"G\"&ROW()):INDIRECT(\"WH\"&ROW()),'Configuration Liste élèves'!$Q$5))","v":""},{"$f":"IF(B18=\"\",\"\",COUNTIF(INDIRECT(\"G\"&ROW()):INDIRECT(\"WH\"&ROW()),'Configuration Liste élèves'!$Q$2)+COUNTIF(INDIRECT(\"G\"&ROW()):INDIRECT(\"WH\"&ROW()),'Configuration Liste élèves'!$Q$3)+2*(COUNTIF(INDIRECT(\"G\"&ROW()):INDIRECT(\"WH\"&ROW()),'Configuration Liste élèves'!$Q$4+COUNTIF(INDIRECT(\"G\"&ROW()):INDIRECT(\"WH\"&ROW()),'Configuration Liste élèves'!$Q$7)+COUNTIF(INDIRECT(\"G\"&ROW()):INDIRECT(\"WH\"&ROW()),'Configuration Liste élèves'!$Q$8)+2*(COUNTIF(INDIRECT(\"G\"&ROW()):INDIRECT(\"WH\"&ROW()),'Configuration Liste élèves'!$Q$9)))))","v":""}]
[null,{"$f":"IF(A19=\"\",\"\",'Configuration Liste élèves'!B63)","v":""},{"$f":"IF(B19=\"\",\"\",'Configuration Liste élèves'!C63)","v":""},null,{"$f":"IF(B19=\"\",\"\",COUNTIF(INDIRECT(\"G\"&ROW()):INDIRECT(\"WH\"&ROW()),'Configuration Liste élèves'!$Q$5))","v":""},{"$f":"IF(B19=\"\",\"\",COUNTIF(INDIRECT(\"G\"&ROW()):INDIRECT(\"WH\"&ROW()),'Configuration Liste élèves'!$Q$2)+COUNTIF(INDIRECT(\"G\"&ROW()):INDIRECT(\"WH\"&ROW()),'Configuration Liste élèves'!$Q$3)+2*(COUNTIF(INDIRECT(\"G\"&ROW()):INDIRECT(\"WH\"&ROW()),'Configuration Liste élèves'!$Q$4+COUNTIF(INDIRECT(\"G\"&ROW()):INDIRECT(\"WH\"&ROW()),'Configuration Liste élèves'!$Q$7)+COUNTIF(INDIRECT(\"G\"&ROW()):INDIRECT(\"WH\"&ROW()),'Configuration Liste élèves'!$Q$8)+2*(COUNTIF(INDIRECT(\"G\"&ROW()):INDIRECT(\"WH\"&ROW()),'Configuration Liste élèves'!$Q$9)))))","v":""}]
[null,{"$f":"IF(A20=\"\",\"\",'Configuration Liste élèves'!B64)","v":""},{"$f":"IF(B20=\"\",\"\",'Configuration Liste élèves'!C64)","v":""},null,{"$f":"IF(B20=\"\",\"\",COUNTIF(INDIRECT(\"G\"&ROW()):INDIRECT(\"WH\"&ROW()),'Configuration Liste élèves'!$Q$5))","v":""},{"$f":"IF(B20=\"\",\"\",COUNTIF(INDIRECT(\"G\"&ROW()):INDIRECT(\"WH\"&ROW()),'Configuration Liste élèves'!$Q$2)+COUNTIF(INDIRECT(\"G\"&ROW()):INDIRECT(\"WH\"&ROW()),'Configuration Liste élèves'!$Q$3)+2*(COUNTIF(INDIRECT(\"G\"&ROW()):INDIRECT(\"WH\"&ROW()),'Configuration Liste élèves'!$Q$4+COUNTIF(INDIRECT(\"G\"&ROW()):INDIRECT(\"WH\"&ROW()),'Configuration Liste élèves'!$Q$7)+COUNTIF(INDIRECT(\"G\"&ROW()):INDIRECT(\"WH\"&ROW()),'Configuration Liste élèves'!$Q$8)+2*(COUNTIF(INDIRECT(\"G\"&ROW()):INDIRECT(\"WH\"&ROW()),'Configuration Liste élèves'!$Q$9)))))","v":""}]
[null,{"$f":"IF(A21=\"\",\"\",'Configuration Liste élèves'!B65)","v":""},{"$f":"IF(B21=\"\",\"\",'Configuration Liste élèves'!C65)","v":""},null,{"$f":"IF(B21=\"\",\"\",COUNTIF(INDIRECT(\"G\"&ROW()):INDIRECT(\"WH\"&ROW()),'Configuration Liste élèves'!$Q$5))","v":""},{"$f":"IF(B21=\"\",\"\",COUNTIF(INDIRECT(\"G\"&ROW()):INDIRECT(\"WH\"&ROW()),'Configuration Liste élèves'!$Q$2)+COUNTIF(INDIRECT(\"G\"&ROW()):INDIRECT(\"WH\"&ROW()),'Configuration Liste élèves'!$Q$3)+2*(COUNTIF(INDIRECT(\"G\"&ROW()):INDIRECT(\"WH\"&ROW()),'Configuration Liste élèves'!$Q$4+COUNTIF(INDIRECT(\"G\"&ROW()):INDIRECT(\"WH\"&ROW()),'Configuration Liste élèves'!$Q$7)+COUNTIF(INDIRECT(\"G\"&ROW()):INDIRECT(\"WH\"&ROW()),'Configuration Liste élèves'!$Q$8)+2*(COUNTIF(INDIRECT(\"G\"&ROW()):INDIRECT(\"WH\"&ROW()),'Configuration Liste élèves'!$Q$9)))))","v":""}]
[null,{"$f":"IF(A22=\"\",\"\",'Configuration Liste élèves'!B66)","v":""},{"$f":"IF(B22=\"\",\"\",'Configuration Liste élèves'!C66)","v":""},null,{"$f":"IF(B22=\"\",\"\",COUNTIF(INDIRECT(\"G\"&ROW()):INDIRECT(\"WH\"&ROW()),'Configuration Liste élèves'!$Q$5))","v":""},{"$f":"IF(B22=\"\",\"\",COUNTIF(INDIRECT(\"G\"&ROW()):INDIRECT(\"WH\"&ROW()),'Configuration Liste élèves'!$Q$2)+COUNTIF(INDIRECT(\"G\"&ROW()):INDIRECT(\"WH\"&ROW()),'Configuration Liste élèves'!$Q$3)+2*(COUNTIF(INDIRECT(\"G\"&ROW()):INDIRECT(\"WH\"&ROW()),'Configuration Liste élèves'!$Q$4+COUNTIF(INDIRECT(\"G\"&ROW()):INDIRECT(\"WH\"&ROW()),'Configuration Liste élèves'!$Q$7)+COUNTIF(INDIRECT(\"G\"&ROW()):INDIRECT(\"WH\"&ROW()),'Configuration Liste élèves'!$Q$8)+2*(COUNTIF(INDIRECT(\"G\"&ROW()):INDIRECT(\"WH\"&ROW()),'Configuration Liste élèves'!$Q$9)))))","v":""}]
[null,{"$f":"IF(A23=\"\",\"\",'Configuration Liste élèves'!B67)","v":""},{"$f":"IF(B23=\"\",\"\",'Configuration Liste élèves'!C67)","v":""},null,{"$f":"IF(B23=\"\",\"\",COUNTIF(INDIRECT(\"G\"&ROW()):INDIRECT(\"WH\"&ROW()),'Configuration Liste élèves'!$Q$5))","v":""},{"$f":"IF(B23=\"\",\"\",COUNTIF(INDIRECT(\"G\"&ROW()):INDIRECT(\"WH\"&ROW()),'Configuration Liste élèves'!$Q$2)+COUNTIF(INDIRECT(\"G\"&ROW()):INDIRECT(\"WH\"&ROW()),'Configuration Liste élèves'!$Q$3)+2*(COUNTIF(INDIRECT(\"G\"&ROW()):INDIRECT(\"WH\"&ROW()),'Configuration Liste élèves'!$Q$4+COUNTIF(INDIRECT(\"G\"&ROW()):INDIRECT(\"WH\"&ROW()),'Configuration Liste élèves'!$Q$7)+COUNTIF(INDIRECT(\"G\"&ROW()):INDIRECT(\"WH\"&ROW()),'Configuration Liste élèves'!$Q$8)+2*(COUNTIF(INDIRECT(\"G\"&ROW()):INDIRECT(\"WH\"&ROW()),'Configuration Liste élèves'!$Q$9)))))","v":""}]
[null,{"$f":"IF(A24=\"\",\"\",'Configuration Liste élèves'!B68)","v":""},{"$f":"IF(B24=\"\",\"\",'Configuration Liste élèves'!C68)","v":""},null,{"$f":"IF(B24=\"\",\"\",COUNTIF(INDIRECT(\"G\"&ROW()):INDIRECT(\"WH\"&ROW()),'Configuration Liste élèves'!$Q$5))","v":""},{"$f":"IF(B24=\"\",\"\",COUNTIF(INDIRECT(\"G\"&ROW()):INDIRECT(\"WH\"&ROW()),'Configuration Liste élèves'!$Q$2)+COUNTIF(INDIRECT(\"G\"&ROW()):INDIRECT(\"WH\"&ROW()),'Configuration Liste élèves'!$Q$3)+2*(COUNTIF(INDIRECT(\"G\"&ROW()):INDIRECT(\"WH\"&ROW()),'Configuration Liste élèves'!$Q$4+COUNTIF(INDIRECT(\"G\"&ROW()):INDIRECT(\"WH\"&ROW()),'Configuration Liste élèves'!$Q$7)+COUNTIF(INDIRECT(\"G\"&ROW()):INDIRECT(\"WH\"&ROW()),'Configuration Liste élèves'!$Q$8)+2*(COUNTIF(INDIRECT(\"G\"&ROW()):INDIRECT(\"WH\"&ROW()),'Configuration Liste élèves'!$Q$9)))))","v":""}]
[null,{"$f":"IF(A25=\"\",\"\",'Configuration Liste élèves'!B69)","v":""},{"$f":"IF(B25=\"\",\"\",'Configuration Liste élèves'!C69)","v":""},null,{"$f":"IF(B25=\"\",\"\",COUNTIF(INDIRECT(\"G\"&ROW()):INDIRECT(\"WH\"&ROW()),'Configuration Liste élèves'!$Q$5))","v":""},{"$f":"IF(B25=\"\",\"\",COUNTIF(INDIRECT(\"G\"&ROW()):INDIRECT(\"WH\"&ROW()),'Configuration Liste élèves'!$Q$2)+COUNTIF(INDIRECT(\"G\"&ROW()):INDIRECT(\"WH\"&ROW()),'Configuration Liste élèves'!$Q$3)+2*(COUNTIF(INDIRECT(\"G\"&ROW()):INDIRECT(\"WH\"&ROW()),'Configuration Liste élèves'!$Q$4+COUNTIF(INDIRECT(\"G\"&ROW()):INDIRECT(\"WH\"&ROW()),'Configuration Liste élèves'!$Q$7)+COUNTIF(INDIRECT(\"G\"&ROW()):INDIRECT(\"WH\"&ROW()),'Configuration Liste élèves'!$Q$8)+2*(COUNTIF(INDIRECT(\"G\"&ROW()):INDIRECT(\"WH\"&ROW()),'Configuration Liste élèves'!$Q$9)))))","v":""}]
[null,{"$f":"IF(A26=\"\",\"\",'Configuration Liste élèves'!B70)","v":""},{"$f":"IF(B26=\"\",\"\",'Configuration Liste élèves'!C70)","v":""},null,{"$f":"IF(B26=\"\",\"\",COUNTIF(INDIRECT(\"G\"&ROW()):INDIRECT(\"WH\"&ROW()),'Configuration Liste élèves'!$Q$5))","v":""},{"$f":"IF(B26=\"\",\"\",COUNTIF(INDIRECT(\"G\"&ROW()):INDIRECT(\"WH\"&ROW()),'Configuration Liste élèves'!$Q$2)+COUNTIF(INDIRECT(\"G\"&ROW()):INDIRECT(\"WH\"&ROW()),'Configuration Liste élèves'!$Q$3)+2*(COUNTIF(INDIRECT(\"G\"&ROW()):INDIRECT(\"WH\"&ROW()),'Configuration Liste élèves'!$Q$4+COUNTIF(INDIRECT(\"G\"&ROW()):INDIRECT(\"WH\"&ROW()),'Configuration Liste élèves'!$Q$7)+COUNTIF(INDIRECT(\"G\"&ROW()):INDIRECT(\"WH\"&ROW()),'Configuration Liste élèves'!$Q$8)+2*(COUNTIF(INDIRECT(\"G\"&ROW()):INDIRECT(\"WH\"&ROW()),'Configuration Liste élèves'!$Q$9)))))","v":""}]
[null,{"$f":"IF(A27=\"\",\"\",'Configuration Liste élèves'!B71)","v":""},{"$f":"IF(B27=\"\",\"\",'Configuration Liste élèves'!C71)","v":""},null,{"$f":"IF(B27=\"\",\"\",COUNTIF(INDIRECT(\"G\"&ROW()):INDIRECT(\"WH\"&ROW()),'Configuration Liste élèves'!$Q$5))","v":""},{"$f":"IF(B27=\"\",\"\",COUNTIF(INDIRECT(\"G\"&ROW()):INDIRECT(\"WH\"&ROW()),'Configuration Liste élèves'!$Q$2)+COUNTIF(INDIRECT(\"G\"&ROW()):INDIRECT(\"WH\"&ROW()),'Configuration Liste élèves'!$Q$3)+2*(COUNTIF(INDIRECT(\"G\"&ROW()):INDIRECT(\"WH\"&ROW()),'Configuration Liste élèves'!$Q$4+COUNTIF(INDIRECT(\"G\"&ROW()):INDIRECT(\"WH\"&ROW()),'Configuration Liste élèves'!$Q$7)+COUNTIF(INDIRECT(\"G\"&ROW()):INDIRECT(\"WH\"&ROW()),'Configuration Liste élèves'!$Q$8)+2*(COUNTIF(INDIRECT(\"G\"&ROW()):INDIRECT(\"WH\"&ROW()),'Configuration Liste élèves'!$Q$9)))))","v":""}]
[null,{"$f":"IF(A28=\"\",\"\",'Configuration Liste élèves'!B72)","v":""},{"$f":"IF(B28=\"\",\"\",'Configuration Liste élèves'!C72)","v":""},null,{"$f":"IF(B28=\"\",\"\",COUNTIF(INDIRECT(\"G\"&ROW()):INDIRECT(\"WH\"&ROW()),'Configuration Liste élèves'!$Q$5))","v":""},{"$f":"IF(B28=\"\",\"\",COUNTIF(INDIRECT(\"G\"&ROW()):INDIRECT(\"WH\"&ROW()),'Configuration Liste élèves'!$Q$2)+COUNTIF(INDIRECT(\"G\"&ROW()):INDIRECT(\"WH\"&ROW()),'Configuration Liste élèves'!$Q$3)+2*(COUNTIF(INDIRECT(\"G\"&ROW()):INDIRECT(\"WH\"&ROW()),'Configuration Liste élèves'!$Q$4+COUNTIF(INDIRECT(\"G\"&ROW()):INDIRECT(\"WH\"&ROW()),'Configuration Liste élèves'!$Q$7)+COUNTIF(INDIRECT(\"G\"&ROW()):INDIRECT(\"WH\"&ROW()),'Configuration Liste élèves'!$Q$8)+2*(COUNTIF(INDIRECT(\"G\"&ROW()):INDIRECT(\"WH\"&ROW()),'Configuration Liste élèves'!$Q$9)))))","v":""}]
[null,{"$f":"IF(A29=\"\",\"\",'Configuration Liste élèves'!B73)","v":""},{"$f":"IF(B29=\"\",\"\",'Configuration Liste élèves'!C73)","v":""},null,{"$f":"IF(B29=\"\",\"\",COUNTIF(INDIRECT(\"G\"&ROW()):INDIRECT(\"WH\"&ROW()),'Configuration Liste élèves'!$Q$5))","v":""},{"$f":"IF(B29=\"\",\"\",COUNTIF(INDIRECT(\"G\"&ROW()):INDIRECT(\"WH\"&ROW()),'Configuration Liste élèves'!$Q$2)+COUNTIF(INDIRECT(\"G\"&ROW()):INDIRECT(\"WH\"&ROW()),'Configuration Liste élèves'!$Q$3)+2*(COUNTIF(INDIRECT(\"G\"&ROW()):INDIRECT(\"WH\"&ROW()),'Configuration Liste élèves'!$Q$4+COUNTIF(INDIRECT(\"G\"&ROW()):INDIRECT(\"WH\"&ROW()),'Configuration Liste élèves'!$Q$7)+COUNTIF(INDIRECT(\"G\"&ROW()):INDIRECT(\"WH\"&ROW()),'Configuration Liste élèves'!$Q$8)+2*(COUNTIF(INDIRECT(\"G\"&ROW()):INDIRECT(\"WH\"&ROW()),'Configuration Liste élèves'!$Q$9)))))","v":""}]
[null,{"$f":"IF(A30=\"\",\"\",'Configuration Liste élèves'!B74)","v":""},{"$f":"IF(B30=\"\",\"\",'Configuration Liste élèves'!C74)","v":""},null,{"$f":"IF(B30=\"\",\"\",COUNTIF(INDIRECT(\"G\"&ROW()):INDIRECT(\"WH\"&ROW()),'Configuration Liste élèves'!$Q$5))","v":""},{"$f":"IF(B30=\"\",\"\",COUNTIF(INDIRECT(\"G\"&ROW()):INDIRECT(\"WH\"&ROW()),'Configuration Liste élèves'!$Q$2)+COUNTIF(INDIRECT(\"G\"&ROW()):INDIRECT(\"WH\"&ROW()),'Configuration Liste élèves'!$Q$3)+2*(COUNTIF(INDIRECT(\"G\"&ROW()):INDIRECT(\"WH\"&ROW()),'Configuration Liste élèves'!$Q$4+COUNTIF(INDIRECT(\"G\"&ROW()):INDIRECT(\"WH\"&ROW()),'Configuration Liste élèves'!$Q$7)+COUNTIF(INDIRECT(\"G\"&ROW()):INDIRECT(\"WH\"&ROW()),'Configuration Liste élèves'!$Q$8)+2*(COUNTIF(INDIRECT(\"G\"&ROW()):INDIRECT(\"WH\"&ROW()),'Configuration Liste élèves'!$Q$9)))))","v":""}]
[null,{"$f":"IF(A31=\"\",\"\",'Configuration Liste élèves'!B75)","v":""},{"$f":"IF(B31=\"\",\"\",'Configuration Liste élèves'!C75)","v":""},null,{"$f":"IF(B31=\"\",\"\",COUNTIF(INDIRECT(\"G\"&ROW()):INDIRECT(\"WH\"&ROW()),'Configuration Liste élèves'!$Q$5))","v":""},{"$f":"IF(B31=\"\",\"\",COUNTIF(INDIRECT(\"G\"&ROW()):INDIRECT(\"WH\"&ROW()),'Configuration Liste élèves'!$Q$2)+COUNTIF(INDIRECT(\"G\"&ROW()):INDIRECT(\"WH\"&ROW()),'Configuration Liste élèves'!$Q$3)+2*(COUNTIF(INDIRECT(\"G\"&ROW()):INDIRECT(\"WH\"&ROW()),'Configuration Liste élèves'!$Q$4+COUNTIF(INDIRECT(\"G\"&ROW()):INDIRECT(\"WH\"&ROW()),'Configuration Liste élèves'!$Q$7)+COUNTIF(INDIRECT(\"G\"&ROW()):INDIRECT(\"WH\"&ROW()),'Configuration Liste élèves'!$Q$8)+2*(COUNTIF(INDIRECT(\"G\"&ROW()):INDIRECT(\"WH\"&ROW()),'Configuration Liste élèves'!$Q$9)))))","v":""}]
[null,{"$f":"IF(A32=\"\",\"\",'Configuration Liste élèves'!B76)","v":""},{"$f":"IF(B32=\"\",\"\",'Configuration Liste élèves'!C76)","v":""},null,{"$f":"IF(B32=\"\",\"\",COUNTIF(INDIRECT(\"G\"&ROW()):INDIRECT(\"WH\"&ROW()),'Configuration Liste élèves'!$Q$5))","v":""},{"$f":"IF(B32=\"\",\"\",COUNTIF(INDIRECT(\"G\"&ROW()):INDIRECT(\"WH\"&ROW()),'Configuration Liste élèves'!$Q$2)+COUNTIF(INDIRECT(\"G\"&ROW()):INDIRECT(\"WH\"&ROW()),'Configuration Liste élèves'!$Q$3)+2*(COUNTIF(INDIRECT(\"G\"&ROW()):INDIRECT(\"WH\"&ROW()),'Configuration Liste élèves'!$Q$4+COUNTIF(INDIRECT(\"G\"&ROW()):INDIRECT(\"WH\"&ROW()),'Configuration Liste élèves'!$Q$7)+COUNTIF(INDIRECT(\"G\"&ROW()):INDIRECT(\"WH\"&ROW()),'Configuration Liste élèves'!$Q$8)+2*(COUNTIF(INDIRECT(\"G\"&ROW()):INDIRECT(\"WH\"&ROW()),'Configuration Liste élèves'!$Q$9)))))","v":""}]
[null,{"$f":"IF(A33=\"\",\"\",'Configuration Liste élèves'!B77)","v":""},{"$f":"IF(B33=\"\",\"\",'Configuration Liste élèves'!C77)","v":""},null,{"$f":"IF(B33=\"\",\"\",COUNTIF(INDIRECT(\"G\"&ROW()):INDIRECT(\"WH\"&ROW()),'Configuration Liste élèves'!$Q$5))","v":""},{"$f":"IF(B33=\"\",\"\",COUNTIF(INDIRECT(\"G\"&ROW()):INDIRECT(\"WH\"&ROW()),'Configuration Liste élèves'!$Q$2)+COUNTIF(INDIRECT(\"G\"&ROW()):INDIRECT(\"WH\"&ROW()),'Configuration Liste élèves'!$Q$3)+2*(COUNTIF(INDIRECT(\"G\"&ROW()):INDIRECT(\"WH\"&ROW()),'Configuration Liste élèves'!$Q$4+COUNTIF(INDIRECT(\"G\"&ROW()):INDIRECT(\"WH\"&ROW()),'Configuration Liste élèves'!$Q$7)+COUNTIF(INDIRECT(\"G\"&ROW()):INDIRECT(\"WH\"&ROW()),'Configuration Liste élèves'!$Q$8)+2*(COUNTIF(INDIRECT(\"G\"&ROW()):INDIRECT(\"WH\"&ROW()),'Configuration Liste élèves'!$Q$9)))))","v":""}]
[null,{"$f":"IF(A34=\"\",\"\",'Configuration Liste élèves'!B78)","v":""},{"$f":"IF(B34=\"\",\"\",'Configuration Liste élèves'!C78)","v":""},null,{"$f":"IF(B34=\"\",\"\",COUNTIF(INDIRECT(\"G\"&ROW()):INDIRECT(\"WH\"&ROW()),'Configuration Liste élèves'!$Q$5))","v":""},{"$f":"IF(B34=\"\",\"\",COUNTIF(INDIRECT(\"G\"&ROW()):INDIRECT(\"WH\"&ROW()),'Configuration Liste élèves'!$Q$2)+COUNTIF(INDIRECT(\"G\"&ROW()):INDIRECT(\"WH\"&ROW()),'Configuration Liste élèves'!$Q$3)+2*(COUNTIF(INDIRECT(\"G\"&ROW()):INDIRECT(\"WH\"&ROW()),'Configuration Liste élèves'!$Q$4+COUNTIF(INDIRECT(\"G\"&ROW()):INDIRECT(\"WH\"&ROW()),'Configuration Liste élèves'!$Q$7)+COUNTIF(INDIRECT(\"G\"&ROW()):INDIRECT(\"WH\"&ROW()),'Configuration Liste élèves'!$Q$8)+2*(COUNTIF(INDIRECT(\"G\"&ROW()):INDIRECT(\"WH\"&ROW()),'Configuration Liste élèves'!$Q$9)))))","v":""}]
[null,{"$f":"IF(A35=\"\",\"\",'Configuration Liste élèves'!B79)","v":""},{"$f":"IF(B35=\"\",\"\",'Configuration Liste élèves'!C79)","v":""},null,{"$f":"IF(B35=\"\",\"\",COUNTIF(INDIRECT(\"G\"&ROW()):INDIRECT(\"WH\"&ROW()),'Configuration Liste élèves'!$Q$5))","v":""},{"$f":"IF(B35=\"\",\"\",COUNTIF(INDIRECT(\"G\"&ROW()):INDIRECT(\"WH\"&ROW()),'Configuration Liste élèves'!$Q$2)+COUNTIF(INDIRECT(\"G\"&ROW()):INDIRECT(\"WH\"&ROW()),'Configuration Liste élèves'!$Q$3)+2*(COUNTIF(INDIRECT(\"G\"&ROW()):INDIRECT(\"WH\"&ROW()),'Configuration Liste élèves'!$Q$4+COUNTIF(INDIRECT(\"G\"&ROW()):INDIRECT(\"WH\"&ROW()),'Configuration Liste élèves'!$Q$7)+COUNTIF(INDIRECT(\"G\"&ROW()):INDIRECT(\"WH\"&ROW()),'Configuration Liste élèves'!$Q$8)+2*(COUNTIF(INDIRECT(\"G\"&ROW()):INDIRECT(\"WH\"&ROW()),'Configuration Liste élèves'!$Q$9)))))","v":""}]
[null,{"$f":"IF(A36=\"\",\"\",'Configuration Liste élèves'!B80)","v":""},{"$f":"IF(B36=\"\",\"\",'Configuration Liste élèves'!C80)","v":""},null,{"$f":"IF(B36=\"\",\"\",COUNTIF(INDIRECT(\"G\"&ROW()):INDIRECT(\"WH\"&ROW()),'Configuration Liste élèves'!$Q$5))","v":""},{"$f":"IF(B36=\"\",\"\",COUNTIF(INDIRECT(\"G\"&ROW()):INDIRECT(\"WH\"&ROW()),'Configuration Liste élèves'!$Q$2)+COUNTIF(INDIRECT(\"G\"&ROW()):INDIRECT(\"WH\"&ROW()),'Configuration Liste élèves'!$Q$3)+2*(COUNTIF(INDIRECT(\"G\"&ROW()):INDIRECT(\"WH\"&ROW()),'Configuration Liste élèves'!$Q$4+COUNTIF(INDIRECT(\"G\"&ROW()):INDIRECT(\"WH\"&ROW()),'Configuration Liste élèves'!$Q$7)+COUNTIF(INDIRECT(\"G\"&ROW()):INDIRECT(\"WH\"&ROW()),'Configuration Liste élèves'!$Q$8)+2*(COUNTIF(INDIRECT(\"G\"&ROW()):INDIRECT(\"WH\"&ROW()),'Configuration Liste élèves'!$Q$9)))))","v":""}]
[null,{"$f":"IF(A37=\"\",\"\",'Configuration Liste élèves'!B81)","v":""},{"$f":"IF(B37=\"\",\"\",'Configuration Liste élèves'!C81)","v":""},null,{"$f":"IF(B37=\"\",\"\",COUNTIF(INDIRECT(\"G\"&ROW()):INDIRECT(\"WH\"&ROW()),'Configuration Liste élèves'!$Q$5))","v":""},{"$f":"IF(B37=\"\",\"\",COUNTIF(INDIRECT(\"G\"&ROW()):INDIRECT(\"WH\"&ROW()),'Configuration Liste élèves'!$Q$2)+COUNTIF(INDIRECT(\"G\"&ROW()):INDIRECT(\"WH\"&ROW()),'Configuration Liste élèves'!$Q$3)+2*(COUNTIF(INDIRECT(\"G\"&ROW()):INDIRECT(\"WH\"&ROW()),'Configuration Liste élèves'!$Q$4+COUNTIF(INDIRECT(\"G\"&ROW()):INDIRECT(\"WH\"&ROW()),'Configuration Liste élèves'!$Q$7)+COUNTIF(INDIRECT(\"G\"&ROW()):INDIRECT(\"WH\"&ROW()),'Configuration Liste élèves'!$Q$8)+2*(COUNTIF(INDIRECT(\"G\"&ROW()):INDIRECT(\"WH\"&ROW()),'Configuration Liste élèves'!$Q$9)))))","v":""}]
[null,{"$f":"IF(A38=\"\",\"\",'Configuration Liste élèves'!B82)","v":""},{"$f":"IF(B38=\"\",\"\",'Configuration Liste élèves'!C82)","v":""},null,{"$f":"IF(B38=\"\",\"\",COUNTIF(INDIRECT(\"G\"&ROW()):INDIRECT(\"WH\"&ROW()),'Configuration Liste élèves'!$Q$5))","v":""},{"$f":"IF(B38=\"\",\"\",COUNTIF(INDIRECT(\"G\"&ROW()):INDIRECT(\"WH\"&ROW()),'Configuration Liste élèves'!$Q$2)+COUNTIF(INDIRECT(\"G\"&ROW()):INDIRECT(\"WH\"&ROW()),'Configuration Liste élèves'!$Q$3)+2*(COUNTIF(INDIRECT(\"G\"&ROW()):INDIRECT(\"WH\"&ROW()),'Configuration Liste élèves'!$Q$4+COUNTIF(INDIRECT(\"G\"&ROW()):INDIRECT(\"WH\"&ROW()),'Configuration Liste élèves'!$Q$7)+COUNTIF(INDIRECT(\"G\"&ROW()):INDIRECT(\"WH\"&ROW()),'Configuration Liste élèves'!$Q$8)+2*(COUNTIF(INDIRECT(\"G\"&ROW()):INDIRECT(\"WH\"&ROW()),'Configuration Liste élèves'!$Q$9)))))","v":""}]
[null,{"$f":"IF(A39=\"\",\"\",'Configuration Liste élèves'!B83)","v":""},{"$f":"IF(B39=\"\",\"\",'Configuration Liste élèves'!C83)","v":""},null,{"$f":"IF(B39=\"\",\"\",COUNTIF(INDIRECT(\"G\"&ROW()):INDIRECT(\"WH\"&ROW()),'Configuration Liste élèves'!$Q$5))","v":""},{"$f":"IF(B39=\"\",\"\",COUNTIF(INDIRECT(\"G\"&ROW()):INDIRECT(\"WH\"&ROW()),'Configuration Liste élèves'!$Q$2)+COUNTIF(INDIRECT(\"G\"&ROW()):INDIRECT(\"WH\"&ROW()),'Configuration Liste élèves'!$Q$3)+2*(COUNTIF(INDIRECT(\"G\"&ROW()):INDIRECT(\"WH\"&ROW()),'Configuration Liste élèves'!$Q$4+COUNTIF(INDIRECT(\"G\"&ROW()):INDIRECT(\"WH\"&ROW()),'Configuration Liste élèves'!$Q$7)+COUNTIF(INDIRECT(\"G\"&ROW()):INDIRECT(\"WH\"&ROW()),'Configuration Liste élèves'!$Q$8)+2*(COUNTIF(INDIRECT(\"G\"&ROW()):INDIRECT(\"WH\"&ROW()),'Configuration Liste élèves'!$Q$9)))))","v":""}]
[null,{"$f":"IF(A40=\"\",\"\",'Configuration Liste élèves'!B84)","v":""},{"$f":"IF(B40=\"\",\"\",'Configuration Liste élèves'!C84)","v":""},null,{"$f":"IF(B40=\"\",\"\",COUNTIF(INDIRECT(\"G\"&ROW()):INDIRECT(\"WH\"&ROW()),'Configuration Liste élèves'!$Q$5))","v":""},{"$f":"IF(B40=\"\",\"\",COUNTIF(INDIRECT(\"G\"&ROW()):INDIRECT(\"WH\"&ROW()),'Configuration Liste élèves'!$Q$2)+COUNTIF(INDIRECT(\"G\"&ROW()):INDIRECT(\"WH\"&ROW()),'Configuration Liste élèves'!$Q$3)+2*(COUNTIF(INDIRECT(\"G\"&ROW()):INDIRECT(\"WH\"&ROW()),'Configuration Liste élèves'!$Q$4+COUNTIF(INDIRECT(\"G\"&ROW()):INDIRECT(\"WH\"&ROW()),'Configuration Liste élèves'!$Q$7)+COUNTIF(INDIRECT(\"G\"&ROW()):INDIRECT(\"WH\"&ROW()),'Configuration Liste élèves'!$Q$8)+2*(COUNTIF(INDIRECT(\"G\"&ROW()):INDIRECT(\"WH\"&ROW()),'Configuration Liste élèves'!$Q$9)))))","v":""}]
[null,{"$f":"IF(A41=\"\",\"\",'Configuration Liste élèves'!B85)","v":""},{"$f":"IF(B41=\"\",\"\",'Configuration Liste élèves'!C85)","v":""},null,{"$f":"IF(B41=\"\",\"\",COUNTIF(INDIRECT(\"G\"&ROW()):INDIRECT(\"WH\"&ROW()),'Configuration Liste élèves'!$Q$5))","v":""},{"$f":"IF(B41=\"\",\"\",COUNTIF(INDIRECT(\"G\"&ROW()):INDIRECT(\"WH\"&ROW()),'Configuration Liste élèves'!$Q$2)+COUNTIF(INDIRECT(\"G\"&ROW()):INDIRECT(\"WH\"&ROW()),'Configuration Liste élèves'!$Q$3)+2*(COUNTIF(INDIRECT(\"G\"&ROW()):INDIRECT(\"WH\"&ROW()),'Configuration Liste élèves'!$Q$4+COUNTIF(INDIRECT(\"G\"&ROW()):INDIRECT(\"WH\"&ROW()),'Configuration Liste élèves'!$Q$7)+COUNTIF(INDIRECT(\"G\"&ROW()):INDIRECT(\"WH\"&ROW()),'Configuration Liste élèves'!$Q$8)+2*(COUNTIF(INDIRECT(\"G\"&ROW()):INDIRECT(\"WH\"&ROW()),'Configuration Liste élèves'!$Q$9)))))","v":""}]
[null,{"$f":"IF(A42=\"\",\"\",'Configuration Liste élèves'!B86)","v":""},{"$f":"IF(B42=\"\",\"\",'Configuration Liste élèves'!C86)","v":""},null,{"$f":"IF(B42=\"\",\"\",COUNTIF(INDIRECT(\"G\"&ROW()):INDIRECT(\"WH\"&ROW()),'Configuration Liste élèves'!$Q$5))","v":""},{"$f":"IF(B42=\"\",\"\",COUNTIF(INDIRECT(\"G\"&ROW()):INDIRECT(\"WH\"&ROW()),'Configuration Liste élèves'!$Q$2)+COUNTIF(INDIRECT(\"G\"&ROW()):INDIRECT(\"WH\"&ROW()),'Configuration Liste élèves'!$Q$3)+2*(COUNTIF(INDIRECT(\"G\"&ROW()):INDIRECT(\"WH\"&ROW()),'Configuration Liste élèves'!$Q$4+COUNTIF(INDIRECT(\"G\"&ROW()):INDIRECT(\"WH\"&ROW()),'Configuration Liste élèves'!$Q$7)+COUNTIF(INDIRECT(\"G\"&ROW()):INDIRECT(\"WH\"&ROW()),'Configuration Liste élèves'!$Q$8)+2*(COUNTIF(INDIRECT(\"G\"&ROW()):INDIRECT(\"WH\"&ROW()),'Configuration Liste élèves'!$Q$9)))))","v":""}]
[null,{"$f":"IF(A43=\"\",\"\",'Configuration Liste élèves'!B87)","v":""},{"$f":"IF(B43=\"\",\"\",'Configuration Liste élèves'!C87)","v":""},null,{"$f":"IF(B43=\"\",\"\",COUNTIF(INDIRECT(\"G\"&ROW()):INDIRECT(\"WH\"&ROW()),'Configuration Liste élèves'!$Q$5))","v":""},{"$f":"IF(B43=\"\",\"\",COUNTIF(INDIRECT(\"G\"&ROW()):INDIRECT(\"WH\"&ROW()),'Configuration Liste élèves'!$Q$2)+COUNTIF(INDIRECT(\"G\"&ROW()):INDIRECT(\"WH\"&ROW()),'Configuration Liste élèves'!$Q$3)+2*(COUNTIF(INDIRECT(\"G\"&ROW()):INDIRECT(\"WH\"&ROW()),'Configuration Liste élèves'!$Q$4+COUNTIF(INDIRECT(\"G\"&ROW()):INDIRECT(\"WH\"&ROW()),'Configuration Liste élèves'!$Q$7)+COUNTIF(INDIRECT(\"G\"&ROW()):INDIRECT(\"WH\"&ROW()),'Configuration Liste élèves'!$Q$8)+2*(COUNTIF(INDIRECT(\"G\"&ROW()):INDIRECT(\"WH\"&ROW()),'Configuration Liste élèves'!$Q$9)))))","v":""}]
[null,{"$f":"IF(A44=\"\",\"\",'Configuration Liste élèves'!B88)","v":""},{"$f":"IF(B44=\"\",\"\",'Configuration Liste élèves'!C88)","v":""},null,{"$f":"IF(B44=\"\",\"\",COUNTIF(INDIRECT(\"G\"&ROW()):INDIRECT(\"WH\"&ROW()),'Configuration Liste élèves'!$Q$5))","v":""},{"$f":"IF(B44=\"\",\"\",COUNTIF(INDIRECT(\"G\"&ROW()):INDIRECT(\"WH\"&ROW()),'Configuration Liste élèves'!$Q$2)+COUNTIF(INDIRECT(\"G\"&ROW()):INDIRECT(\"WH\"&ROW()),'Configuration Liste élèves'!$Q$3)+2*(COUNTIF(INDIRECT(\"G\"&ROW()):INDIRECT(\"WH\"&ROW()),'Configuration Liste élèves'!$Q$4+COUNTIF(INDIRECT(\"G\"&ROW()):INDIRECT(\"WH\"&ROW()),'Configuration Liste élèves'!$Q$7)+COUNTIF(INDIRECT(\"G\"&ROW()):INDIRECT(\"WH\"&ROW()),'Configuration Liste élèves'!$Q$8)+2*(COUNTIF(INDIRECT(\"G\"&ROW()):INDIRECT(\"WH\"&ROW()),'Configuration Liste élèves'!$Q$9)))))","v":""}]
[null,{"$f":"IF(A45=\"\",\"\",'Configuration Liste élèves'!B89)","v":""},{"$f":"IF(B45=\"\",\"\",'Configuration Liste élèves'!C89)","v":""},null,{"$f":"IF(B45=\"\",\"\",COUNTIF(INDIRECT(\"G\"&ROW()):INDIRECT(\"WH\"&ROW()),'Configuration Liste élèves'!$Q$5))","v":""},{"$f":"IF(B45=\"\",\"\",COUNTIF(INDIRECT(\"G\"&ROW()):INDIRECT(\"WH\"&ROW()),'Configuration Liste élèves'!$Q$2)+COUNTIF(INDIRECT(\"G\"&ROW()):INDIRECT(\"WH\"&ROW()),'Configuration Liste élèves'!$Q$3)+2*(COUNTIF(INDIRECT(\"G\"&ROW()):INDIRECT(\"WH\"&ROW()),'Configuration Liste élèves'!$Q$4+COUNTIF(INDIRECT(\"G\"&ROW()):INDIRECT(\"WH\"&ROW()),'Configuration Liste élèves'!$Q$7)+COUNTIF(INDIRECT(\"G\"&ROW()):INDIRECT(\"WH\"&ROW()),'Configuration Liste élèves'!$Q$8)+2*(COUNTIF(INDIRECT(\"G\"&ROW()):INDIRECT(\"WH\"&ROW()),'Configuration Liste élèves'!$Q$9)))))","v":""}]
[null,{"$f":"IF(A46=\"\",\"\",'Configuration Liste élèves'!B90)","v":""},{"$f":"IF(B46=\"\",\"\",'Configuration Liste élèves'!C90)","v":""},null,{"$f":"IF(B46=\"\",\"\",COUNTIF(INDIRECT(\"G\"&ROW()):INDIRECT(\"WH\"&ROW()),'Configuration Liste élèves'!$Q$5))","v":""},{"$f":"IF(B46=\"\",\"\",COUNTIF(INDIRECT(\"G\"&ROW()):INDIRECT(\"WH\"&ROW()),'Configuration Liste élèves'!$Q$2)+COUNTIF(INDIRECT(\"G\"&ROW()):INDIRECT(\"WH\"&ROW()),'Configuration Liste élèves'!$Q$3)+2*(COUNTIF(INDIRECT(\"G\"&ROW()):INDIRECT(\"WH\"&ROW()),'Configuration Liste élèves'!$Q$4+COUNTIF(INDIRECT(\"G\"&ROW()):INDIRECT(\"WH\"&ROW()),'Configuration Liste élèves'!$Q$7)+COUNTIF(INDIRECT(\"G\"&ROW()):INDIRECT(\"WH\"&ROW()),'Configuration Liste élèves'!$Q$8)+2*(COUNTIF(INDIRECT(\"G\"&ROW()):INDIRECT(\"WH\"&ROW()),'Configuration Liste élèves'!$Q$9)))))","v":""}]
[null,{"$f":"IF(A47=\"\",\"\",'Configuration Liste élèves'!B91)","v":""},{"$f":"IF(B47=\"\",\"\",'Configuration Liste élèves'!C91)","v":""},null,{"$f":"IF(B47=\"\",\"\",COUNTIF(INDIRECT(\"G\"&ROW()):INDIRECT(\"WH\"&ROW()),'Configuration Liste élèves'!$Q$5))","v":""},{"$f":"IF(B47=\"\",\"\",COUNTIF(INDIRECT(\"G\"&ROW()):INDIRECT(\"WH\"&ROW()),'Configuration Liste élèves'!$Q$2)+COUNTIF(INDIRECT(\"G\"&ROW()):INDIRECT(\"WH\"&ROW()),'Configuration Liste élèves'!$Q$3)+2*(COUNTIF(INDIRECT(\"G\"&ROW()):INDIRECT(\"WH\"&ROW()),'Configuration Liste élèves'!$Q$4+COUNTIF(INDIRECT(\"G\"&ROW()):INDIRECT(\"WH\"&ROW()),'Configuration Liste élèves'!$Q$7)+COUNTIF(INDIRECT(\"G\"&ROW()):INDIRECT(\"WH\"&ROW()),'Configuration Liste élèves'!$Q$8)+2*(COUNTIF(INDIRECT(\"G\"&ROW()):INDIRECT(\"WH\"&ROW()),'Configuration Liste élèves'!$Q$9)))))","v":""}]
[{"$f":"'Configuration Liste élèves'!A51","v":""},{"$f":"IF(A48=\"\",\"\",'Configuration Liste élèves'!B92)","v":""},{"$f":"IF(B48=\"\",\"\",'Configuration Liste élèves'!C92)","v":""},null,{"$f":"IF(B48=\"\",\"\",COUNTIF(INDIRECT(\"G\"&ROW()):INDIRECT(\"WH\"&ROW()),'Configuration Liste élèves'!$Q$5))","v":""},{"$f":"IF(B48=\"\",\"\",COUNTIF(INDIRECT(\"G\"&ROW()):INDIRECT(\"WH\"&ROW()),'Configuration Liste élèves'!$Q$2)+COUNTIF(INDIRECT(\"G\"&ROW()):INDIRECT(\"WH\"&ROW()),'Configuration Liste élèves'!$Q$3)+2*(COUNTIF(INDIRECT(\"G\"&ROW()):INDIRECT(\"WH\"&ROW()),'Configuration Liste élèves'!$Q$4+COUNTIF(INDIRECT(\"G\"&ROW()):INDIRECT(\"WH\"&ROW()),'Configuration Liste élèves'!$Q$7)+COUNTIF(INDIRECT(\"G\"&ROW()):INDIRECT(\"WH\"&ROW()),'Configuration Liste élèves'!$Q$8)+2*(COUNTIF(INDIRECT(\"G\"&ROW()):INDIRECT(\"WH\"&ROW()),'Configuration Liste élèves'!$Q$9)))))","v":""}]
[null,{"$f":"IF(A49=\"\",\"\",'Configuration Liste élèves'!B93)","v":""},{"$f":"IF(B49=\"\",\"\",'Configuration Liste élèves'!C93)","v":""},null,{"$f":"IF(B49=\"\",\"\",COUNTIF(INDIRECT(\"G\"&ROW()):INDIRECT(\"WH\"&ROW()),'Configuration Liste élèves'!$Q$5))","v":""},{"$f":"IF(B49=\"\",\"\",COUNTIF(INDIRECT(\"G\"&ROW()):INDIRECT(\"WH\"&ROW()),'Configuration Liste élèves'!$Q$2)+COUNTIF(INDIRECT(\"G\"&ROW()):INDIRECT(\"WH\"&ROW()),'Configuration Liste élèves'!$Q$3)+2*(COUNTIF(INDIRECT(\"G\"&ROW()):INDIRECT(\"WH\"&ROW()),'Configuration Liste élèves'!$Q$4+COUNTIF(INDIRECT(\"G\"&ROW()):INDIRECT(\"WH\"&ROW()),'Configuration Liste élèves'!$Q$7)+COUNTIF(INDIRECT(\"G\"&ROW()):INDIRECT(\"WH\"&ROW()),'Configuration Liste élèves'!$Q$8)+2*(COUNTIF(INDIRECT(\"G\"&ROW()):INDIRECT(\"WH\"&ROW()),'Configuration Liste élèves'!$Q$9)))))","v":""}]
[null,{"$f":"IF(A50=\"\",\"\",'Configuration Liste élèves'!B94)","v":""},{"$f":"IF(B50=\"\",\"\",'Configuration Liste élèves'!C94)","v":""},null,{"$f":"IF(B50=\"\",\"\",COUNTIF(INDIRECT(\"G\"&ROW()):INDIRECT(\"WH\"&ROW()),'Configuration Liste élèves'!$Q$5))","v":""},{"$f":"IF(B50=\"\",\"\",COUNTIF(INDIRECT(\"G\"&ROW()):INDIRECT(\"WH\"&ROW()),'Configuration Liste élèves'!$Q$2)+COUNTIF(INDIRECT(\"G\"&ROW()):INDIRECT(\"WH\"&ROW()),'Configuration Liste élèves'!$Q$3)+2*(COUNTIF(INDIRECT(\"G\"&ROW()):INDIRECT(\"WH\"&ROW()),'Configuration Liste élèves'!$Q$4+COUNTIF(INDIRECT(\"G\"&ROW()):INDIRECT(\"WH\"&ROW()),'Configuration Liste élèves'!$Q$7)+COUNTIF(INDIRECT(\"G\"&ROW()):INDIRECT(\"WH\"&ROW()),'Configuration Liste élèves'!$Q$8)+2*(COUNTIF(INDIRECT(\"G\"&ROW()):INDIRECT(\"WH\"&ROW()),'Configuration Liste élèves'!$Q$9)))))","v":""}]
[null,{"$f":"IF(A51=\"\",\"\",'Configuration Liste élèves'!B95)","v":""},{"$f":"IF(B51=\"\",\"\",'Configuration Liste élèves'!C95)","v":""},null,{"$f":"IF(B51=\"\",\"\",COUNTIF(INDIRECT(\"G\"&ROW()):INDIRECT(\"WH\"&ROW()),'Configuration Liste élèves'!$Q$5))","v":""},{"$f":"IF(B51=\"\",\"\",COUNTIF(INDIRECT(\"G\"&ROW()):INDIRECT(\"WH\"&ROW()),'Configuration Liste élèves'!$Q$2)+COUNTIF(INDIRECT(\"G\"&ROW()):INDIRECT(\"WH\"&ROW()),'Configuration Liste élèves'!$Q$3)+2*(COUNTIF(INDIRECT(\"G\"&ROW()):INDIRECT(\"WH\"&ROW()),'Configuration Liste élèves'!$Q$4+COUNTIF(INDIRECT(\"G\"&ROW()):INDIRECT(\"WH\"&ROW()),'Configuration Liste élèves'!$Q$7)+COUNTIF(INDIRECT(\"G\"&ROW()):INDIRECT(\"WH\"&ROW()),'Configuration Liste élèves'!$Q$8)+2*(COUNTIF(INDIRECT(\"G\"&ROW()):INDIRECT(\"WH\"&ROW()),'Configuration Liste élèves'!$Q$9)))))","v":""}]
[null,{"$f":"IF(A52=\"\",\"\",'Configuration Liste élèves'!B96)","v":""},{"$f":"IF(B52=\"\",\"\",'Configuration Liste élèves'!C96)","v":""},null,{"$f":"IF(B52=\"\",\"\",COUNTIF(INDIRECT(\"G\"&ROW()):INDIRECT(\"WH\"&ROW()),'Configuration Liste élèves'!$Q$5))","v":""},{"$f":"IF(B52=\"\",\"\",COUNTIF(INDIRECT(\"G\"&ROW()):INDIRECT(\"WH\"&ROW()),'Configuration Liste élèves'!$Q$2)+COUNTIF(INDIRECT(\"G\"&ROW()):INDIRECT(\"WH\"&ROW()),'Configuration Liste élèves'!$Q$3)+2*(COUNTIF(INDIRECT(\"G\"&ROW()):INDIRECT(\"WH\"&ROW()),'Configuration Liste élèves'!$Q$4+COUNTIF(INDIRECT(\"G\"&ROW()):INDIRECT(\"WH\"&ROW()),'Configuration Liste élèves'!$Q$7)+COUNTIF(INDIRECT(\"G\"&ROW()):INDIRECT(\"WH\"&ROW()),'Configuration Liste élèves'!$Q$8)+2*(COUNTIF(INDIRECT(\"G\"&ROW()):INDIRECT(\"WH\"&ROW()),'Configuration Liste élèves'!$Q$9)))))","v":""}]
[null,{"$f":"IF(A53=\"\",\"\",'Configuration Liste élèves'!B97)","v":""},{"$f":"IF(B53=\"\",\"\",'Configuration Liste élèves'!C97)","v":""},null,{"$f":"IF(B53=\"\",\"\",COUNTIF(INDIRECT(\"G\"&ROW()):INDIRECT(\"WH\"&ROW()),'Configuration Liste élèves'!$Q$5))","v":""},{"$f":"IF(B53=\"\",\"\",COUNTIF(INDIRECT(\"G\"&ROW()):INDIRECT(\"WH\"&ROW()),'Configuration Liste élèves'!$Q$2)+COUNTIF(INDIRECT(\"G\"&ROW()):INDIRECT(\"WH\"&ROW()),'Configuration Liste élèves'!$Q$3)+2*(COUNTIF(INDIRECT(\"G\"&ROW()):INDIRECT(\"WH\"&ROW()),'Configuration Liste élèves'!$Q$4+COUNTIF(INDIRECT(\"G\"&ROW()):INDIRECT(\"WH\"&ROW()),'Configuration Liste élèves'!$Q$7)+COUNTIF(INDIRECT(\"G\"&ROW()):INDIRECT(\"WH\"&ROW()),'Configuration Liste élèves'!$Q$8)+2*(COUNTIF(INDIRECT(\"G\"&ROW()):INDIRECT(\"WH\"&ROW()),'Configuration Liste élèves'!$Q$9)))))","v":""}]
[null,{"$f":"IF(A54=\"\",\"\",'Configuration Liste élèves'!B98)","v":""},{"$f":"IF(B54=\"\",\"\",'Configuration Liste élèves'!C98)","v":""},null,{"$f":"IF(B54=\"\",\"\",COUNTIF(INDIRECT(\"G\"&ROW()):INDIRECT(\"WH\"&ROW()),'Configuration Liste élèves'!$Q$5))","v":""},{"$f":"IF(B54=\"\",\"\",COUNTIF(INDIRECT(\"G\"&ROW()):INDIRECT(\"WH\"&ROW()),'Configuration Liste élèves'!$Q$2)+COUNTIF(INDIRECT(\"G\"&ROW()):INDIRECT(\"WH\"&ROW()),'Configuration Liste élèves'!$Q$3)+2*(COUNTIF(INDIRECT(\"G\"&ROW()):INDIRECT(\"WH\"&ROW()),'Configuration Liste élèves'!$Q$4+COUNTIF(INDIRECT(\"G\"&ROW()):INDIRECT(\"WH\"&ROW()),'Configuration Liste élèves'!$Q$7)+COUNTIF(INDIRECT(\"G\"&ROW()):INDIRECT(\"WH\"&ROW()),'Configuration Liste élèves'!$Q$8)+2*(COUNTIF(INDIRECT(\"G\"&ROW()):INDIRECT(\"WH\"&ROW()),'Configuration Liste élèves'!$Q$9)))))","v":""}]
[null,{"$f":"IF(A55=\"\",\"\",'Configuration Liste élèves'!B99)","v":""},{"$f":"IF(B55=\"\",\"\",'Configuration Liste élèves'!C99)","v":""},null,{"$f":"IF(B55=\"\",\"\",COUNTIF(INDIRECT(\"G\"&ROW()):INDIRECT(\"WH\"&ROW()),'Configuration Liste élèves'!$Q$5))","v":""},{"$f":"IF(B55=\"\",\"\",COUNTIF(INDIRECT(\"G\"&ROW()):INDIRECT(\"WH\"&ROW()),'Configuration Liste élèves'!$Q$2)+COUNTIF(INDIRECT(\"G\"&ROW()):INDIRECT(\"WH\"&ROW()),'Configuration Liste élèves'!$Q$3)+2*(COUNTIF(INDIRECT(\"G\"&ROW()):INDIRECT(\"WH\"&ROW()),'Configuration Liste élèves'!$Q$4+COUNTIF(INDIRECT(\"G\"&ROW()):INDIRECT(\"WH\"&ROW()),'Configuration Liste élèves'!$Q$7)+COUNTIF(INDIRECT(\"G\"&ROW()):INDIRECT(\"WH\"&ROW()),'Configuration Liste élèves'!$Q$8)+2*(COUNTIF(INDIRECT(\"G\"&ROW()):INDIRECT(\"WH\"&ROW()),'Configuration Liste élèves'!$Q$9)))))","v":""}]
[null,{"$f":"IF(A56=\"\",\"\",'Configuration Liste élèves'!B100)","v":""},{"$f":"IF(B56=\"\",\"\",'Configuration Liste élèves'!C100)","v":""},null,{"$f":"IF(B56=\"\",\"\",COUNTIF(INDIRECT(\"G\"&ROW()):INDIRECT(\"WH\"&ROW()),'Configuration Liste élèves'!$Q$5))","v":""},{"$f":"IF(B56=\"\",\"\",COUNTIF(INDIRECT(\"G\"&ROW()):INDIRECT(\"WH\"&ROW()),'Configuration Liste élèves'!$Q$2)+COUNTIF(INDIRECT(\"G\"&ROW()):INDIRECT(\"WH\"&ROW()),'Configuration Liste élèves'!$Q$3)+2*(COUNTIF(INDIRECT(\"G\"&ROW()):INDIRECT(\"WH\"&ROW()),'Configuration Liste élèves'!$Q$4+COUNTIF(INDIRECT(\"G\"&ROW()):INDIRECT(\"WH\"&ROW()),'Configuration Liste élèves'!$Q$7)+COUNTIF(INDIRECT(\"G\"&ROW()):INDIRECT(\"WH\"&ROW()),'Configuration Liste élèves'!$Q$8)+2*(COUNTIF(INDIRECT(\"G\"&ROW()):INDIRECT(\"WH\"&ROW()),'Configuration Liste élèves'!$Q$9)))))","v":""}]
[null,{"$f":"IF(A57=\"\",\"\",'Configuration Liste élèves'!B101)","v":""},{"$f":"IF(B57=\"\",\"\",'Configuration Liste élèves'!C101)","v":""},null,{"$f":"IF(B57=\"\",\"\",COUNTIF(INDIRECT(\"G\"&ROW()):INDIRECT(\"WH\"&ROW()),'Configuration Liste élèves'!$Q$5))","v":""},{"$f":"IF(B57=\"\",\"\",COUNTIF(INDIRECT(\"G\"&ROW()):INDIRECT(\"WH\"&ROW()),'Configuration Liste élèves'!$Q$2)+COUNTIF(INDIRECT(\"G\"&ROW()):INDIRECT(\"WH\"&ROW()),'Configuration Liste élèves'!$Q$3)+2*(COUNTIF(INDIRECT(\"G\"&ROW()):INDIRECT(\"WH\"&ROW()),'Configuration Liste élèves'!$Q$4+COUNTIF(INDIRECT(\"G\"&ROW()):INDIRECT(\"WH\"&ROW()),'Configuration Liste élèves'!$Q$7)+COUNTIF(INDIRECT(\"G\"&ROW()):INDIRECT(\"WH\"&ROW()),'Configuration Liste élèves'!$Q$8)+2*(COUNTIF(INDIRECT(\"G\"&ROW()):INDIRECT(\"WH\"&ROW()),'Configuration Liste élèves'!$Q$9)))))","v":""}]
[null,{"$f":"IF(A58=\"\",\"\",'Configuration Liste élèves'!B102)","v":""},{"$f":"IF(B58=\"\",\"\",'Configuration Liste élèves'!C102)","v":""},null,{"$f":"IF(B58=\"\",\"\",COUNTIF(INDIRECT(\"G\"&ROW()):INDIRECT(\"WH\"&ROW()),'Configuration Liste élèves'!$Q$5))","v":""},{"$f":"IF(B58=\"\",\"\",COUNTIF(INDIRECT(\"G\"&ROW()):INDIRECT(\"WH\"&ROW()),'Configuration Liste élèves'!$Q$2)+COUNTIF(INDIRECT(\"G\"&ROW()):INDIRECT(\"WH\"&ROW()),'Configuration Liste élèves'!$Q$3)+2*(COUNTIF(INDIRECT(\"G\"&ROW()):INDIRECT(\"WH\"&ROW()),'Configuration Liste élèves'!$Q$4+COUNTIF(INDIRECT(\"G\"&ROW()):INDIRECT(\"WH\"&ROW()),'Configuration Liste élèves'!$Q$7)+COUNTIF(INDIRECT(\"G\"&ROW()):INDIRECT(\"WH\"&ROW()),'Configuration Liste élèves'!$Q$8)+2*(COUNTIF(INDIRECT(\"G\"&ROW()):INDIRECT(\"WH\"&ROW()),'Configuration Liste élèves'!$Q$9)))))","v":""}]
[null,{"$f":"IF(A59=\"\",\"\",'Configuration Liste élèves'!B103)","v":""},{"$f":"IF(B59=\"\",\"\",'Configuration Liste élèves'!C103)","v":""},null,{"$f":"IF(B59=\"\",\"\",COUNTIF(INDIRECT(\"G\"&ROW()):INDIRECT(\"WH\"&ROW()),'Configuration Liste élèves'!$Q$5))","v":""},{"$f":"IF(B59=\"\",\"\",COUNTIF(INDIRECT(\"G\"&ROW()):INDIRECT(\"WH\"&ROW()),'Configuration Liste élèves'!$Q$2)+COUNTIF(INDIRECT(\"G\"&ROW()):INDIRECT(\"WH\"&ROW()),'Configuration Liste élèves'!$Q$3)+2*(COUNTIF(INDIRECT(\"G\"&ROW()):INDIRECT(\"WH\"&ROW()),'Configuration Liste élèves'!$Q$4+COUNTIF(INDIRECT(\"G\"&ROW()):INDIRECT(\"WH\"&ROW()),'Configuration Liste élèves'!$Q$7)+COUNTIF(INDIRECT(\"G\"&ROW()):INDIRECT(\"WH\"&ROW()),'Configuration Liste élèves'!$Q$8)+2*(COUNTIF(INDIRECT(\"G\"&ROW()):INDIRECT(\"WH\"&ROW()),'Configuration Liste élèves'!$Q$9)))))","v":""}]
[null,{"$f":"IF(A60=\"\",\"\",'Configuration Liste élèves'!B104)","v":""},{"$f":"IF(B60=\"\",\"\",'Configuration Liste élèves'!C104)","v":""},null,{"$f":"IF(B60=\"\",\"\",COUNTIF(INDIRECT(\"G\"&ROW()):INDIRECT(\"WH\"&ROW()),'Configuration Liste élèves'!$Q$5))","v":""},{"$f":"IF(B60=\"\",\"\",COUNTIF(INDIRECT(\"G\"&ROW()):INDIRECT(\"WH\"&ROW()),'Configuration Liste élèves'!$Q$2)+COUNTIF(INDIRECT(\"G\"&ROW()):INDIRECT(\"WH\"&ROW()),'Configuration Liste élèves'!$Q$3)+2*(COUNTIF(INDIRECT(\"G\"&ROW()):INDIRECT(\"WH\"&ROW()),'Configuration Liste élèves'!$Q$4+COUNTIF(INDIRECT(\"G\"&ROW()):INDIRECT(\"WH\"&ROW()),'Configuration Liste élèves'!$Q$7)+COUNTIF(INDIRECT(\"G\"&ROW()):INDIRECT(\"WH\"&ROW()),'Configuration Liste élèves'!$Q$8)+2*(COUNTIF(INDIRECT(\"G\"&ROW()):INDIRECT(\"WH\"&ROW()),'Configuration Liste élèves'!$Q$9)))))","v":""}]
[null,{"$f":"IF(A61=\"\",\"\",'Configuration Liste élèves'!B105)","v":""},{"$f":"IF(B61=\"\",\"\",'Configuration Liste élèves'!C105)","v":""},null,{"$f":"IF(B61=\"\",\"\",COUNTIF(INDIRECT(\"G\"&ROW()):INDIRECT(\"WH\"&ROW()),'Configuration Liste élèves'!$Q$5))","v":""},{"$f":"IF(B61=\"\",\"\",COUNTIF(INDIRECT(\"G\"&ROW()):INDIRECT(\"WH\"&ROW()),'Configuration Liste élèves'!$Q$2)+COUNTIF(INDIRECT(\"G\"&ROW()):INDIRECT(\"WH\"&ROW()),'Configuration Liste élèves'!$Q$3)+2*(COUNTIF(INDIRECT(\"G\"&ROW()):INDIRECT(\"WH\"&ROW()),'Configuration Liste élèves'!$Q$4+COUNTIF(INDIRECT(\"G\"&ROW()):INDIRECT(\"WH\"&ROW()),'Configuration Liste élèves'!$Q$7)+COUNTIF(INDIRECT(\"G\"&ROW()):INDIRECT(\"WH\"&ROW()),'Configuration Liste élèves'!$Q$8)+2*(COUNTIF(INDIRECT(\"G\"&ROW()):INDIRECT(\"WH\"&ROW()),'Configuration Liste élèves'!$Q$9)))))","v":""}]
[null,{"$f":"IF(A62=\"\",\"\",'Configuration Liste élèves'!B106)","v":""},{"$f":"IF(B62=\"\",\"\",'Configuration Liste élèves'!C106)","v":""},null,{"$f":"IF(B62=\"\",\"\",COUNTIF(INDIRECT(\"G\"&ROW()):INDIRECT(\"WH\"&ROW()),'Configuration Liste élèves'!$Q$5))","v":""},{"$f":"IF(B62=\"\",\"\",COUNTIF(INDIRECT(\"G\"&ROW()):INDIRECT(\"WH\"&ROW()),'Configuration Liste élèves'!$Q$2)+COUNTIF(INDIRECT(\"G\"&ROW()):INDIRECT(\"WH\"&ROW()),'Configuration Liste élèves'!$Q$3)+2*(COUNTIF(INDIRECT(\"G\"&ROW()):INDIRECT(\"WH\"&ROW()),'Configuration Liste élèves'!$Q$4+COUNTIF(INDIRECT(\"G\"&ROW()):INDIRECT(\"WH\"&ROW()),'Configuration Liste élèves'!$Q$7)+COUNTIF(INDIRECT(\"G\"&ROW()):INDIRECT(\"WH\"&ROW()),'Configuration Liste élèves'!$Q$8)+2*(COUNTIF(INDIRECT(\"G\"&ROW()):INDIRECT(\"WH\"&ROW()),'Configuration Liste élèves'!$Q$9)))))","v":""}]
[null,{"$f":"IF(A63=\"\",\"\",'Configuration Liste élèves'!B107)","v":""},{"$f":"IF(B63=\"\",\"\",'Configuration Liste élèves'!C107)","v":""},null,{"$f":"IF(B63=\"\",\"\",COUNTIF(INDIRECT(\"G\"&ROW()):INDIRECT(\"WH\"&ROW()),'Configuration Liste élèves'!$Q$5))","v":""},{"$f":"IF(B63=\"\",\"\",COUNTIF(INDIRECT(\"G\"&ROW()):INDIRECT(\"WH\"&ROW()),'Configuration Liste élèves'!$Q$2)+COUNTIF(INDIRECT(\"G\"&ROW()):INDIRECT(\"WH\"&ROW()),'Configuration Liste élèves'!$Q$3)+2*(COUNTIF(INDIRECT(\"G\"&ROW()):INDIRECT(\"WH\"&ROW()),'Configuration Liste élèves'!$Q$4+COUNTIF(INDIRECT(\"G\"&ROW()):INDIRECT(\"WH\"&ROW()),'Configuration Liste élèves'!$Q$7)+COUNTIF(INDIRECT(\"G\"&ROW()):INDIRECT(\"WH\"&ROW()),'Configuration Liste élèves'!$Q$8)+2*(COUNTIF(INDIRECT(\"G\"&ROW()):INDIRECT(\"WH\"&ROW()),'Configuration Liste élèves'!$Q$9)))))","v":""}]
[null,{"$f":"IF(A64=\"\",\"\",'Configuration Liste élèves'!B108)","v":""},{"$f":"IF(B64=\"\",\"\",'Configuration Liste élèves'!C108)","v":""},null,{"$f":"IF(B64=\"\",\"\",COUNTIF(INDIRECT(\"G\"&ROW()):INDIRECT(\"WH\"&ROW()),'Configuration Liste élèves'!$Q$5))","v":""},{"$f":"IF(B64=\"\",\"\",COUNTIF(INDIRECT(\"G\"&ROW()):INDIRECT(\"WH\"&ROW()),'Configuration Liste élèves'!$Q$2)+COUNTIF(INDIRECT(\"G\"&ROW()):INDIRECT(\"WH\"&ROW()),'Configuration Liste élèves'!$Q$3)+2*(COUNTIF(INDIRECT(\"G\"&ROW()):INDIRECT(\"WH\"&ROW()),'Configuration Liste élèves'!$Q$4+COUNTIF(INDIRECT(\"G\"&ROW()):INDIRECT(\"WH\"&ROW()),'Configuration Liste élèves'!$Q$7)+COUNTIF(INDIRECT(\"G\"&ROW()):INDIRECT(\"WH\"&ROW()),'Configuration Liste élèves'!$Q$8)+2*(COUNTIF(INDIRECT(\"G\"&ROW()):INDIRECT(\"WH\"&ROW()),'Configuration Liste élèves'!$Q$9)))))","v":""}]
[null,{"$f":"IF(A65=\"\",\"\",'Configuration Liste élèves'!B109)","v":""},{"$f":"IF(B65=\"\",\"\",'Configuration Liste élèves'!C109)","v":""},null,{"$f":"IF(B65=\"\",\"\",COUNTIF(INDIRECT(\"G\"&ROW()):INDIRECT(\"WH\"&ROW()),'Configuration Liste élèves'!$Q$5))","v":""},{"$f":"IF(B65=\"\",\"\",COUNTIF(INDIRECT(\"G\"&ROW()):INDIRECT(\"WH\"&ROW()),'Configuration Liste élèves'!$Q$2)+COUNTIF(INDIRECT(\"G\"&ROW()):INDIRECT(\"WH\"&ROW()),'Configuration Liste élèves'!$Q$3)+2*(COUNTIF(INDIRECT(\"G\"&ROW()):INDIRECT(\"WH\"&ROW()),'Configuration Liste élèves'!$Q$4+COUNTIF(INDIRECT(\"G\"&ROW()):INDIRECT(\"WH\"&ROW()),'Configuration Liste élèves'!$Q$7)+COUNTIF(INDIRECT(\"G\"&ROW()):INDIRECT(\"WH\"&ROW()),'Configuration Liste élèves'!$Q$8)+2*(COUNTIF(INDIRECT(\"G\"&ROW()):INDIRECT(\"WH\"&ROW()),'Configuration Liste élèves'!$Q$9)))))","v":""}]
[null,{"$f":"IF(A66=\"\",\"\",'Configuration Liste élèves'!B110)","v":""},{"$f":"IF(B66=\"\",\"\",'Configuration Liste élèves'!C110)","v":""},null,{"$f":"IF(B66=\"\",\"\",COUNTIF(INDIRECT(\"G\"&ROW()):INDIRECT(\"WH\"&ROW()),'Configuration Liste élèves'!$Q$5))","v":""},{"$f":"IF(B66=\"\",\"\",COUNTIF(INDIRECT(\"G\"&ROW()):INDIRECT(\"WH\"&ROW()),'Configuration Liste élèves'!$Q$2)+COUNTIF(INDIRECT(\"G\"&ROW()):INDIRECT(\"WH\"&ROW()),'Configuration Liste élèves'!$Q$3)+2*(COUNTIF(INDIRECT(\"G\"&ROW()):INDIRECT(\"WH\"&ROW()),'Configuration Liste élèves'!$Q$4+COUNTIF(INDIRECT(\"G\"&ROW()):INDIRECT(\"WH\"&ROW()),'Configuration Liste élèves'!$Q$7)+COUNTIF(INDIRECT(\"G\"&ROW()):INDIRECT(\"WH\"&ROW()),'Configuration Liste élèves'!$Q$8)+2*(COUNTIF(INDIRECT(\"G\"&ROW()):INDIRECT(\"WH\"&ROW()),'Configuration Liste élèves'!$Q$9)))))","v":""}]
[null,{"$f":"IF(A67=\"\",\"\",'Configuration Liste élèves'!B111)","v":""},{"$f":"IF(B67=\"\",\"\",'Configuration Liste élèves'!C111)","v":""},null,{"$f":"IF(B67=\"\",\"\",COUNTIF(INDIRECT(\"G\"&ROW()):INDIRECT(\"WH\"&ROW()),'Configuration Liste élèves'!$Q$5))","v":""},{"$f":"IF(B67=\"\",\"\",COUNTIF(INDIRECT(\"G\"&ROW()):INDIRECT(\"WH\"&ROW()),'Configuration Liste élèves'!$Q$2)+COUNTIF(INDIRECT(\"G\"&ROW()):INDIRECT(\"WH\"&ROW()),'Configuration Liste élèves'!$Q$3)+2*(COUNTIF(INDIRECT(\"G\"&ROW()):INDIRECT(\"WH\"&ROW()),'Configuration Liste élèves'!$Q$4+COUNTIF(INDIRECT(\"G\"&ROW()):INDIRECT(\"WH\"&ROW()),'Configuration Liste élèves'!$Q$7)+COUNTIF(INDIRECT(\"G\"&ROW()):INDIRECT(\"WH\"&ROW()),'Configuration Liste élèves'!$Q$8)+2*(COUNTIF(INDIRECT(\"G\"&ROW()):INDIRECT(\"WH\"&ROW()),'Configuration Liste élèves'!$Q$9)))))","v":""}]
[null,{"$f":"IF(A68=\"\",\"\",'Configuration Liste élèves'!B112)","v":""},{"$f":"IF(B68=\"\",\"\",'Configuration Liste élèves'!C112)","v":""},null,{"$f":"IF(B68=\"\",\"\",COUNTIF(INDIRECT(\"G\"&ROW()):INDIRECT(\"WH\"&ROW()),'Configuration Liste élèves'!$Q$5))","v":""},{"$f":"IF(B68=\"\",\"\",COUNTIF(INDIRECT(\"G\"&ROW()):INDIRECT(\"WH\"&ROW()),'Configuration Liste élèves'!$Q$2)+COUNTIF(INDIRECT(\"G\"&ROW()):INDIRECT(\"WH\"&ROW()),'Configuration Liste élèves'!$Q$3)+2*(COUNTIF(INDIRECT(\"G\"&ROW()):INDIRECT(\"WH\"&ROW()),'Configuration Liste élèves'!$Q$4+COUNTIF(INDIRECT(\"G\"&ROW()):INDIRECT(\"WH\"&ROW()),'Configuration Liste élèves'!$Q$7)+COUNTIF(INDIRECT(\"G\"&ROW()):INDIRECT(\"WH\"&ROW()),'Configuration Liste élèves'!$Q$8)+2*(COUNTIF(INDIRECT(\"G\"&ROW()):INDIRECT(\"WH\"&ROW()),'Configuration Liste élèves'!$Q$9)))))","v":""}]
[null,{"$f":"IF(A69=\"\",\"\",'Configuration Liste élèves'!B113)","v":""},{"$f":"IF(B69=\"\",\"\",'Configuration Liste élèves'!C113)","v":""},null,{"$f":"IF(B69=\"\",\"\",COUNTIF(INDIRECT(\"G\"&ROW()):INDIRECT(\"WH\"&ROW()),'Configuration Liste élèves'!$Q$5))","v":""},{"$f":"IF(B69=\"\",\"\",COUNTIF(INDIRECT(\"G\"&ROW()):INDIRECT(\"WH\"&ROW()),'Configuration Liste élèves'!$Q$2)+COUNTIF(INDIRECT(\"G\"&ROW()):INDIRECT(\"WH\"&ROW()),'Configuration Liste élèves'!$Q$3)+2*(COUNTIF(INDIRECT(\"G\"&ROW()):INDIRECT(\"WH\"&ROW()),'Configuration Liste élèves'!$Q$4+COUNTIF(INDIRECT(\"G\"&ROW()):INDIRECT(\"WH\"&ROW()),'Configuration Liste élèves'!$Q$7)+COUNTIF(INDIRECT(\"G\"&ROW()):INDIRECT(\"WH\"&ROW()),'Configuration Liste élèves'!$Q$8)+2*(COUNTIF(INDIRECT(\"G\"&ROW()):INDIRECT(\"WH\"&ROW()),'Configuration Liste élèves'!$Q$9)))))","v":""}]
[null,{"$f":"IF(A70=\"\",\"\",'Configuration Liste élèves'!B114)","v":""},{"$f":"IF(B70=\"\",\"\",'Configuration Liste élèves'!C114)","v":""},null,{"$f":"IF(B70=\"\",\"\",COUNTIF(INDIRECT(\"G\"&ROW()):INDIRECT(\"WH\"&ROW()),'Configuration Liste élèves'!$Q$5))","v":""},{"$f":"IF(B70=\"\",\"\",COUNTIF(INDIRECT(\"G\"&ROW()):INDIRECT(\"WH\"&ROW()),'Configuration Liste élèves'!$Q$2)+COUNTIF(INDIRECT(\"G\"&ROW()):INDIRECT(\"WH\"&ROW()),'Configuration Liste élèves'!$Q$3)+2*(COUNTIF(INDIRECT(\"G\"&ROW()):INDIRECT(\"WH\"&ROW()),'Configuration Liste élèves'!$Q$4+COUNTIF(INDIRECT(\"G\"&ROW()):INDIRECT(\"WH\"&ROW()),'Configuration Liste élèves'!$Q$7)+COUNTIF(INDIRECT(\"G\"&ROW()):INDIRECT(\"WH\"&ROW()),'Configuration Liste élèves'!$Q$8)+2*(COUNTIF(INDIRECT(\"G\"&ROW()):INDIRECT(\"WH\"&ROW()),'Configuration Liste élèves'!$Q$9)))))","v":""}]
[null,{"$f":"IF(A71=\"\",\"\",'Configuration Liste élèves'!B115)","v":""},{"$f":"IF(B71=\"\",\"\",'Configuration Liste élèves'!C115)","v":""},null,{"$f":"IF(B71=\"\",\"\",COUNTIF(INDIRECT(\"G\"&ROW()):INDIRECT(\"WH\"&ROW()),'Configuration Liste élèves'!$Q$5))","v":""},{"$f":"IF(B71=\"\",\"\",COUNTIF(INDIRECT(\"G\"&ROW()):INDIRECT(\"WH\"&ROW()),'Configuration Liste élèves'!$Q$2)+COUNTIF(INDIRECT(\"G\"&ROW()):INDIRECT(\"WH\"&ROW()),'Configuration Liste élèves'!$Q$3)+2*(COUNTIF(INDIRECT(\"G\"&ROW()):INDIRECT(\"WH\"&ROW()),'Configuration Liste élèves'!$Q$4+COUNTIF(INDIRECT(\"G\"&ROW()):INDIRECT(\"WH\"&ROW()),'Configuration Liste élèves'!$Q$7)+COUNTIF(INDIRECT(\"G\"&ROW()):INDIRECT(\"WH\"&ROW()),'Configuration Liste élèves'!$Q$8)+2*(COUNTIF(INDIRECT(\"G\"&ROW()):INDIRECT(\"WH\"&ROW()),'Configuration Liste élèves'!$Q$9)))))","v":""}]
[null,{"$f":"IF(A72=\"\",\"\",'Configuration Liste élèves'!B116)","v":""},{"$f":"IF(B72=\"\",\"\",'Configuration Liste élèves'!C116)","v":""},null,{"$f":"IF(B72=\"\",\"\",COUNTIF(INDIRECT(\"G\"&ROW()):INDIRECT(\"WH\"&ROW()),'Configuration Liste élèves'!$Q$5))","v":""},{"$f":"IF(B72=\"\",\"\",COUNTIF(INDIRECT(\"G\"&ROW()):INDIRECT(\"WH\"&ROW()),'Configuration Liste élèves'!$Q$2)+COUNTIF(INDIRECT(\"G\"&ROW()):INDIRECT(\"WH\"&ROW()),'Configuration Liste élèves'!$Q$3)+2*(COUNTIF(INDIRECT(\"G\"&ROW()):INDIRECT(\"WH\"&ROW()),'Configuration Liste élèves'!$Q$4+COUNTIF(INDIRECT(\"G\"&ROW()):INDIRECT(\"WH\"&ROW()),'Configuration Liste élèves'!$Q$7)+COUNTIF(INDIRECT(\"G\"&ROW()):INDIRECT(\"WH\"&ROW()),'Configuration Liste élèves'!$Q$8)+2*(COUNTIF(INDIRECT(\"G\"&ROW()):INDIRECT(\"WH\"&ROW()),'Configuration Liste élèves'!$Q$9)))))","v":""}]
[null,{"$f":"IF(A73=\"\",\"\",'Configuration Liste élèves'!B117)","v":""},{"$f":"IF(B73=\"\",\"\",'Configuration Liste élèves'!C117)","v":""},null,{"$f":"IF(B73=\"\",\"\",COUNTIF(INDIRECT(\"G\"&ROW()):INDIRECT(\"WH\"&ROW()),'Configuration Liste élèves'!$Q$5))","v":""},{"$f":"IF(B73=\"\",\"\",COUNTIF(INDIRECT(\"G\"&ROW()):INDIRECT(\"WH\"&ROW()),'Configuration Liste élèves'!$Q$2)+COUNTIF(INDIRECT(\"G\"&ROW()):INDIRECT(\"WH\"&ROW()),'Configuration Liste élèves'!$Q$3)+2*(COUNTIF(INDIRECT(\"G\"&ROW()):INDIRECT(\"WH\"&ROW()),'Configuration Liste élèves'!$Q$4+COUNTIF(INDIRECT(\"G\"&ROW()):INDIRECT(\"WH\"&ROW()),'Configuration Liste élèves'!$Q$7)+COUNTIF(INDIRECT(\"G\"&ROW()):INDIRECT(\"WH\"&ROW()),'Configuration Liste élèves'!$Q$8)+2*(COUNTIF(INDIRECT(\"G\"&ROW()):INDIRECT(\"WH\"&ROW()),'Configuration Liste élèves'!$Q$9)))))","v":""}]
[null,{"$f":"IF(A74=\"\",\"\",'Configuration Liste élèves'!B118)","v":""},{"$f":"IF(B74=\"\",\"\",'Configuration Liste élèves'!C118)","v":""},null,{"$f":"IF(B74=\"\",\"\",COUNTIF(INDIRECT(\"G\"&ROW()):INDIRECT(\"WH\"&ROW()),'Configuration Liste élèves'!$Q$5))","v":""},{"$f":"IF(B74=\"\",\"\",COUNTIF(INDIRECT(\"G\"&ROW()):INDIRECT(\"WH\"&ROW()),'Configuration Liste élèves'!$Q$2)+COUNTIF(INDIRECT(\"G\"&ROW()):INDIRECT(\"WH\"&ROW()),'Configuration Liste élèves'!$Q$3)+2*(COUNTIF(INDIRECT(\"G\"&ROW()):INDIRECT(\"WH\"&ROW()),'Configuration Liste élèves'!$Q$4+COUNTIF(INDIRECT(\"G\"&ROW()):INDIRECT(\"WH\"&ROW()),'Configuration Liste élèves'!$Q$7)+COUNTIF(INDIRECT(\"G\"&ROW()):INDIRECT(\"WH\"&ROW()),'Configuration Liste élèves'!$Q$8)+2*(COUNTIF(INDIRECT(\"G\"&ROW()):INDIRECT(\"WH\"&ROW()),'Configuration Liste élèves'!$Q$9)))))","v":""}]
[null,{"$f":"IF(A75=\"\",\"\",'Configuration Liste élèves'!B119)","v":""},{"$f":"IF(B75=\"\",\"\",'Configuration Liste élèves'!C119)","v":""},null,{"$f":"IF(B75=\"\",\"\",COUNTIF(INDIRECT(\"G\"&ROW()):INDIRECT(\"WH\"&ROW()),'Configuration Liste élèves'!$Q$5))","v":""},{"$f":"IF(B75=\"\",\"\",COUNTIF(INDIRECT(\"G\"&ROW()):INDIRECT(\"WH\"&ROW()),'Configuration Liste élèves'!$Q$2)+COUNTIF(INDIRECT(\"G\"&ROW()):INDIRECT(\"WH\"&ROW()),'Configuration Liste élèves'!$Q$3)+2*(COUNTIF(INDIRECT(\"G\"&ROW()):INDIRECT(\"WH\"&ROW()),'Configuration Liste élèves'!$Q$4+COUNTIF(INDIRECT(\"G\"&ROW()):INDIRECT(\"WH\"&ROW()),'Configuration Liste élèves'!$Q$7)+COUNTIF(INDIRECT(\"G\"&ROW()):INDIRECT(\"WH\"&ROW()),'Configuration Liste élèves'!$Q$8)+2*(COUNTIF(INDIRECT(\"G\"&ROW()):INDIRECT(\"WH\"&ROW()),'Configuration Liste élèves'!$Q$9)))))","v":""}]
[null,{"$f":"IF(A76=\"\",\"\",'Configuration Liste élèves'!B120)","v":""},{"$f":"IF(B76=\"\",\"\",'Configuration Liste élèves'!C120)","v":""},null,{"$f":"IF(B76=\"\",\"\",COUNTIF(INDIRECT(\"G\"&ROW()):INDIRECT(\"WH\"&ROW()),'Configuration Liste élèves'!$Q$5))","v":""},{"$f":"IF(B76=\"\",\"\",COUNTIF(INDIRECT(\"G\"&ROW()):INDIRECT(\"WH\"&ROW()),'Configuration Liste élèves'!$Q$2)+COUNTIF(INDIRECT(\"G\"&ROW()):INDIRECT(\"WH\"&ROW()),'Configuration Liste élèves'!$Q$3)+2*(COUNTIF(INDIRECT(\"G\"&ROW()):INDIRECT(\"WH\"&ROW()),'Configuration Liste élèves'!$Q$4+COUNTIF(INDIRECT(\"G\"&ROW()):INDIRECT(\"WH\"&ROW()),'Configuration Liste élèves'!$Q$7)+COUNTIF(INDIRECT(\"G\"&ROW()):INDIRECT(\"WH\"&ROW()),'Configuration Liste élèves'!$Q$8)+2*(COUNTIF(INDIRECT(\"G\"&ROW()):INDIRECT(\"WH\"&ROW()),'Configuration Liste élèves'!$Q$9)))))","v":""}]
[null,{"$f":"IF(A77=\"\",\"\",'Configuration Liste élèves'!B121)","v":""},{"$f":"IF(B77=\"\",\"\",'Configuration Liste élèves'!C121)","v":""},null,{"$f":"IF(B77=\"\",\"\",COUNTIF(INDIRECT(\"G\"&ROW()):INDIRECT(\"WH\"&ROW()),'Configuration Liste élèves'!$Q$5))","v":""},{"$f":"IF(B77=\"\",\"\",COUNTIF(INDIRECT(\"G\"&ROW()):INDIRECT(\"WH\"&ROW()),'Configuration Liste élèves'!$Q$2)+COUNTIF(INDIRECT(\"G\"&ROW()):INDIRECT(\"WH\"&ROW()),'Configuration Liste élèves'!$Q$3)+2*(COUNTIF(INDIRECT(\"G\"&ROW()):INDIRECT(\"WH\"&ROW()),'Configuration Liste élèves'!$Q$4+COUNTIF(INDIRECT(\"G\"&ROW()):INDIRECT(\"WH\"&ROW()),'Configuration Liste élèves'!$Q$7)+COUNTIF(INDIRECT(\"G\"&ROW()):INDIRECT(\"WH\"&ROW()),'Configuration Liste élèves'!$Q$8)+2*(COUNTIF(INDIRECT(\"G\"&ROW()):INDIRECT(\"WH\"&ROW()),'Configuration Liste élèves'!$Q$9)))))","v":""}]
[null,{"$f":"IF(A78=\"\",\"\",'Configuration Liste élèves'!B122)","v":""},{"$f":"IF(B78=\"\",\"\",'Configuration Liste élèves'!C122)","v":""},null,{"$f":"IF(B78=\"\",\"\",COUNTIF(INDIRECT(\"G\"&ROW()):INDIRECT(\"WH\"&ROW()),'Configuration Liste élèves'!$Q$5))","v":""},{"$f":"IF(B78=\"\",\"\",COUNTIF(INDIRECT(\"G\"&ROW()):INDIRECT(\"WH\"&ROW()),'Configuration Liste élèves'!$Q$2)+COUNTIF(INDIRECT(\"G\"&ROW()):INDIRECT(\"WH\"&ROW()),'Configuration Liste élèves'!$Q$3)+2*(COUNTIF(INDIRECT(\"G\"&ROW()):INDIRECT(\"WH\"&ROW()),'Configuration Liste élèves'!$Q$4+COUNTIF(INDIRECT(\"G\"&ROW()):INDIRECT(\"WH\"&ROW()),'Configuration Liste élèves'!$Q$7)+COUNTIF(INDIRECT(\"G\"&ROW()):INDIRECT(\"WH\"&ROW()),'Configuration Liste élèves'!$Q$8)+2*(COUNTIF(INDIRECT(\"G\"&ROW()):INDIRECT(\"WH\"&ROW()),'Configuration Liste élèves'!$Q$9)))))","v":""}]
[null,{"$f":"IF(A79=\"\",\"\",'Configuration Liste élèves'!B123)","v":""},{"$f":"IF(B79=\"\",\"\",'Configuration Liste élèves'!C123)","v":""},null,{"$f":"IF(B79=\"\",\"\",COUNTIF(INDIRECT(\"G\"&ROW()):INDIRECT(\"WH\"&ROW()),'Configuration Liste élèves'!$Q$5))","v":""},{"$f":"IF(B79=\"\",\"\",COUNTIF(INDIRECT(\"G\"&ROW()):INDIRECT(\"WH\"&ROW()),'Configuration Liste élèves'!$Q$2)+COUNTIF(INDIRECT(\"G\"&ROW()):INDIRECT(\"WH\"&ROW()),'Configuration Liste élèves'!$Q$3)+2*(COUNTIF(INDIRECT(\"G\"&ROW()):INDIRECT(\"WH\"&ROW()),'Configuration Liste élèves'!$Q$4+COUNTIF(INDIRECT(\"G\"&ROW()):INDIRECT(\"WH\"&ROW()),'Configuration Liste élèves'!$Q$7)+COUNTIF(INDIRECT(\"G\"&ROW()):INDIRECT(\"WH\"&ROW()),'Configuration Liste élèves'!$Q$8)+2*(COUNTIF(INDIRECT(\"G\"&ROW()):INDIRECT(\"WH\"&ROW()),'Configuration Liste élèves'!$Q$9)))))","v":""}]
[null,{"$f":"IF(A80=\"\",\"\",'Configuration Liste élèves'!B124)","v":""},{"$f":"IF(B80=\"\",\"\",'Configuration Liste élèves'!C124)","v":""},null,{"$f":"IF(B80=\"\",\"\",COUNTIF(INDIRECT(\"G\"&ROW()):INDIRECT(\"WH\"&ROW()),'Configuration Liste élèves'!$Q$5))","v":""},{"$f":"IF(B80=\"\",\"\",COUNTIF(INDIRECT(\"G\"&ROW()):INDIRECT(\"WH\"&ROW()),'Configuration Liste élèves'!$Q$2)+COUNTIF(INDIRECT(\"G\"&ROW()):INDIRECT(\"WH\"&ROW()),'Configuration Liste élèves'!$Q$3)+2*(COUNTIF(INDIRECT(\"G\"&ROW()):INDIRECT(\"WH\"&ROW()),'Configuration Liste élèves'!$Q$4+COUNTIF(INDIRECT(\"G\"&ROW()):INDIRECT(\"WH\"&ROW()),'Configuration Liste élèves'!$Q$7)+COUNTIF(INDIRECT(\"G\"&ROW()):INDIRECT(\"WH\"&ROW()),'Configuration Liste élèves'!$Q$8)+2*(COUNTIF(INDIRECT(\"G\"&ROW()):INDIRECT(\"WH\"&ROW()),'Configuration Liste élèves'!$Q$9)))))","v":""}]
[null,{"$f":"IF(A81=\"\",\"\",'Configuration Liste élèves'!B125)","v":""},{"$f":"IF(B81=\"\",\"\",'Configuration Liste élèves'!C125)","v":""},null,{"$f":"IF(B81=\"\",\"\",COUNTIF(INDIRECT(\"G\"&ROW()):INDIRECT(\"WH\"&ROW()),'Configuration Liste élèves'!$Q$5))","v":""},{"$f":"IF(B81=\"\",\"\",COUNTIF(INDIRECT(\"G\"&ROW()):INDIRECT(\"WH\"&ROW()),'Configuration Liste élèves'!$Q$2)+COUNTIF(INDIRECT(\"G\"&ROW()):INDIRECT(\"WH\"&ROW()),'Configuration Liste élèves'!$Q$3)+2*(COUNTIF(INDIRECT(\"G\"&ROW()):INDIRECT(\"WH\"&ROW()),'Configuration Liste élèves'!$Q$4+COUNTIF(INDIRECT(\"G\"&ROW()):INDIRECT(\"WH\"&ROW()),'Configuration Liste élèves'!$Q$7)+COUNTIF(INDIRECT(\"G\"&ROW()):INDIRECT(\"WH\"&ROW()),'Configuration Liste élèves'!$Q$8)+2*(COUNTIF(INDIRECT(\"G\"&ROW()):INDIRECT(\"WH\"&ROW()),'Configuration Liste élèves'!$Q$9)))))","v":""}]
[null,{"$f":"IF(A82=\"\",\"\",'Configuration Liste élèves'!B126)","v":""},{"$f":"IF(B82=\"\",\"\",'Configuration Liste élèves'!C126)","v":""},null,{"$f":"IF(B82=\"\",\"\",COUNTIF(INDIRECT(\"G\"&ROW()):INDIRECT(\"WH\"&ROW()),'Configuration Liste élèves'!$Q$5))","v":""},{"$f":"IF(B82=\"\",\"\",COUNTIF(INDIRECT(\"G\"&ROW()):INDIRECT(\"WH\"&ROW()),'Configuration Liste élèves'!$Q$2)+COUNTIF(INDIRECT(\"G\"&ROW()):INDIRECT(\"WH\"&ROW()),'Configuration Liste élèves'!$Q$3)+2*(COUNTIF(INDIRECT(\"G\"&ROW()):INDIRECT(\"WH\"&ROW()),'Configuration Liste élèves'!$Q$4+COUNTIF(INDIRECT(\"G\"&ROW()):INDIRECT(\"WH\"&ROW()),'Configuration Liste élèves'!$Q$7)+COUNTIF(INDIRECT(\"G\"&ROW()):INDIRECT(\"WH\"&ROW()),'Configuration Liste élèves'!$Q$8)+2*(COUNTIF(INDIRECT(\"G\"&ROW()):INDIRECT(\"WH\"&ROW()),'Configuration Liste élèves'!$Q$9)))))","v":""}]
[null,{"$f":"IF(A83=\"\",\"\",'Configuration Liste élèves'!B127)","v":""},{"$f":"IF(B83=\"\",\"\",'Configuration Liste élèves'!C127)","v":""},null,{"$f":"IF(B83=\"\",\"\",COUNTIF(INDIRECT(\"G\"&ROW()):INDIRECT(\"WH\"&ROW()),'Configuration Liste élèves'!$Q$5))","v":""},{"$f":"IF(B83=\"\",\"\",COUNTIF(INDIRECT(\"G\"&ROW()):INDIRECT(\"WH\"&ROW()),'Configuration Liste élèves'!$Q$2)+COUNTIF(INDIRECT(\"G\"&ROW()):INDIRECT(\"WH\"&ROW()),'Configuration Liste élèves'!$Q$3)+2*(COUNTIF(INDIRECT(\"G\"&ROW()):INDIRECT(\"WH\"&ROW()),'Configuration Liste élèves'!$Q$4+COUNTIF(INDIRECT(\"G\"&ROW()):INDIRECT(\"WH\"&ROW()),'Configuration Liste élèves'!$Q$7)+COUNTIF(INDIRECT(\"G\"&ROW()):INDIRECT(\"WH\"&ROW()),'Configuration Liste élèves'!$Q$8)+2*(COUNTIF(INDIRECT(\"G\"&ROW()):INDIRECT(\"WH\"&ROW()),'Configuration Liste élèves'!$Q$9)))))","v":""}]
[null,{"$f":"IF(A84=\"\",\"\",'Configuration Liste élèves'!B128)","v":""},{"$f":"IF(B84=\"\",\"\",'Configuration Liste élèves'!C128)","v":""},null,{"$f":"IF(B84=\"\",\"\",COUNTIF(INDIRECT(\"G\"&ROW()):INDIRECT(\"WH\"&ROW()),'Configuration Liste élèves'!$Q$5))","v":""},{"$f":"IF(B84=\"\",\"\",COUNTIF(INDIRECT(\"G\"&ROW()):INDIRECT(\"WH\"&ROW()),'Configuration Liste élèves'!$Q$2)+COUNTIF(INDIRECT(\"G\"&ROW()):INDIRECT(\"WH\"&ROW()),'Configuration Liste élèves'!$Q$3)+2*(COUNTIF(INDIRECT(\"G\"&ROW()):INDIRECT(\"WH\"&ROW()),'Configuration Liste élèves'!$Q$4+COUNTIF(INDIRECT(\"G\"&ROW()):INDIRECT(\"WH\"&ROW()),'Configuration Liste élèves'!$Q$7)+COUNTIF(INDIRECT(\"G\"&ROW()):INDIRECT(\"WH\"&ROW()),'Configuration Liste élèves'!$Q$8)+2*(COUNTIF(INDIRECT(\"G\"&ROW()):INDIRECT(\"WH\"&ROW()),'Configuration Liste élèves'!$Q$9)))))","v":""}]
[null,{"$f":"IF(A85=\"\",\"\",'Configuration Liste élèves'!B129)","v":""},{"$f":"IF(B85=\"\",\"\",'Configuration Liste élèves'!C129)","v":""},null,{"$f":"IF(B85=\"\",\"\",COUNTIF(INDIRECT(\"G\"&ROW()):INDIRECT(\"WH\"&ROW()),'Configuration Liste élèves'!$Q$5))","v":""},{"$f":"IF(B85=\"\",\"\",COUNTIF(INDIRECT(\"G\"&ROW()):INDIRECT(\"WH\"&ROW()),'Configuration Liste élèves'!$Q$2)+COUNTIF(INDIRECT(\"G\"&ROW()):INDIRECT(\"WH\"&ROW()),'Configuration Liste élèves'!$Q$3)+2*(COUNTIF(INDIRECT(\"G\"&ROW()):INDIRECT(\"WH\"&ROW()),'Configuration Liste élèves'!$Q$4+COUNTIF(INDIRECT(\"G\"&ROW()):INDIRECT(\"WH\"&ROW()),'Configuration Liste élèves'!$Q$7)+COUNTIF(INDIRECT(\"G\"&ROW()):INDIRECT(\"WH\"&ROW()),'Configuration Liste élèves'!$Q$8)+2*(COUNTIF(INDIRECT(\"G\"&ROW()):INDIRECT(\"WH\"&ROW()),'Configuration Liste élèves'!$Q$9)))))","v":""}]
[null,{"$f":"IF(A86=\"\",\"\",'Configuration Liste élèves'!B130)","v":""},{"$f":"IF(B86=\"\",\"\",'Configuration Liste élèves'!C130)","v":""},null,{"$f":"IF(B86=\"\",\"\",COUNTIF(INDIRECT(\"G\"&ROW()):INDIRECT(\"WH\"&ROW()),'Configuration Liste élèves'!$Q$5))","v":""},{"$f":"IF(B86=\"\",\"\",COUNTIF(INDIRECT(\"G\"&ROW()):INDIRECT(\"WH\"&ROW()),'Configuration Liste élèves'!$Q$2)+COUNTIF(INDIRECT(\"G\"&ROW()):INDIRECT(\"WH\"&ROW()),'Configuration Liste élèves'!$Q$3)+2*(COUNTIF(INDIRECT(\"G\"&ROW()):INDIRECT(\"WH\"&ROW()),'Configuration Liste élèves'!$Q$4+COUNTIF(INDIRECT(\"G\"&ROW()):INDIRECT(\"WH\"&ROW()),'Configuration Liste élèves'!$Q$7)+COUNTIF(INDIRECT(\"G\"&ROW()):INDIRECT(\"WH\"&ROW()),'Configuration Liste élèves'!$Q$8)+2*(COUNTIF(INDIRECT(\"G\"&ROW()):INDIRECT(\"WH\"&ROW()),'Configuration Liste élèves'!$Q$9)))))","v":""}]
[null,{"$f":"IF(A87=\"\",\"\",'Configuration Liste élèves'!B131)","v":""},{"$f":"IF(B87=\"\",\"\",'Configuration Liste élèves'!C131)","v":""},null,{"$f":"IF(B87=\"\",\"\",COUNTIF(INDIRECT(\"G\"&ROW()):INDIRECT(\"WH\"&ROW()),'Configuration Liste élèves'!$Q$5))","v":""},{"$f":"IF(B87=\"\",\"\",COUNTIF(INDIRECT(\"G\"&ROW()):INDIRECT(\"WH\"&ROW()),'Configuration Liste élèves'!$Q$2)+COUNTIF(INDIRECT(\"G\"&ROW()):INDIRECT(\"WH\"&ROW()),'Configuration Liste élèves'!$Q$3)+2*(COUNTIF(INDIRECT(\"G\"&ROW()):INDIRECT(\"WH\"&ROW()),'Configuration Liste élèves'!$Q$4+COUNTIF(INDIRECT(\"G\"&ROW()):INDIRECT(\"WH\"&ROW()),'Configuration Liste élèves'!$Q$7)+COUNTIF(INDIRECT(\"G\"&ROW()):INDIRECT(\"WH\"&ROW()),'Configuration Liste élèves'!$Q$8)+2*(COUNTIF(INDIRECT(\"G\"&ROW()):INDIRECT(\"WH\"&ROW()),'Configuration Liste élèves'!$Q$9)))))","v":""}]
[null,null,null,null,{"$f":"IF(B88=\"\",\"\",COUNTIF(INDIRECT(\"G\"&ROW()):INDIRECT(\"WH\"&ROW()),'Configuration Liste élèves'!$Q$5))","v":""},{"$f":"IF(B88=\"\",\"\",COUNTIF(INDIRECT(\"G\"&ROW()):INDIRECT(\"WH\"&ROW()),'Configuration Liste élèves'!$Q$2)+COUNTIF(INDIRECT(\"G\"&ROW()):INDIRECT(\"WH\"&ROW()),'Configuration Liste élèves'!$Q$3)+2*(COUNTIF(INDIRECT(\"G\"&ROW()):INDIRECT(\"WH\"&ROW()),'Configuration Liste élèves'!$Q$4+COUNTIF(INDIRECT(\"G\"&ROW()):INDIRECT(\"WH\"&ROW()),'Configuration Liste élèves'!$Q$7)+COUNTIF(INDIRECT(\"G\"&ROW()):INDIRECT(\"WH\"&ROW()),'Configuration Liste élèves'!$Q$8)+2*(COUNTIF(INDIRECT(\"G\"&ROW()):INDIRECT(\"WH\"&ROW()),'Configuration Liste élèves'!$Q$9)))))","v":""}]
[null,null,null,null,{"$f":"IF(B89=\"\",\"\",COUNTIF(INDIRECT(\"G\"&ROW()):INDIRECT(\"WH\"&ROW()),'Configuration Liste élèves'!$Q$5))","v":""},{"$f":"IF(B89=\"\",\"\",COUNTIF(INDIRECT(\"G\"&ROW()):INDIRECT(\"WH\"&ROW()),'Configuration Liste élèves'!$Q$2)+COUNTIF(INDIRECT(\"G\"&ROW()):INDIRECT(\"WH\"&ROW()),'Configuration Liste élèves'!$Q$3)+2*(COUNTIF(INDIRECT(\"G\"&ROW()):INDIRECT(\"WH\"&ROW()),'Configuration Liste élèves'!$Q$4+COUNTIF(INDIRECT(\"G\"&ROW()):INDIRECT(\"WH\"&ROW()),'Configuration Liste élèves'!$Q$7)+COUNTIF(INDIRECT(\"G\"&ROW()):INDIRECT(\"WH\"&ROW()),'Configuration Liste élèves'!$Q$8)+2*(COUNTIF(INDIRECT(\"G\"&ROW()):INDIRECT(\"WH\"&ROW()),'Configuration Liste élèves'!$Q$9)))))","v":""}]
[null,null,null,null,{"$f":"IF(B90=\"\",\"\",COUNTIF(INDIRECT(\"G\"&ROW()):INDIRECT(\"WH\"&ROW()),'Configuration Liste élèves'!$Q$5))","v":""},{"$f":"IF(B90=\"\",\"\",COUNTIF(INDIRECT(\"G\"&ROW()):INDIRECT(\"WH\"&ROW()),'Configuration Liste élèves'!$Q$2)+COUNTIF(INDIRECT(\"G\"&ROW()):INDIRECT(\"WH\"&ROW()),'Configuration Liste élèves'!$Q$3)+2*(COUNTIF(INDIRECT(\"G\"&ROW()):INDIRECT(\"WH\"&ROW()),'Configuration Liste élèves'!$Q$4+COUNTIF(INDIRECT(\"G\"&ROW()):INDIRECT(\"WH\"&ROW()),'Configuration Liste élèves'!$Q$7)+COUNTIF(INDIRECT(\"G\"&ROW()):INDIRECT(\"WH\"&ROW()),'Configuration Liste élèves'!$Q$8)+2*(COUNTIF(INDIRECT(\"G\"&ROW()):INDIRECT(\"WH\"&ROW()),'Configuration Liste élèves'!$Q$9)))))","v":""}]
[null,null,null,null,{"$f":"IF(B91=\"\",\"\",COUNTIF(INDIRECT(\"G\"&ROW()):INDIRECT(\"WH\"&ROW()),'Configuration Liste élèves'!$Q$5))","v":""},{"$f":"IF(B91=\"\",\"\",COUNTIF(INDIRECT(\"G\"&ROW()):INDIRECT(\"WH\"&ROW()),'Configuration Liste élèves'!$Q$2)+COUNTIF(INDIRECT(\"G\"&ROW()):INDIRECT(\"WH\"&ROW()),'Configuration Liste élèves'!$Q$3)+2*(COUNTIF(INDIRECT(\"G\"&ROW()):INDIRECT(\"WH\"&ROW()),'Configuration Liste élèves'!$Q$4+COUNTIF(INDIRECT(\"G\"&ROW()):INDIRECT(\"WH\"&ROW()),'Configuration Liste élèves'!$Q$7)+COUNTIF(INDIRECT(\"G\"&ROW()):INDIRECT(\"WH\"&ROW()),'Configuration Liste élèves'!$Q$8)+2*(COUNTIF(INDIRECT(\"G\"&ROW()):INDIRECT(\"WH\"&ROW()),'Configuration Liste élèves'!$Q$9)))))","v":""}]
[null,null,null,null,{"$f":"IF(B92=\"\",\"\",COUNTIF(INDIRECT(\"G\"&ROW()):INDIRECT(\"WH\"&ROW()),'Configuration Liste élèves'!$Q$5))","v":""},{"$f":"IF(B92=\"\",\"\",COUNTIF(INDIRECT(\"G\"&ROW()):INDIRECT(\"WH\"&ROW()),'Configuration Liste élèves'!$Q$2)+COUNTIF(INDIRECT(\"G\"&ROW()):INDIRECT(\"WH\"&ROW()),'Configuration Liste élèves'!$Q$3)+2*(COUNTIF(INDIRECT(\"G\"&ROW()):INDIRECT(\"WH\"&ROW()),'Configuration Liste élèves'!$Q$4+COUNTIF(INDIRECT(\"G\"&ROW()):INDIRECT(\"WH\"&ROW()),'Configuration Liste élèves'!$Q$7)+COUNTIF(INDIRECT(\"G\"&ROW()):INDIRECT(\"WH\"&ROW()),'Configuration Liste élèves'!$Q$8)+2*(COUNTIF(INDIRECT(\"G\"&ROW()):INDIRECT(\"WH\"&ROW()),'Configuration Liste élèves'!$Q$9)))))","v":""}]
[null,null,null,null,{"$f":"IF(B93=\"\",\"\",COUNTIF(INDIRECT(\"G\"&ROW()):INDIRECT(\"WH\"&ROW()),'Configuration Liste élèves'!$Q$5))","v":""},{"$f":"IF(B93=\"\",\"\",COUNTIF(INDIRECT(\"G\"&ROW()):INDIRECT(\"WH\"&ROW()),'Configuration Liste élèves'!$Q$2)+COUNTIF(INDIRECT(\"G\"&ROW()):INDIRECT(\"WH\"&ROW()),'Configuration Liste élèves'!$Q$3)+2*(COUNTIF(INDIRECT(\"G\"&ROW()):INDIRECT(\"WH\"&ROW()),'Configuration Liste élèves'!$Q$4+COUNTIF(INDIRECT(\"G\"&ROW()):INDIRECT(\"WH\"&ROW()),'Configuration Liste élèves'!$Q$7)+COUNTIF(INDIRECT(\"G\"&ROW()):INDIRECT(\"WH\"&ROW()),'Configuration Liste élèves'!$Q$8)+2*(COUNTIF(INDIRECT(\"G\"&ROW()):INDIRECT(\"WH\"&ROW()),'Configuration Liste élèves'!$Q$9)))))","v":""}]
[null,null,null,null,{"$f":"IF(B94=\"\",\"\",COUNTIF(INDIRECT(\"G\"&ROW()):INDIRECT(\"WH\"&ROW()),'Configuration Liste élèves'!$Q$5))","v":""},{"$f":"IF(B94=\"\",\"\",COUNTIF(INDIRECT(\"G\"&ROW()):INDIRECT(\"WH\"&ROW()),'Configuration Liste élèves'!$Q$2)+COUNTIF(INDIRECT(\"G\"&ROW()):INDIRECT(\"WH\"&ROW()),'Configuration Liste élèves'!$Q$3)+2*(COUNTIF(INDIRECT(\"G\"&ROW()):INDIRECT(\"WH\"&ROW()),'Configuration Liste élèves'!$Q$4+COUNTIF(INDIRECT(\"G\"&ROW()):INDIRECT(\"WH\"&ROW()),'Configuration Liste élèves'!$Q$7)+COUNTIF(INDIRECT(\"G\"&ROW()):INDIRECT(\"WH\"&ROW()),'Configuration Liste élèves'!$Q$8)+2*(COUNTIF(INDIRECT(\"G\"&ROW()):INDIRECT(\"WH\"&ROW()),'Configuration Liste élèves'!$Q$9)))))","v":""}]
[null,null,null,null,{"$f":"IF(B95=\"\",\"\",COUNTIF(INDIRECT(\"G\"&ROW()):INDIRECT(\"WH\"&ROW()),'Configuration Liste élèves'!$Q$5))","v":""},{"$f":"IF(B95=\"\",\"\",COUNTIF(INDIRECT(\"G\"&ROW()):INDIRECT(\"WH\"&ROW()),'Configuration Liste élèves'!$Q$2)+COUNTIF(INDIRECT(\"G\"&ROW()):INDIRECT(\"WH\"&ROW()),'Configuration Liste élèves'!$Q$3)+2*(COUNTIF(INDIRECT(\"G\"&ROW()):INDIRECT(\"WH\"&ROW()),'Configuration Liste élèves'!$Q$4+COUNTIF(INDIRECT(\"G\"&ROW()):INDIRECT(\"WH\"&ROW()),'Configuration Liste élèves'!$Q$7)+COUNTIF(INDIRECT(\"G\"&ROW()):INDIRECT(\"WH\"&ROW()),'Configuration Liste élèves'!$Q$8)+2*(COUNTIF(INDIRECT(\"G\"&ROW()):INDIRECT(\"WH\"&ROW()),'Configuration Liste élèves'!$Q$9)))))","v":""}]
[null,null,null,null,{"$f":"IF(B96=\"\",\"\",COUNTIF(INDIRECT(\"G\"&ROW()):INDIRECT(\"WH\"&ROW()),'Configuration Liste élèves'!$Q$5))","v":""},{"$f":"IF(B96=\"\",\"\",COUNTIF(INDIRECT(\"G\"&ROW()):INDIRECT(\"WH\"&ROW()),'Configuration Liste élèves'!$Q$2)+COUNTIF(INDIRECT(\"G\"&ROW()):INDIRECT(\"WH\"&ROW()),'Configuration Liste élèves'!$Q$3)+2*(COUNTIF(INDIRECT(\"G\"&ROW()):INDIRECT(\"WH\"&ROW()),'Configuration Liste élèves'!$Q$4+COUNTIF(INDIRECT(\"G\"&ROW()):INDIRECT(\"WH\"&ROW()),'Configuration Liste élèves'!$Q$7)+COUNTIF(INDIRECT(\"G\"&ROW()):INDIRECT(\"WH\"&ROW()),'Configuration Liste élèves'!$Q$8)+2*(COUNTIF(INDIRECT(\"G\"&ROW()):INDIRECT(\"WH\"&ROW()),'Configuration Liste élèves'!$Q$9)))))","v":""}]
[null,null,null,null,{"$f":"IF(B97=\"\",\"\",COUNTIF(INDIRECT(\"G\"&ROW()):INDIRECT(\"WH\"&ROW()),'Configuration Liste élèves'!$Q$5))","v":""},{"$f":"IF(B97=\"\",\"\",COUNTIF(INDIRECT(\"G\"&ROW()):INDIRECT(\"WH\"&ROW()),'Configuration Liste élèves'!$Q$2)+COUNTIF(INDIRECT(\"G\"&ROW()):INDIRECT(\"WH\"&ROW()),'Configuration Liste élèves'!$Q$3)+2*(COUNTIF(INDIRECT(\"G\"&ROW()):INDIRECT(\"WH\"&ROW()),'Configuration Liste élèves'!$Q$4+COUNTIF(INDIRECT(\"G\"&ROW()):INDIRECT(\"WH\"&ROW()),'Configuration Liste élèves'!$Q$7)+COUNTIF(INDIRECT(\"G\"&ROW()):INDIRECT(\"WH\"&ROW()),'Configuration Liste élèves'!$Q$8)+2*(COUNTIF(INDIRECT(\"G\"&ROW()):INDIRECT(\"WH\"&ROW()),'Configuration Liste élèves'!$Q$9)))))","v":""}]
[null,null,null,null,{"$f":"IF(B98=\"\",\"\",COUNTIF(INDIRECT(\"G\"&ROW()):INDIRECT(\"WH\"&ROW()),'Configuration Liste élèves'!$Q$5))","v":""},{"$f":"IF(B98=\"\",\"\",COUNTIF(INDIRECT(\"G\"&ROW()):INDIRECT(\"WH\"&ROW()),'Configuration Liste élèves'!$Q$2)+COUNTIF(INDIRECT(\"G\"&ROW()):INDIRECT(\"WH\"&ROW()),'Configuration Liste élèves'!$Q$3)+2*(COUNTIF(INDIRECT(\"G\"&ROW()):INDIRECT(\"WH\"&ROW()),'Configuration Liste élèves'!$Q$4+COUNTIF(INDIRECT(\"G\"&ROW()):INDIRECT(\"WH\"&ROW()),'Configuration Liste élèves'!$Q$7)+COUNTIF(INDIRECT(\"G\"&ROW()):INDIRECT(\"WH\"&ROW()),'Configuration Liste élèves'!$Q$8)+2*(COUNTIF(INDIRECT(\"G\"&ROW()):INDIRECT(\"WH\"&ROW()),'Configuration Liste élèves'!$Q$9)))))","v":""}]
[null,null,null,null,{"$f":"IF(B99=\"\",\"\",COUNTIF(INDIRECT(\"G\"&ROW()):INDIRECT(\"WH\"&ROW()),'Configuration Liste élèves'!$Q$5))","v":""},{"$f":"IF(B99=\"\",\"\",COUNTIF(INDIRECT(\"G\"&ROW()):INDIRECT(\"WH\"&ROW()),'Configuration Liste élèves'!$Q$2)+COUNTIF(INDIRECT(\"G\"&ROW()):INDIRECT(\"WH\"&ROW()),'Configuration Liste élèves'!$Q$3)+2*(COUNTIF(INDIRECT(\"G\"&ROW()):INDIRECT(\"WH\"&ROW()),'Configuration Liste élèves'!$Q$4+COUNTIF(INDIRECT(\"G\"&ROW()):INDIRECT(\"WH\"&ROW()),'Configuration Liste élèves'!$Q$7)+COUNTIF(INDIRECT(\"G\"&ROW()):INDIRECT(\"WH\"&ROW()),'Configuration Liste élèves'!$Q$8)+2*(COUNTIF(INDIRECT(\"G\"&ROW()):INDIRECT(\"WH\"&ROW()),'Configuration Liste élèves'!$Q$9)))))","v":""}]
[null,null,null,null,{"$f":"IF(B100=\"\",\"\",COUNTIF(INDIRECT(\"G\"&ROW()):INDIRECT(\"WH\"&ROW()),'Configuration Liste élèves'!$Q$5))","v":""},{"$f":"IF(B100=\"\",\"\",COUNTIF(INDIRECT(\"G\"&ROW()):INDIRECT(\"WH\"&ROW()),'Configuration Liste élèves'!$Q$2)+COUNTIF(INDIRECT(\"G\"&ROW()):INDIRECT(\"WH\"&ROW()),'Configuration Liste élèves'!$Q$3)+2*(COUNTIF(INDIRECT(\"G\"&ROW()):INDIRECT(\"WH\"&ROW()),'Configuration Liste élèves'!$Q$4+COUNTIF(INDIRECT(\"G\"&ROW()):INDIRECT(\"WH\"&ROW()),'Configuration Liste élèves'!$Q$7)+COUNTIF(INDIRECT(\"G\"&ROW()):INDIRECT(\"WH\"&ROW()),'Configuration Liste élèves'!$Q$8)+2*(COUNTIF(INDIRECT(\"G\"&ROW()):INDIRECT(\"WH\"&ROW()),'Configuration Liste élèves'!$Q$9)))))","v":""}]
[null,null,null,null,{"$f":"IF(B101=\"\",\"\",COUNTIF(INDIRECT(\"G\"&ROW()):INDIRECT(\"WH\"&ROW()),'Configuration Liste élèves'!$Q$5))","v":""},{"$f":"IF(B101=\"\",\"\",COUNTIF(INDIRECT(\"G\"&ROW()):INDIRECT(\"WH\"&ROW()),'Configuration Liste élèves'!$Q$2)+COUNTIF(INDIRECT(\"G\"&ROW()):INDIRECT(\"WH\"&ROW()),'Configuration Liste élèves'!$Q$3)+2*(COUNTIF(INDIRECT(\"G\"&ROW()):INDIRECT(\"WH\"&ROW()),'Configuration Liste élèves'!$Q$4+COUNTIF(INDIRECT(\"G\"&ROW()):INDIRECT(\"WH\"&ROW()),'Configuration Liste élèves'!$Q$7)+COUNTIF(INDIRECT(\"G\"&ROW()):INDIRECT(\"WH\"&ROW()),'Configuration Liste élèves'!$Q$8)+2*(COUNTIF(INDIRECT(\"G\"&ROW()):INDIRECT(\"WH\"&ROW()),'Configuration Liste élèves'!$Q$9)))))","v":""}]
[null,null,null,null,{"$f":"IF(B102=\"\",\"\",COUNTIF(INDIRECT(\"G\"&ROW()):INDIRECT(\"WH\"&ROW()),'Configuration Liste élèves'!$Q$5))","v":""},{"$f":"IF(B102=\"\",\"\",COUNTIF(INDIRECT(\"G\"&ROW()):INDIRECT(\"WH\"&ROW()),'Configuration Liste élèves'!$Q$2)+COUNTIF(INDIRECT(\"G\"&ROW()):INDIRECT(\"WH\"&ROW()),'Configuration Liste élèves'!$Q$3)+2*(COUNTIF(INDIRECT(\"G\"&ROW()):INDIRECT(\"WH\"&ROW()),'Configuration Liste élèves'!$Q$4+COUNTIF(INDIRECT(\"G\"&ROW()):INDIRECT(\"WH\"&ROW()),'Configuration Liste élèves'!$Q$7)+COUNTIF(INDIRECT(\"G\"&ROW()):INDIRECT(\"WH\"&ROW()),'Configuration Liste élèves'!$Q$8)+2*(COUNTIF(INDIRECT(\"G\"&ROW()):INDIRECT(\"WH\"&ROW()),'Configuration Liste élèves'!$Q$9)))))","v":""}]
[null,null,null,null,{"$f":"IF(B103=\"\",\"\",COUNTIF(INDIRECT(\"G\"&ROW()):INDIRECT(\"WH\"&ROW()),'Configuration Liste élèves'!$Q$5))","v":""},{"$f":"IF(B103=\"\",\"\",COUNTIF(INDIRECT(\"G\"&ROW()):INDIRECT(\"WH\"&ROW()),'Configuration Liste élèves'!$Q$2)+COUNTIF(INDIRECT(\"G\"&ROW()):INDIRECT(\"WH\"&ROW()),'Configuration Liste élèves'!$Q$3)+2*(COUNTIF(INDIRECT(\"G\"&ROW()):INDIRECT(\"WH\"&ROW()),'Configuration Liste élèves'!$Q$4+COUNTIF(INDIRECT(\"G\"&ROW()):INDIRECT(\"WH\"&ROW()),'Configuration Liste élèves'!$Q$7)+COUNTIF(INDIRECT(\"G\"&ROW()):INDIRECT(\"WH\"&ROW()),'Configuration Liste élèves'!$Q$8)+2*(COUNTIF(INDIRECT(\"G\"&ROW()):INDIRECT(\"WH\"&ROW()),'Configuration Liste élèves'!$Q$9)))))","v":""}]
[null,null,null,null,{"$f":"IF(B104=\"\",\"\",COUNTIF(INDIRECT(\"G\"&ROW()):INDIRECT(\"WH\"&ROW()),'Configuration Liste élèves'!$Q$5))","v":""},{"$f":"IF(B104=\"\",\"\",COUNTIF(INDIRECT(\"G\"&ROW()):INDIRECT(\"WH\"&ROW()),'Configuration Liste élèves'!$Q$2)+COUNTIF(INDIRECT(\"G\"&ROW()):INDIRECT(\"WH\"&ROW()),'Configuration Liste élèves'!$Q$3)+2*(COUNTIF(INDIRECT(\"G\"&ROW()):INDIRECT(\"WH\"&ROW()),'Configuration Liste élèves'!$Q$4+COUNTIF(INDIRECT(\"G\"&ROW()):INDIRECT(\"WH\"&ROW()),'Configuration Liste élèves'!$Q$7)+COUNTIF(INDIRECT(\"G\"&ROW()):INDIRECT(\"WH\"&ROW()),'Configuration Liste élèves'!$Q$8)+2*(COUNTIF(INDIRECT(\"G\"&ROW()):INDIRECT(\"WH\"&ROW()),'Configuration Liste élèves'!$Q$9)))))","v":""}]
[null,null,null,null,{"$f":"IF(B105=\"\",\"\",COUNTIF(INDIRECT(\"G\"&ROW()):INDIRECT(\"WH\"&ROW()),'Configuration Liste élèves'!$Q$5))","v":""},{"$f":"IF(B105=\"\",\"\",COUNTIF(INDIRECT(\"G\"&ROW()):INDIRECT(\"WH\"&ROW()),'Configuration Liste élèves'!$Q$2)+COUNTIF(INDIRECT(\"G\"&ROW()):INDIRECT(\"WH\"&ROW()),'Configuration Liste élèves'!$Q$3)+2*(COUNTIF(INDIRECT(\"G\"&ROW()):INDIRECT(\"WH\"&ROW()),'Configuration Liste élèves'!$Q$4+COUNTIF(INDIRECT(\"G\"&ROW()):INDIRECT(\"WH\"&ROW()),'Configuration Liste élèves'!$Q$7)+COUNTIF(INDIRECT(\"G\"&ROW()):INDIRECT(\"WH\"&ROW()),'Configuration Liste élèves'!$Q$8)+2*(COUNTIF(INDIRECT(\"G\"&ROW()):INDIRECT(\"WH\"&ROW()),'Configuration Liste élèves'!$Q$9)))))","v":""}]
[null,null,null,null,{"$f":"IF(B106=\"\",\"\",COUNTIF(INDIRECT(\"G\"&ROW()):INDIRECT(\"WH\"&ROW()),'Configuration Liste élèves'!$Q$5))","v":""},{"$f":"IF(B106=\"\",\"\",COUNTIF(INDIRECT(\"G\"&ROW()):INDIRECT(\"WH\"&ROW()),'Configuration Liste élèves'!$Q$2)+COUNTIF(INDIRECT(\"G\"&ROW()):INDIRECT(\"WH\"&ROW()),'Configuration Liste élèves'!$Q$3)+2*(COUNTIF(INDIRECT(\"G\"&ROW()):INDIRECT(\"WH\"&ROW()),'Configuration Liste élèves'!$Q$4+COUNTIF(INDIRECT(\"G\"&ROW()):INDIRECT(\"WH\"&ROW()),'Configuration Liste élèves'!$Q$7)+COUNTIF(INDIRECT(\"G\"&ROW()):INDIRECT(\"WH\"&ROW()),'Configuration Liste élèves'!$Q$8)+2*(COUNTIF(INDIRECT(\"G\"&ROW()):INDIRECT(\"WH\"&ROW()),'Configuration Liste élèves'!$Q$9)))))","v":""}]
[null,null,null,null,{"$f":"IF(B107=\"\",\"\",COUNTIF(INDIRECT(\"G\"&ROW()):INDIRECT(\"WH\"&ROW()),'Configuration Liste élèves'!$Q$5))","v":""},{"$f":"IF(B107=\"\",\"\",COUNTIF(INDIRECT(\"G\"&ROW()):INDIRECT(\"WH\"&ROW()),'Configuration Liste élèves'!$Q$2)+COUNTIF(INDIRECT(\"G\"&ROW()):INDIRECT(\"WH\"&ROW()),'Configuration Liste élèves'!$Q$3)+2*(COUNTIF(INDIRECT(\"G\"&ROW()):INDIRECT(\"WH\"&ROW()),'Configuration Liste élèves'!$Q$4+COUNTIF(INDIRECT(\"G\"&ROW()):INDIRECT(\"WH\"&ROW()),'Configuration Liste élèves'!$Q$7)+COUNTIF(INDIRECT(\"G\"&ROW()):INDIRECT(\"WH\"&ROW()),'Configuration Liste élèves'!$Q$8)+2*(COUNTIF(INDIRECT(\"G\"&ROW()):INDIRECT(\"WH\"&ROW()),'Configuration Liste élèves'!$Q$9)))))","v":""}]
[null,null,null,null,{"$f":"IF(B108=\"\",\"\",COUNTIF(INDIRECT(\"G\"&ROW()):INDIRECT(\"WH\"&ROW()),'Configuration Liste élèves'!$Q$5))","v":""},{"$f":"IF(B108=\"\",\"\",COUNTIF(INDIRECT(\"G\"&ROW()):INDIRECT(\"WH\"&ROW()),'Configuration Liste élèves'!$Q$2)+COUNTIF(INDIRECT(\"G\"&ROW()):INDIRECT(\"WH\"&ROW()),'Configuration Liste élèves'!$Q$3)+2*(COUNTIF(INDIRECT(\"G\"&ROW()):INDIRECT(\"WH\"&ROW()),'Configuration Liste élèves'!$Q$4+COUNTIF(INDIRECT(\"G\"&ROW()):INDIRECT(\"WH\"&ROW()),'Configuration Liste élèves'!$Q$7)+COUNTIF(INDIRECT(\"G\"&ROW()):INDIRECT(\"WH\"&ROW()),'Configuration Liste élèves'!$Q$8)+2*(COUNTIF(INDIRECT(\"G\"&ROW()):INDIRECT(\"WH\"&ROW()),'Configuration Liste élèves'!$Q$9)))))","v":""}]
[null,null,null,null,{"$f":"IF(B109=\"\",\"\",COUNTIF(INDIRECT(\"G\"&ROW()):INDIRECT(\"WH\"&ROW()),'Configuration Liste élèves'!$Q$5))","v":""},{"$f":"IF(B109=\"\",\"\",COUNTIF(INDIRECT(\"G\"&ROW()):INDIRECT(\"WH\"&ROW()),'Configuration Liste élèves'!$Q$2)+COUNTIF(INDIRECT(\"G\"&ROW()):INDIRECT(\"WH\"&ROW()),'Configuration Liste élèves'!$Q$3)+2*(COUNTIF(INDIRECT(\"G\"&ROW()):INDIRECT(\"WH\"&ROW()),'Configuration Liste élèves'!$Q$4+COUNTIF(INDIRECT(\"G\"&ROW()):INDIRECT(\"WH\"&ROW()),'Configuration Liste élèves'!$Q$7)+COUNTIF(INDIRECT(\"G\"&ROW()):INDIRECT(\"WH\"&ROW()),'Configuration Liste élèves'!$Q$8)+2*(COUNTIF(INDIRECT(\"G\"&ROW()):INDIRECT(\"WH\"&ROW()),'Configuration Liste élèves'!$Q$9)))))","v":""}]
[null,null,null,null,{"$f":"IF(B110=\"\",\"\",COUNTIF(INDIRECT(\"G\"&ROW()):INDIRECT(\"WH\"&ROW()),'Configuration Liste élèves'!$Q$5))","v":""},{"$f":"IF(B110=\"\",\"\",COUNTIF(INDIRECT(\"G\"&ROW()):INDIRECT(\"WH\"&ROW()),'Configuration Liste élèves'!$Q$2)+COUNTIF(INDIRECT(\"G\"&ROW()):INDIRECT(\"WH\"&ROW()),'Configuration Liste élèves'!$Q$3)+2*(COUNTIF(INDIRECT(\"G\"&ROW()):INDIRECT(\"WH\"&ROW()),'Configuration Liste élèves'!$Q$4+COUNTIF(INDIRECT(\"G\"&ROW()):INDIRECT(\"WH\"&ROW()),'Configuration Liste élèves'!$Q$7)+COUNTIF(INDIRECT(\"G\"&ROW()):INDIRECT(\"WH\"&ROW()),'Configuration Liste élèves'!$Q$8)+2*(COUNTIF(INDIRECT(\"G\"&ROW()):INDIRECT(\"WH\"&ROW()),'Configuration Liste élèves'!$Q$9)))))","v":""}]
[null,null,null,null,{"$f":"IF(B111=\"\",\"\",COUNTIF(INDIRECT(\"G\"&ROW()):INDIRECT(\"WH\"&ROW()),'Configuration Liste élèves'!$Q$5))","v":""},{"$f":"IF(B111=\"\",\"\",COUNTIF(INDIRECT(\"G\"&ROW()):INDIRECT(\"WH\"&ROW()),'Configuration Liste élèves'!$Q$2)+COUNTIF(INDIRECT(\"G\"&ROW()):INDIRECT(\"WH\"&ROW()),'Configuration Liste élèves'!$Q$3)+2*(COUNTIF(INDIRECT(\"G\"&ROW()):INDIRECT(\"WH\"&ROW()),'Configuration Liste élèves'!$Q$4+COUNTIF(INDIRECT(\"G\"&ROW()):INDIRECT(\"WH\"&ROW()),'Configuration Liste élèves'!$Q$7)+COUNTIF(INDIRECT(\"G\"&ROW()):INDIRECT(\"WH\"&ROW()),'Configuration Liste élèves'!$Q$8)+2*(COUNTIF(INDIRECT(\"G\"&ROW()):INDIRECT(\"WH\"&ROW()),'Configuration Liste élèves'!$Q$9)))))","v":""}]
[null,null,null,null,{"$f":"IF(B112=\"\",\"\",COUNTIF(INDIRECT(\"G\"&ROW()):INDIRECT(\"WH\"&ROW()),'Configuration Liste élèves'!$Q$5))","v":""},{"$f":"IF(B112=\"\",\"\",COUNTIF(INDIRECT(\"G\"&ROW()):INDIRECT(\"WH\"&ROW()),'Configuration Liste élèves'!$Q$2)+COUNTIF(INDIRECT(\"G\"&ROW()):INDIRECT(\"WH\"&ROW()),'Configuration Liste élèves'!$Q$3)+2*(COUNTIF(INDIRECT(\"G\"&ROW()):INDIRECT(\"WH\"&ROW()),'Configuration Liste élèves'!$Q$4+COUNTIF(INDIRECT(\"G\"&ROW()):INDIRECT(\"WH\"&ROW()),'Configuration Liste élèves'!$Q$7)+COUNTIF(INDIRECT(\"G\"&ROW()):INDIRECT(\"WH\"&ROW()),'Configuration Liste élèves'!$Q$8)+2*(COUNTIF(INDIRECT(\"G\"&ROW()):INDIRECT(\"WH\"&ROW()),'Configuration Liste élèves'!$Q$9)))))","v":""}]
[null,null,null,null,{"$f":"IF(B113=\"\",\"\",COUNTIF(INDIRECT(\"G\"&ROW()):INDIRECT(\"WH\"&ROW()),'Configuration Liste élèves'!$Q$5))","v":""},{"$f":"IF(B113=\"\",\"\",COUNTIF(INDIRECT(\"G\"&ROW()):INDIRECT(\"WH\"&ROW()),'Configuration Liste élèves'!$Q$2)+COUNTIF(INDIRECT(\"G\"&ROW()):INDIRECT(\"WH\"&ROW()),'Configuration Liste élèves'!$Q$3)+2*(COUNTIF(INDIRECT(\"G\"&ROW()):INDIRECT(\"WH\"&ROW()),'Configuration Liste élèves'!$Q$4+COUNTIF(INDIRECT(\"G\"&ROW()):INDIRECT(\"WH\"&ROW()),'Configuration Liste élèves'!$Q$7)+COUNTIF(INDIRECT(\"G\"&ROW()):INDIRECT(\"WH\"&ROW()),'Configuration Liste élèves'!$Q$8)+2*(COUNTIF(INDIRECT(\"G\"&ROW()):INDIRECT(\"WH\"&ROW()),'Configuration Liste élèves'!$Q$9)))))","v":""}]
[null,null,null,null,{"$f":"IF(B114=\"\",\"\",COUNTIF(INDIRECT(\"G\"&ROW()):INDIRECT(\"WH\"&ROW()),'Configuration Liste élèves'!$Q$5))","v":""},{"$f":"IF(B114=\"\",\"\",COUNTIF(INDIRECT(\"G\"&ROW()):INDIRECT(\"WH\"&ROW()),'Configuration Liste élèves'!$Q$2)+COUNTIF(INDIRECT(\"G\"&ROW()):INDIRECT(\"WH\"&ROW()),'Configuration Liste élèves'!$Q$3)+2*(COUNTIF(INDIRECT(\"G\"&ROW()):INDIRECT(\"WH\"&ROW()),'Configuration Liste élèves'!$Q$4+COUNTIF(INDIRECT(\"G\"&ROW()):INDIRECT(\"WH\"&ROW()),'Configuration Liste élèves'!$Q$7)+COUNTIF(INDIRECT(\"G\"&ROW()):INDIRECT(\"WH\"&ROW()),'Configuration Liste élèves'!$Q$8)+2*(COUNTIF(INDIRECT(\"G\"&ROW()):INDIRECT(\"WH\"&ROW()),'Configuration Liste élèves'!$Q$9)))))","v":""}]
[null,null,null,null,{"$f":"IF(B115=\"\",\"\",COUNTIF(INDIRECT(\"G\"&ROW()):INDIRECT(\"WH\"&ROW()),'Configuration Liste élèves'!$Q$5))","v":""},{"$f":"IF(B115=\"\",\"\",COUNTIF(INDIRECT(\"G\"&ROW()):INDIRECT(\"WH\"&ROW()),'Configuration Liste élèves'!$Q$2)+COUNTIF(INDIRECT(\"G\"&ROW()):INDIRECT(\"WH\"&ROW()),'Configuration Liste élèves'!$Q$3)+2*(COUNTIF(INDIRECT(\"G\"&ROW()):INDIRECT(\"WH\"&ROW()),'Configuration Liste élèves'!$Q$4+COUNTIF(INDIRECT(\"G\"&ROW()):INDIRECT(\"WH\"&ROW()),'Configuration Liste élèves'!$Q$7)+COUNTIF(INDIRECT(\"G\"&ROW()):INDIRECT(\"WH\"&ROW()),'Configuration Liste élèves'!$Q$8)+2*(COUNTIF(INDIRECT(\"G\"&ROW()):INDIRECT(\"WH\"&ROW()),'Configuration Liste élèves'!$Q$9)))))","v":""}]
[null,null,null,null,{"$f":"IF(B116=\"\",\"\",COUNTIF(INDIRECT(\"G\"&ROW()):INDIRECT(\"WH\"&ROW()),'Configuration Liste élèves'!$Q$5))","v":""},{"$f":"IF(B116=\"\",\"\",COUNTIF(INDIRECT(\"G\"&ROW()):INDIRECT(\"WH\"&ROW()),'Configuration Liste élèves'!$Q$2)+COUNTIF(INDIRECT(\"G\"&ROW()):INDIRECT(\"WH\"&ROW()),'Configuration Liste élèves'!$Q$3)+2*(COUNTIF(INDIRECT(\"G\"&ROW()):INDIRECT(\"WH\"&ROW()),'Configuration Liste élèves'!$Q$4+COUNTIF(INDIRECT(\"G\"&ROW()):INDIRECT(\"WH\"&ROW()),'Configuration Liste élèves'!$Q$7)+COUNTIF(INDIRECT(\"G\"&ROW()):INDIRECT(\"WH\"&ROW()),'Configuration Liste élèves'!$Q$8)+2*(COUNTIF(INDIRECT(\"G\"&ROW()):INDIRECT(\"WH\"&ROW()),'Configuration Liste élèves'!$Q$9)))))","v":""}]
[null,null,null,null,{"$f":"IF(B117=\"\",\"\",COUNTIF(INDIRECT(\"G\"&ROW()):INDIRECT(\"WH\"&ROW()),'Configuration Liste élèves'!$Q$5))","v":""},{"$f":"IF(B117=\"\",\"\",COUNTIF(INDIRECT(\"G\"&ROW()):INDIRECT(\"WH\"&ROW()),'Configuration Liste élèves'!$Q$2)+COUNTIF(INDIRECT(\"G\"&ROW()):INDIRECT(\"WH\"&ROW()),'Configuration Liste élèves'!$Q$3)+2*(COUNTIF(INDIRECT(\"G\"&ROW()):INDIRECT(\"WH\"&ROW()),'Configuration Liste élèves'!$Q$4+COUNTIF(INDIRECT(\"G\"&ROW()):INDIRECT(\"WH\"&ROW()),'Configuration Liste élèves'!$Q$7)+COUNTIF(INDIRECT(\"G\"&ROW()):INDIRECT(\"WH\"&ROW()),'Configuration Liste élèves'!$Q$8)+2*(COUNTIF(INDIRECT(\"G\"&ROW()):INDIRECT(\"WH\"&ROW()),'Configuration Liste élèves'!$Q$9)))))","v":""}]
[null,null,null,null,{"$f":"IF(B118=\"\",\"\",COUNTIF(INDIRECT(\"G\"&ROW()):INDIRECT(\"WH\"&ROW()),'Configuration Liste élèves'!$Q$5))","v":""},{"$f":"IF(B118=\"\",\"\",COUNTIF(INDIRECT(\"G\"&ROW()):INDIRECT(\"WH\"&ROW()),'Configuration Liste élèves'!$Q$2)+COUNTIF(INDIRECT(\"G\"&ROW()):INDIRECT(\"WH\"&ROW()),'Configuration Liste élèves'!$Q$3)+2*(COUNTIF(INDIRECT(\"G\"&ROW()):INDIRECT(\"WH\"&ROW()),'Configuration Liste élèves'!$Q$4+COUNTIF(INDIRECT(\"G\"&ROW()):INDIRECT(\"WH\"&ROW()),'Configuration Liste élèves'!$Q$7)+COUNTIF(INDIRECT(\"G\"&ROW()):INDIRECT(\"WH\"&ROW()),'Configuration Liste élèves'!$Q$8)+2*(COUNTIF(INDIRECT(\"G\"&ROW()):INDIRECT(\"WH\"&ROW()),'Configuration Liste élèves'!$Q$9)))))","v":""}]
[null,null,null,null,{"$f":"IF(B119=\"\",\"\",COUNTIF(INDIRECT(\"G\"&ROW()):INDIRECT(\"WH\"&ROW()),'Configuration Liste élèves'!$Q$5))","v":""},{"$f":"IF(B119=\"\",\"\",COUNTIF(INDIRECT(\"G\"&ROW()):INDIRECT(\"WH\"&ROW()),'Configuration Liste élèves'!$Q$2)+COUNTIF(INDIRECT(\"G\"&ROW()):INDIRECT(\"WH\"&ROW()),'Configuration Liste élèves'!$Q$3)+2*(COUNTIF(INDIRECT(\"G\"&ROW()):INDIRECT(\"WH\"&ROW()),'Configuration Liste élèves'!$Q$4+COUNTIF(INDIRECT(\"G\"&ROW()):INDIRECT(\"WH\"&ROW()),'Configuration Liste élèves'!$Q$7)+COUNTIF(INDIRECT(\"G\"&ROW()):INDIRECT(\"WH\"&ROW()),'Configuration Liste élèves'!$Q$8)+2*(COUNTIF(INDIRECT(\"G\"&ROW()):INDIRECT(\"WH\"&ROW()),'Configuration Liste élèves'!$Q$9)))))","v":""}]
[null,null,null,null,{"$f":"IF(B120=\"\",\"\",COUNTIF(INDIRECT(\"G\"&ROW()):INDIRECT(\"WH\"&ROW()),'Configuration Liste élèves'!$Q$5))","v":""},{"$f":"IF(B120=\"\",\"\",COUNTIF(INDIRECT(\"G\"&ROW()):INDIRECT(\"WH\"&ROW()),'Configuration Liste élèves'!$Q$2)+COUNTIF(INDIRECT(\"G\"&ROW()):INDIRECT(\"WH\"&ROW()),'Configuration Liste élèves'!$Q$3)+2*(COUNTIF(INDIRECT(\"G\"&ROW()):INDIRECT(\"WH\"&ROW()),'Configuration Liste élèves'!$Q$4+COUNTIF(INDIRECT(\"G\"&ROW()):INDIRECT(\"WH\"&ROW()),'Configuration Liste élèves'!$Q$7)+COUNTIF(INDIRECT(\"G\"&ROW()):INDIRECT(\"WH\"&ROW()),'Configuration Liste élèves'!$Q$8)+2*(COUNTIF(INDIRECT(\"G\"&ROW()):INDIRECT(\"WH\"&ROW()),'Configuration Liste élèves'!$Q$9)))))","v":""}]
[null,null,null,null,{"$f":"IF(B121=\"\",\"\",COUNTIF(INDIRECT(\"G\"&ROW()):INDIRECT(\"WH\"&ROW()),'Configuration Liste élèves'!$Q$5))","v":""},{"$f":"IF(B121=\"\",\"\",COUNTIF(INDIRECT(\"G\"&ROW()):INDIRECT(\"WH\"&ROW()),'Configuration Liste élèves'!$Q$2)+COUNTIF(INDIRECT(\"G\"&ROW()):INDIRECT(\"WH\"&ROW()),'Configuration Liste élèves'!$Q$3)+2*(COUNTIF(INDIRECT(\"G\"&ROW()):INDIRECT(\"WH\"&ROW()),'Configuration Liste élèves'!$Q$4+COUNTIF(INDIRECT(\"G\"&ROW()):INDIRECT(\"WH\"&ROW()),'Configuration Liste élèves'!$Q$7)+COUNTIF(INDIRECT(\"G\"&ROW()):INDIRECT(\"WH\"&ROW()),'Configuration Liste élèves'!$Q$8)+2*(COUNTIF(INDIRECT(\"G\"&ROW()):INDIRECT(\"WH\"&ROW()),'Configuration Liste élèves'!$Q$9)))))","v":""}]
[null,null,null,null,{"$f":"IF(B122=\"\",\"\",COUNTIF(INDIRECT(\"G\"&ROW()):INDIRECT(\"WH\"&ROW()),'Configuration Liste élèves'!$Q$5))","v":""},{"$f":"IF(B122=\"\",\"\",COUNTIF(INDIRECT(\"G\"&ROW()):INDIRECT(\"WH\"&ROW()),'Configuration Liste élèves'!$Q$2)+COUNTIF(INDIRECT(\"G\"&ROW()):INDIRECT(\"WH\"&ROW()),'Configuration Liste élèves'!$Q$3)+2*(COUNTIF(INDIRECT(\"G\"&ROW()):INDIRECT(\"WH\"&ROW()),'Configuration Liste élèves'!$Q$4+COUNTIF(INDIRECT(\"G\"&ROW()):INDIRECT(\"WH\"&ROW()),'Configuration Liste élèves'!$Q$7)+COUNTIF(INDIRECT(\"G\"&ROW()):INDIRECT(\"WH\"&ROW()),'Configuration Liste élèves'!$Q$8)+2*(COUNTIF(INDIRECT(\"G\"&ROW()):INDIRECT(\"WH\"&ROW()),'Configuration Liste élèves'!$Q$9)))))","v":""}]
[null,null,null,null,{"$f":"IF(B123=\"\",\"\",COUNTIF(INDIRECT(\"G\"&ROW()):INDIRECT(\"WH\"&ROW()),'Configuration Liste élèves'!$Q$5))","v":""},{"$f":"IF(B123=\"\",\"\",COUNTIF(INDIRECT(\"G\"&ROW()):INDIRECT(\"WH\"&ROW()),'Configuration Liste élèves'!$Q$2)+COUNTIF(INDIRECT(\"G\"&ROW()):INDIRECT(\"WH\"&ROW()),'Configuration Liste élèves'!$Q$3)+2*(COUNTIF(INDIRECT(\"G\"&ROW()):INDIRECT(\"WH\"&ROW()),'Configuration Liste élèves'!$Q$4+COUNTIF(INDIRECT(\"G\"&ROW()):INDIRECT(\"WH\"&ROW()),'Configuration Liste élèves'!$Q$7)+COUNTIF(INDIRECT(\"G\"&ROW()):INDIRECT(\"WH\"&ROW()),'Configuration Liste élèves'!$Q$8)+2*(COUNTIF(INDIRECT(\"G\"&ROW()):INDIRECT(\"WH\"&ROW()),'Configuration Liste élèves'!$Q$9)))))","v":""}]
[null,null,null,null,{"$f":"IF(B124=\"\",\"\",COUNTIF(INDIRECT(\"G\"&ROW()):INDIRECT(\"WH\"&ROW()),'Configuration Liste élèves'!$Q$5))","v":""},{"$f":"IF(B124=\"\",\"\",COUNTIF(INDIRECT(\"G\"&ROW()):INDIRECT(\"WH\"&ROW()),'Configuration Liste élèves'!$Q$2)+COUNTIF(INDIRECT(\"G\"&ROW()):INDIRECT(\"WH\"&ROW()),'Configuration Liste élèves'!$Q$3)+2*(COUNTIF(INDIRECT(\"G\"&ROW()):INDIRECT(\"WH\"&ROW()),'Configuration Liste élèves'!$Q$4+COUNTIF(INDIRECT(\"G\"&ROW()):INDIRECT(\"WH\"&ROW()),'Configuration Liste élèves'!$Q$7)+COUNTIF(INDIRECT(\"G\"&ROW()):INDIRECT(\"WH\"&ROW()),'Configuration Liste élèves'!$Q$8)+2*(COUNTIF(INDIRECT(\"G\"&ROW()):INDIRECT(\"WH\"&ROW()),'Configuration Liste élèves'!$Q$9)))))","v":""}]
[null,null,null,null,{"$f":"IF(B125=\"\",\"\",COUNTIF(INDIRECT(\"G\"&ROW()):INDIRECT(\"WH\"&ROW()),'Configuration Liste élèves'!$Q$5))","v":""},{"$f":"IF(B125=\"\",\"\",COUNTIF(INDIRECT(\"G\"&ROW()):INDIRECT(\"WH\"&ROW()),'Configuration Liste élèves'!$Q$2)+COUNTIF(INDIRECT(\"G\"&ROW()):INDIRECT(\"WH\"&ROW()),'Configuration Liste élèves'!$Q$3)+2*(COUNTIF(INDIRECT(\"G\"&ROW()):INDIRECT(\"WH\"&ROW()),'Configuration Liste élèves'!$Q$4+COUNTIF(INDIRECT(\"G\"&ROW()):INDIRECT(\"WH\"&ROW()),'Configuration Liste élèves'!$Q$7)+COUNTIF(INDIRECT(\"G\"&ROW()):INDIRECT(\"WH\"&ROW()),'Configuration Liste élèves'!$Q$8)+2*(COUNTIF(INDIRECT(\"G\"&ROW()):INDIRECT(\"WH\"&ROW()),'Configuration Liste élèves'!$Q$9)))))","v":""}]
[null,null,null,null,{"$f":"IF(B126=\"\",\"\",COUNTIF(INDIRECT(\"G\"&ROW()):INDIRECT(\"WH\"&ROW()),'Configuration Liste élèves'!$Q$5))","v":""},{"$f":"IF(B126=\"\",\"\",COUNTIF(INDIRECT(\"G\"&ROW()):INDIRECT(\"WH\"&ROW()),'Configuration Liste élèves'!$Q$2)+COUNTIF(INDIRECT(\"G\"&ROW()):INDIRECT(\"WH\"&ROW()),'Configuration Liste élèves'!$Q$3)+2*(COUNTIF(INDIRECT(\"G\"&ROW()):INDIRECT(\"WH\"&ROW()),'Configuration Liste élèves'!$Q$4+COUNTIF(INDIRECT(\"G\"&ROW()):INDIRECT(\"WH\"&ROW()),'Configuration Liste élèves'!$Q$7)+COUNTIF(INDIRECT(\"G\"&ROW()):INDIRECT(\"WH\"&ROW()),'Configuration Liste élèves'!$Q$8)+2*(COUNTIF(INDIRECT(\"G\"&ROW()):INDIRECT(\"WH\"&ROW()),'Configuration Liste élèves'!$Q$9)))))","v":""}]
[null,null,null,null,{"$f":"IF(B127=\"\",\"\",COUNTIF(INDIRECT(\"G\"&ROW()):INDIRECT(\"WH\"&ROW()),'Configuration Liste élèves'!$Q$5))","v":""},{"$f":"IF(B127=\"\",\"\",COUNTIF(INDIRECT(\"G\"&ROW()):INDIRECT(\"WH\"&ROW()),'Configuration Liste élèves'!$Q$2)+COUNTIF(INDIRECT(\"G\"&ROW()):INDIRECT(\"WH\"&ROW()),'Configuration Liste élèves'!$Q$3)+2*(COUNTIF(INDIRECT(\"G\"&ROW()):INDIRECT(\"WH\"&ROW()),'Configuration Liste élèves'!$Q$4+COUNTIF(INDIRECT(\"G\"&ROW()):INDIRECT(\"WH\"&ROW()),'Configuration Liste élèves'!$Q$7)+COUNTIF(INDIRECT(\"G\"&ROW()):INDIRECT(\"WH\"&ROW()),'Configuration Liste élèves'!$Q$8)+2*(COUNTIF(INDIRECT(\"G\"&ROW()):INDIRECT(\"WH\"&ROW()),'Configuration Liste élèves'!$Q$9)))))","v":""}]
[null,null,null,null,{"$f":"IF(B128=\"\",\"\",COUNTIF(INDIRECT(\"G\"&ROW()):INDIRECT(\"WH\"&ROW()),'Configuration Liste élèves'!$Q$5))","v":""},{"$f":"IF(B128=\"\",\"\",COUNTIF(INDIRECT(\"G\"&ROW()):INDIRECT(\"WH\"&ROW()),'Configuration Liste élèves'!$Q$2)+COUNTIF(INDIRECT(\"G\"&ROW()):INDIRECT(\"WH\"&ROW()),'Configuration Liste élèves'!$Q$3)+2*(COUNTIF(INDIRECT(\"G\"&ROW()):INDIRECT(\"WH\"&ROW()),'Configuration Liste élèves'!$Q$4+COUNTIF(INDIRECT(\"G\"&ROW()):INDIRECT(\"WH\"&ROW()),'Configuration Liste élèves'!$Q$7)+COUNTIF(INDIRECT(\"G\"&ROW()):INDIRECT(\"WH\"&ROW()),'Configuration Liste élèves'!$Q$8)+2*(COUNTIF(INDIRECT(\"G\"&ROW()):INDIRECT(\"WH\"&ROW()),'Configuration Liste élèves'!$Q$9)))))","v":""}]
[]
[null,"Présences","matin",null,null,null,{"$f":"COUNTIF(G$7:G$128,'Configuration Liste élèves'!$Q$6)+COUNTIF(G$7:G$128,'Configuration Liste élèves'!$Q$3)+COUNTIF(G$7:G$128,'Configuration Liste élèves'!$Q$5)+COUNTIF(G$7:G$128,'Configuration Liste élèves'!$Q$8)","v":0}]
[null,null,"Après-midi",null,null,null,{"$f":"COUNTIF(G$7:G$128,'Configuration Liste élèves'!$Q$7)+COUNTIF(G$7:G$128,'Configuration Liste élèves'!$Q$2)+COUNTIF(G$7:G$128,'Configuration Liste élèves'!$Q$6)+COUNTIF(G$7:G$128,'Configuration Liste élèves'!$Q$5)","v":0}]
[]
[null,"Absences","matin",null,null,null,{"$f":"COUNTIF(G$7:G$128,'Configuration Liste élèves'!$Q$2)+COUNTIF(G$7:G$128,'Configuration Liste élèves'!$Q$7)","v":0}]
[null,null,"Après-midi",null,null,null,{"$f":"COUNTIF(G$7:G$128,'Configuration Liste élèves'!$Q$3)+COUNTIF(G$7:G$128,'Configuration Liste élèves'!$Q$8)","v":0}]
[null,null,"toute la journée",null,null,null,{"$f":"COUNTIF(G$7:G$128,'Configuration Liste élèves'!$Q$4)+COUNTIF(G$7:G$128,'Configuration Liste élèves'!$Q$9)","v":0}]
[null,null,"total",null,null,null,{"$f":"G133+G134+(2*G135)","v":0}]
[]
[]
[null,"Statistiques Absences"]
[]
[null,"Septembre","Effectifs",null,25]
[null,null,"Nombres de demi-journée",null,22]
[null,null,"Présences possibles",null,{"$f":"E141*(2*E142)","v":1100}]
[null,null,"Absences",null,{"$f":"SUMPRODUCT((MONTH(INDIRECT(\"G6:WH6\"))=9)*(INDIRECT(\"G136:WH136\")))","v":0}]
[null,null,"% absences",null,{"$f":"IF(E151=0,\"\",(E144/E151))","v":0}]
[null,null,"% présence",null,{"$f":"IF(E145=\"\",\"\",1-E145)","v":1}]
[]
[]
[null,"Octobre","Effectifs",null,25]
[null,null,"Nombres de demi-journée",null,22]
[null,null,"Présences possibles",null,{"$f":"E149*(2*E150)","v":1100}]
[null,null,"Absences",null,{"$f":"SUMPRODUCT((MONTH(INDIRECT(\"G6:WH6\"))=10)*(INDIRECT(\"G136:WH136\")))","v":0}]
[null,null,"% absences",null,{"$f":"IF(E151=0,\"\",(E152/E151))","v":0}]
[null,null,"% présence",null,{"$f":"IF(E153=\"\",\"\",1-E153)","v":1}]
[]
[]
[null,"Novembre","Effectifs",null,25]
[null,null,"Nombres de demi-journée",null,22]
[null,null,"Présences possibles",null,{"$f":"E157*(2*E158)","v":1100}]
[null,null,"Absences",null,{"$f":"SUMPRODUCT((MONTH(INDIRECT(\"G6:WH6\"))=11)*(INDIRECT(\"G136:WH136\")))","v":0}]
[null,null,"% absences",null,{"$f":"IF(E159=0,\"\",(E160/E159))","v":0}]
[null,null,"% présence",null,{"$f":"IF(E161=\"\",\"\",1-E161)","v":1}]
[]
[]
[null,"Décembre","Effectifs",null,25]
[null,null,"Nombres de demi-journée",null,22]
[null,null,"Présences possibles",null,{"$f":"E165*(2*E166)","v":1100}]
[null,null,"Absences",null,{"$f":"SUMPRODUCT((MONTH(INDIRECT(\"G6:WH6\"))=12)*(INDIRECT(\"G136:WH136\")))","v":0}]
[null,null,"% absences",null,{"$f":"IF(E167=0,\"\",(E168/E167))","v":0}]
[null,null,"% présence",null,{"$f":"IF(E169=\"\",\"\",1-E169)","v":1}]
[]
[]
[null,"Janvier","Effectifs",null,25]
[null,null,"Nombres de demi-journée",null,22]
[null,null,"Présences possibles",null,{"$f":"E173*(2*E174)","v":1100}]
[null,null,"Absences",null,{"$f":"SUMPRODUCT((MONTH(INDIRECT(\"G6:WH6\"))=1)*(INDIRECT(\"G136:WH136\")))","v":0}]
[null,null,"% absences",null,{"$f":"IF(E175=0,\"\",(E176/E175))","v":0}]
[null,null,"% présence",null,{"$f":"IF(E177=\"\",\"\",1-E177)","v":1}]
[]
[]
[null,"Février","Effectifs",null,25]
[null,null,"Nombres de demi-journée",null,22]
[null,null,"Présences possibles",null,{"$f":"E181*(2*E182)","v":1100}]
[null,null,"Absences",null,{"$f":"SUMPRODUCT((MONTH(INDIRECT(\"G6:WH6\"))=2)*(INDIRECT(\"G136:WH136\")))","v":0}]
[null,null,"% absences",null,{"$f":"IF(E183=0,\"\",(E184/E183))","v":0}]
[null,null,"% présence",null,{"$f":"IF(E185=\"\",\"\",1-E185)","v":1}]
[]
[]
[null,"Mars","Effectifs",null,25]
[null,null,"Nombres de demi-journée",null,22]
[null,null,"Présences possibles",null,{"$f":"E189*(2*E190)","v":1100}]
[null,null,"Absences",null,{"$f":"SUMPRODUCT((MONTH(INDIRECT(\"G6:WH6\"))=3)*(INDIRECT(\"G136:WH136\")))","v":0}]
[null,null,"% absences",null,{"$f":"IF(E191=0,\"\",(E192/E191))","v":0}]
[null,null,"% présence",null,{"$f":"IF(E193=\"\",\"\",1-E193)","v":1}]
[]
[]
[null,"Avril","Effectifs",null,25]
[null,null,"Nombres de demi-journée",null,22]
[null,null,"Présences possibles",null,{"$f":"E197*(2*E198)","v":1100}]
[null,null,"Absences",null,{"$f":"SUMPRODUCT((MONTH(INDIRECT(\"G6:WH6\"))=4)*(INDIRECT(\"G136:WH136\")))","v":0}]
[null,null,"% absences",null,{"$f":"IF(E199=0,\"\",(E200/E199))","v":0}]
[null,null,"% présence",null,{"$f":"IF(E201=\"\",\"\",1-E201)","v":1}]
[]
[]
[null,"Mai","Effectifs",null,25]
[null,null,"Nombres de demi-journée",null,22]
[null,null,"Présences possibles",null,{"$f":"E205*(2*E206)","v":1100}]
[null,null,"Absences",null,{"$f":"SUMPRODUCT((MONTH(INDIRECT(\"G6:WH6\"))=5)*(INDIRECT(\"G136:WH136\")))","v":0}]
[null,null,"% absences",null,{"$f":"IF(E207=0,\"\",(E208/E207))","v":0}]
[null,null,"% présence",null,{"$f":"IF(E209=\"\",\"\",1-E209)","v":1}]
[]
[]
[null,"Juin","Effectifs",null,25]
[null,null,"Nombres de demi-journée",null,22]
[null,null,"Présences possibles",null,{"$f":"E213*(2*E214)","v":1100}]
[null,null,"Absences",null,{"$f":"SUMPRODUCT((MONTH(INDIRECT(\"G6:WH6\"))=6)*(INDIRECT(\"G136:WH136\")))","v":0}]
[null,null,"% absences",null,{"$f":"IF(E215=0,\"\",(E216/E215))","v":0}]
[null,null,"% présence",null,{"$f":"IF(E217=\"\",\"\",1-E217)","v":1}]
[]
[]
[null,"Juillet","Effectifs",null,25]
[null,null,"Nombres de demi-journée",null,22]
[null,null,"Présences possibles",null,{"$f":"E221*(2*E222)","v":1100}]
[null,null,"Absences",null,{"$f":"SUMPRODUCT((MONTH(INDIRECT(\"G6:WH6\"))=7)*(INDIRECT(\"G136:WH136\")))","v":0}]
[null,null,"% absences",null,{"$f":"IF(E223=0,\"\",(E224/E223))","v":0}]
[null,null,"% présence",null,{"$f":"IF(E225=\"\",\"\",1-E225)","v":1}]

{"sheet":"LISTES DES ELEVES ","index":4,"n_rows":47,"n_cols":4,"rows_kept":47,"cut":false,"hidden":false,"merged":[[0,1,0,13],[6,4,6,8]]}
[null,"Liste élèves"]
["École:",null,{"$f":"Configuration!B12","v":"CFA"}]
["Enseignant:",null,"MAR PAUL"]
["Année scolaire:",null,{"$f":"'Configuration Liste élèves'!C4","v":"2018-2019"}]
["jours",null,"lundi"]
["Classe de:",null,"ccv1"]
[]
["N°","Nom","Prénom","Niv"]
[{"$f":"IF(B9=\"\",\"\",#REF!+1)","v":{"$error":"#REF!"}},"Yohan ","SPIRAL ","AUDIO"]
[{"$f":"IF(B10=\"\",\"\",A9+1)","v":{"$error":"#REF!"}},"Mathias","LEITE","CCV2"]
[{"$error":"#REF!"},"Cyrianne","ALLIEN","CCV3"]
[{"$error":"#REF!"},"Charlotte ","PICOUILLA","CCV2"]
[{"$error":"#REF!"},"Marie-Charlotte","PEPIN","CCV3"]
[{"$error":"#REF!"},"Ophélie ","DURA","CCV2"]
[{"$error":"#REF!"},"Matthieu ","DE VALENCE","CCV3"]
[{"$error":"#REF!"},"MARINE","REMI","CCV3"]
[{"$error":"#REF!"},"LEA","FERNANDES","CCV3"]
[{"$error":"#REF!"},"CYRIENNE","MESTRES","CCV3"]
[{"$error":"#REF!"},"MATTHIAS","MOISE","CCV1"]
[{"$error":"#REF!"},"CHARLENE","GARCIAS","CCV1"]
[{"$error":"#REF!"},"LUCAS","COURBY","CCV1"]
[{"$error":"#REF!"},"ALLAN","ROLFE","CCV3"]
[{"$error":"#REF!"},"LUDWIG","van hoeylanet","CCV1"]
[{"$error":"#REF!"},"EMELINE","BIEHLMANN","AUDIO"]
[{"$error":"#REF!"},"ARTHUR","GARCIA","CCV1"]
[{"$error":"#REF!"},"ALYSSA","SANTIAGO","CCV1"]
[{"$error":"#REF!"},"CORWIN","CHABIN","CCV1"]
[{"$error":"#REF!"},"MARINE","DELORME","CCV3"]
[{"$error":"#REF!"},"DE SAGA","KELIAN","AUDIO"]
[{"$error":"#REF!"},"ELODIE","TORRENTS","CCV1"]
[{"$error":"#REF!"},"ANNE SOPHIE","ABADIE","CCV2"]
[{"$error":"#REF!"},"FLORENT","PAYRASTRE","CCV1"]
[{"$error":"#REF!"},"EULALIE","DUBOSCQ","CCV2"]
[{"$error":"#REF!"},"LUCAS","BARBIER","CCV1"]
[{"$error":"#REF!"},"CYRIL","FERNANDEZ","CCV1"]
[{"$error":"#REF!"},"JADE","LOPEZ","CCV1"]
[{"$error":"#REF!"},"CAMILLE","GALEA","CCV3"]
[{"$error":"#REF!"},"Matthieu ","ALESSI","CCV3"]
[{"$error":"#REF!"},"SARAH","LAUTRE","CCV3"]
[{"$error":"#REF!"},"NAZHIA","cherat","CCV2"]
[{"$error":"#REF!"},"LAURA","RANDLA","ANIM3"]
[{"$error":"#REF!"},"ANTONIN","FELIX","ANIM2"]
[{"$error":"#REF!"},"MARC","AUGEY","AUDIO"]
[{"$error":"#REF!"},"julianna","SISLET","CCV3"]
[{"$error":"#REF!"},"julien","Armitano grivel","CCV1"]
[{"$error":"#REF!"},"alexandre","MEILLERAY","CCV2"]
[null,"maelys","UBIERTA","CCV2"]

{"sheet":"Semainier","index":5,"n_rows":274,"n_cols":5,"rows_kept":274,"cut":false,"hidden":true,"merged":[[0,0,0,4]]}
["Semainier "]
[]
[{"$f":"#REF!","v":{"$error":"#REF!"}},{"$f":"#REF!+1","v":{"$error":"#REF!"}},{"$f":"#REF!+2","v":{"$error":"#REF!"}},{"$f":"#REF!+3","v":{"$error":"#REF!"}},{"$f":"#REF!+4","v":{"$error":"#REF!"}}]
["LUNDI","MARDI","MERCREDI","JEUDI","VENDREDI"]
[{"$f":"IF(AND(#REF!=\"\",#REF!=\"\"),\"\",IF(#REF!=\"Récréation\",CONCATENATE(#REF!&\" / \"&#REF!)&CHAR(10)&\"RECREATION\",CONCATENATE(#REF!&\" / \"&#REF!)&CHAR(10)&\"Matière : \"&#REF!&CHAR(10)&\"Compétences : \"&#REF!))","v":{"$error":"#REF!"}},{"$f":"IF(AND(#REF!=\"\",#REF!=\"\"),\"\",IF(#REF!=\"Récréation\",CONCATENATE(#REF!&\" / \"&#REF!)&CHAR(10)&\"RECREATION\",CONCATENATE(#REF!&\" / \"&#REF!)&CHAR(10)&\"Matière : \"&#REF!&CHAR(10)&\"Compétences : \"&#REF!))","v":{"$error":"#REF!"}},{"$f":"IF(AND(#REF!=\"\",#REF!=\"\"),\"\",IF(#REF!=\"Récréation\",CONCATENATE(#REF!&\" / \"&#REF!)&CHAR(10)&\"RECREATION\",CONCATENATE(#REF!&\" / \"&#REF!)&CHAR(10)&\"Matière : \"&#REF!&CHAR(10)&\"Compétences : \"&#REF!))","v":{"$error":"#REF!"}},{"$f":"IF(AND(#REF!=\"\",#REF!=\"\"),\"\",IF(#REF!=\"Récréation\",CONCATENATE(#REF!&\" / \"&#REF!)&CHAR(10)&\"RECREATION\",CONCATENATE(#REF!&\" / \"&#REF!)&CHAR(10)&\"Matière : \"&#REF!&CHAR(10)&\"Compétences : \"&#REF!))","v":{"$error":"#REF!"}},{"$f":"IF(AND(#REF!=\"\",#REF!=\"\"),\"\",IF(#REF!=\"Récréation\",CONCATENATE(#REF!&\" / \"&#REF!)&CHAR(10)&\"RECREATION\",CONCATENATE(#REF!&\" / \"&#REF!)&CHAR(10)&\"Matière : \"&#REF!&CHAR(10)&\"Compétences : \"&#REF!))","v":{"$error":"#REF!"}}]
[{"$f":"IF(AND(#REF!=\"\",#REF!=\"\"),\"\",IF(#REF!=\"Récréation\",CONCATENATE(#REF!&\" / \"&#REF!)&CHAR(10)&\"RECREATION\",CONCATENATE(#REF!&\" / \"&#REF!)&CHAR(10)&\"Matière : \"&#REF!&CHAR(10)&\"Compétences : \"&#REF!))","v":{"$error":"#REF!"}},{"$f":"IF(AND(#REF!=\"\",#REF!=\"\"),\"\",IF(#REF!=\"Récréation\",CONCATENATE(#REF!&\" / \"&#REF!)&CHAR(10)&\"RECREATION\",CONCATENATE(#REF!&\" / \"&#REF!)&CHAR(10)&\"Matière : \"&#REF!&CHAR(10)&\"Compétences : \"&#REF!))","v":{"$error":"#REF!"}},{"$f":"IF(AND(#REF!=\"\",#REF!=\"\"),\"\",IF(#REF!=\"Récréation\",CONCATENATE(#REF!&\" / \"&#REF!)&CHAR(10)&\"RECREATION\",CONCATENATE(#REF!&\" / \"&#REF!)&CHAR(10)&\"Matière : \"&#REF!&CHAR(10)&\"Compétences : \"&#REF!))","v":{"$error":"#REF!"}},{"$f":"IF(AND(#REF!=\"\",#REF!=\"\"),\"\",IF(#REF!=\"Récréation\",CONCATENATE(#REF!&\" / \"&#REF!)&CHAR(10)&\"RECREATION\",CONCATENATE(#REF!&\" / \"&#REF!)&CHAR(10)&\"Matière : \"&#REF!&CHAR(10)&\"Compétences : \"&#REF!))","v":{"$error":"#REF!"}},{"$f":"IF(AND(#REF!=\"\",#REF!=\"\"),\"\",IF(#REF!=\"Récréation\",CONCATENATE(#REF!&\" / \"&#REF!)&CHAR(10)&\"RECREATION\",CONCATENATE(#REF!&\" / \"&#REF!)&CHAR(10)&\"Matière : \"&#REF!&CHAR(10)&\"Compétences : \"&#REF!))","v":{"$error":"#REF!"}}]
[{"$f":"IF(AND(#REF!=\"\",#REF!=\"\"),\"\",IF(#REF!=\"Récréation\",CONCATENATE(#REF!&\" / \"&#REF!)&CHAR(10)&\"RECREATION\",CONCATENATE(#REF!&\" / \"&#REF!)&CHAR(10)&\"Matière : \"&#REF!&CHAR(10)&\"Compétences : \"&#REF!))","v":{"$error":"#REF!"}},{"$f":"IF(AND(#REF!=\"\",#REF!=\"\"),\"\",IF(#REF!=\"Récréation\",CONCATENATE(#REF!&\" / \"&#REF!)&CHAR(10)&\"RECREATION\",CONCATENATE(#REF!&\" / \"&#REF!)&CHAR(10)&\"Matière : \"&#REF!&CHAR(10)&\"Compétences : \"&#REF!))","v":{"$error":"#REF!"}},{"$f":"IF(AND(#REF!=\"\",#REF!=\"\"),\"\",IF(#REF!=\"Récréation\",CONCATENATE(#REF!&\" / \"&#REF!)&CHAR(10)&\"RECREATION\",CONCATENATE(#REF!&\" / \"&#REF!)&CHAR(10)&\"Matière : \"&#REF!&CHAR(10)&\"Compétences : \"&#REF!))","v":{"$error":"#REF!"}},{"$f":"IF(AND(#REF!=\"\",#REF!=\"\"),\"\",IF(#REF!=\"Récréation\",CONCATENATE(#REF!&\" / \"&#REF!)&CHAR(10)&\"RECREATION\",CONCATENATE(#REF!&\" / \"&#REF!)&CHAR(10)&\"Matière : \"&#REF!&CHAR(10)&\"Compétences : \"&#REF!))","v":{"$error":"#REF!"}},{"$f":"IF(AND(#REF!=\"\",#REF!=\"\"),\"\",IF(#REF!=\"Récréation\",CONCATENATE(#REF!&\" / \"&#REF!)&CHAR(10)&\"RECREATION\",CONCATENATE(#REF!&\" / \"&#REF!)&CHAR(10)&\"Matière : \"&#REF!&CHAR(10)&\"Compétences : \"&#REF!))","v":{"$error":"#REF!"}}]
[{"$f":"IF(AND(#REF!=\"\",#REF!=\"\"),\"\",IF(#REF!=\"Récréation\",CONCATENATE(#REF!&\" / \"&#REF!)&CHAR(10)&\"RECREATION\",CONCATENATE(#REF!&\" / \"&#REF!)&CHAR(10)&\"Matière : \"&#REF!&CHAR(10)&\"Compétences : \"&#REF!))","v":{"$error":"#REF!"}},{"$f":"IF(AND(#REF!=\"\",#REF!=\"\"),\"\",IF(#REF!=\"Récréation\",CONCATENATE(#REF!&\" / \"&#REF!)&CHAR(10)&\"RECREATION\",CONCATENATE(#REF!&\" / \"&#REF!)&CHAR(10)&\"Matière : \"&#REF!&CHAR(10)&\"Compétences : \"&#REF!))","v":{"$error":"#REF!"}},{"$f":"IF(AND(#REF!=\"\",#REF!=\"\"),\"\",IF(#REF!=\"Récréation\",CONCATENATE(#REF!&\" / \"&#REF!)&CHAR(10)&\"RECREATION\",CONCATENATE(#REF!&\" / \"&#REF!)&CHAR(10)&\"Matière : \"&#REF!&CHAR(10)&\"Compétences : \"&#REF!))","v":{"$error":"#REF!"}},{"$f":"IF(AND(#REF!=\"\",#REF!=\"\"),\"\",IF(#REF!=\"Récréation\",CONCATENATE(#REF!&\" / \"&#REF!)&CHAR(10)&\"RECREATION\",CONCATENATE(#REF!&\" / \"&#REF!)&CHAR(10)&\"Matière : \"&#REF!&CHAR(10)&\"Compétences : \"&#REF!))","v":{"$error":"#REF!"}},{"$f":"IF(AND(#REF!=\"\",#REF!=\"\"),\"\",IF(#REF!=\"Récréation\",CONCATENATE(#REF!&\" / \"&#REF!)&CHAR(10)&\"RECREATION\",CONCATENATE(#REF!&\" / \"&#REF!)&CHAR(10)&\"Matière : \"&#REF!&CHAR(10)&\"Compétences : \"&#REF!))","v":{"$error":"#REF!"}}]
[{"$f":"IF(AND(#REF!=\"\",#REF!=\"\"),\"\",IF(#REF!=\"Récréation\",CONCATENATE(#REF!&\" / \"&#REF!)&CHAR(10)&\"RECREATION\",CONCATENATE(#REF!&\" / \"&#REF!)&CHAR(10)&\"Matière : \"&#REF!&CHAR(10)&\"Compétences : \"&#REF!))","v":{"$error":"#REF!"}},{"$f":"IF(AND(#REF!=\"\",#REF!=\"\"),\"\",IF(#REF!=\"Récréation\",CONCATENATE(#REF!&\" / \"&#REF!)&CHAR(10)&\"RECREATION\",CONCATENATE(#REF!&\" / \"&#REF!)&CHAR(10)&\"Matière : \"&#REF!&CHAR(10)&\"Compétences : \"&#REF!))","v":{"$error":"#REF!"}},{"$f":"IF(AND(#REF!=\"\",#REF!=\"\"),\"\",IF(#REF!=\"Récréation\",CONCATENATE(#REF!&\" / \"&#REF!)&CHAR(10)&\"RECREATION\",CONCATENATE(#REF!&\" / \"&#REF!)&CHAR(10)&\"Matière : \"&#REF!&CHAR(10)&\"Compétences : \"&#REF!))","v":{"$error":"#REF!"}},{"$f":"IF(AND(#REF!=\"\",#REF!=\"\"),\"\",IF(#REF!=\"Récréation\",CONCATENATE(#REF!&\" / \"&#REF!)&CHAR(10)&\"RECREATION\",CONCATENATE(#REF!&\" / \"&#REF!)&CHAR(10)&\"Matière : \"&#REF!&CHAR(10)&\"Compétences : \"&#REF!))","v":{"$error":"#REF!"}},{"$f":"IF(AND(#REF!=\"\",#REF!=\"\"),\"\",IF(#REF!=\"Récréation\",CONCATENATE(#REF!&\" / \"&#REF!)&CHAR(10)&\"RECREATION\",CONCATENATE(#REF!&\" / \"&#REF!)&CHAR(10)&\"Matière : \"&#REF!&CHAR(10)&\"Compétences : \"&#REF!))","v":{"$error":"#REF!"}}]
[{"$f":"IF(AND(#REF!=\"\",#REF!=\"\"),\"\",IF(#REF!=\"Récréation\",CONCATENATE(#REF!&\" / \"&#REF!)&CHAR(10)&\"RECREATION\",CONCATENATE(#REF!&\" / \"&#REF!)&CHAR(10)&\"Matière : \"&#REF!&CHAR(10)&\"Compétences : \"&#REF!))","v":{"$error":"#REF!"}},{"$f":"IF(AND(#REF!=\"\",#REF!=\"\"),\"\",IF(#REF!=\"Récréation\",CONCATENATE(#REF!&\" / \"&#REF!)&CHAR(10)&\"RECREATION\",CONCATENATE(#REF!&\" / \"&#REF!)&CHAR(10)&\"Matière : \"&#REF!&CHAR(10)&\"Compétences : \"&#REF!))","v":{"$error":"#REF!"}},{"$f":"IF(AND(#REF!=\"\",#REF!=\"\"),\"\",IF(#REF!=\"Récréation\",CONCATENATE(#REF!&\" / \"&#REF!)&CHAR(10)&\"RECREATION\",CONCATENATE(#REF!&\" / \"&#REF!)&CHAR(10)&\"Matière : \"&#REF!&CHAR(10)&\"Compétences : \"&#REF!))","v":{"$error":"#REF!"}},{"$f":"IF(AND(#REF!=\"\",#REF!=\"\"),\"\",IF(#REF!=\"Récréation\",CONCATENATE(#REF!&\" / \"&#REF!)&CHAR(10)&\"RECREATION\",CONCATENATE(#REF!&\" / \"&#REF!)&CHAR(10)&\"Matière : \"&#REF!&CHAR(10)&\"Compétences : \"&#REF!))","v":{"$error":"#REF!"}},{"$f":"IF(AND(#REF!=\"\",#REF!=\"\"),\"\",IF(#REF!=\"Récréation\",CONCATENATE(#REF!&\" / \"&#REF!)&CHAR(10)&\"RECREATION\",CONCATENATE(#REF!&\" / \"&#REF!)&CHAR(10)&\"Matière : \"&#REF!&CHAR(10)&\"Compétences : \"&#REF!))","v":{"$error":"#REF!"}}]
[{"$f":"IF(AND(#REF!=\"\",#REF!=\"\"),\"\",IF(#REF!=\"Récréation\",CONCATENATE(#REF!&\" / \"&#REF!)&CHAR(10)&\"RECREATION\",CONCATENATE(#REF!&\" / \"&#REF!)&CHAR(10)&\"Matière : \"&#REF!&CHAR(10)&\"Compétences : \"&#REF!))","v":{"$error":"#REF!"}},{"$f":"IF(AND(#REF!=\"\",#REF!=\"\"),\"\",IF(#REF!=\"Récréation\",CONCATENATE(#REF!&\" / \"&#REF!)&CHAR(10)&\"RECREATION\",CONCATENATE(#REF!&\" / \"&#REF!)&CHAR(10)&\"Matière : \"&#REF!&CHAR(10)&\"Compétences : \"&#REF!))","v":{"$error":"#REF!"}},{"$f":"IF(AND(#REF!=\"\",#REF!=\"\"),\"\",IF(#REF!=\"Récréation\",CONCATENATE(#REF!&\" / \"&#REF!)&CHAR(10)&\"RECREATION\",CONCATENATE(#REF!&\" / \"&#REF!)&CHAR(10)&\"Matière : \"&#REF!&CHAR(10)&\"Compétences : \"&#REF!))","v":{"$error":"#REF!"}},{"$f":"IF(AND(#REF!=\"\",#REF!=\"\"),\"\",IF(#REF!=\"Récréation\",CONCATENATE(#REF!&\" / \"&#REF!)&CHAR(10)&\"RECREATION\",CONCATENATE(#REF!&\" / \"&#REF!)&CHAR(10)&\"Matière : \"&#REF!&CHAR(10)&\"Compétences : \"&#REF!))","v":{"$error":"#REF!"}},{"$f":"IF(AND(#REF!=\"\",#REF!=\"\"),\"\",IF(#REF!=\"Récréation\",CONCATENATE(#REF!&\" / \"&#REF!)&CHAR(10)&\"RECREATION\",CONCATENATE(#REF!&\" / \"&#REF!)&CHAR(10)&\"Matière : \"&#REF!&CHAR(10)&\"Compétences : \"&#REF!))","v":{"$error":"#REF!"}}]
[{"$f":"IF(AND(#REF!=\"\",#REF!=\"\"),\"\",IF(#REF!=\"Récréation\",CONCATENATE(#REF!&\" / \"&#REF!)&CHAR(10)&\"RECREATION\",CONCATENATE(#REF!&\" / \"&#REF!)&CHAR(10)&\"Matière : \"&#REF!&CHAR(10)&\"Compétences : \"&#REF!))","v":{"$error":"#REF!"}},{"$f":"IF(AND(#REF!=\"\",#REF!=\"\"),\"\",IF(#REF!=\"Récréation\",CONCATENATE(#REF!&\" / \"&#REF!)&CHAR(10)&\"RECREATION\",CONCATENATE(#REF!&\" / \"&#REF!)&CHAR(10)&\"Matière : \"&#REF!&CHAR(10)&\"Compétences : \"&#REF!))","v":{"$error":"#REF!"}},{"$f":"IF(AND(#REF!=\"\",#REF!=\"\"),\"\",IF(#REF!=\"Récréation\",CONCATENATE(#REF!&\" / \"&#REF!)&CHAR(10)&\"RECREATION\",CONCATENATE(#REF!&\" / \"&#REF!)&CHAR(10)&\"Matière : \"&#REF!&CHAR(10)&\"Compétences : \"&#REF!))","v":{"$error":"#REF!"}},{"$f":"IF(AND(#REF!=\"\",#REF!=\"\"),\"\",IF(#REF!=\"Récréation\",CONCATENATE(#REF!&\" / \"&#REF!)&CHAR(10)&\"RECREATION\",CONCATENATE(#REF!&\" / \"&#REF!)&CHAR(10)&\"Matière : \"&#REF!&CHAR(10)&\"Compétences : \"&#REF!))","v":{"$error":"#REF!"}},{"$f":"IF(AND(#REF!=\"\",#REF!=\"\"),\"\",IF(#REF!=\"Récréation\",CONCATENATE(#REF!&\" / \"&#REF!)&CHAR(10)&\"RECREATION\",CONCATENATE(#REF!&\" / \"&#REF!)&CHAR(10)&\"Matière : \"&#REF!&CHAR(10)&\"Compétences : \"&#REF!))","v":{"$error":"#REF!"}}]
[{"$f":"IF(AND(#REF!=\"\",#REF!=\"\"),\"\",IF(#REF!=\"Récréation\",CONCATENATE(#REF!&\" / \"&#REF!)&CHAR(10)&\"RECREATION\",CONCATENATE(#REF!&\" / \"&#REF!)&CHAR(10)&\"Matière : \"&#REF!&CHAR(10)&\"Compétences : \"&#REF!))","v":{"$error":"#REF!"}},{"$f":"IF(AND(#REF!=\"\",#REF!=\"\"),\"\",IF(#REF!=\"Récréation\",CONCATENATE(#REF!&\" / \"&#REF!)&CHAR(10)&\"RECREATION\",CONCATENATE(#REF!&\" / \"&#REF!)&CHAR(10)&\"Matière : \"&#REF!&CHAR(10)&\"Compétences : \"&#REF!))","v":{"$error":"#REF!"}},{"$f":"IF(AND(#REF!=\"\",#REF!=\"\"),\"\",IF(#REF!=\"Récréation\",CONCATENATE(#REF!&\" / \"&#REF!)&CHAR(10)&\"RECREATION\",CONCATENATE(#REF!&\" / \"&#REF!)&CHAR(10)&\"Matière : \"&#REF!&CHAR(10)&\"Compétences : \"&#REF!))","v":{"$error":"#REF!"}},{"$f":"IF(AND(#REF!=\"\",#REF!=\"\"),\"\",IF(#REF!=\"Récréation\",CONCATENATE(#REF!&\" / \"&#REF!)&CHAR(10)&\"RECREATION\",CONCATENATE(#REF!&\" / \"&#REF!)&CHAR(10)&\"Matière : \"&#REF!&CHAR(10)&\"Compétences : \"&#REF!))","v":{"$error":"#REF!"}},{"$f":"IF(AND(#REF!=\"\",#REF!=\"\"),\"\",IF(#REF!=\"Récréation\",CONCATENATE(#REF!&\" / \"&#REF!)&CHAR(10)&\"RECREATION\",CONCATENATE(#REF!&\" / \"&#REF!)&CHAR(10)&\"Matière : \"&#REF!&CHAR(10)&\"Compétences : \"&#REF!))","v":{"$error":"#REF!"}}]
[{"$f":"IF(AND(#REF!=\"\",#REF!=\"\"),\"\",IF(#REF!=\"Récréation\",CONCATENATE(#REF!&\" / \"&#REF!)&CHAR(10)&\"RECREATION\",CONCATENATE(#REF!&\" / \"&#REF!)&CHAR(10)&\"Matière : \"&#REF!&CHAR(10)&\"Compétences : \"&#REF!))","v":{"$error":"#REF!"}},{"$f":"IF(AND(#REF!=\"\",#REF!=\"\"),\"\",IF(#REF!=\"Récréation\",CONCATENATE(#REF!&\" / \"&#REF!)&CHAR(10)&\"RECREATION\",CONCATENATE(#REF!&\" / \"&#REF!)&CHAR(10)&\"Matière : \"&#REF!&CHAR(10)&\"Compétences : \"&#REF!))","v":{"$error":"#REF!"}},{"$f":"IF(AND(#REF!=\"\",#REF!=\"\"),\"\",IF(#REF!=\"Récréation\",CONCATENATE(#REF!&\" / \"&#REF!)&CHAR(10)&\"RECREATION\",CONCATENATE(#REF!&\" / \"&#REF!)&CHAR(10)&\"Matière : \"&#REF!&CHAR(10)&\"Compétences : \"&#REF!))","v":{"$error":"#REF!"}},{"$f":"IF(AND(#REF!=\"\",#REF!=\"\"),\"\",IF(#REF!=\"Récréation\",CONCATENATE(#REF!&\" / \"&#REF!)&CHAR(10)&\"RECREATION\",CONCATENATE(#REF!&\" / \"&#REF!)&CHAR(10)&\"Matière : \"&#REF!&CHAR(10)&\"Compétences : \"&#REF!))","v":{"$error":"#REF!"}},{"$f":"IF(AND(#REF!=\"\",#REF!=\"\"),\"\",IF(#REF!=\"Récréation\",CONCATENATE(#REF!&\" / \"&#REF!)&CHAR(10)&\"RECREATION\",CONCATENATE(#REF!&\" / \"&#REF!)&CHAR(10)&\"Matière : \"&#REF!&CHAR(10)&\"Compétences : \"&#REF!))","v":{"$error":"#REF!"}}]
[{"$f":"IF(AND(#REF!=\"\",#REF!=\"\"),\"\",IF(#REF!=\"Récréation\",CONCATENATE(#REF!&\" / \"&#REF!)&CHAR(10)&\"RECREATION\",CONCATENATE(#REF!&\" / \"&#REF!)&CHAR(10)&\"Matière : \"&#REF!&CHAR(10)&\"Compétences : \"&#REF!))","v":{"$error":"#REF!"}},{"$f":"IF(AND(#REF!=\"\",#REF!=\"\"),\"\",IF(#REF!=\"Récréation\",CONCATENATE(#REF!&\" / \"&#REF!)&CHAR(10)&\"RECREATION\",CONCATENATE(#REF!&\" / \"&#REF!)&CHAR(10)&\"Matière : \"&#REF!&CHAR(10)&\"Compétences : \"&#REF!))","v":{"$error":"#REF!"}},{"$f":"IF(AND(#REF!=\"\",#REF!=\"\"),\"\",IF(#REF!=\"Récréation\",CONCATENATE(#REF!&\" / \"&#REF!)&CHAR(10)&\"RECREATION\",CONCATENATE(#REF!&\" / \"&#REF!)&CHAR(10)&\"Matière : \"&#REF!&CHAR(10)&\"Compétences : \"&#REF!))","v":{"$error":"#REF!"}},{"$f":"IF(AND(#REF!=\"\",#REF!=\"\"),\"\",IF(#REF!=\"Récréation\",CONCATENATE(#REF!&\" / \"&#REF!)&CHAR(10)&\"RECREATION\",CONCATENATE(#REF!&\" / \"&#REF!)&CHAR(10)&\"Matière : \"&#REF!&CHAR(10)&\"Compétences : \"&#REF!))","v":{"$error":"#REF!"}},{"$f":"IF(AND(#REF!=\"\",#REF!=\"\"),\"\",IF(#REF!=\"Récréation\",CONCATENATE(#REF!&\" / \"&#REF!)&CHAR(10)&\"RECREATION\",CONCATENATE(#REF!&\" / \"&#REF!)&CHAR(10)&\"Matière : \"&#REF!&CHAR(10)&\"Compétences : \"&#REF!))","v":{"$error":"#REF!"}}]
[{"$f":"IF(AND(#REF!=\"\",#REF!=\"\"),\"\",IF(#REF!=\"Récréation\",CONCATENATE(#REF!&\" / \"&#REF!)&CHAR(10)&\"RECREATION\",CONCATENATE(#REF!&\" / \"&#REF!)&CHAR(10)&\"Matière : \"&#REF!&CHAR(10)&\"Compétences : \"&#REF!))","v":{"$error":"#REF!"}},{"$f":"IF(AND(#REF!=\"\",#REF!=\"\"),\"\",IF(#REF!=\"Récréation\",CONCATENATE(#REF!&\" / \"&#REF!)&CHAR(10)&\"RECREATION\",CONCATENATE(#REF!&\" / \"&#REF!)&CHAR(10)&\"Matière : \"&#REF!&CHAR(10)&\"Compétences : \"&#REF!))","v":{"$error":"#REF!"}},{"$f":"IF(AND(#REF!=\"\",#REF!=\"\"),\"\",IF(#REF!=\"Récréation\",CONCATENATE(#REF!&\" / \"&#REF!)&CHAR(10)&\"RECREATION\",CONCATENATE(#REF!&\" / \"&#REF!)&CHAR(10)&\"Matière : \"&#REF!&CHAR(10)&\"Compétences : \"&#REF!))","v":{"$error":"#REF!"}},{"$f":"IF(AND(#REF!=\"\",#REF!=\"\"),\"\",IF(#REF!=\"Récréation\",CONCATENATE(#REF!&\" / \"&#REF!)&CHAR(10)&\"RECREATION\",CONCATENATE(#REF!&\" / \"&#REF!)&CHAR(10)&\"Matière : \"&#REF!&CHAR(10)&\"Compétences : \"&#REF!))","v":{"$error":"#REF!"}},{"$f":"IF(AND(#REF!=\"\",#REF!=\"\"),\"\",IF(#REF!=\"Récréation\",CONCATENATE(#REF!&\" / \"&#REF!)&CHAR(10)&\"RECREATION\",CONCATENATE(#REF!&\" / \"&#REF!)&CHAR(10)&\"Matière : \"&#REF!&CHAR(10)&\"Compétences : \"&#REF!))","v":{"$error":"#REF!"}}]
[{"$f":"IF(AND(#REF!=\"\",#REF!=\"\"),\"\",IF(#REF!=\"Récréation\",CONCATENATE(#REF!&\" / \"&#REF!)&CHAR(10)&\"RECREATION\",CONCATENATE(#REF!&\" / \"&#REF!)&CHAR(10)&\"Matière : \"&#REF!&CHAR(10)&\"Compétences : \"&#REF!))","v":{"$error":"#REF!"}},{"$f":"IF(AND(#REF!=\"\",#REF!=\"\"),\"\",IF(#REF!=\"Récréation\",CONCATENATE(#REF!&\" / \"&#REF!)&CHAR(10)&\"RECREATION\",CONCATENATE(#REF!&\" / \"&#REF!)&CHAR(10)&\"Matière : \"&#REF!&CHAR(10)&\"Compétences : \"&#REF!))","v":{"$error":"#REF!"}},{"$f":"IF(AND(#REF!=\"\",#REF!=\"\"),\"\",IF(#REF!=\"Récréation\",CONCATENATE(#REF!&\" / \"&#REF!)&CHAR(10)&\"RECREATION\",CONCATENATE(#REF!&\" / \"&#REF!)&CHAR(10)&\"Matière : \"&#REF!&CHAR(10)&\"Compétences : \"&#REF!))","v":{"$error":"#REF!"}},{"$f":"IF(AND(#REF!=\"\",#REF!=\"\"),\"\",IF(#REF!=\"Récréation\",CONCATENATE(#REF!&\" / \"&#REF!)&CHAR(10)&\"RECREATION\",CONCATENATE(#REF!&\" / \"&#REF!)&CHAR(10)&\"Matière : \"&#REF!&CHAR(10)&\"Compétences : \"&#REF!))","v":{"$error":"#REF!"}},{"$f":"IF(AND(#REF!=\"\",#REF!=\"\"),\"\",IF(#REF!=\"Récréation\",CONCATENATE(#REF!&\" / \"&#REF!)&CHAR(10)&\"RECREATION\",CONCATENATE(#REF!&\" / \"&#REF!)&CHAR(10)&\"Matière : \"&#REF!&CHAR(10)&\"Compétences : \"&#REF!))","v":{"$error":"#REF!"}}]
[{"$f":"IF(AND(#REF!=\"\",#REF!=\"\"),\"\",IF(#REF!=\"Récréation\",CONCATENATE(#REF!&\" / \"&#REF!)&CHAR(10)&\"RECREATION\",CONCATENATE(#REF!&\" / \"&#REF!)&CHAR(10)&\"Matière : \"&#REF!&CHAR(10)&\"Compétences : \"&#REF!))","v":{"$error":"#REF!"}},{"$f":"IF(AND(#REF!=\"\",#REF!=\"\"),\"\",IF(#REF!=\"Récréation\",CONCATENATE(#REF!&\" / \"&#REF!)&CHAR(10)&\"RECREATION\",CONCATENATE(#REF!&\" / \"&#REF!)&CHAR(10)&\"Matière : \"&#REF!&CHAR(10)&\"Compétences : \"&#REF!))","v":{"$error":"#REF!"}},{"$f":"IF(AND(#REF!=\"\",#REF!=\"\"),\"\",IF(#REF!=\"Récréation\",CONCATENATE(#REF!&\" / \"&#REF!)&CHAR(10)&\"RECREATION\",CONCATENATE(#REF!&\" / \"&#REF!)&CHAR(10)&\"Matière : \"&#REF!&CHAR(10)&\"Compétences : \"&#REF!))","v":{"$error":"#REF!"}},{"$f":"IF(AND(#REF!=\"\",#REF!=\"\"),\"\",IF(#REF!=\"Récréation\",CONCATENATE(#REF!&\" / \"&#REF!)&CHAR(10)&\"RECREATION\",CONCATENATE(#REF!&\" / \"&#REF!)&CHAR(10)&\"Matière : \"&#REF!&CHAR(10)&\"Compétences : \"&#REF!))","v":{"$error":"#REF!"}},{"$f":"IF(AND(#REF!=\"\",#REF!=\"\"),\"\",IF(#REF!=\"Récréation\",CONCATENATE(#REF!&\" / \"&#REF!)&CHAR(10)&\"RECREATION\",CONCATENATE(#REF!&\" / \"&#REF!)&CHAR(10)&\"Matière : \"&#REF!&CHAR(10)&\"Compétences : \"&#REF!))","v":{"$error":"#REF!"}}]
[{"$f":"IF(AND(#REF!=\"\",#REF!=\"\"),\"\",IF(#REF!=\"Récréation\",CONCATENATE(#REF!&\" / \"&#REF!)&CHAR(10)&\"RECREATION\",CONCATENATE(#REF!&\" / \"&#REF!)&CHAR(10)&\"Matière : \"&#REF!&CHAR(10)&\"Compétences : \"&#REF!))","v":{"$error":"#REF!"}},{"$f":"IF(AND(#REF!=\"\",#REF!=\"\"),\"\",IF(#REF!=\"Récréation\",CONCATENATE(#REF!&\" / \"&#REF!)&CHAR(10)&\"RECREATION\",CONCATENATE(#REF!&\" / \"&#REF!)&CHAR(10)&\"Matière : \"&#REF!&CHAR(10)&\"Compétences : \"&#REF!))","v":{"$error":"#REF!"}},{"$f":"IF(AND(#REF!=\"\",#REF!=\"\"),\"\",IF(#REF!=\"Récréation\",CONCATENATE(#REF!&\" / \"&#REF!)&CHAR(10)&\"RECREATION\",CONCATENATE(#REF!&\" / \"&#REF!)&CHAR(10)&\"Matière : \"&#REF!&CHAR(10)&\"Compétences : \"&#REF!))","v":{"$error":"#REF!"}},{"$f":"IF(AND(#REF!=\"\",#REF!=\"\"),\"\",IF(#REF!=\"Récréation\",CONCATENATE(#REF!&\" / \"&#REF!)&CHAR(10)&\"RECREATION\",CONCATENATE(#REF!&\" / \"&#REF!)&CHAR(10)&\"Matière : \"&#REF!&CHAR(10)&\"Compétences : \"&#REF!))","v":{"$error":"#REF!"}},{"$f":"IF(AND(#REF!=\"\",#REF!=\"\"),\"\",IF(#REF!=\"Récréation\",CONCATENATE(#REF!&\" / \"&#REF!)&CHAR(10)&\"RECREATION\",CONCATENATE(#REF!&\" / \"&#REF!)&CHAR(10)&\"Matière : \"&#REF!&CHAR(10)&\"Compétences : \"&#REF!))","v":{"$error":"#REF!"}}]
[{"$f":"IF(AND(#REF!=\"\",#REF!=\"\"),\"\",IF(#REF!=\"Récréation\",CONCATENATE(#REF!&\" / \"&#REF!)&CHAR(10)&\"RECREATION\",CONCATENATE(#REF!&\" / \"&#REF!)&CHAR(10)&\"Matière : \"&#REF!&CHAR(10)&\"Compétences : \"&#REF!))","v":{"$error":"#REF!"}},{"$f":"IF(AND(#REF!=\"\",#REF!=\"\"),\"\",IF(#REF!=\"Récréation\",CONCATENATE(#REF!&\" / \"&#REF!)&CHAR(10)&\"RECREATION\",CONCATENATE(#REF!&\" / \"&#REF!)&CHAR(10)&\"Matière : \"&#REF!&CHAR(10)&\"Compétences : \"&#REF!))","v":{"$error":"#REF!"}},{"$f":"IF(AND(#REF!=\"\",#REF!=\"\"),\"\",IF(#REF!=\"Récréation\",CONCATENATE(#REF!&\" / \"&#REF!)&CHAR(10)&\"RECREATION\",CONCATENATE(#REF!&\" / \"&#REF!)&CHAR(10)&\"Matière : \"&#REF!&CHAR(10)&\"Compétences : \"&#REF!))","v":{"$error":"#REF!"}},{"$f":"IF(AND(#REF!=\"\",#REF!=\"\"),\"\",IF(#REF!=\"Récréation\",CONCATENATE(#REF!&\" / \"&#REF!)&CHAR(10)&\"RECREATION\",CONCATENATE(#REF!&\" / \"&#REF!)&CHAR(10)&\"Matière : \"&#REF!&CHAR(10)&\"Compétences : \"&#REF!))","v":{"$error":"#REF!"}},{"$f":"IF(AND(#REF!=\"\",#REF!=\"\"),\"\",IF(#REF!=\"Récréation\",CONCATENATE(#REF!&\" / \"&#REF!)&CHAR(10)&\"RECREATION\",CONCATENATE(#REF!&\" / \"&#REF!)&CHAR(10)&\"Matière : \"&#REF!&CHAR(10)&\"Compétences : \"&#REF!))","v":{"$error":"#REF!"}}]
[{"$f":"IF(AND(#REF!=\"\",#REF!=\"\"),\"\",IF(#REF!=\"Récréation\",CONCATENATE(#REF!&\" / \"&#REF!)&CHAR(10)&\"RECREATION\",CONCATENATE(#REF!&\" / \"&#REF!)&CHAR(10)&\"Matière : \"&#REF!&CHAR(10)&\"Compétences : \"&#REF!))","v":{"$error":"#REF!"}},{"$f":"IF(AND(#REF!=\"\",#REF!=\"\"),\"\",IF(#REF!=\"Récréation\",CONCATENATE(#REF!&\" / \"&#REF!)&CHAR(10)&\"RECREATION\",CONCATENATE(#REF!&\" / \"&#REF!)&CHAR(10)&\"Matière : \"&#REF!&CHAR(10)&\"Compétences : \"&#REF!))","v":{"$error":"#REF!"}},{"$f":"IF(AND(#REF!=\"\",#REF!=\"\"),\"\",IF(#REF!=\"Récréation\",CONCATENATE(#REF!&\" / \"&#REF!)&CHAR(10)&\"RECREATION\",CONCATENATE(#REF!&\" / \"&#REF!)&CHAR(10)&\"Matière : \"&#REF!&CHAR(10)&\"Compétences : \"&#REF!))","v":{"$error":"#REF!"}},{"$f":"IF(AND(#REF!=\"\",#REF!=\"\"),\"\",IF(#REF!=\"Récréation\",CONCATENATE(#REF!&\" / \"&#REF!)&CHAR(10)&\"RECREATION\",CONCATENATE(#REF!&\" / \"&#REF!)&CHAR(10)&\"Matière : \"&#REF!&CHAR(10)&\"Compétences : \"&#REF!))","v":{"$error":"#REF!"}},{"$f":"IF(AND(#REF!=\"\",#REF!=\"\"),\"\",IF(#REF!=\"Récréation\",CONCATENATE(#REF!&\" / \"&#REF!)&CHAR(10)&\"RECREATION\",CONCATENATE(#REF!&\" / \"&#REF!)&CHAR(10)&\"Matière : \"&#REF!&CHAR(10)&\"Compétences : \"&#REF!))","v":{"$error":"#REF!"}}]
[{"$f":"IF(AND(#REF!=\"\",#REF!=\"\"),\"\",IF(#REF!=\"Récréation\",CONCATENATE(#REF!&\" / \"&#REF!)&CHAR(10)&\"RECREATION\",CONCATENATE(#REF!&\" / \"&#REF!)&CHAR(10)&\"Matière : \"&#REF!&CHAR(10)&\"Compétences : \"&#REF!))","v":{"$error":"#REF!"}},{"$f":"IF(AND(#REF!=\"\",#REF!=\"\"),\"\",IF(#REF!=\"Récréation\",CONCATENATE(#REF!&\" / \"&#REF!)&CHAR(10)&\"RECREATION\",CONCATENATE(#REF!&\" / \"&#REF!)&CHAR(10)&\"Matière : \"&#REF!&CHAR(10)&\"Compétences : \"&#REF!))","v":{"$error":"#REF!"}},{"$f":"IF(AND(#REF!=\"\",#REF!=\"\"),\"\",IF(#REF!=\"Récréation\",CONCATENATE(#REF!&\" / \"&#REF!)&CHAR(10)&\"RECREATION\",CONCATENATE(#REF!&\" / \"&#REF!)&CHAR(10)&\"Matière : \"&#REF!&CHAR(10)&\"Compétences : \"&#REF!))","v":{"$error":"#REF!"}},{"$f":"IF(AND(#REF!=\"\",#REF!=\"\"),\"\",IF(#REF!=\"Récréation\",CONCATENATE(#REF!&\" / \"&#REF!)&CHAR(10)&\"RECREATION\",CONCATENATE(#REF!&\" / \"&#REF!)&CHAR(10)&\"Matière : \"&#REF!&CHAR(10)&\"Compétences : \"&#REF!))","v":{"$error":"#REF!"}},{"$f":"IF(AND(#REF!=\"\",#REF!=\"\"),\"\",IF(#REF!=\"Récréation\",CONCATENATE(#REF!&\" / \"&#REF!)&CHAR(10)&\"RECREATION\",CONCATENATE(#REF!&\" / \"&#REF!)&CHAR(10)&\"Matière : \"&#REF!&CHAR(10)&\"Compétences : \"&#REF!))","v":{"$error":"#REF!"}}]
[{"$f":"IF(AND(#REF!=\"\",#REF!=\"\"),\"\",IF(#REF!=\"Récréation\",CONCATENATE(#REF!&\" / \"&#REF!)&CHAR(10)&\"RECREATION\",CONCATENATE(#REF!&\" / \"&#REF!)&CHAR(10)&\"Matière : \"&#REF!&CHAR(10)&\"Compétences : \"&#REF!))","v":{"$error":"#REF!"}},{"$f":"IF(AND(#REF!=\"\",#REF!=\"\"),\"\",IF(#REF!=\"Récréation\",CONCATENATE(#REF!&\" / \"&#REF!)&CHAR(10)&\"RECREATION\",CONCATENATE(#REF!&\" / \"&#REF!)&CHAR(10)&\"Matière : \"&#REF!&CHAR(10)&\"Compétences : \"&#REF!))","v":{"$error":"#REF!"}},{"$f":"IF(AND(#REF!=\"\",#REF!=\"\"),\"\",IF(#REF!=\"Récréation\",CONCATENATE(#REF!&\" / \"&#REF!)&CHAR(10)&\"RECREATION\",CONCATENATE(#REF!&\" / \"&#REF!)&CHAR(10)&\"Matière : \"&#REF!&CHAR(10)&\"Compétences : \"&#REF!))","v":{"$error":"#REF!"}},{"$f":"IF(AND(#REF!=\"\",#REF!=\"\"),\"\",IF(#REF!=\"Récréation\",CONCATENATE(#REF!&\" / \"&#REF!)&CHAR(10)&\"RECREATION\",CONCATENATE(#REF!&\" / \"&#REF!)&CHAR(10)&\"Matière : \"&#REF!&CHAR(10)&\"Compétences : \"&#REF!))","v":{"$error":"#REF!"}},{"$f":"IF(AND(#REF!=\"\",#REF!=\"\"),\"\",IF(#REF!=\"Récréation\",CONCATENATE(#REF!&\" / \"&#REF!)&CHAR(10)&\"RECREATION\",CONCATENATE(#REF!&\" / \"&#REF!)&CHAR(10)&\"Matière : \"&#REF!&CHAR(10)&\"Compétences : \"&#REF!))","v":{"$error":"#REF!"}}]
[{"$f":"IF(AND(#REF!=\"\",#REF!=\"\"),\"\",IF(#REF!=\"Récréation\",CONCATENATE(#REF!&\" / \"&#REF!)&CHAR(10)&\"RECREATION\",CONCATENATE(#REF!&\" / \"&#REF!)&CHAR(10)&\"Matière : \"&#REF!&CHAR(10)&\"Compétences : \"&#REF!))","v":{"$error":"#REF!"}},{"$f":"IF(AND(#REF!=\"\",#REF!=\"\"),\"\",IF(#REF!=\"Récréation\",CONCATENATE(#REF!&\" / \"&#REF!)&CHAR(10)&\"RECREATION\",CONCATENATE(#REF!&\" / \"&#REF!)&CHAR(10)&\"Matière : \"&#REF!&CHAR(10)&\"Compétences : \"&#REF!))","v":{"$error":"#REF!"}},{"$f":"IF(AND(#REF!=\"\",#REF!=\"\"),\"\",IF(#REF!=\"Récréation\",CONCATENATE(#REF!&\" / \"&#REF!)&CHAR(10)&\"RECREATION\",CONCATENATE(#REF!&\" / \"&#REF!)&CHAR(10)&\"Matière : \"&#REF!&CHAR(10)&\"Compétences : \"&#REF!))","v":{"$error":"#REF!"}},{"$f":"IF(AND(#REF!=\"\",#REF!=\"\"),\"\",IF(#REF!=\"Récréation\",CONCATENATE(#REF!&\" / \"&#REF!)&CHAR(10)&\"RECREATION\",CONCATENATE(#REF!&\" / \"&#REF!)&CHAR(10)&\"Matière : \"&#REF!&CHAR(10)&\"Compétences : \"&#REF!))","v":{"$error":"#REF!"}},{"$f":"IF(AND(#REF!=\"\",#REF!=\"\"),\"\",IF(#REF!=\"Récréation\",CONCATENATE(#REF!&\" / \"&#REF!)&CHAR(10)&\"RECREATION\",CONCATENATE(#REF!&\" / \"&#REF!)&CHAR(10)&\"Matière : \"&#REF!&CHAR(10)&\"Compétences : \"&#REF!))","v":{"$error":"#REF!"}}]
[{"$f":"IF(AND(#REF!=\"\",#REF!=\"\"),\"\",IF(#REF!=\"Récréation\",CONCATENATE(#REF!&\" / \"&#REF!)&CHAR(10)&\"RECREATION\",CONCATENATE(#REF!&\" / \"&#REF!)&CHAR(10)&\"Matière : \"&#REF!&CHAR(10)&\"Compétences : \"&#REF!))","v":{"$error":"#REF!"}},{"$f":"IF(AND(#REF!=\"\",#REF!=\"\"),\"\",IF(#REF!=\"Récréation\",CONCATENATE(#REF!&\" / \"&#REF!)&CHAR(10)&\"RECREATION\",CONCATENATE(#REF!&\" / \"&#REF!)&CHAR(10)&\"Matière : \"&#REF!&CHAR(10)&\"Compétences : \"&#REF!))","v":{"$error":"#REF!"}},{"$f":"IF(AND(#REF!=\"\",#REF!=\"\"),\"\",IF(#REF!=\"Récréation\",CONCATENATE(#REF!&\" / \"&#REF!)&CHAR(10)&\"RECREATION\",CONCATENATE(#REF!&\" / \"&#REF!)&CHAR(10)&\"Matière : \"&#REF!&CHAR(10)&\"Compétences : \"&#REF!))","v":{"$error":"#REF!"}},{"$f":"IF(AND(#REF!=\"\",#REF!=\"\"),\"\",IF(#REF!=\"Récréation\",CONCATENATE(#REF!&\" / \"&#REF!)&CHAR(10)&\"RECREATION\",CONCATENATE(#REF!&\" / \"&#REF!)&CHAR(10)&\"Matière : \"&#REF!&CHAR(10)&\"Compétences : \"&#REF!))","v":{"$error":"#REF!"}},{"$f":"IF(AND(#REF!=\"\",#REF!=\"\"),\"\",IF(#REF!=\"Récréation\",CONCATENATE(#REF!&\" / \"&#REF!)&CHAR(10)&\"RECREATION\",CONCATENATE(#REF!&\" / \"&#REF!)&CHAR(10)&\"Matière : \"&#REF!&CHAR(10)&\"Compétences : \"&#REF!))","v":{"$error":"#REF!"}}]
[{"$f":"IF(AND(#REF!=\"\",#REF!=\"\"),\"\",IF(#REF!=\"Récréation\",CONCATENATE(#REF!&\" / \"&#REF!)&CHAR(10)&\"RECREATION\",CONCATENATE(#REF!&\" / \"&#REF!)&CHAR(10)&\"Matière : \"&#REF!&CHAR(10)&\"Compétences : \"&#REF!))","v":{"$error":"#REF!"}},{"$f":"IF(AND(#REF!=\"\",#REF!=\"\"),\"\",IF(#REF!=\"Récréation\",CONCATENATE(#REF!&\" / \"&#REF!)&CHAR(10)&\"RECREATION\",CONCATENATE(#REF!&\" / \"&#REF!)&CHAR(10)&\"Matière : \"&#REF!&CHAR(10)&\"Compétences : \"&#REF!))","v":{"$error":"#REF!"}},{"$f":"IF(AND(#REF!=\"\",#REF!=\"\"),\"\",IF(#REF!=\"Récréation\",CONCATENATE(#REF!&\" / \"&#REF!)&CHAR(10)&\"RECREATION\",CONCATENATE(#REF!&\" / \"&#REF!)&CHAR(10)&\"Matière : \"&#REF!&CHAR(10)&\"Compétences : \"&#REF!))","v":{"$error":"#REF!"}},{"$f":"IF(AND(#REF!=\"\",#REF!=\"\"),\"\",IF(#REF!=\"Récréation\",CONCATENATE(#REF!&\" / \"&#REF!)&CHAR(10)&\"RECREATION\",CONCATENATE(#REF!&\" / \"&#REF!)&CHAR(10)&\"Matière : \"&#REF!&CHAR(10)&\"Compétences : \"&#REF!))","v":{"$error":"#REF!"}},{"$f":"IF(AND(#REF!=\"\",#REF!=\"\"),\"\",IF(#REF!=\"Récréation\",CONCATENATE(#REF!&\" / \"&#REF!)&CHAR(10)&\"RECREATION\",CONCATENATE(#REF!&\" / \"&#REF!)&CHAR(10)&\"Matière : \"&#REF!&CHAR(10)&\"Compétences : \"&#REF!))","v":{"$error":"#REF!"}}]
[{"$f":"IF(AND(#REF!=\"\",#REF!=\"\"),\"\",IF(#REF!=\"Récréation\",CONCATENATE(#REF!&\" / \"&#REF!)&CHAR(10)&\"RECREATION\",CONCATENATE(#REF!&\" / \"&#REF!)&CHAR(10)&\"Matière : \"&#REF!&CHAR(10)&\"Compétences : \"&#REF!))","v":{"$error":"#REF!"}},{"$f":"IF(AND(#REF!=\"\",#REF!=\"\"),\"\",IF(#REF!=\"Récréation\",CONCATENATE(#REF!&\" / \"&#REF!)&CHAR(10)&\"RECREATION\",CONCATENATE(#REF!&\" / \"&#REF!)&CHAR(10)&\"Matière : \"&#REF!&CHAR(10)&\"Compétences : \"&#REF!))","v":{"$error":"#REF!"}},{"$f":"IF(AND(#REF!=\"\",#REF!=\"\"),\"\",IF(#REF!=\"Récréation\",CONCATENATE(#REF!&\" / \"&#REF!)&CHAR(10)&\"RECREATION\",CONCATENATE(#REF!&\" / \"&#REF!)&CHAR(10)&\"Matière : \"&#REF!&CHAR(10)&\"Compétences : \"&#REF!))","v":{"$error":"#REF!"}},{"$f":"IF(AND(#REF!=\"\",#REF!=\"\"),\"\",IF(#REF!=\"Récréation\",CONCATENATE(#REF!&\" / \"&#REF!)&CHAR(10)&\"RECREATION\",CONCATENATE(#REF!&\" / \"&#REF!)&CHAR(10)&\"Matière : \"&#REF!&CHAR(10)&\"Compétences : \"&#REF!))","v":{"$error":"#REF!"}},{"$f":"IF(AND(#REF!=\"\",#REF!=\"\"),\"\",IF(#REF!=\"Récréation\",CONCATENATE(#REF!&\" / \"&#REF!)&CHAR(10)&\"RECREATION\",CONCATENATE(#REF!&\" / \"&#REF!)&CHAR(10)&\"Matière : \"&#REF!&CHAR(10)&\"Compétences : \"&#REF!))","v":{"$error":"#REF!"}}]
[{"$f":"IF(AND(#REF!=\"\",#REF!=\"\"),\"\",IF(#REF!=\"Récréation\",CONCATENATE(#REF!&\" / \"&#REF!)&CHAR(10)&\"RECREATION\",CONCATENATE(#REF!&\" / \"&#REF!)&CHAR(10)&\"Matière : \"&#REF!&CHAR(10)&\"Compétences : \"&#REF!))","v":{"$error":"#REF!"}},{"$f":"IF(AND(#REF!=\"\",#REF!=\"\"),\"\",IF(#REF!=\"Récréation\",CONCATENATE(#REF!&\" / \"&#REF!)&CHAR(10)&\"RECREATION\",CONCATENATE(#REF!&\" / \"&#REF!)&CHAR(10)&\"Matière : \"&#REF!&CHAR(10)&\"Compétences : \"&#REF!))","v":{"$error":"#REF!"}},{"$f":"IF(AND(#REF!=\"\",#REF!=\"\"),\"\",IF(#REF!=\"Récréation\",CONCATENATE(#REF!&\" / \"&#REF!)&CHAR(10)&\"RECREATION\",CONCATENATE(#REF!&\" / \"&#REF!)&CHAR(10)&\"Matière : \"&#REF!&CHAR(10)&\"Compétences : \"&#REF!))","v":{"$error":"#REF!"}},{"$f":"IF(AND(#REF!=\"\",#REF!=\"\"),\"\",IF(#REF!=\"Récréation\",CONCATENATE(#REF!&\" / \"&#REF!)&CHAR(10)&\"RECREATION\",CONCATENATE(#REF!&\" / \"&#REF!)&CHAR(10)&\"Matière : \"&#REF!&CHAR(10)&\"Compétences : \"&#REF!))","v":{"$error":"#REF!"}},{"$f":"IF(AND(#REF!=\"\",#REF!=\"\"),\"\",IF(#REF!=\"Récréation\",CONCATENATE(#REF!&\" / \"&#REF!)&CHAR(10)&\"RECREATION\",CONCATENATE(#REF!&\" / \"&#REF!)&CHAR(10)&\"Matière : \"&#REF!&CHAR(10)&\"Compétences : \"&#REF!))","v":{"$error":"#REF!"}}]
[{"$f":"IF(AND(#REF!=\"\",#REF!=\"\"),\"\",IF(#REF!=\"Récréation\",CONCATENATE(#REF!&\" / \"&#REF!)&CHAR(10)&\"RECREATION\",CONCATENATE(#REF!&\" / \"&#REF!)&CHAR(10)&\"Matière : \"&#REF!&CHAR(10)&\"Compétences : \"&#REF!))","v":{"$error":"#REF!"}},{"$f":"IF(AND(#REF!=\"\",#REF!=\"\"),\"\",IF(#REF!=\"Récréation\",CONCATENATE(#REF!&\" / \"&#REF!)&CHAR(10)&\"RECREATION\",CONCATENATE(#REF!&\" / \"&#REF!)&CHAR(10)&\"Matière : \"&#REF!&CHAR(10)&\"Compétences : \"&#REF!))","v":{"$error":"#REF!"}},{"$f":"IF(AND(#REF!=\"\",#REF!=\"\"),\"\",IF(#REF!=\"Récréation\",CONCATENATE(#REF!&\" / \"&#REF!)&CHAR(10)&\"RECREATION\",CONCATENATE(#REF!&\" / \"&#REF!)&CHAR(10)&\"Matière : \"&#REF!&CHAR(10)&\"Compétences : \"&#REF!))","v":{"$error":"#REF!"}},{"$f":"IF(AND(#REF!=\"\",#REF!=\"\"),\"\",IF(#REF!=\"Récréation\",CONCATENATE(#REF!&\" / \"&#REF!)&CHAR(10)&\"RECREATION\",CONCATENATE(#REF!&\" / \"&#REF!)&CHAR(10)&\"Matière : \"&#REF!&CHAR(10)&\"Compétences : \"&#REF!))","v":{"$error":"#REF!"}},{"$f":"IF(AND(#REF!=\"\",#REF!=\"\"),\"\",IF(#REF!=\"Récréation\",CONCATENATE(#REF!&\" / \"&#REF!)&CHAR(10)&\"RECREATION\",CONCATENATE(#REF!&\" / \"&#REF!)&CHAR(10)&\"Matière : \"&#REF!&CHAR(10)&\"Compétences : \"&#REF!))","v":{"$error":"#REF!"}}]
[{"$f":"IF(AND(#REF!=\"\",#REF!=\"\"),\"\",IF(#REF!=\"Récréation\",CONCATENATE(#REF!&\" / \"&#REF!)&CHAR(10)&\"RECREATION\",CONCATENATE(#REF!&\" / \"&#REF!)&CHAR(10)&\"Matière : \"&#REF!&CHAR(10)&\"Compétences : \"&#REF!))","v":{"$error":"#REF!"}},{"$f":"IF(AND(#REF!=\"\",#REF!=\"\"),\"\",IF(#REF!=\"Récréation\",CONCATENATE(#REF!&\" / \"&#REF!)&CHAR(10)&\"RECREATION\",CONCATENATE(#REF!&\" / \"&#REF!)&CHAR(10)&\"Matière : \"&#REF!&CHAR(10)&\"Compétences : \"&#REF!))","v":{"$error":"#REF!"}},{"$f":"IF(AND(#REF!=\"\",#REF!=\"\"),\"\",IF(#REF!=\"Récréation\",CONCATENATE(#REF!&\" / \"&#REF!)&CHAR(10)&\"RECREATION\",CONCATENATE(#REF!&\" / \"&#REF!)&CHAR(10)&\"Matière : \"&#REF!&CHAR(10)&\"Compétences : \"&#REF!))","v":{"$error":"#REF!"}},{"$f":"IF(AND(#REF!=\"\",#REF!=\"\"),\"\",IF(#REF!=\"Récréation\",CONCATENATE(#REF!&\" / \"&#REF!)&CHAR(10)&\"RECREATION\",CONCATENATE(#REF!&\" / \"&#REF!)&CHAR(10)&\"Matière : \"&#REF!&CHAR(10)&\"Compétences : \"&#REF!))","v":{"$error":"#REF!"}},{"$f":"IF(AND(#REF!=\"\",#REF!=\"\"),\"\",IF(#REF!=\"Récréation\",CONCATENATE(#REF!&\" / \"&#REF!)&CHAR(10)&\"RECREATION\",CONCATENATE(#REF!&\" / \"&#REF!)&CHAR(10)&\"Matière : \"&#REF!&CHAR(10)&\"Compétences : \"&#REF!))","v":{"$error":"#REF!"}}]
[{"$f":"IF(AND(#REF!=\"\",#REF!=\"\"),\"\",IF(#REF!=\"Récréation\",CONCATENATE(#REF!&\" / \"&#REF!)&CHAR(10)&\"RECREATION\",CONCATENATE(#REF!&\" / \"&#REF!)&CHAR(10)&\"Matière : \"&#REF!&CHAR(10)&\"Compétences : \"&#REF!))","v":{"$error":"#REF!"}},{"$f":"IF(AND(#REF!=\"\",#REF!=\"\"),\"\",IF(#REF!=\"Récréation\",CONCATENATE(#REF!&\" / \"&#REF!)&CHAR(10)&\"RECREATION\",CONCATENATE(#REF!&\" / \"&#REF!)&CHAR(10)&\"Matière : \"&#REF!&CHAR(10)&\"Compétences : \"&#REF!))","v":{"$error":"#REF!"}},{"$f":"IF(AND(#REF!=\"\",#REF!=\"\"),\"\",IF(#REF!=\"Récréation\",CONCATENATE(#REF!&\" / \"&#REF!)&CHAR(10)&\"RECREATION\",CONCATENATE(#REF!&\" / \"&#REF!)&CHAR(10)&\"Matière : \"&#REF!&CHAR(10)&\"Compétences : \"&#REF!))","v":{"$error":"#REF!"}},{"$f":"IF(AND(#REF!=\"\",#REF!=\"\"),\"\",IF(#REF!=\"Récréation\",CONCATENATE(#REF!&\" / \"&#REF!)&CHAR(10)&\"RECREATION\",CONCATENATE(#REF!&\" / \"&#REF!)&CHAR(10)&\"Matière : \"&#REF!&CHAR(10)&\"Compétences : \"&#REF!))","v":{"$error":"#REF!"}},{"$f":"IF(AND(#REF!=\"\",#REF!=\"\"),\"\",IF(#REF!=\"Récréation\",CONCATENATE(#REF!&\" / \"&#REF!)&CHAR(10)&\"RECREATION\",CONCATENATE(#REF!&\" / \"&#REF!)&CHAR(10)&\"Matière : \"&#REF!&CHAR(10)&\"Compétences : \"&#REF!))","v":{"$error":"#REF!"}}]
[{"$f":"IF(AND(#REF!=\"\",#REF!=\"\"),\"\",IF(#REF!=\"Récréation\",CONCATENATE(#REF!&\" / \"&#REF!)&CHAR(10)&\"RECREATION\",CONCATENATE(#REF!&\" / \"&#REF!)&CHAR(10)&\"Matière : \"&#REF!&CHAR(10)&\"Compétences : \"&#REF!))","v":{"$error":"#REF!"}},{"$f":"IF(AND(#REF!=\"\",#REF!=\"\"),\"\",IF(#REF!=\"Récréation\",CONCATENATE(#REF!&\" / \"&#REF!)&CHAR(10)&\"RECREATION\",CONCATENATE(#REF!&\" / \"&#REF!)&CHAR(10)&\"Matière : \"&#REF!&CHAR(10)&\"Compétences : \"&#REF!))","v":{"$error":"#REF!"}},{"$f":"IF(AND(#REF!=\"\",#REF!=\"\"),\"\",IF(#REF!=\"Récréation\",CONCATENATE(#REF!&\" / \"&#REF!)&CHAR(10)&\"RECREATION\",CONCATENATE(#REF!&\" / \"&#REF!)&CHAR(10)&\"Matière : \"&#REF!&CHAR(10)&\"Compétences : \"&#REF!))","v":{"$error":"#REF!"}},{"$f":"IF(AND(#REF!=\"\",#REF!=\"\"),\"\",IF(#REF!=\"Récréation\",CONCATENATE(#REF!&\" / \"&#REF!)&CHAR(10)&\"RECREATION\",CONCATENATE(#REF!&\" / \"&#REF!)&CHAR(10)&\"Matière : \"&#REF!&CHAR(10)&\"Compétences : \"&#REF!))","v":{"$error":"#REF!"}},{"$f":"IF(AND(#REF!=\"\",#REF!=\"\"),\"\",IF(#REF!=\"Récréation\",CONCATENATE(#REF!&\" / \"&#REF!)&CHAR(10)&\"RECREATION\",CONCATENATE(#REF!&\" / \"&#REF!)&CHAR(10)&\"Matière : \"&#REF!&CHAR(10)&\"Compétences : \"&#REF!))","v":{"$error":"#REF!"}}]
[{"$f":"IF(AND(#REF!=\"\",#REF!=\"\"),\"\",IF(#REF!=\"Récréation\",CONCATENATE(#REF!&\" / \"&#REF!)&CHAR(10)&\"RECREATION\",CONCATENATE(#REF!&\" / \"&#REF!)&CHAR(10)&\"Matière : \"&#REF!&CHAR(10)&\"Compétences : \"&#REF!))","v":{"$error":"#REF!"}},{"$f":"IF(AND(#REF!=\"\",#REF!=\"\"),\"\",IF(#REF!=\"Récréation\",CONCATENATE(#REF!&\" / \"&#REF!)&CHAR(10)&\"RECREATION\",CONCATENATE(#REF!&\" / \"&#REF!)&CHAR(10)&\"Matière : \"&#REF!&CHAR(10)&\"Compétences : \"&#REF!))","v":{"$error":"#REF!"}},{"$f":"IF(AND(#REF!=\"\",#REF!=\"\"),\"\",IF(#REF!=\"Récréation\",CONCATENATE(#REF!&\" / \"&#REF!)&CHAR(10)&\"RECREATION\",CONCATENATE(#REF!&\" / \"&#REF!)&CHAR(10)&\"Matière : \"&#REF!&CHAR(10)&\"Compétences : \"&#REF!))","v":{"$error":"#REF!"}},{"$f":"IF(AND(#REF!=\"\",#REF!=\"\"),\"\",IF(#REF!=\"Récréation\",CONCATENATE(#REF!&\" / \"&#REF!)&CHAR(10)&\"RECREATION\",CONCATENATE(#REF!&\" / \"&#REF!)&CHAR(10)&\"Matière : \"&#REF!&CHAR(10)&\"Compétences : \"&#REF!))","v":{"$error":"#REF!"}},{"$f":"IF(AND(#REF!=\"\",#REF!=\"\"),\"\",IF(#REF!=\"Récréation\",CONCATENATE(#REF!&\" / \"&#REF!)&CHAR(10)&\"RECREATION\",CONCATENATE(#REF!&\" / \"&#REF!)&CHAR(10)&\"Matière : \"&#REF!&CHAR(10)&\"Compétences : \"&#REF!))","v":{"$error":"#REF!"}}]
[{"$f":"IF(AND(#REF!=\"\",#REF!=\"\"),\"\",IF(#REF!=\"Récréation\",CONCATENATE(#REF!&\" / \"&#REF!)&CHAR(10)&\"RECREATION\",CONCATENATE(#REF!&\" / \"&#REF!)&CHAR(10)&\"Matière : \"&#REF!&CHAR(10)&\"Compétences : \"&#REF!))","v":{"$error":"#REF!"}},{"$f":"IF(AND(#REF!=\"\",#REF!=\"\"),\"\",IF(#REF!=\"Récréation\",CONCATENATE(#REF!&\" / \"&#REF!)&CHAR(10)&\"RECREATION\",CONCATENATE(#REF!&\" / \"&#REF!)&CHAR(10)&\"Matière : \"&#REF!&CHAR(10)&\"Compétences : \"&#REF!))","v":{"$error":"#REF!"}},{"$f":"IF(AND(#REF!=\"\",#REF!=\"\"),\"\",IF(#REF!=\"Récréation\",CONCATENATE(#REF!&\" / \"&#REF!)&CHAR(10)&\"RECREATION\",CONCATENATE(#REF!&\" / \"&#REF!)&CHAR(10)&\"Matière : \"&#REF!&CHAR(10)&\"Compétences : \"&#REF!))","v":{"$error":"#REF!"}},{"$f":"IF(AND(#REF!=\"\",#REF!=\"\"),\"\",IF(#REF!=\"Récréation\",CONCATENATE(#REF!&\" / \"&#REF!)&CHAR(10)&\"RECREATION\",CONCATENATE(#REF!&\" / \"&#REF!)&CHAR(10)&\"Matière : \"&#REF!&CHAR(10)&\"Compétences : \"&#REF!))","v":{"$error":"#REF!"}},{"$f":"IF(AND(#REF!=\"\",#REF!=\"\"),\"\",IF(#REF!=\"Récréation\",CONCATENATE(#REF!&\" / \"&#REF!)&CHAR(10)&\"RECREATION\",CONCATENATE(#REF!&\" / \"&#REF!)&CHAR(10)&\"Matière : \"&#REF!&CHAR(10)&\"Compétences : \"&#REF!))","v":{"$error":"#REF!"}}]
[{"$f":"IF(AND(#REF!=\"\",#REF!=\"\"),\"\",IF(#REF!=\"Récréation\",CONCATENATE(#REF!&\" / \"&#REF!)&CHAR(10)&\"RECREATION\",CONCATENATE(#REF!&\" / \"&#REF!)&CHAR(10)&\"Matière : \"&#REF!&CHAR(10)&\"Compétences : \"&#REF!))","v":{"$error":"#REF!"}},{"$f":"IF(AND(#REF!=\"\",#REF!=\"\"),\"\",IF(#REF!=\"Récréation\",CONCATENATE(#REF!&\" / \"&#REF!)&CHAR(10)&\"RECREATION\",CONCATENATE(#REF!&\" / \"&#REF!)&CHAR(10)&\"Matière : \"&#REF!&CHAR(10)&\"Compétences : \"&#REF!))","v":{"$error":"#REF!"}},{"$f":"IF(AND(#REF!=\"\",#REF!=\"\"),\"\",IF(#REF!=\"Récréation\",CONCATENATE(#REF!&\" / \"&#REF!)&CHAR(10)&\"RECREATION\",CONCATENATE(#REF!&\" / \"&#REF!)&CHAR(10)&\"Matière : \"&#REF!&CHAR(10)&\"Compétences : \"&#REF!))","v":{"$error":"#REF!"}},{"$f":"IF(AND(#REF!=\"\",#REF!=\"\"),\"\",IF(#REF!=\"Récréation\",CONCATENATE(#REF!&\" / \"&#REF!)&CHAR(10)&\"RECREATION\",CONCATENATE(#REF!&\" / \"&#REF!)&CHAR(10)&\"Matière : \"&#REF!&CHAR(10)&\"Compétences : \"&#REF!))","v":{"$error":"#REF!"}},{"$f":"IF(AND(#REF!=\"\",#REF!=\"\"),\"\",IF(#REF!=\"Récréation\",CONCATENATE(#REF!&\" / \"&#REF!)&CHAR(10)&\"RECREATION\",CONCATENATE(#REF!&\" / \"&#REF!)&CHAR(10)&\"Matière : \"&#REF!&CHAR(10)&\"Compétences : \"&#REF!))","v":{"$error":"#REF!"}}]
[{"$f":"IF(AND(#REF!=\"\",#REF!=\"\"),\"\",IF(#REF!=\"Récréation\",CONCATENATE(#REF!&\" / \"&#REF!)&CHAR(10)&\"RECREATION\",CONCATENATE(#REF!&\" / \"&#REF!)&CHAR(10)&\"Matière : \"&#REF!&CHAR(10)&\"Compétences : \"&#REF!))","v":{"$error":"#REF!"}},{"$f":"IF(AND(#REF!=\"\",#REF!=\"\"),\"\",IF(#REF!=\"Récréation\",CONCATENATE(#REF!&\" / \"&#REF!)&CHAR(10)&\"RECREATION\",CONCATENATE(#REF!&\" / \"&#REF!)&CHAR(10)&\"Matière : \"&#REF!&CHAR(10)&\"Compétences : \"&#REF!))","v":{"$error":"#REF!"}},{"$f":"IF(AND(#REF!=\"\",#REF!=\"\"),\"\",IF(#REF!=\"Récréation\",CONCATENATE(#REF!&\" / \"&#REF!)&CHAR(10)&\"RECREATION\",CONCATENATE(#REF!&\" / \"&#REF!)&CHAR(10)&\"Matière : \"&#REF!&CHAR(10)&\"Compétences : \"&#REF!))","v":{"$error":"#REF!"}},{"$f":"IF(AND(#REF!=\"\",#REF!=\"\"),\"\",IF(#REF!=\"Récréation\",CONCATENATE(#REF!&\" / \"&#REF!)&CHAR(10)&\"RECREATION\",CONCATENATE(#REF!&\" / \"&#REF!)&CHAR(10)&\"Matière : \"&#REF!&CHAR(10)&\"Compétences : \"&#REF!))","v":{"$error":"#REF!"}},{"$f":"IF(AND(#REF!=\"\",#REF!=\"\"),\"\",IF(#REF!=\"Récréation\",CONCATENATE(#REF!&\" / \"&#REF!)&CHAR(10)&\"RECREATION\",CONCATENATE(#REF!&\" / \"&#REF!)&CHAR(10)&\"Matière : \"&#REF!&CHAR(10)&\"Compétences : \"&#REF!))","v":{"$error":"#REF!"}}]
[{"$f":"IF(AND(#REF!=\"\",#REF!=\"\"),\"\",IF(#REF!=\"Récréation\",CONCATENATE(#REF!&\" / \"&#REF!)&CHAR(10)&\"RECREATION\",CONCATENATE(#REF!&\" / \"&#REF!)&CHAR(10)&\"Matière : \"&#REF!&CHAR(10)&\"Compétences : \"&#REF!))","v":{"$error":"#REF!"}},{"$f":"IF(AND(#REF!=\"\",#REF!=\"\"),\"\",IF(#REF!=\"Récréation\",CONCATENATE(#REF!&\" / \"&#REF!)&CHAR(10)&\"RECREATION\",CONCATENATE(#REF!&\" / \"&#REF!)&CHAR(10)&\"Matière : \"&#REF!&CHAR(10)&\"Compétences : \"&#REF!))","v":{"$error":"#REF!"}},{"$f":"IF(AND(#REF!=\"\",#REF!=\"\"),\"\",IF(#REF!=\"Récréation\",CONCATENATE(#REF!&\" / \"&#REF!)&CHAR(10)&\"RECREATION\",CONCATENATE(#REF!&\" / \"&#REF!)&CHAR(10)&\"Matière : \"&#REF!&CHAR(10)&\"Compétences : \"&#REF!))","v":{"$error":"#REF!"}},{"$f":"IF(AND(#REF!=\"\",#REF!=\"\"),\"\",IF(#REF!=\"Récréation\",CONCATENATE(#REF!&\" / \"&#REF!)&CHAR(10)&\"RECREATION\",CONCATENATE(#REF!&\" / \"&#REF!)&CHAR(10)&\"Matière : \"&#REF!&CHAR(10)&\"Compétences : \"&#REF!))","v":{"$error":"#REF!"}},{"$f":"IF(AND(#REF!=\"\",#REF!=\"\"),\"\",IF(#REF!=\"Récréation\",CONCATENATE(#REF!&\" / \"&#REF!)&CHAR(10)&\"RECREATION\",CONCATENATE(#REF!&\" / \"&#REF!)&CHAR(10)&\"Matière : \"&#REF!&CHAR(10)&\"Compétences : \"&#REF!))","v":{"$error":"#REF!"}}]
[{"$f":"IF(AND(#REF!=\"\",#REF!=\"\"),\"\",IF(#REF!=\"Récréation\",CONCATENATE(#REF!&\" / \"&#REF!)&CHAR(10)&\"RECREATION\",CONCATENATE(#REF!&\" / \"&#REF!)&CHAR(10)&\"Matière : \"&#REF!&CHAR(10)&\"Compétences : \"&#REF!))","v":{"$error":"#REF!"}},{"$f":"IF(AND(#REF!=\"\",#REF!=\"\"),\"\",IF(#REF!=\"Récréation\",CONCATENATE(#REF!&\" / \"&#REF!)&CHAR(10)&\"RECREATION\",CONCATENATE(#REF!&\" / \"&#REF!)&CHAR(10)&\"Matière : \"&#REF!&CHAR(10)&\"Compétences : \"&#REF!))","v":{"$error":"#REF!"}},{"$f":"IF(AND(#REF!=\"\",#REF!=\"\"),\"\",IF(#REF!=\"Récréation\",CONCATENATE(#REF!&\" / \"&#REF!)&CHAR(10)&\"RECREATION\",CONCATENATE(#REF!&\" / \"&#REF!)&CHAR(10)&\"Matière : \"&#REF!&CHAR(10)&\"Compétences : \"&#REF!))","v":{"$error":"#REF!"}},{"$f":"IF(AND(#REF!=\"\",#REF!=\"\"),\"\",IF(#REF!=\"Récréation\",CONCATENATE(#REF!&\" / \"&#REF!)&CHAR(10)&\"RECREATION\",CONCATENATE(#REF!&\" / \"&#REF!)&CHAR(10)&\"Matière : \"&#REF!&CHAR(10)&\"Compétences : \"&#REF!))","v":{"$error":"#REF!"}},{"$f":"IF(AND(#REF!=\"\",#REF!=\"\"),\"\",IF(#REF!=\"Récréation\",CONCATENATE(#REF!&\" / \"&#REF!)&CHAR(10)&\"RECREATION\",CONCATENATE(#REF!&\" / \"&#REF!)&CHAR(10)&\"Matière : \"&#REF!&CHAR(10)&\"Compétences : \"&#REF!))","v":{"$error":"#REF!"}}]
[{"$f":"IF(AND(#REF!=\"\",#REF!=\"\"),\"\",IF(#REF!=\"Récréation\",CONCATENATE(#REF!&\" / \"&#REF!)&CHAR(10)&\"RECREATION\",CONCATENATE(#REF!&\" / \"&#REF!)&CHAR(10)&\"Matière : \"&#REF!&CHAR(10)&\"Compétences : \"&#REF!))","v":{"$error":"#REF!"}},{"$f":"IF(AND(#REF!=\"\",#REF!=\"\"),\"\",IF(#REF!=\"Récréation\",CONCATENATE(#REF!&\" / \"&#REF!)&CHAR(10)&\"RECREATION\",CONCATENATE(#REF!&\" / \"&#REF!)&CHAR(10)&\"Matière : \"&#REF!&CHAR(10)&\"Compétences : \"&#REF!))","v":{"$error":"#REF!"}},{"$f":"IF(AND(#REF!=\"\",#REF!=\"\"),\"\",IF(#REF!=\"Récréation\",CONCATENATE(#REF!&\" / \"&#REF!)&CHAR(10)&\"RECREATION\",CONCATENATE(#REF!&\" / \"&#REF!)&CHAR(10)&\"Matière : \"&#REF!&CHAR(10)&\"Compétences : \"&#REF!))","v":{"$error":"#REF!"}},{"$f":"IF(AND(#REF!=\"\",#REF!=\"\"),\"\",IF(#REF!=\"Récréation\",CONCATENATE(#REF!&\" / \"&#REF!)&CHAR(10)&\"RECREATION\",CONCATENATE(#REF!&\" / \"&#REF!)&CHAR(10)&\"Matière : \"&#REF!&CHAR(10)&\"Compétences : \"&#REF!))","v":{"$error":"#REF!"}},{"$f":"IF(AND(#REF!=\"\",#REF!=\"\"),\"\",IF(#REF!=\"Récréation\",CONCATENATE(#REF!&\" / \"&#REF!)&CHAR(10)&\"RECREATION\",CONCATENATE(#REF!&\" / \"&#REF!)&CHAR(10)&\"Matière : \"&#REF!&CHAR(10)&\"Compétences : \"&#REF!))","v":{"$error":"#REF!"}}]
[{"$f":"IF(AND(#REF!=\"\",#REF!=\"\"),\"\",IF(#REF!=\"Récréation\",CONCATENATE(#REF!&\" / \"&#REF!)&CHAR(10)&\"RECREATION\",CONCATENATE(#REF!&\" / \"&#REF!)&CHAR(10)&\"Matière : \"&#REF!&CHAR(10)&\"Compétences : \"&#REF!))","v":{"$error":"#REF!"}},{"$f":"IF(AND(#REF!=\"\",#REF!=\"\"),\"\",IF(#REF!=\"Récréation\",CONCATENATE(#REF!&\" / \"&#REF!)&CHAR(10)&\"RECREATION\",CONCATENATE(#REF!&\" / \"&#REF!)&CHAR(10)&\"Matière : \"&#REF!&CHAR(10)&\"Compétences : \"&#REF!))","v":{"$error":"#REF!"}},{"$f":"IF(AND(#REF!=\"\",#REF!=\"\"),\"\",IF(#REF!=\"Récréation\",CONCATENATE(#REF!&\" / \"&#REF!)&CHAR(10)&\"RECREATION\",CONCATENATE(#REF!&\" / \"&#REF!)&CHAR(10)&\"Matière : \"&#REF!&CHAR(10)&\"Compétences : \"&#REF!))","v":{"$error":"#REF!"}},{"$f":"IF(AND(#REF!=\"\",#REF!=\"\"),\"\",IF(#REF!=\"Récréation\",CONCATENATE(#REF!&\" / \"&#REF!)&CHAR(10)&\"RECREATION\",CONCATENATE(#REF!&\" / \"&#REF!)&CHAR(10)&\"Matière : \"&#REF!&CHAR(10)&\"Compétences : \"&#REF!))","v":{"$error":"#REF!"}},{"$f":"IF(AND(#REF!=\"\",#REF!=\"\"),\"\",IF(#REF!=\"Récréation\",CONCATENATE(#REF!&\" / \"&#REF!)&CHAR(10)&\"RECREATION\",CONCATENATE(#REF!&\" / \"&#REF!)&CHAR(10)&\"Matière : \"&#REF!&CHAR(10)&\"Compétences : \"&#REF!))","v":{"$error":"#REF!"}}]
[{"$f":"IF(AND(#REF!=\"\",#REF!=\"\"),\"\",IF(#REF!=\"Récréation\",CONCATENATE(#REF!&\" / \"&#REF!)&CHAR(10)&\"RECREATION\",CONCATENATE(#REF!&\" / \"&#REF!)&CHAR(10)&\"Matière : \"&#REF!&CHAR(10)&\"Compétences : \"&#REF!))","v":{"$error":"#REF!"}},{"$f":"IF(AND(#REF!=\"\",#REF!=\"\"),\"\",IF(#REF!=\"Récréation\",CONCATENATE(#REF!&\" / \"&#REF!)&CHAR(10)&\"RECREATION\",CONCATENATE(#REF!&\" / \"&#REF!)&CHAR(10)&\"Matière : \"&#REF!&CHAR(10)&\"Compétences : \"&#REF!))","v":{"$error":"#REF!"}},{"$f":"IF(AND(#REF!=\"\",#REF!=\"\"),\"\",IF(#REF!=\"Récréation\",CONCATENATE(#REF!&\" / \"&#REF!)&CHAR(10)&\"RECREATION\",CONCATENATE(#REF!&\" / \"&#REF!)&CHAR(10)&\"Matière : \"&#REF!&CHAR(10)&\"Compétences : \"&#REF!))","v":{"$error":"#REF!"}},{"$f":"IF(AND(#REF!=\"\",#REF!=\"\"),\"\",IF(#REF!=\"Récréation\",CONCATENATE(#REF!&\" / \"&#REF!)&CHAR(10)&\"RECREATION\",CONCATENATE(#REF!&\" / \"&#REF!)&CHAR(10)&\"Matière : \"&#REF!&CHAR(10)&\"Compétences : \"&#REF!))","v":{"$error":"#REF!"}},{"$f":"IF(AND(#REF!=\"\",#REF!=\"\"),\"\",IF(#REF!=\"Récréation\",CONCATENATE(#REF!&\" / \"&#REF!)&CHAR(10)&\"RECREATION\",CONCATENATE(#REF!&\" / \"&#REF!)&CHAR(10)&\"Matière : \"&#REF!&CHAR(10)&\"Compétences : \"&#REF!))","v":{"$error":"#REF!"}}]
[{"$f":"IF(AND(#REF!=\"\",#REF!=\"\"),\"\",IF(#REF!=\"Récréation\",CONCATENATE(#REF!&\" / \"&#REF!)&CHAR(10)&\"RECREATION\",CONCATENATE(#REF!&\" / \"&#REF!)&CHAR(10)&\"Matière : \"&#REF!&CHAR(10)&\"Compétences : \"&#REF!))","v":{"$error":"#REF!"}},{"$f":"IF(AND(#REF!=\"\",#REF!=\"\"),\"\",IF(#REF!=\"Récréation\",CONCATENATE(#REF!&\" / \"&#REF!)&CHAR(10)&\"RECREATION\",CONCATENATE(#REF!&\" / \"&#REF!)&CHAR(10)&\"Matière : \"&#REF!&CHAR(10)&\"Compétences : \"&#REF!))","v":{"$error":"#REF!"}},{"$f":"IF(AND(#REF!=\"\",#REF!=\"\"),\"\",IF(#REF!=\"Récréation\",CONCATENATE(#REF!&\" / \"&#REF!)&CHAR(10)&\"RECREATION\",CONCATENATE(#REF!&\" / \"&#REF!)&CHAR(10)&\"Matière : \"&#REF!&CHAR(10)&\"Compétences : \"&#REF!))","v":{"$error":"#REF!"}},{"$f":"IF(AND(#REF!=\"\",#REF!=\"\"),\"\",IF(#REF!=\"Récréation\",CONCATENATE(#REF!&\" / \"&#REF!)&CHAR(10)&\"RECREATION\",CONCATENATE(#REF!&\" / \"&#REF!)&CHAR(10)&\"Matière : \"&#REF!&CHAR(10)&\"Compétences : \"&#REF!))","v":{"$error":"#REF!"}},{"$f":"IF(AND(#REF!=\"\",#REF!=\"\"),\"\",IF(#REF!=\"Récréation\",CONCATENATE(#REF!&\" / \"&#REF!)&CHAR(10)&\"RECREATION\",CONCATENATE(#REF!&\" / \"&#REF!)&CHAR(10)&\"Matière : \"&#REF!&CHAR(10)&\"Compétences : \"&#REF!))","v":{"$error":"#REF!"}}]
[{"$f":"IF(AND(#REF!=\"\",#REF!=\"\"),\"\",IF(#REF!=\"Récréation\",CONCATENATE(#REF!&\" / \"&#REF!)&CHAR(10)&\"RECREATION\",CONCATENATE(#REF!&\" / \"&#REF!)&CHAR(10)&\"Matière : \"&#REF!&CHAR(10)&\"Compétences : \"&#REF!))","v":{"$error":"#REF!"}},{"$f":"IF(AND(#REF!=\"\",#REF!=\"\"),\"\",IF(#REF!=\"Récréation\",CONCATENATE(#REF!&\" / \"&#REF!)&CHAR(10)&\"RECREATION\",CONCATENATE(#REF!&\" / \"&#REF!)&CHAR(10)&\"Matière : \"&#REF!&CHAR(10)&\"Compétences : \"&#REF!))","v":{"$error":"#REF!"}},{"$f":"IF(AND(#REF!=\"\",#REF!=\"\"),\"\",IF(#REF!=\"Récréation\",CONCATENATE(#REF!&\" / \"&#REF!)&CHAR(10)&\"RECREATION\",CONCATENATE(#REF!&\" / \"&#REF!)&CHAR(10)&\"Matière : \"&#REF!&CHAR(10)&\"Compétences : \"&#REF!))","v":{"$error":"#REF!"}},{"$f":"IF(AND(#REF!=\"\",#REF!=\"\"),\"\",IF(#REF!=\"Récréation\",CONCATENATE(#REF!&\" / \"&#REF!)&CHAR(10)&\"RECREATION\",CONCATENATE(#REF!&\" / \"&#REF!)&CHAR(10)&\"Matière : \"&#REF!&CHAR(10)&\"Compétences : \"&#REF!))","v":{"$error":"#REF!"}},{"$f":"IF(AND(#REF!=\"\",#REF!=\"\"),\"\",IF(#REF!=\"Récréation\",CONCATENATE(#REF!&\" / \"&#REF!)&CHAR(10)&\"RECREATION\",CONCATENATE(#REF!&\" / \"&#REF!)&CHAR(10)&\"Matière : \"&#REF!&CHAR(10)&\"Compétences : \"&#REF!))","v":{"$error":"#REF!"}}]
[{"$f":"IF(AND(#REF!=\"\",#REF!=\"\"),\"\",IF(#REF!=\"Récréation\",CONCATENATE(#REF!&\" / \"&#REF!)&CHAR(10)&\"RECREATION\",CONCATENATE(#REF!&\" / \"&#REF!)&CHAR(10)&\"Matière : \"&#REF!&CHAR(10)&\"Compétences : \"&#REF!))","v":{"$error":"#REF!"}},{"$f":"IF(AND(#REF!=\"\",#REF!=\"\"),\"\",IF(#REF!=\"Récréation\",CONCATENATE(#REF!&\" / \"&#REF!)&CHAR(10)&\"RECREATION\",CONCATENATE(#REF!&\" / \"&#REF!)&CHAR(10)&\"Matière : \"&#REF!&CHAR(10)&\"Compétences : \"&#REF!))","v":{"$error":"#REF!"}},{"$f":"IF(AND(#REF!=\"\",#REF!=\"\"),\"\",IF(#REF!=\"Récréation\",CONCATENATE(#REF!&\" / \"&#REF!)&CHAR(10)&\"RECREATION\",CONCATENATE(#REF!&\" / \"&#REF!)&CHAR(10)&\"Matière : \"&#REF!&CHAR(10)&\"Compétences : \"&#REF!))","v":{"$error":"#REF!"}},{"$f":"IF(AND(#REF!=\"\",#REF!=\"\"),\"\",IF(#REF!=\"Récréation\",CONCATENATE(#REF!&\" / \"&#REF!)&CHAR(10)&\"RECREATION\",CONCATENATE(#REF!&\" / \"&#REF!)&CHAR(10)&\"Matière : \"&#REF!&CHAR(10)&\"Compétences : \"&#REF!))","v":{"$error":"#REF!"}},{"$f":"IF(AND(#REF!=\"\",#REF!=\"\"),\"\",IF(#REF!=\"Récréation\",CONCATENATE(#REF!&\" / \"&#REF!)&CHAR(10)&\"RECREATION\",CONCATENATE(#REF!&\" / \"&#REF!)&CHAR(10)&\"Matière : \"&#REF!&CHAR(10)&\"Compétences : \"&#REF!))","v":{"$error":"#REF!"}}]
[{"$f":"IF(AND(#REF!=\"\",#REF!=\"\"),\"\",IF(#REF!=\"Récréation\",CONCATENATE(#REF!&\" / \"&#REF!)&CHAR(10)&\"RECREATION\",CONCATENATE(#REF!&\" / \"&#REF!)&CHAR(10)&\"Matière : \"&#REF!&CHAR(10)&\"Compétences : \"&#REF!))","v":{"$error":"#REF!"}},{"$f":"IF(AND(#REF!=\"\",#REF!=\"\"),\"\",IF(#REF!=\"Récréation\",CONCATENATE(#REF!&\" / \"&#REF!)&CHAR(10)&\"RECREATION\",CONCATENATE(#REF!&\" / \"&#REF!)&CHAR(10)&\"Matière : \"&#REF!&CHAR(10)&\"Compétences : \"&#REF!))","v":{"$error":"#REF!"}},{"$f":"IF(AND(#REF!=\"\",#REF!=\"\"),\"\",IF(#REF!=\"Récréation\",CONCATENATE(#REF!&\" / \"&#REF!)&CHAR(10)&\"RECREATION\",CONCATENATE(#REF!&\" / \"&#REF!)&CHAR(10)&\"Matière : \"&#REF!&CHAR(10)&\"Compétences : \"&#REF!))","v":{"$error":"#REF!"}},{"$f":"IF(AND(#REF!=\"\",#REF!=\"\"),\"\",IF(#REF!=\"Récréation\",CONCATENATE(#REF!&\" / \"&#REF!)&CHAR(10)&\"RECREATION\",CONCATENATE(#REF!&\" / \"&#REF!)&CHAR(10)&\"Matière : \"&#REF!&CHAR(10)&\"Compétences : \"&#REF!))","v":{"$error":"#REF!"}},{"$f":"IF(AND(#REF!=\"\",#REF!=\"\"),\"\",IF(#REF!=\"Récréation\",CONCATENATE(#REF!&\" / \"&#REF!)&CHAR(10)&\"RECREATION\",CONCATENATE(#REF!&\" / \"&#REF!)&CHAR(10)&\"Matière : \"&#REF!&CHAR(10)&\"Compétences : \"&#REF!))","v":{"$error":"#REF!"}}]
[{"$f":"IF(AND(#REF!=\"\",#REF!=\"\"),\"\",IF(#REF!=\"Récréation\",CONCATENATE(#REF!&\" / \"&#REF!)&CHAR(10)&\"RECREATION\",CONCATENATE(#REF!&\" / \"&#REF!)&CHAR(10)&\"Matière : \"&#REF!&CHAR(10)&\"Compétences : \"&#REF!))","v":{"$error":"#REF!"}},{"$f":"IF(AND(#REF!=\"\",#REF!=\"\"),\"\",IF(#REF!=\"Récréation\",CONCATENATE(#REF!&\" / \"&#REF!)&CHAR(10)&\"RECREATION\",CONCATENATE(#REF!&\" / \"&#REF!)&CHAR(10)&\"Matière : \"&#REF!&CHAR(10)&\"Compétences : \"&#REF!))","v":{"$error":"#REF!"}},{"$f":"IF(AND(#REF!=\"\",#REF!=\"\"),\"\",IF(#REF!=\"Récréation\",CONCATENATE(#REF!&\" / \"&#REF!)&CHAR(10)&\"RECREATION\",CONCATENATE(#REF!&\" / \"&#REF!)&CHAR(10)&\"Matière : \"&#REF!&CHAR(10)&\"Compétences : \"&#REF!))","v":{"$error":"#REF!"}},{"$f":"IF(AND(#REF!=\"\",#REF!=\"\"),\"\",IF(#REF!=\"Récréation\",CONCATENATE(#REF!&\" / \"&#REF!)&CHAR(10)&\"RECREATION\",CONCATENATE(#REF!&\" / \"&#REF!)&CHAR(10)&\"Matière : \"&#REF!&CHAR(10)&\"Compétences : \"&#REF!))","v":{"$error":"#REF!"}},{"$f":"IF(AND(#REF!=\"\",#REF!=\"\"),\"\",IF(#REF!=\"Récréation\",CONCATENATE(#REF!&\" / \"&#REF!)&CHAR(10)&\"RECREATION\",CONCATENATE(#REF!&\" / \"&#REF!)&CHAR(10)&\"Matière : \"&#REF!&CHAR(10)&\"Compétences : \"&#REF!))","v":{"$error":"#REF!"}}]
[{"$f":"IF(AND(#REF!=\"\",#REF!=\"\"),\"\",IF(#REF!=\"Récréation\",CONCATENATE(#REF!&\" / \"&#REF!)&CHAR(10)&\"RECREATION\",CONCATENATE(#REF!&\" / \"&#REF!)&CHAR(10)&\"Matière : \"&#REF!&CHAR(10)&\"Compétences : \"&#REF!))","v":{"$error":"#REF!"}},{"$f":"IF(AND(#REF!=\"\",#REF!=\"\"),\"\",IF(#REF!=\"Récréation\",CONCATENATE(#REF!&\" / \"&#REF!)&CHAR(10)&\"RECREATION\",CONCATENATE(#REF!&\" / \"&#REF!)&CHAR(10)&\"Matière : \"&#REF!&CHAR(10)&\"Compétences : \"&#REF!))","v":{"$error":"#REF!"}},{"$f":"IF(AND(#REF!=\"\",#REF!=\"\"),\"\",IF(#REF!=\"Récréation\",CONCATENATE(#REF!&\" / \"&#REF!)&CHAR(10)&\"RECREATION\",CONCATENATE(#REF!&\" / \"&#REF!)&CHAR(10)&\"Matière : \"&#REF!&CHAR(10)&\"Compétences : \"&#REF!))","v":{"$error":"#REF!"}},{"$f":"IF(AND(#REF!=\"\",#REF!=\"\"),\"\",IF(#REF!=\"Récréation\",CONCATENATE(#REF!&\" / \"&#REF!)&CHAR(10)&\"RECREATION\",CONCATENATE(#REF!&\" / \"&#REF!)&CHAR(10)&\"Matière : \"&#REF!&CHAR(10)&\"Compétences : \"&#REF!))","v":{"$error":"#REF!"}},{"$f":"IF(AND(#REF!=\"\",#REF!=\"\"),\"\",IF(#REF!=\"Récréation\",CONCATENATE(#REF!&\" / \"&#REF!)&CHAR(10)&\"RECREATION\",CONCATENATE(#REF!&\" / \"&#REF!)&CHAR(10)&\"Matière : \"&#REF!&CHAR(10)&\"Compétences : \"&#REF!))","v":{"$error":"#REF!"}}]
[{"$f":"IF(AND(#REF!=\"\",#REF!=\"\"),\"\",IF(#REF!=\"Récréation\",CONCATENATE(#REF!&\" / \"&#REF!)&CHAR(10)&\"RECREATION\",CONCATENATE(#REF!&\" / \"&#REF!)&CHAR(10)&\"Matière : \"&#REF!&CHAR(10)&\"Compétences : \"&#REF!))","v":{"$error":"#REF!"}},{"$f":"IF(AND(#REF!=\"\",#REF!=\"\"),\"\",IF(#REF!=\"Récréation\",CONCATENATE(#REF!&\" / \"&#REF!)&CHAR(10)&\"RECREATION\",CONCATENATE(#REF!&\" / \"&#REF!)&CHAR(10)&\"Matière : \"&#REF!&CHAR(10)&\"Compétences : \"&#REF!))","v":{"$error":"#REF!"}},{"$f":"IF(AND(#REF!=\"\",#REF!=\"\"),\"\",IF(#REF!=\"Récréation\",CONCATENATE(#REF!&\" / \"&#REF!)&CHAR(10)&\"RECREATION\",CONCATENATE(#REF!&\" / \"&#REF!)&CHAR(10)&\"Matière : \"&#REF!&CHAR(10)&\"Compétences : \"&#REF!))","v":{"$error":"#REF!"}},{"$f":"IF(AND(#REF!=\"\",#REF!=\"\"),\"\",IF(#REF!=\"Récréation\",CONCATENATE(#REF!&\" / \"&#REF!)&CHAR(10)&\"RECREATION\",CONCATENATE(#REF!&\" / \"&#REF!)&CHAR(10)&\"Matière : \"&#REF!&CHAR(10)&\"Compétences : \"&#REF!))","v":{"$error":"#REF!"}},{"$f":"IF(AND(#REF!=\"\",#REF!=\"\"),\"\",IF(#REF!=\"Récréation\",CONCATENATE(#REF!&\" / \"&#REF!)&CHAR(10)&\"RECREATION\",CONCATENATE(#REF!&\" / \"&#REF!)&CHAR(10)&\"Matière : \"&#REF!&CHAR(10)&\"Compétences : \"&#REF!))","v":{"$error":"#REF!"}}]
[{"$f":"IF(AND(#REF!=\"\",#REF!=\"\"),\"\",IF(#REF!=\"Récréation\",CONCATENATE(#REF!&\" / \"&#REF!)&CHAR(10)&\"RECREATION\",CONCATENATE(#REF!&\" / \"&#REF!)&CHAR(10)&\"Matière : \"&#REF!&CHAR(10)&\"Compétences : \"&#REF!))","v":{"$error":"#REF!"}},{"$f":"IF(AND(#REF!=\"\",#REF!=\"\"),\"\",IF(#REF!=\"Récréation\",CONCATENATE(#REF!&\" / \"&#REF!)&CHAR(10)&\"RECREATION\",CONCATENATE(#REF!&\" / \"&#REF!)&CHAR(10)&\"Matière : \"&#REF!&CHAR(10)&\"Compétences : \"&#REF!))","v":{"$error":"#REF!"}},{"$f":"IF(AND(#REF!=\"\",#REF!=\"\"),\"\",IF(#REF!=\"Récréation\",CONCATENATE(#REF!&\" / \"&#REF!)&CHAR(10)&\"RECREATION\",CONCATENATE(#REF!&\" / \"&#REF!)&CHAR(10)&\"Matière : \"&#REF!&CHAR(10)&\"Compétences : \"&#REF!))","v":{"$error":"#REF!"}},{"$f":"IF(AND(#REF!=\"\",#REF!=\"\"),\"\",IF(#REF!=\"Récréation\",CONCATENATE(#REF!&\" / \"&#REF!)&CHAR(10)&\"RECREATION\",CONCATENATE(#REF!&\" / \"&#REF!)&CHAR(10)&\"Matière : \"&#REF!&CHAR(10)&\"Compétences : \"&#REF!))","v":{"$error":"#REF!"}},{"$f":"IF(AND(#REF!=\"\",#REF!=\"\"),\"\",IF(#REF!=\"Récréation\",CONCATENATE(#REF!&\" / \"&#REF!)&CHAR(10)&\"RECREATION\",CONCATENATE(#REF!&\" / \"&#REF!)&CHAR(10)&\"Matière : \"&#REF!&CHAR(10)&\"Compétences : \"&#REF!))","v":{"$error":"#REF!"}}]
[{"$f":"IF(AND(#REF!=\"\",#REF!=\"\"),\"\",IF(#REF!=\"Récréation\",CONCATENATE(#REF!&\" / \"&#REF!)&CHAR(10)&\"RECREATION\",CONCATENATE(#REF!&\" / \"&#REF!)&CHAR(10)&\"Matière : \"&#REF!&CHAR(10)&\"Compétences : \"&#REF!))","v":{"$error":"#REF!"}},{"$f":"IF(AND(#REF!=\"\",#REF!=\"\"),\"\",IF(#REF!=\"Récréation\",CONCATENATE(#REF!&\" / \"&#REF!)&CHAR(10)&\"RECREATION\",CONCATENATE(#REF!&\" / \"&#REF!)&CHAR(10)&\"Matière : \"&#REF!&CHAR(10)&\"Compétences : \"&#REF!))","v":{"$error":"#REF!"}},{"$f":"IF(AND(#REF!=\"\",#REF!=\"\"),\"\",IF(#REF!=\"Récréation\",CONCATENATE(#REF!&\" / \"&#REF!)&CHAR(10)&\"RECREATION\",CONCATENATE(#REF!&\" / \"&#REF!)&CHAR(10)&\"Matière : \"&#REF!&CHAR(10)&\"Compétences : \"&#REF!))","v":{"$error":"#REF!"}},{"$f":"IF(AND(#REF!=\"\",#REF!=\"\"),\"\",IF(#REF!=\"Récréation\",CONCATENATE(#REF!&\" / \"&#REF!)&CHAR(10)&\"RECREATION\",CONCATENATE(#REF!&\" / \"&#REF!)&CHAR(10)&\"Matière : \"&#REF!&CHAR(10)&\"Compétences : \"&#REF!))","v":{"$error":"#REF!"}},{"$f":"IF(AND(#REF!=\"\",#REF!=\"\"),\"\",IF(#REF!=\"Récréation\",CONCATENATE(#REF!&\" / \"&#REF!)&CHAR(10)&\"RECREATION\",CONCATENATE(#REF!&\" / \"&#REF!)&CHAR(10)&\"Matière : \"&#REF!&CHAR(10)&\"Compétences : \"&#REF!))","v":{"$error":"#REF!"}}]
[{"$f":"IF(AND(#REF!=\"\",#REF!=\"\"),\"\",IF(#REF!=\"Récréation\",CONCATENATE(#REF!&\" / \"&#REF!)&CHAR(10)&\"RECREATION\",CONCATENATE(#REF!&\" / \"&#REF!)&CHAR(10)&\"Matière : \"&#REF!&CHAR(10)&\"Compétences : \"&#REF!))","v":{"$error":"#REF!"}},{"$f":"IF(AND(#REF!=\"\",#REF!=\"\"),\"\",IF(#REF!=\"Récréation\",CONCATENATE(#REF!&\" / \"&#REF!)&CHAR(10)&\"RECREATION\",CONCATENATE(#REF!&\" / \"&#REF!)&CHAR(10)&\"Matière : \"&#REF!&CHAR(10)&\"Compétences : \"&#REF!))","v":{"$error":"#REF!"}},{"$f":"IF(AND(#REF!=\"\",#REF!=\"\"),\"\",IF(#REF!=\"Récréation\",CONCATENATE(#REF!&\" / \"&#REF!)&CHAR(10)&\"RECREATION\",CONCATENATE(#REF!&\" / \"&#REF!)&CHAR(10)&\"Matière : \"&#REF!&CHAR(10)&\"Compétences : \"&#REF!))","v":{"$error":"#REF!"}},{"$f":"IF(AND(#REF!=\"\",#REF!=\"\"),\"\",IF(#REF!=\"Récréation\",CONCATENATE(#REF!&\" / \"&#REF!)&CHAR(10)&\"RECREATION\",CONCATENATE(#REF!&\" / \"&#REF!)&CHAR(10)&\"Matière : \"&#REF!&CHAR(10)&\"Compétences : \"&#REF!))","v":{"$error":"#REF!"}},{"$f":"IF(AND(#REF!=\"\",#REF!=\"\"),\"\",IF(#REF!=\"Récréation\",CONCATENATE(#REF!&\" / \"&#REF!)&CHAR(10)&\"RECREATION\",CONCATENATE(#REF!&\" / \"&#REF!)&CHAR(10)&\"Matière : \"&#REF!&CHAR(10)&\"Compétences : \"&#REF!))","v":{"$error":"#REF!"}}]
[{"$f":"IF(AND(#REF!=\"\",#REF!=\"\"),\"\",IF(#REF!=\"Récréation\",CONCATENATE(#REF!&\" / \"&#REF!)&CHAR(10)&\"RECREATION\",CONCATENATE(#REF!&\" / \"&#REF!)&CHAR(10)&\"Matière : \"&#REF!&CHAR(10)&\"Compétences : \"&#REF!))","v":{"$error":"#REF!"}},{"$f":"IF(AND(#REF!=\"\",#REF!=\"\"),\"\",IF(#REF!=\"Récréation\",CONCATENATE(#REF!&\" / \"&#REF!)&CHAR(10)&\"RECREATION\",CONCATENATE(#REF!&\" / \"&#REF!)&CHAR(10)&\"Matière : \"&#REF!&CHAR(10)&\"Compétences : \"&#REF!))","v":{"$error":"#REF!"}},{"$f":"IF(AND(#REF!=\"\",#REF!=\"\"),\"\",IF(#REF!=\"Récréation\",CONCATENATE(#REF!&\" / \"&#REF!)&CHAR(10)&\"RECREATION\",CONCATENATE(#REF!&\" / \"&#REF!)&CHAR(10)&\"Matière : \"&#REF!&CHAR(10)&\"Compétences : \"&#REF!))","v":{"$error":"#REF!"}},{"$f":"IF(AND(#REF!=\"\",#REF!=\"\"),\"\",IF(#REF!=\"Récréation\",CONCATENATE(#REF!&\" / \"&#REF!)&CHAR(10)&\"RECREATION\",CONCATENATE(#REF!&\" / \"&#REF!)&CHAR(10)&\"Matière : \"&#REF!&CHAR(10)&\"Compétences : \"&#REF!))","v":{"$error":"#REF!"}},{"$f":"IF(AND(#REF!=\"\",#REF!=\"\"),\"\",IF(#REF!=\"Récréation\",CONCATENATE(#REF!&\" / \"&#REF!)&CHAR(10)&\"RECREATION\",CONCATENATE(#REF!&\" / \"&#REF!)&CHAR(10)&\"Matière : \"&#REF!&CHAR(10)&\"Compétences : \"&#REF!))","v":{"$error":"#REF!"}}]
[{"$f":"IF(AND(#REF!=\"\",#REF!=\"\"),\"\",IF(#REF!=\"Récréation\",CONCATENATE(#REF!&\" / \"&#REF!)&CHAR(10)&\"RECREATION\",CONCATENATE(#REF!&\" / \"&#REF!)&CHAR(10)&\"Matière : \"&#REF!&CHAR(10)&\"Compétences : \"&#REF!))","v":{"$error":"#REF!"}},{"$f":"IF(AND(#REF!=\"\",#REF!=\"\"),\"\",IF(#REF!=\"Récréation\",CONCATENATE(#REF!&\" / \"&#REF!)&CHAR(10)&\"RECREATION\",CONCATENATE(#REF!&\" / \"&#REF!)&CHAR(10)&\"Matière : \"&#REF!&CHAR(10)&\"Compétences : \"&#REF!))","v":{"$error":"#REF!"}},{"$f":"IF(AND(#REF!=\"\",#REF!=\"\"),\"\",IF(#REF!=\"Récréation\",CONCATENATE(#REF!&\" / \"&#REF!)&CHAR(10)&\"RECREATION\",CONCATENATE(#REF!&\" / \"&#REF!)&CHAR(10)&\"Matière : \"&#REF!&CHAR(10)&\"Compétences : \"&#REF!))","v":{"$error":"#REF!"}},{"$f":"IF(AND(#REF!=\"\",#REF!=\"\"),\"\",IF(#REF!=\"Récréation\",CONCATENATE(#REF!&\" / \"&#REF!)&CHAR(10)&\"RECREATION\",CONCATENATE(#REF!&\" / \"&#REF!)&CHAR(10)&\"Matière : \"&#REF!&CHAR(10)&\"Compétences : \"&#REF!))","v":{"$error":"#REF!"}},{"$f":"IF(AND(#REF!=\"\",#REF!=\"\"),\"\",IF(#REF!=\"Récréation\",CONCATENATE(#REF!&\" / \"&#REF!)&CHAR(10)&\"RECREATION\",CONCATENATE(#REF!&\" / \"&#REF!)&CHAR(10)&\"Matière : \"&#REF!&CHAR(10)&\"Compétences : \"&#REF!))","v":{"$error":"#REF!"}}]
[{"$f":"IF(AND(#REF!=\"\",#REF!=\"\"),\"\",IF(#REF!=\"Récréation\",CONCATENATE(#REF!&\" / \"&#REF!)&CHAR(10)&\"RECREATION\",CONCATENATE(#REF!&\" / \"&#REF!)&CHAR(10)&\"Matière : \"&#REF!&CHAR(10)&\"Compétences : \"&#REF!))","v":{"$error":"#REF!"}},{"$f":"IF(AND(#REF!=\"\",#REF!=\"\"),\"\",IF(#REF!=\"Récréation\",CONCATENATE(#REF!&\" / \"&#REF!)&CHAR(10)&\"RECREATION\",CONCATENATE(#REF!&\" / \"&#REF!)&CHAR(10)&\"Matière : \"&#REF!&CHAR(10)&\"Compétences : \"&#REF!))","v":{"$error":"#REF!"}},{"$f":"IF(AND(#REF!=\"\",#REF!=\"\"),\"\",IF(#REF!=\"Récréation\",CONCATENATE(#REF!&\" / \"&#REF!)&CHAR(10)&\"RECREATION\",CONCATENATE(#REF!&\" / \"&#REF!)&CHAR(10)&\"Matière : \"&#REF!&CHAR(10)&\"Compétences : \"&#REF!))","v":{"$error":"#REF!"}},{"$f":"IF(AND(#REF!=\"\",#REF!=\"\"),\"\",IF(#REF!=\"Récréation\",CONCATENATE(#REF!&\" / \"&#REF!)&CHAR(10)&\"RECREATION\",CONCATENATE(#REF!&\" / \"&#REF!)&CHAR(10)&\"Matière : \"&#REF!&CHAR(10)&\"Compétences : \"&#REF!))","v":{"$error":"#REF!"}},{"$f":"IF(AND(#REF!=\"\",#REF!=\"\"),\"\",IF(#REF!=\"Récréation\",CONCATENATE(#REF!&\" / \"&#REF!)&CHAR(10)&\"RECREATION\",CONCATENATE(#REF!&\" / \"&#REF!)&CHAR(10)&\"Matière : \"&#REF!&CHAR(10)&\"Compétences : \"&#REF!))","v":{"$error":"#REF!"}}]
[{"$f":"IF(AND(#REF!=\"\",#REF!=\"\"),\"\",IF(#REF!=\"Récréation\",CONCATENATE(#REF!&\" / \"&#REF!)&CHAR(10)&\"RECREATION\",CONCATENATE(#REF!&\" / \"&#REF!)&CHAR(10)&\"Matière : \"&#REF!&CHAR(10)&\"Compétences : \"&#REF!))","v":{"$error":"#REF!"}},{"$f":"IF(AND(#REF!=\"\",#REF!=\"\"),\"\",IF(#REF!=\"Récréation\",CONCATENATE(#REF!&\" / \"&#REF!)&CHAR(10)&\"RECREATION\",CONCATENATE(#REF!&\" / \"&#REF!)&CHAR(10)&\"Matière : \"&#REF!&CHAR(10)&\"Compétences : \"&#REF!))","v":{"$error":"#REF!"}},{"$f":"IF(AND(#REF!=\"\",#REF!=\"\"),\"\",IF(#REF!=\"Récréation\",CONCATENATE(#REF!&\" / \"&#REF!)&CHAR(10)&\"RECREATION\",CONCATENATE(#REF!&\" / \"&#REF!)&CHAR(10)&\"Matière : \"&#REF!&CHAR(10)&\"Compétences : \"&#REF!))","v":{"$error":"#REF!"}},{"$f":"IF(AND(#REF!=\"\",#REF!=\"\"),\"\",IF(#REF!=\"Récréation\",CONCATENATE(#REF!&\" / \"&#REF!)&CHAR(10)&\"RECREATION\",CONCATENATE(#REF!&\" / \"&#REF!)&CHAR(10)&\"Matière : \"&#REF!&CHAR(10)&\"Compétences : \"&#REF!))","v":{"$error":"#REF!"}},{"$f":"IF(AND(#REF!=\"\",#REF!=\"\"),\"\",IF(#REF!=\"Récréation\",CONCATENATE(#REF!&\" / \"&#REF!)&CHAR(10)&\"RECREATION\",CONCATENATE(#REF!&\" / \"&#REF!)&CHAR(10)&\"Matière : \"&#REF!&CHAR(10)&\"Compétences : \"&#REF!))","v":{"$error":"#REF!"}}]
[{"$f":"IF(AND(#REF!=\"\",#REF!=\"\"),\"\",IF(#REF!=\"Récréation\",CONCATENATE(#REF!&\" / \"&#REF!)&CHAR(10)&\"RECREATION\",CONCATENATE(#REF!&\" / \"&#REF!)&CHAR(10)&\"Matière : \"&#REF!&CHAR(10)&\"Compétences : \"&#REF!))","v":{"$error":"#REF!"}},{"$f":"IF(AND(#REF!=\"\",#REF!=\"\"),\"\",IF(#REF!=\"Récréation\",CONCATENATE(#REF!&\" / \"&#REF!)&CHAR(10)&\"RECREATION\",CONCATENATE(#REF!&\" / \"&#REF!)&CHAR(10)&\"Matière : \"&#REF!&CHAR(10)&\"Compétences : \"&#REF!))","v":{"$error":"#REF!"}},{"$f":"IF(AND(#REF!=\"\",#REF!=\"\"),\"\",IF(#REF!=\"Récréation\",CONCATENATE(#REF!&\" / \"&#REF!)&CHAR(10)&\"RECREATION\",CONCATENATE(#REF!&\" / \"&#REF!)&CHAR(10)&\"Matière : \"&#REF!&CHAR(10)&\"Compétences : \"&#REF!))","v":{"$error":"#REF!"}},{"$f":"IF(AND(#REF!=\"\",#REF!=\"\"),\"\",IF(#REF!=\"Récréation\",CONCATENATE(#REF!&\" / \"&#REF!)&CHAR(10)&\"RECREATION\",CONCATENATE(#REF!&\" / \"&#REF!)&CHAR(10)&\"Matière : \"&#REF!&CHAR(10)&\"Compétences : \"&#REF!))","v":{"$error":"#REF!"}},{"$f":"IF(AND(#REF!=\"\",#REF!=\"\"),\"\",IF(#REF!=\"Récréation\",CONCATENATE(#REF!&\" / \"&#REF!)&CHAR(10)&\"RECREATION\",CONCATENATE(#REF!&\" / \"&#REF!)&CHAR(10)&\"Matière : \"&#REF!&CHAR(10)&\"Compétences : \"&#REF!))","v":{"$error":"#REF!"}}]
[{"$f":"IF(AND(#REF!=\"\",#REF!=\"\"),\"\",IF(#REF!=\"Récréation\",CONCATENATE(#REF!&\" / \"&#REF!)&CHAR(10)&\"RECREATION\",CONCATENATE(#REF!&\" / \"&#REF!)&CHAR(10)&\"Matière : \"&#REF!&CHAR(10)&\"Compétences : \"&#REF!))","v":{"$error":"#REF!"}},{"$f":"IF(AND(#REF!=\"\",#REF!=\"\"),\"\",IF(#REF!=\"Récréation\",CONCATENATE(#REF!&\" / \"&#REF!)&CHAR(10)&\"RECREATION\",CONCATENATE(#REF!&\" / \"&#REF!)&CHAR(10)&\"Matière : \"&#REF!&CHAR(10)&\"Compétences : \"&#REF!))","v":{"$error":"#REF!"}},{"$f":"IF(AND(#REF!=\"\",#REF!=\"\"),\"\",IF(#REF!=\"Récréation\",CONCATENATE(#REF!&\" / \"&#REF!)&CHAR(10)&\"RECREATION\",CONCATENATE(#REF!&\" / \"&#REF!)&CHAR(10)&\"Matière : \"&#REF!&CHAR(10)&\"Compétences : \"&#REF!))","v":{"$error":"#REF!"}},{"$f":"IF(AND(#REF!=\"\",#REF!=\"\"),\"\",IF(#REF!=\"Récréation\",CONCATENATE(#REF!&\" / \"&#REF!)&CHAR(10)&\"RECREATION\",CONCATENATE(#REF!&\" / \"&#REF!)&CHAR(10)&\"Matière : \"&#REF!&CHAR(10)&\"Compétences : \"&#REF!))","v":{"$error":"#REF!"}},{"$f":"IF(AND(#REF!=\"\",#REF!=\"\"),\"\",IF(#REF!=\"Récréation\",CONCATENATE(#REF!&\" / \"&#REF!)&CHAR(10)&\"RECREATION\",CONCATENATE(#REF!&\" / \"&#REF!)&CHAR(10)&\"Matière : \"&#REF!&CHAR(10)&\"Compétences : \"&#REF!))","v":{"$error":"#REF!"}}]
[{"$f":"IF(AND(#REF!=\"\",#REF!=\"\"),\"\",IF(#REF!=\"Récréation\",CONCATENATE(#REF!&\" / \"&#REF!)&CHAR(10)&\"RECREATION\",CONCATENATE(#REF!&\" / \"&#REF!)&CHAR(10)&\"Matière : \"&#REF!&CHAR(10)&\"Compétences : \"&#REF!))","v":{"$error":"#REF!"}},{"$f":"IF(AND(#REF!=\"\",#REF!=\"\"),\"\",IF(#REF!=\"Récréation\",CONCATENATE(#REF!&\" / \"&#REF!)&CHAR(10)&\"RECREATION\",CONCATENATE(#REF!&\" / \"&#REF!)&CHAR(10)&\"Matière : \"&#REF!&CHAR(10)&\"Compétences : \"&#REF!))","v":{"$error":"#REF!"}},{"$f":"IF(AND(#REF!=\"\",#REF!=\"\"),\"\",IF(#REF!=\"Récréation\",CONCATENATE(#REF!&\" / \"&#REF!)&CHAR(10)&\"RECREATION\",CONCATENATE(#REF!&\" / \"&#REF!)&CHAR(10)&\"Matière : \"&#REF!&CHAR(10)&\"Compétences : \"&#REF!))","v":{"$error":"#REF!"}},{"$f":"IF(AND(#REF!=\"\",#REF!=\"\"),\"\",IF(#REF!=\"Récréation\",CONCATENATE(#REF!&\" / \"&#REF!)&CHAR(10)&\"RECREATION\",CONCATENATE(#REF!&\" / \"&#REF!)&CHAR(10)&\"Matière : \"&#REF!&CHAR(10)&\"Compétences : \"&#REF!))","v":{"$error":"#REF!"}},{"$f":"IF(AND(#REF!=\"\",#REF!=\"\"),\"\",IF(#REF!=\"Récréation\",CONCATENATE(#REF!&\" / \"&#REF!)&CHAR(10)&\"RECREATION\",CONCATENATE(#REF!&\" / \"&#REF!)&CHAR(10)&\"Matière : \"&#REF!&CHAR(10)&\"Compétences : \"&#REF!))","v":{"$error":"#REF!"}}]
[{"$f":"IF(AND(#REF!=\"\",#REF!=\"\"),\"\",IF(#REF!=\"Récréation\",CONCATENATE(#REF!&\" / \"&#REF!)&CHAR(10)&\"RECREATION\",CONCATENATE(#REF!&\" / \"&#REF!)&CHAR(10)&\"Matière : \"&#REF!&CHAR(10)&\"Compétences : \"&#REF!))","v":{"$error":"#REF!"}},{"$f":"IF(AND(#REF!=\"\",#REF!=\"\"),\"\",IF(#REF!=\"Récréation\",CONCATENATE(#REF!&\" / \"&#REF!)&CHAR(10)&\"RECREATION\",CONCATENATE(#REF!&\" / \"&#REF!)&CHAR(10)&\"Matière : \"&#REF!&CHAR(10)&\"Compétences : \"&#REF!))","v":{"$error":"#REF!"}},{"$f":"IF(AND(#REF!=\"\",#REF!=\"\"),\"\",IF(#REF!=\"Récréation\",CONCATENATE(#REF!&\" / \"&#REF!)&CHAR(10)&\"RECREATION\",CONCATENATE(#REF!&\" / \"&#REF!)&CHAR(10)&\"Matière : \"&#REF!&CHAR(10)&\"Compétences : \"&#REF!))","v":{"$error":"#REF!"}},{"$f":"IF(AND(#REF!=\"\",#REF!=\"\"),\"\",IF(#REF!=\"Récréation\",CONCATENATE(#REF!&\" / \"&#REF!)&CHAR(10)&\"RECREATION\",CONCATENATE(#REF!&\" / \"&#REF!)&CHAR(10)&\"Matière : \"&#REF!&CHAR(10)&\"Compétences : \"&#REF!))","v":{"$error":"#REF!"}},{"$f":"IF(AND(#REF!=\"\",#REF!=\"\"),\"\",IF(#REF!=\"Récréation\",CONCATENATE(#REF!&\" / \"&#REF!)&CHAR(10)&\"RECREATION\",CONCATENATE(#REF!&\" / \"&#REF!)&CHAR(10)&\"Matière : \"&#REF!&CHAR(10)&\"Compétences : \"&#REF!))","v":{"$error":"#REF!"}}]
[{"$f":"IF(AND(#REF!=\"\",#REF!=\"\"),\"\",IF(#REF!=\"Récréation\",CONCATENATE(#REF!&\" / \"&#REF!)&CHAR(10)&\"RECREATION\",CONCATENATE(#REF!&\" / \"&#REF!)&CHAR(10)&\"Matière : \"&#REF!&CHAR(10)&\"Compétences : \"&#REF!))","v":{"$error":"#REF!"}},{"$f":"IF(AND(#REF!=\"\",#REF!=\"\"),\"\",IF(#REF!=\"Récréation\",CONCATENATE(#REF!&\" / \"&#REF!)&CHAR(10)&\"RECREATION\",CONCATENATE(#REF!&\" / \"&#REF!)&CHAR(10)&\"Matière : \"&#REF!&CHAR(10)&\"Compétences : \"&#REF!))","v":{"$error":"#REF!"}},{"$f":"IF(AND(#REF!=\"\",#REF!=\"\"),\"\",IF(#REF!=\"Récréation\",CONCATENATE(#REF!&\" / \"&#REF!)&CHAR(10)&\"RECREATION\",CONCATENATE(#REF!&\" / \"&#REF!)&CHAR(10)&\"Matière : \"&#REF!&CHAR(10)&\"Compétences : \"&#REF!))","v":{"$error":"#REF!"}},{"$f":"IF(AND(#REF!=\"\",#REF!=\"\"),\"\",IF(#REF!=\"Récréation\",CONCATENATE(#REF!&\" / \"&#REF!)&CHAR(10)&\"RECREATION\",CONCATENATE(#REF!&\" / \"&#REF!)&CHAR(10)&\"Matière : \"&#REF!&CHAR(10)&\"Compétences : \"&#REF!))","v":{"$error":"#REF!"}},{"$f":"IF(AND(#REF!=\"\",#REF!=\"\"),\"\",IF(#REF!=\"Récréation\",CONCATENATE(#REF!&\" / \"&#REF!)&CHAR(10)&\"RECREATION\",CONCATENATE(#REF!&\" / \"&#REF!)&CHAR(10)&\"Matière : \"&#REF!&CHAR(10)&\"Compétences : \"&#REF!))","v":{"$error":"#REF!"}}]
[{"$f":"IF(AND(#REF!=\"\",#REF!=\"\"),\"\",IF(#REF!=\"Récréation\",CONCATENATE(#REF!&\" / \"&#REF!)&CHAR(10)&\"RECREATION\",CONCATENATE(#REF!&\" / \"&#REF!)&CHAR(10)&\"Matière : \"&#REF!&CHAR(10)&\"Compétences : \"&#REF!))","v":{"$error":"#REF!"}},{"$f":"IF(AND(#REF!=\"\",#REF!=\"\"),\"\",IF(#REF!=\"Récréation\",CONCATENATE(#REF!&\" / \"&#REF!)&CHAR(10)&\"RECREATION\",CONCATENATE(#REF!&\" / \"&#REF!)&CHAR(10)&\"Matière : \"&#REF!&CHAR(10)&\"Compétences : \"&#REF!))","v":{"$error":"#REF!"}},{"$f":"IF(AND(#REF!=\"\",#REF!=\"\"),\"\",IF(#REF!=\"Récréation\",CONCATENATE(#REF!&\" / \"&#REF!)&CHAR(10)&\"RECREATION\",CONCATENATE(#REF!&\" / \"&#REF!)&CHAR(10)&\"Matière : \"&#REF!&CHAR(10)&\"Compétences : \"&#REF!))","v":{"$error":"#REF!"}},{"$f":"IF(AND(#REF!=\"\",#REF!=\"\"),\"\",IF(#REF!=\"Récréation\",CONCATENATE(#REF!&\" / \"&#REF!)&CHAR(10)&\"RECREATION\",CONCATENATE(#REF!&\" / \"&#REF!)&CHAR(10)&\"Matière : \"&#REF!&CHAR(10)&\"Compétences : \"&#REF!))","v":{"$error":"#REF!"}},{"$f":"IF(AND(#REF!=\"\",#REF!=\"\"),\"\",IF(#REF!=\"Récréation\",CONCATENATE(#REF!&\" / \"&#REF!)&CHAR(10)&\"RECREATION\",CONCATENATE(#REF!&\" / \"&#REF!)&CHAR(10)&\"Matière : \"&#REF!&CHAR(10)&\"Compétences : \"&#REF!))","v":{"$error":"#REF!"}}]
[{"$f":"IF(AND(#REF!=\"\",#REF!=\"\"),\"\",IF(#REF!=\"Récréation\",CONCATENATE(#REF!&\" / \"&#REF!)&CHAR(10)&\"RECREATION\",CONCATENATE(#REF!&\" / \"&#REF!)&CHAR(10)&\"Matière : \"&#REF!&CHAR(10)&\"Compétences : \"&#REF!))","v":{"$error":"#REF!"}},{"$f":"IF(AND(#REF!=\"\",#REF!=\"\"),\"\",IF(#REF!=\"Récréation\",CONCATENATE(#REF!&\" / \"&#REF!)&CHAR(10)&\"RECREATION\",CONCATENATE(#REF!&\" / \"&#REF!)&CHAR(10)&\"Matière : \"&#REF!&CHAR(10)&\"Compétences : \"&#REF!))","v":{"$error":"#REF!"}},{"$f":"IF(AND(#REF!=\"\",#REF!=\"\"),\"\",IF(#REF!=\"Récréation\",CONCATENATE(#REF!&\" / \"&#REF!)&CHAR(10)&\"RECREATION\",CONCATENATE(#REF!&\" / \"&#REF!)&CHAR(10)&\"Matière : \"&#REF!&CHAR(10)&\"Compétences : \"&#REF!))","v":{"$error":"#REF!"}},{"$f":"IF(AND(#REF!=\"\",#REF!=\"\"),\"\",IF(#REF!=\"Récréation\",CONCATENATE(#REF!&\" / \"&#REF!)&CHAR(10)&\"RECREATION\",CONCATENATE(#REF!&\" / \"&#REF!)&CHAR(10)&\"Matière : \"&#REF!&CHAR(10)&\"Compétences : \"&#REF!))","v":{"$error":"#REF!"}},{"$f":"IF(AND(#REF!=\"\",#REF!=\"\"),\"\",IF(#REF!=\"Récréation\",CONCATENATE(#REF!&\" / \"&#REF!)&CHAR(10)&\"RECREATION\",CONCATENATE(#REF!&\" / \"&#REF!)&CHAR(10)&\"Matière : \"&#REF!&CHAR(10)&\"Compétences : \"&#REF!))","v":{"$error":"#REF!"}}]
[{"$f":"IF(AND(#REF!=\"\",#REF!=\"\"),\"\",IF(#REF!=\"Récréation\",CONCATENATE(#REF!&\" / \"&#REF!)&CHAR(10)&\"RECREATION\",CONCATENATE(#REF!&\" / \"&#REF!)&CHAR(10)&\"Matière : \"&#REF!&CHAR(10)&\"Compétences : \"&#REF!))","v":{"$error":"#REF!"}},{"$f":"IF(AND(#REF!=\"\",#REF!=\"\"),\"\",IF(#REF!=\"Récréation\",CONCATENATE(#REF!&\" / \"&#REF!)&CHAR(10)&\"RECREATION\",CONCATENATE(#REF!&\" / \"&#REF!)&CHAR(10)&\"Matière : \"&#REF!&CHAR(10)&\"Compétences : \"&#REF!))","v":{"$error":"#REF!"}},{"$f":"IF(AND(#REF!=\"\",#REF!=\"\"),\"\",IF(#REF!=\"Récréation\",CONCATENATE(#REF!&\" / \"&#REF!)&CHAR(10)&\"RECREATION\",CONCATENATE(#REF!&\" / \"&#REF!)&CHAR(10)&\"Matière : \"&#REF!&CHAR(10)&\"Compétences : \"&#REF!))","v":{"$error":"#REF!"}},{"$f":"IF(AND(#REF!=\"\",#REF!=\"\"),\"\",IF(#REF!=\"Récréation\",CONCATENATE(#REF!&\" / \"&#REF!)&CHAR(10)&\"RECREATION\",CONCATENATE(#REF!&\" / \"&#REF!)&CHAR(10)&\"Matière : \"&#REF!&CHAR(10)&\"Compétences : \"&#REF!))","v":{"$error":"#REF!"}},{"$f":"IF(AND(#REF!=\"\",#REF!=\"\"),\"\",IF(#REF!=\"Récréation\",CONCATENATE(#REF!&\" / \"&#REF!)&CHAR(10)&\"RECREATION\",CONCATENATE(#REF!&\" / \"&#REF!)&CHAR(10)&\"Matière : \"&#REF!&CHAR(10)&\"Compétences : \"&#REF!))","v":{"$error":"#REF!"}}]
[{"$f":"IF(AND(#REF!=\"\",#REF!=\"\"),\"\",IF(#REF!=\"Récréation\",CONCATENATE(#REF!&\" / \"&#REF!)&CHAR(10)&\"RECREATION\",CONCATENATE(#REF!&\" / \"&#REF!)&CHAR(10)&\"Matière : \"&#REF!&CHAR(10)&\"Compétences : \"&#REF!))","v":{"$error":"#REF!"}},{"$f":"IF(AND(#REF!=\"\",#REF!=\"\"),\"\",IF(#REF!=\"Récréation\",CONCATENATE(#REF!&\" / \"&#REF!)&CHAR(10)&\"RECREATION\",CONCATENATE(#REF!&\" / \"&#REF!)&CHAR(10)&\"Matière : \"&#REF!&CHAR(10)&\"Compétences : \"&#REF!))","v":{"$error":"#REF!"}},{"$f":"IF(AND(#REF!=\"\",#REF!=\"\"),\"\",IF(#REF!=\"Récréation\",CONCATENATE(#REF!&\" / \"&#REF!)&CHAR(10)&\"RECREATION\",CONCATENATE(#REF!&\" / \"&#REF!)&CHAR(10)&\"Matière : \"&#REF!&CHAR(10)&\"Compétences : \"&#REF!))","v":{"$error":"#REF!"}},{"$f":"IF(AND(#REF!=\"\",#REF!=\"\"),\"\",IF(#REF!=\"Récréation\",CONCATENATE(#REF!&\" / \"&#REF!)&CHAR(10)&\"RECREATION\",CONCATENATE(#REF!&\" / \"&#REF!)&CHAR(10)&\"Matière : \"&#REF!&CHAR(10)&\"Compétences : \"&#REF!))","v":{"$error":"#REF!"}},{"$f":"IF(AND(#REF!=\"\",#REF!=\"\"),\"\",IF(#REF!=\"Récréation\",CONCATENATE(#REF!&\" / \"&#REF!)&CHAR(10)&\"RECREATION\",CONCATENATE(#REF!&\" / \"&#REF!)&CHAR(10)&\"Matière : \"&#REF!&CHAR(10)&\"Compétences : \"&#REF!))","v":{"$error":"#REF!"}}]
[{"$f":"IF(AND(#REF!=\"\",#REF!=\"\"),\"\",IF(#REF!=\"Récréation\",CONCATENATE(#REF!&\" / \"&#REF!)&CHAR(10)&\"RECREATION\",CONCATENATE(#REF!&\" / \"&#REF!)&CHAR(10)&\"Matière : \"&#REF!&CHAR(10)&\"Compétences : \"&#REF!))","v":{"$error":"#REF!"}},{"$f":"IF(AND(#REF!=\"\",#REF!=\"\"),\"\",IF(#REF!=\"Récréation\",CONCATENATE(#REF!&\" / \"&#REF!)&CHAR(10)&\"RECREATION\",CONCATENATE(#REF!&\" / \"&#REF!)&CHAR(10)&\"Matière : \"&#REF!&CHAR(10)&\"Compétences : \"&#REF!))","v":{"$error":"#REF!"}},{"$f":"IF(AND(#REF!=\"\",#REF!=\"\"),\"\",IF(#REF!=\"Récréation\",CONCATENATE(#REF!&\" / \"&#REF!)&CHAR(10)&\"RECREATION\",CONCATENATE(#REF!&\" / \"&#REF!)&CHAR(10)&\"Matière : \"&#REF!&CHAR(10)&\"Compétences : \"&#REF!))","v":{"$error":"#REF!"}},{"$f":"IF(AND(#REF!=\"\",#REF!=\"\"),\"\",IF(#REF!=\"Récréation\",CONCATENATE(#REF!&\" / \"&#REF!)&CHAR(10)&\"RECREATION\",CONCATENATE(#REF!&\" / \"&#REF!)&CHAR(10)&\"Matière : \"&#REF!&CHAR(10)&\"Compétences : \"&#REF!))","v":{"$error":"#REF!"}},{"$f":"IF(AND(#REF!=\"\",#REF!=\"\"),\"\",IF(#REF!=\"Récréation\",CONCATENATE(#REF!&\" / \"&#REF!)&CHAR(10)&\"RECREATION\",CONCATENATE(#REF!&\" / \"&#REF!)&CHAR(10)&\"Matière : \"&#REF!&CHAR(10)&\"Compétences : \"&#REF!))","v":{"$error":"#REF!"}}]
[{"$f":"IF(AND(#REF!=\"\",#REF!=\"\"),\"\",IF(#REF!=\"Récréation\",CONCATENATE(#REF!&\" / \"&#REF!)&CHAR(10)&\"RECREATION\",CONCATENATE(#REF!&\" / \"&#REF!)&CHAR(10)&\"Matière : \"&#REF!&CHAR(10)&\"Compétences : \"&#REF!))","v":{"$error":"#REF!"}},{"$f":"IF(AND(#REF!=\"\",#REF!=\"\"),\"\",IF(#REF!=\"Récréation\",CONCATENATE(#REF!&\" / \"&#REF!)&CHAR(10)&\"RECREATION\",CONCATENATE(#REF!&\" / \"&#REF!)&CHAR(10)&\"Matière : \"&#REF!&CHAR(10)&\"Compétences : \"&#REF!))","v":{"$error":"#REF!"}},{"$f":"IF(AND(#REF!=\"\",#REF!=\"\"),\"\",IF(#REF!=\"Récréation\",CONCATENATE(#REF!&\" / \"&#REF!)&CHAR(10)&\"RECREATION\",CONCATENATE(#REF!&\" / \"&#REF!)&CHAR(10)&\"Matière : \"&#REF!&CHAR(10)&\"Compétences : \"&#REF!))","v":{"$error":"#REF!"}},{"$f":"IF(AND(#REF!=\"\",#REF!=\"\"),\"\",IF(#REF!=\"Récréation\",CONCATENATE(#REF!&\" / \"&#REF!)&CHAR(10)&\"RECREATION\",CONCATENATE(#REF!&\" / \"&#REF!)&CHAR(10)&\"Matière : \"&#REF!&CHAR(10)&\"Compétences : \"&#REF!))","v":{"$error":"#REF!"}},{"$f":"IF(AND(#REF!=\"\",#REF!=\"\"),\"\",IF(#REF!=\"Récréation\",CONCATENATE(#REF!&\" / \"&#REF!)&CHAR(10)&\"RECREATION\",CONCATENATE(#REF!&\" / \"&#REF!)&CHAR(10)&\"Matière : \"&#REF!&CHAR(10)&\"Compétences : \"&#REF!))","v":{"$error":"#REF!"}}]
[{"$f":"IF(AND(#REF!=\"\",#REF!=\"\"),\"\",IF(#REF!=\"Récréation\",CONCATENATE(#REF!&\" / \"&#REF!)&CHAR(10)&\"RECREATION\",CONCATENATE(#REF!&\" / \"&#REF!)&CHAR(10)&\"Matière : \"&#REF!&CHAR(10)&\"Compétences : \"&#REF!))","v":{"$error":"#REF!"}},{"$f":"IF(AND(#REF!=\"\",#REF!=\"\"),\"\",IF(#REF!=\"Récréation\",CONCATENATE(#REF!&\" / \"&#REF!)&CHAR(10)&\"RECREATION\",CONCATENATE(#REF!&\" / \"&#REF!)&CHAR(10)&\"Matière : \"&#REF!&CHAR(10)&\"Compétences : \"&#REF!))","v":{"$error":"#REF!"}},{"$f":"IF(AND(#REF!=\"\",#REF!=\"\"),\"\",IF(#REF!=\"Récréation\",CONCATENATE(#REF!&\" / \"&#REF!)&CHAR(10)&\"RECREATION\",CONCATENATE(#REF!&\" / \"&#REF!)&CHAR(10)&\"Matière : \"&#REF!&CHAR(10)&\"Compétences : \"&#REF!))","v":{"$error":"#REF!"}},{"$f":"IF(AND(#REF!=\"\",#REF!=\"\"),\"\",IF(#REF!=\"Récréation\",CONCATENATE(#REF!&\" / \"&#REF!)&CHAR(10)&\"RECREATION\",CONCATENATE(#REF!&\" / \"&#REF!)&CHAR(10)&\"Matière : \"&#REF!&CHAR(10)&\"Compétences : \"&#REF!))","v":{"$error":"#REF!"}},{"$f":"IF(AND(#REF!=\"\",#REF!=\"\"),\"\",IF(#REF!=\"Récréation\",CONCATENATE(#REF!&\" / \"&#REF!)&CHAR(10)&\"RECREATION\",CONCATENATE(#REF!&\" / \"&#REF!)&CHAR(10)&\"Matière : \"&#REF!&CHAR(10)&\"Compétences : \"&#REF!))","v":{"$error":"#REF!"}}]
[{"$f":"IF(AND(#REF!=\"\",#REF!=\"\"),\"\",IF(#REF!=\"Récréation\",CONCATENATE(#REF!&\" / \"&#REF!)&CHAR(10)&\"RECREATION\",CONCATENATE(#REF!&\" / \"&#REF!)&CHAR(10)&\"Matière : \"&#REF!&CHAR(10)&\"Compétences : \"&#REF!))","v":{"$error":"#REF!"}},{"$f":"IF(AND(#REF!=\"\",#REF!=\"\"),\"\",IF(#REF!=\"Récréation\",CONCATENATE(#REF!&\" / \"&#REF!)&CHAR(10)&\"RECREATION\",CONCATENATE(#REF!&\" / \"&#REF!)&CHAR(10)&\"Matière : \"&#REF!&CHAR(10)&\"Compétences : \"&#REF!))","v":{"$error":"#REF!"}},{"$f":"IF(AND(#REF!=\"\",#REF!=\"\"),\"\",IF(#REF!=\"Récréation\",CONCATENATE(#REF!&\" / \"&#REF!)&CHAR(10)&\"RECREATION\",CONCATENATE(#REF!&\" / \"&#REF!)&CHAR(10)&\"Matière : \"&#REF!&CHAR(10)&\"Compétences : \"&#REF!))","v":{"$error":"#REF!"}},{"$f":"IF(AND(#REF!=\"\",#REF!=\"\"),\"\",IF(#REF!=\"Récréation\",CONCATENATE(#REF!&\" / \"&#REF!)&CHAR(10)&\"RECREATION\",CONCATENATE(#REF!&\" / \"&#REF!)&CHAR(10)&\"Matière : \"&#REF!&CHAR(10)&\"Compétences : \"&#REF!))","v":{"$error":"#REF!"}},{"$f":"IF(AND(#REF!=\"\",#REF!=\"\"),\"\",IF(#REF!=\"Récréation\",CONCATENATE(#REF!&\" / \"&#REF!)&CHAR(10)&\"RECREATION\",CONCATENATE(#REF!&\" / \"&#REF!)&CHAR(10)&\"Matière : \"&#REF!&CHAR(10)&\"Compétences : \"&#REF!))","v":{"$error":"#REF!"}}]
[{"$f":"IF(AND(#REF!=\"\",#REF!=\"\"),\"\",IF(#REF!=\"Récréation\",CONCATENATE(#REF!&\" / \"&#REF!)&CHAR(10)&\"RECREATION\",CONCATENATE(#REF!&\" / \"&#REF!)&CHAR(10)&\"Matière : \"&#REF!&CHAR(10)&\"Compétences : \"&#REF!))","v":{"$error":"#REF!"}},{"$f":"IF(AND(#REF!=\"\",#REF!=\"\"),\"\",IF(#REF!=\"Récréation\",CONCATENATE(#REF!&\" / \"&#REF!)&CHAR(10)&\"RECREATION\",CONCATENATE(#REF!&\" / \"&#REF!)&CHAR(10)&\"Matière : \"&#REF!&CHAR(10)&\"Compétences : \"&#REF!))","v":{"$error":"#REF!"}},{"$f":"IF(AND(#REF!=\"\",#REF!=\"\"),\"\",IF(#REF!=\"Récréation\",CONCATENATE(#REF!&\" / \"&#REF!)&CHAR(10)&\"RECREATION\",CONCATENATE(#REF!&\" / \"&#REF!)&CHAR(10)&\"Matière : \"&#REF!&CHAR(10)&\"Compétences : \"&#REF!))","v":{"$error":"#REF!"}},{"$f":"IF(AND(#REF!=\"\",#REF!=\"\"),\"\",IF(#REF!=\"Récréation\",CONCATENATE(#REF!&\" / \"&#REF!)&CHAR(10)&\"RECREATION\",CONCATENATE(#REF!&\" / \"&#REF!)&CHAR(10)&\"Matière : \"&#REF!&CHAR(10)&\"Compétences : \"&#REF!))","v":{"$error":"#REF!"}},{"$f":"IF(AND(#REF!=\"\",#REF!=\"\"),\"\",IF(#REF!=\"Récréation\",CONCATENATE(#REF!&\" / \"&#REF!)&CHAR(10)&\"RECREATION\",CONCATENATE(#REF!&\" / \"&#REF!)&CHAR(10)&\"Matière : \"&#REF!&CHAR(10)&\"Compétences : \"&#REF!))","v":{"$error":"#REF!"}}]
[{"$f":"IF(AND(#REF!=\"\",#REF!=\"\"),\"\",IF(#REF!=\"Récréation\",CONCATENATE(#REF!&\" / \"&#REF!)&CHAR(10)&\"RECREATION\",CONCATENATE(#REF!&\" / \"&#REF!)&CHAR(10)&\"Matière : \"&#REF!&CHAR(10)&\"Compétences : \"&#REF!))","v":{"$error":"#REF!"}},{"$f":"IF(AND(#REF!=\"\",#REF!=\"\"),\"\",IF(#REF!=\"Récréation\",CONCATENATE(#REF!&\" / \"&#REF!)&CHAR(10)&\"RECREATION\",CONCATENATE(#REF!&\" / \"&#REF!)&CHAR(10)&\"Matière : \"&#REF!&CHAR(10)&\"Compétences : \"&#REF!))","v":{"$error":"#REF!"}},{"$f":"IF(AND(#REF!=\"\",#REF!=\"\"),\"\",IF(#REF!=\"Récréation\",CONCATENATE(#REF!&\" / \"&#REF!)&CHAR(10)&\"RECREATION\",CONCATENATE(#REF!&\" / \"&#REF!)&CHAR(10)&\"Matière : \"&#REF!&CHAR(10)&\"Compétences : \"&#REF!))","v":{"$error":"#REF!"}},{"$f":"IF(AND(#REF!=\"\",#REF!=\"\"),\"\",IF(#REF!=\"Récréation\",CONCATENATE(#REF!&\" / \"&#REF!)&CHAR(10)&\"RECREATION\",CONCATENATE(#REF!&\" / \"&#REF!)&CHAR(10)&\"Matière : \"&#REF!&CHAR(10)&\"Compétences : \"&#REF!))","v":{"$error":"#REF!"}},{"$f":"IF(AND(#REF!=\"\",#REF!=\"\"),\"\",IF(#REF!=\"Récréation\",CONCATENATE(#REF!&\" / \"&#REF!)&CHAR(10)&\"RECREATION\",CONCATENATE(#REF!&\" / \"&#REF!)&CHAR(10)&\"Matière : \"&#REF!&CHAR(10)&\"Compétences : \"&#REF!))","v":{"$error":"#REF!"}}]
[{"$f":"IF(AND(#REF!=\"\",#REF!=\"\"),\"\",IF(#REF!=\"Récréation\",CONCATENATE(#REF!&\" / \"&#REF!)&CHAR(10)&\"RECREATION\",CONCATENATE(#REF!&\" / \"&#REF!)&CHAR(10)&\"Matière : \"&#REF!&CHAR(10)&\"Compétences : \"&#REF!))","v":{"$error":"#REF!"}},{"$f":"IF(AND(#REF!=\"\",#REF!=\"\"),\"\",IF(#REF!=\"Récréation\",CONCATENATE(#REF!&\" / \"&#REF!)&CHAR(10)&\"RECREATION\",CONCATENATE(#REF!&\" / \"&#REF!)&CHAR(10)&\"Matière : \"&#REF!&CHAR(10)&\"Compétences : \"&#REF!))","v":{"$error":"#REF!"}},{"$f":"IF(AND(#REF!=\"\",#REF!=\"\"),\"\",IF(#REF!=\"Récréation\",CONCATENATE(#REF!&\" / \"&#REF!)&CHAR(10)&\"RECREATION\",CONCATENATE(#REF!&\" / \"&#REF!)&CHAR(10)&\"Matière : \"&#REF!&CHAR(10)&\"Compétences : \"&#REF!))","v":{"$error":"#REF!"}},{"$f":"IF(AND(#REF!=\"\",#REF!=\"\"),\"\",IF(#REF!=\"Récréation\",CONCATENATE(#REF!&\" / \"&#REF!)&CHAR(10)&\"RECREATION\",CONCATENATE(#REF!&\" / \"&#REF!)&CHAR(10)&\"Matière : \"&#REF!&CHAR(10)&\"Compétences : \"&#REF!))","v":{"$error":"#REF!"}},{"$f":"IF(AND(#REF!=\"\",#REF!=\"\"),\"\",IF(#REF!=\"Récréation\",CONCATENATE(#REF!&\" / \"&#REF!)&CHAR(10)&\"RECREATION\",CONCATENATE(#REF!&\" / \"&#REF!)&CHAR(10)&\"Matière : \"&#REF!&CHAR(10)&\"Compétences : \"&#REF!))","v":{"$error":"#REF!"}}]
[{"$f":"IF(AND(#REF!=\"\",#REF!=\"\"),\"\",IF(#REF!=\"Récréation\",CONCATENATE(#REF!&\" / \"&#REF!)&CHAR(10)&\"RECREATION\",CONCATENATE(#REF!&\" / \"&#REF!)&CHAR(10)&\"Matière : \"&#REF!&CHAR(10)&\"Compétences : \"&#REF!))","v":{"$error":"#REF!"}},{"$f":"IF(AND(#REF!=\"\",#REF!=\"\"),\"\",IF(#REF!=\"Récréation\",CONCATENATE(#REF!&\" / \"&#REF!)&CHAR(10)&\"RECREATION\",CONCATENATE(#REF!&\" / \"&#REF!)&CHAR(10)&\"Matière : \"&#REF!&CHAR(10)&\"Compétences : \"&#REF!))","v":{"$error":"#REF!"}},{"$f":"IF(AND(#REF!=\"\",#REF!=\"\"),\"\",IF(#REF!=\"Récréation\",CONCATENATE(#REF!&\" / \"&#REF!)&CHAR(10)&\"RECREATION\",CONCATENATE(#REF!&\" / \"&#REF!)&CHAR(10)&\"Matière : \"&#REF!&CHAR(10)&\"Compétences : \"&#REF!))","v":{"$error":"#REF!"}},{"$f":"IF(AND(#REF!=\"\",#REF!=\"\"),\"\",IF(#REF!=\"Récréation\",CONCATENATE(#REF!&\" / \"&#REF!)&CHAR(10)&\"RECREATION\",CONCATENATE(#REF!&\" / \"&#REF!)&CHAR(10)&\"Matière : \"&#REF!&CHAR(10)&\"Compétences : \"&#REF!))","v":{"$error":"#REF!"}},{"$f":"IF(AND(#REF!=\"\",#REF!=\"\"),\"\",IF(#REF!=\"Récréation\",CONCATENATE(#REF!&\" / \"&#REF!)&CHAR(10)&\"RECREATION\",CONCATENATE(#REF!&\" / \"&#REF!)&CHAR(10)&\"Matière : \"&#REF!&CHAR(10)&\"Compétences : \"&#REF!))","v":{"$error":"#REF!"}}]
[{"$f":"IF(AND(#REF!=\"\",#REF!=\"\"),\"\",IF(#REF!=\"Récréation\",CONCATENATE(#REF!&\" / \"&#REF!)&CHAR(10)&\"RECREATION\",CONCATENATE(#REF!&\" / \"&#REF!)&CHAR(10)&\"Matière : \"&#REF!&CHAR(10)&\"Compétences : \"&#REF!))","v":{"$error":"#REF!"}},{"$f":"IF(AND(#REF!=\"\",#REF!=\"\"),\"\",IF(#REF!=\"Récréation\",CONCATENATE(#REF!&\" / \"&#REF!)&CHAR(10)&\"RECREATION\",CONCATENATE(#REF!&\" / \"&#REF!)&CHAR(10)&\"Matière : \"&#REF!&CHAR(10)&\"Compétences : \"&#REF!))","v":{"$error":"#REF!"}},{"$f":"IF(AND(#REF!=\"\",#REF!=\"\"),\"\",IF(#REF!=\"Récréation\",CONCATENATE(#REF!&\" / \"&#REF!)&CHAR(10)&\"RECREATION\",CONCATENATE(#REF!&\" / \"&#REF!)&CHAR(10)&\"Matière : \"&#REF!&CHAR(10)&\"Compétences : \"&#REF!))","v":{"$error":"#REF!"}},{"$f":"IF(AND(#REF!=\"\",#REF!=\"\"),\"\",IF(#REF!=\"Récréation\",CONCATENATE(#REF!&\" / \"&#REF!)&CHAR(10)&\"RECREATION\",CONCATENATE(#REF!&\" / \"&#REF!)&CHAR(10)&\"Matière : \"&#REF!&CHAR(10)&\"Compétences : \"&#REF!))","v":{"$error":"#REF!"}},{"$f":"IF(AND(#REF!=\"\",#REF!=\"\"),\"\",IF(#REF!=\"Récréation\",CONCATENATE(#REF!&\" / \"&#REF!)&CHAR(10)&\"RECREATION\",CONCATENATE(#REF!&\" / \"&#REF!)&CHAR(10)&\"Matière : \"&#REF!&CHAR(10)&\"Compétences : \"&#REF!))","v":{"$error":"#REF!"}}]
[{"$f":"IF(AND(#REF!=\"\",#REF!=\"\"),\"\",IF(#REF!=\"Récréation\",CONCATENATE(#REF!&\" / \"&#REF!)&CHAR(10)&\"RECREATION\",CONCATENATE(#REF!&\" / \"&#REF!)&CHAR(10)&\"Matière : \"&#REF!&CHAR(10)&\"Compétences : \"&#REF!))","v":{"$error":"#REF!"}},{"$f":"IF(AND(#REF!=\"\",#REF!=\"\"),\"\",IF(#REF!=\"Récréation\",CONCATENATE(#REF!&\" / \"&#REF!)&CHAR(10)&\"RECREATION\",CONCATENATE(#REF!&\" / \"&#REF!)&CHAR(10)&\"Matière : \"&#REF!&CHAR(10)&\"Compétences : \"&#REF!))","v":{"$error":"#REF!"}},{"$f":"IF(AND(#REF!=\"\",#REF!=\"\"),\"\",IF(#REF!=\"Récréation\",CONCATENATE(#REF!&\" / \"&#REF!)&CHAR(10)&\"RECREATION\",CONCATENATE(#REF!&\" / \"&#REF!)&CHAR(10)&\"Matière : \"&#REF!&CHAR(10)&\"Compétences : \"&#REF!))","v":{"$error":"#REF!"}},{"$f":"IF(AND(#REF!=\"\",#REF!=\"\"),\"\",IF(#REF!=\"Récréation\",CONCATENATE(#REF!&\" / \"&#REF!)&CHAR(10)&\"RECREATION\",CONCATENATE(#REF!&\" / \"&#REF!)&CHAR(10)&\"Matière : \"&#REF!&CHAR(10)&\"Compétences : \"&#REF!))","v":{"$error":"#REF!"}},{"$f":"IF(AND(#REF!=\"\",#REF!=\"\"),\"\",IF(#REF!=\"Récréation\",CONCATENATE(#REF!&\" / \"&#REF!)&CHAR(10)&\"RECREATION\",CONCATENATE(#REF!&\" / \"&#REF!)&CHAR(10)&\"Matière : \"&#REF!&CHAR(10)&\"Compétences : \"&#REF!))","v":{"$error":"#REF!"}}]
[{"$f":"IF(AND(#REF!=\"\",#REF!=\"\"),\"\",IF(#REF!=\"Récréation\",CONCATENATE(#REF!&\" / \"&#REF!)&CHAR(10)&\"RECREATION\",CONCATENATE(#REF!&\" / \"&#REF!)&CHAR(10)&\"Matière : \"&#REF!&CHAR(10)&\"Compétences : \"&#REF!))","v":{"$error":"#REF!"}},{"$f":"IF(AND(#REF!=\"\",#REF!=\"\"),\"\",IF(#REF!=\"Récréation\",CONCATENATE(#REF!&\" / \"&#REF!)&CHAR(10)&\"RECREATION\",CONCATENATE(#REF!&\" / \"&#REF!)&CHAR(10)&\"Matière : \"&#REF!&CHAR(10)&\"Compétences : \"&#REF!))","v":{"$error":"#REF!"}},{"$f":"IF(AND(#REF!=\"\",#REF!=\"\"),\"\",IF(#REF!=\"Récréation\",CONCATENATE(#REF!&\" / \"&#REF!)&CHAR(10)&\"RECREATION\",CONCATENATE(#REF!&\" / \"&#REF!)&CHAR(10)&\"Matière : \"&#REF!&CHAR(10)&\"Compétences : \"&#REF!))","v":{"$error":"#REF!"}},{"$f":"IF(AND(#REF!=\"\",#REF!=\"\"),\"\",IF(#REF!=\"Récréation\",CONCATENATE(#REF!&\" / \"&#REF!)&CHAR(10)&\"RECREATION\",CONCATENATE(#REF!&\" / \"&#REF!)&CHAR(10)&\"Matière : \"&#REF!&CHAR(10)&\"Compétences : \"&#REF!))","v":{"$error":"#REF!"}},{"$f":"IF(AND(#REF!=\"\",#REF!=\"\"),\"\",IF(#REF!=\"Récréation\",CONCATENATE(#REF!&\" / \"&#REF!)&CHAR(10)&\"RECREATION\",CONCATENATE(#REF!&\" / \"&#REF!)&CHAR(10)&\"Matière : \"&#REF!&CHAR(10)&\"Compétences : \"&#REF!))","v":{"$error":"#REF!"}}]
[{"$f":"IF(AND(#REF!=\"\",#REF!=\"\"),\"\",IF(#REF!=\"Récréation\",CONCATENATE(#REF!&\" / \"&#REF!)&CHAR(10)&\"RECREATION\",CONCATENATE(#REF!&\" / \"&#REF!)&CHAR(10)&\"Matière : \"&#REF!&CHAR(10)&\"Compétences : \"&#REF!))","v":{"$error":"#REF!"}},{"$f":"IF(AND(#REF!=\"\",#REF!=\"\"),\"\",IF(#REF!=\"Récréation\",CONCATENATE(#REF!&\" / \"&#REF!)&CHAR(10)&\"RECREATION\",CONCATENATE(#REF!&\" / \"&#REF!)&CHAR(10)&\"Matière : \"&#REF!&CHAR(10)&\"Compétences : \"&#REF!))","v":{"$error":"#REF!"}},{"$f":"IF(AND(#REF!=\"\",#REF!=\"\"),\"\",IF(#REF!=\"Récréation\",CONCATENATE(#REF!&\" / \"&#REF!)&CHAR(10)&\"RECREATION\",CONCATENATE(#REF!&\" / \"&#REF!)&CHAR(10)&\"Matière : \"&#REF!&CHAR(10)&\"Compétences : \"&#REF!))","v":{"$error":"#REF!"}},{"$f":"IF(AND(#REF!=\"\",#REF!=\"\"),\"\",IF(#REF!=\"Récréation\",CONCATENATE(#REF!&\" / \"&#REF!)&CHAR(10)&\"RECREATION\",CONCATENATE(#REF!&\" / \"&#REF!)&CHAR(10)&\"Matière : \"&#REF!&CHAR(10)&\"Compétences : \"&#REF!))","v":{"$error":"#REF!"}},{"$f":"IF(AND(#REF!=\"\",#REF!=\"\"),\"\",IF(#REF!=\"Récréation\",CONCATENATE(#REF!&\" / \"&#REF!)&CHAR(10)&\"RECREATION\",CONCATENATE(#REF!&\" / \"&#REF!)&CHAR(10)&\"Matière : \"&#REF!&CHAR(10)&\"Compétences : \"&#REF!))","v":{"$error":"#REF!"}}]
[{"$f":"IF(AND(#REF!=\"\",#REF!=\"\"),\"\",IF(#REF!=\"Récréation\",CONCATENATE(#REF!&\" / \"&#REF!)&CHAR(10)&\"RECREATION\",CONCATENATE(#REF!&\" / \"&#REF!)&CHAR(10)&\"Matière : \"&#REF!&CHAR(10)&\"Compétences : \"&#REF!))","v":{"$error":"#REF!"}},{"$f":"IF(AND(#REF!=\"\",#REF!=\"\"),\"\",IF(#REF!=\"Récréation\",CONCATENATE(#REF!&\" / \"&#REF!)&CHAR(10)&\"RECREATION\",CONCATENATE(#REF!&\" / \"&#REF!)&CHAR(10)&\"Matière : \"&#REF!&CHAR(10)&\"Compétences : \"&#REF!))","v":{"$error":"#REF!"}},{"$f":"IF(AND(#REF!=\"\",#REF!=\"\"),\"\",IF(#REF!=\"Récréation\",CONCATENATE(#REF!&\" / \"&#REF!)&CHAR(10)&\"RECREATION\",CONCATENATE(#REF!&\" / \"&#REF!)&CHAR(10)&\"Matière : \"&#REF!&CHAR(10)&\"Compétences : \"&#REF!))","v":{"$error":"#REF!"}},{"$f":"IF(AND(#REF!=\"\",#REF!=\"\"),\"\",IF(#REF!=\"Récréation\",CONCATENATE(#REF!&\" / \"&#REF!)&CHAR(10)&\"RECREATION\",CONCATENATE(#REF!&\" / \"&#REF!)&CHAR(10)&\"Matière : \"&#REF!&CHAR(10)&\"Compétences : \"&#REF!))","v":{"$error":"#REF!"}},{"$f":"IF(AND(#REF!=\"\",#REF!=\"\"),\"\",IF(#REF!=\"Récréation\",CONCATENATE(#REF!&\" / \"&#REF!)&CHAR(10)&\"RECREATION\",CONCATENATE(#REF!&\" / \"&#REF!)&CHAR(10)&\"Matière : \"&#REF!&CHAR(10)&\"Compétences : \"&#REF!))","v":{"$error":"#REF!"}}]
[{"$f":"IF(AND(#REF!=\"\",#REF!=\"\"),\"\",IF(#REF!=\"Récréation\",CONCATENATE(#REF!&\" / \"&#REF!)&CHAR(10)&\"RECREATION\",CONCATENATE(#REF!&\" / \"&#REF!)&CHAR(10)&\"Matière : \"&#REF!&CHAR(10)&\"Compétences : \"&#REF!))","v":{"$error":"#REF!"}},{"$f":"IF(AND(#REF!=\"\",#REF!=\"\"),\"\",IF(#REF!=\"Récréation\",CONCATENATE(#REF!&\" / \"&#REF!)&CHAR(10)&\"RECREATION\",CONCATENATE(#REF!&\" / \"&#REF!)&CHAR(10)&\"Matière : \"&#REF!&CHAR(10)&\"Compétences : \"&#REF!))","v":{"$error":"#REF!"}},{"$f":"IF(AND(#REF!=\"\",#REF!=\"\"),\"\",IF(#REF!=\"Récréation\",CONCATENATE(#REF!&\" / \"&#REF!)&CHAR(10)&\"RECREATION\",CONCATENATE(#REF!&\" / \"&#REF!)&CHAR(10)&\"Matière : \"&#REF!&CHAR(10)&\"Compétences : \"&#REF!))","v":{"$error":"#REF!"}},{"$f":"IF(AND(#REF!=\"\",#REF!=\"\"),\"\",IF(#REF!=\"Récréation\",CONCATENATE(#REF!&\" / \"&#REF!)&CHAR(10)&\"RECREATION\",CONCATENATE(#REF!&\" / \"&#REF!)&CHAR(10)&\"Matière : \"&#REF!&CHAR(10)&\"Compétences : \"&#REF!))","v":{"$error":"#REF!"}},{"$f":"IF(AND(#REF!=\"\",#REF!=\"\"),\"\",IF(#REF!=\"Récréation\",CONCATENATE(#REF!&\" / \"&#REF!)&CHAR(10)&\"RECREATION\",CONCATENATE(#REF!&\" / \"&#REF!)&CHAR(10)&\"Matière : \"&#REF!&CHAR(10)&\"Compétences : \"&#REF!))","v":{"$error":"#REF!"}}]
[{"$f":"IF(AND(#REF!=\"\",#REF!=\"\"),\"\",IF(#REF!=\"Récréation\",CONCATENATE(#REF!&\" / \"&#REF!)&CHAR(10)&\"RECREATION\",CONCATENATE(#REF!&\" / \"&#REF!)&CHAR(10)&\"Matière : \"&#REF!&CHAR(10)&\"Compétences : \"&#REF!))","v":{"$error":"#REF!"}},{"$f":"IF(AND(#REF!=\"\",#REF!=\"\"),\"\",IF(#REF!=\"Récréation\",CONCATENATE(#REF!&\" / \"&#REF!)&CHAR(10)&\"RECREATION\",CONCATENATE(#REF!&\" / \"&#REF!)&CHAR(10)&\"Matière : \"&#REF!&CHAR(10)&\"Compétences : \"&#REF!))","v":{"$error":"#REF!"}},{"$f":"IF(AND(#REF!=\"\",#REF!=\"\"),\"\",IF(#REF!=\"Récréation\",CONCATENATE(#REF!&\" / \"&#REF!)&CHAR(10)&\"RECREATION\",CONCATENATE(#REF!&\" / \"&#REF!)&CHAR(10)&\"Matière : \"&#REF!&CHAR(10)&\"Compétences : \"&#REF!))","v":{"$error":"#REF!"}},{"$f":"IF(AND(#REF!=\"\",#REF!=\"\"),\"\",IF(#REF!=\"Récréation\",CONCATENATE(#REF!&\" / \"&#REF!)&CHAR(10)&\"RECREATION\",CONCATENATE(#REF!&\" / \"&#REF!)&CHAR(10)&\"Matière : \"&#REF!&CHAR(10)&\"Compétences : \"&#REF!))","v":{"$error":"#REF!"}},{"$f":"IF(AND(#REF!=\"\",#REF!=\"\"),\"\",IF(#REF!=\"Récréation\",CONCATENATE(#REF!&\" / \"&#REF!)&CHAR(10)&\"RECREATION\",CONCATENATE(#REF!&\" / \"&#REF!)&CHAR(10)&\"Matière : \"&#REF!&CHAR(10)&\"Compétences : \"&#REF!))","v":{"$error":"#REF!"}}]
[{"$f":"IF(AND(#REF!=\"\",#REF!=\"\"),\"\",IF(#REF!=\"Récréation\",CONCATENATE(#REF!&\" / \"&#REF!)&CHAR(10)&\"RECREATION\",CONCATENATE(#REF!&\" / \"&#REF!)&CHAR(10)&\"Matière : \"&#REF!&CHAR(10)&\"Compétences : \"&#REF!))","v":{"$error":"#REF!"}},{"$f":"IF(AND(#REF!=\"\",#REF!=\"\"),\"\",IF(#REF!=\"Récréation\",CONCATENATE(#REF!&\" / \"&#REF!)&CHAR(10)&\"RECREATION\",CONCATENATE(#REF!&\" / \"&#REF!)&CHAR(10)&\"Matière : \"&#REF!&CHAR(10)&\"Compétences : \"&#REF!))","v":{"$error":"#REF!"}},{"$f":"IF(AND(#REF!=\"\",#REF!=\"\"),\"\",IF(#REF!=\"Récréation\",CONCATENATE(#REF!&\" / \"&#REF!)&CHAR(10)&\"RECREATION\",CONCATENATE(#REF!&\" / \"&#REF!)&CHAR(10)&\"Matière : \"&#REF!&CHAR(10)&\"Compétences : \"&#REF!))","v":{"$error":"#REF!"}},{"$f":"IF(AND(#REF!=\"\",#REF!=\"\"),\"\",IF(#REF!=\"Récréation\",CONCATENATE(#REF!&\" / \"&#REF!)&CHAR(10)&\"RECREATION\",CONCATENATE(#REF!&\" / \"&#REF!)&CHAR(10)&\"Matière : \"&#REF!&CHAR(10)&\"Compétences : \"&#REF!))","v":{"$error":"#REF!"}},{"$f":"IF(AND(#REF!=\"\",#REF!=\"\"),\"\",IF(#REF!=\"Récréation\",CONCATENATE(#REF!&\" / \"&#REF!)&CHAR(10)&\"RECREATION\",CONCATENATE(#REF!&\" / \"&#REF!)&CHAR(10)&\"Matière : \"&#REF!&CHAR(10)&\"Compétences : \"&#REF!))","v":{"$error":"#REF!"}}]
[{"$f":"IF(AND(#REF!=\"\",#REF!=\"\"),\"\",IF(#REF!=\"Récréation\",CONCATENATE(#REF!&\" / \"&#REF!)&CHAR(10)&\"RECREATION\",CONCATENATE(#REF!&\" / \"&#REF!)&CHAR(10)&\"Matière : \"&#REF!&CHAR(10)&\"Compétences : \"&#REF!))","v":{"$error":"#REF!"}},{"$f":"IF(AND(#REF!=\"\",#REF!=\"\"),\"\",IF(#REF!=\"Récréation\",CONCATENATE(#REF!&\" / \"&#REF!)&CHAR(10)&\"RECREATION\",CONCATENATE(#REF!&\" / \"&#REF!)&CHAR(10)&\"Matière : \"&#REF!&CHAR(10)&\"Compétences : \"&#REF!))","v":{"$error":"#REF!"}},{"$f":"IF(AND(#REF!=\"\",#REF!=\"\"),\"\",IF(#REF!=\"Récréation\",CONCATENATE(#REF!&\" / \"&#REF!)&CHAR(10)&\"RECREATION\",CONCATENATE(#REF!&\" / \"&#REF!)&CHAR(10)&\"Matière : \"&#REF!&CHAR(10)&\"Compétences : \"&#REF!))","v":{"$error":"#REF!"}},{"$f":"IF(AND(#REF!=\"\",#REF!=\"\"),\"\",IF(#REF!=\"Récréation\",CONCATENATE(#REF!&\" / \"&#REF!)&CHAR(10)&\"RECREATION\",CONCATENATE(#REF!&\" / \"&#REF!)&CHAR(10)&\"Matière : \"&#REF!&CHAR(10)&\"Compétences : \"&#REF!))","v":{"$error":"#REF!"}},{"$f":"IF(AND(#REF!=\"\",#REF!=\"\"),\"\",IF(#REF!=\"Récréation\",CONCATENATE(#REF!&\" / \"&#REF!)&CHAR(10)&\"RECREATION\",CONCATENATE(#REF!&\" / \"&#REF!)&CHAR(10)&\"Matière : \"&#REF!&CHAR(10)&\"Compétences : \"&#REF!))","v":{"$error":"#REF!"}}]
[{"$f":"IF(AND(#REF!=\"\",#REF!=\"\"),\"\",IF(#REF!=\"Récréation\",CONCATENATE(#REF!&\" / \"&#REF!)&CHAR(10)&\"RECREATION\",CONCATENATE(#REF!&\" / \"&#REF!)&CHAR(10)&\"Matière : \"&#REF!&CHAR(10)&\"Compétences : \"&#REF!))","v":{"$error":"#REF!"}},{"$f":"IF(AND(#REF!=\"\",#REF!=\"\"),\"\",IF(#REF!=\"Récréation\",CONCATENATE(#REF!&\" / \"&#REF!)&CHAR(10)&\"RECREATION\",CONCATENATE(#REF!&\" / \"&#REF!)&CHAR(10)&\"Matière : \"&#REF!&CHAR(10)&\"Compétences : \"&#REF!))","v":{"$error":"#REF!"}},{"$f":"IF(AND(#REF!=\"\",#REF!=\"\"),\"\",IF(#REF!=\"Récréation\",CONCATENATE(#REF!&\" / \"&#REF!)&CHAR(10)&\"RECREATION\",CONCATENATE(#REF!&\" / \"&#REF!)&CHAR(10)&\"Matière : \"&#REF!&CHAR(10)&\"Compétences : \"&#REF!))","v":{"$error":"#REF!"}},{"$f":"IF(AND(#REF!=\"\",#REF!=\"\"),\"\",IF(#REF!=\"Récréation\",CONCATENATE(#REF!&\" / \"&#REF!)&CHAR(10)&\"RECREATION\",CONCATENATE(#REF!&\" / \"&#REF!)&CHAR(10)&\"Matière : \"&#REF!&CHAR(10)&\"Compétences : \"&#REF!))","v":{"$error":"#REF!"}},{"$f":"IF(AND(#REF!=\"\",#REF!=\"\"),\"\",IF(#REF!=\"Récréation\",CONCATENATE(#REF!&\" / \"&#REF!)&CHAR(10)&\"RECREATION\",CONCATENATE(#REF!&\" / \"&#REF!)&CHAR(10)&\"Matière : \"&#REF!&CHAR(10)&\"Compétences : \"&#REF!))","v":{"$error":"#REF!"}}]
[{"$f":"IF(AND(#REF!=\"\",#REF!=\"\"),\"\",IF(#REF!=\"Récréation\",CONCATENATE(#REF!&\" / \"&#REF!)&CHAR(10)&\"RECREATION\",CONCATENATE(#REF!&\" / \"&#REF!)&CHAR(10)&\"Matière : \"&#REF!&CHAR(10)&\"Compétences : \"&#REF!))","v":{"$error":"#REF!"}},{"$f":"IF(AND(#REF!=\"\",#REF!=\"\"),\"\",IF(#REF!=\"Récréation\",CONCATENATE(#REF!&\" / \"&#REF!)&CHAR(10)&\"RECREATION\",CONCATENATE(#REF!&\" / \"&#REF!)&CHAR(10)&\"Matière : \"&#REF!&CHAR(10)&\"Compétences : \"&#REF!))","v":{"$error":"#REF!"}},{"$f":"IF(AND(#REF!=\"\",#REF!=\"\"),\"\",IF(#REF!=\"Récréation\",CONCATENATE(#REF!&\" / \"&#REF!)&CHAR(10)&\"RECREATION\",CONCATENATE(#REF!&\" / \"&#REF!)&CHAR(10)&\"Matière : \"&#REF!&CHAR(10)&\"Compétences : \"&#REF!))","v":{"$error":"#REF!"}},{"$f":"IF(AND(#REF!=\"\",#REF!=\"\"),\"\",IF(#REF!=\"Récréation\",CONCATENATE(#REF!&\" / \"&#REF!)&CHAR(10)&\"RECREATION\",CONCATENATE(#REF!&\" / \"&#REF!)&CHAR(10)&\"Matière : \"&#REF!&CHAR(10)&\"Compétences : \"&#REF!))","v":{"$error":"#REF!"}},{"$f":"IF(AND(#REF!=\"\",#REF!=\"\"),\"\",IF(#REF!=\"Récréation\",CONCATENATE(#REF!&\" / \"&#REF!)&CHAR(10)&\"RECREATION\",CONCATENATE(#REF!&\" / \"&#REF!)&CHAR(10)&\"Matière : \"&#REF!&CHAR(10)&\"Compétences : \"&#REF!))","v":{"$error":"#REF!"}}]
[{"$f":"IF(AND(#REF!=\"\",#REF!=\"\"),\"\",IF(#REF!=\"Récréation\",CONCATENATE(#REF!&\" / \"&#REF!)&CHAR(10)&\"RECREATION\",CONCATENATE(#REF!&\" / \"&#REF!)&CHAR(10)&\"Matière : \"&#REF!&CHAR(10)&\"Compétences : \"&#REF!))","v":{"$error":"#REF!"}},{"$f":"IF(AND(#REF!=\"\",#REF!=\"\"),\"\",IF(#REF!=\"Récréation\",CONCATENATE(#REF!&\" / \"&#REF!)&CHAR(10)&\"RECREATION\",CONCATENATE(#REF!&\" / \"&#REF!)&CHAR(10)&\"Matière : \"&#REF!&CHAR(10)&\"Compétences : \"&#REF!))","v":{"$error":"#REF!"}},{"$f":"IF(AND(#REF!=\"\",#REF!=\"\"),\"\",IF(#REF!=\"Récréation\",CONCATENATE(#REF!&\" / \"&#REF!)&CHAR(10)&\"RECREATION\",CONCATENATE(#REF!&\" / \"&#REF!)&CHAR(10)&\"Matière : \"&#REF!&CHAR(10)&\"Compétences : \"&#REF!))","v":{"$error":"#REF!"}},{"$f":"IF(AND(#REF!=\"\",#REF!=\"\"),\"\",IF(#REF!=\"Récréation\",CONCATENATE(#REF!&\" / \"&#REF!)&CHAR(10)&\"RECREATION\",CONCATENATE(#REF!&\" / \"&#REF!)&CHAR(10)&\"Matière : \"&#REF!&CHAR(10)&\"Compétences : \"&#REF!))","v":{"$error":"#REF!"}},{"$f":"IF(AND(#REF!=\"\",#REF!=\"\"),\"\",IF(#REF!=\"Récréation\",CONCATENATE(#REF!&\" / \"&#REF!)&CHAR(10)&\"RECREATION\",CONCATENATE(#REF!&\" / \"&#REF!)&CHAR(10)&\"Matière : \"&#REF!&CHAR(10)&\"Compétences : \"&#REF!))","v":{"$error":"#REF!"}}]
[{"$f":"IF(AND(#REF!=\"\",#REF!=\"\"),\"\",IF(#REF!=\"Récréation\",CONCATENATE(#REF!&\" / \"&#REF!)&CHAR(10)&\"RECREATION\",CONCATENATE(#REF!&\" / \"&#REF!)&CHAR(10)&\"Matière : \"&#REF!&CHAR(10)&\"Compétences : \"&#REF!))","v":{"$error":"#REF!"}},{"$f":"IF(AND(#REF!=\"\",#REF!=\"\"),\"\",IF(#REF!=\"Récréation\",CONCATENATE(#REF!&\" / \"&#REF!)&CHAR(10)&\"RECREATION\",CONCATENATE(#REF!&\" / \"&#REF!)&CHAR(10)&\"Matière : \"&#REF!&CHAR(10)&\"Compétences : \"&#REF!))","v":{"$error":"#REF!"}},{"$f":"IF(AND(#REF!=\"\",#REF!=\"\"),\"\",IF(#REF!=\"Récréation\",CONCATENATE(#REF!&\" / \"&#REF!)&CHAR(10)&\"RECREATION\",CONCATENATE(#REF!&\" / \"&#REF!)&CHAR(10)&\"Matière : \"&#REF!&CHAR(10)&\"Compétences : \"&#REF!))","v":{"$error":"#REF!"}},{"$f":"IF(AND(#REF!=\"\",#REF!=\"\"),\"\",IF(#REF!=\"Récréation\",CONCATENATE(#REF!&\" / \"&#REF!)&CHAR(10)&\"RECREATION\",CONCATENATE(#REF!&\" / \"&#REF!)&CHAR(10)&\"Matière : \"&#REF!&CHAR(10)&\"Compétences : \"&#REF!))","v":{"$error":"#REF!"}},{"$f":"IF(AND(#REF!=\"\",#REF!=\"\"),\"\",IF(#REF!=\"Récréation\",CONCATENATE(#REF!&\" / \"&#REF!)&CHAR(10)&\"RECREATION\",CONCATENATE(#REF!&\" / \"&#REF!)&CHAR(10)&\"Matière : \"&#REF!&CHAR(10)&\"Compétences : \"&#REF!))","v":{"$error":"#REF!"}}]
[{"$f":"IF(AND(#REF!=\"\",#REF!=\"\"),\"\",IF(#REF!=\"Récréation\",CONCATENATE(#REF!&\" / \"&#REF!)&CHAR(10)&\"RECREATION\",CONCATENATE(#REF!&\" / \"&#REF!)&CHAR(10)&\"Matière : \"&#REF!&CHAR(10)&\"Compétences : \"&#REF!))","v":{"$error":"#REF!"}},{"$f":"IF(AND(#REF!=\"\",#REF!=\"\"),\"\",IF(#REF!=\"Récréation\",CONCATENATE(#REF!&\" / \"&#REF!)&CHAR(10)&\"RECREATION\",CONCATENATE(#REF!&\" / \"&#REF!)&CHAR(10)&\"Matière : \"&#REF!&CHAR(10)&\"Compétences : \"&#REF!))","v":{"$error":"#REF!"}},{"$f":"IF(AND(#REF!=\"\",#REF!=\"\"),\"\",IF(#REF!=\"Récréation\",CONCATENATE(#REF!&\" / \"&#REF!)&CHAR(10)&\"RECREATION\",CONCATENATE(#REF!&\" / \"&#REF!)&CHAR(10)&\"Matière : \"&#REF!&CHAR(10)&\"Compétences : \"&#REF!))","v":{"$error":"#REF!"}},{"$f":"IF(AND(#REF!=\"\",#REF!=\"\"),\"\",IF(#REF!=\"Récréation\",CONCATENATE(#REF!&\" / \"&#REF!)&CHAR(10)&\"RECREATION\",CONCATENATE(#REF!&\" / \"&#REF!)&CHAR(10)&\"Matière : \"&#REF!&CHAR(10)&\"Compétences : \"&#REF!))","v":{"$error":"#REF!"}},{"$f":"IF(AND(#REF!=\"\",#REF!=\"\"),\"\",IF(#REF!=\"Récréation\",CONCATENATE(#REF!&\" / \"&#REF!)&CHAR(10)&\"RECREATION\",CONCATENATE(#REF!&\" / \"&#REF!)&CHAR(10)&\"Matière : \"&#REF!&CHAR(10)&\"Compétences : \"&#REF!))","v":{"$error":"#REF!"}}]
[{"$f":"IF(AND(#REF!=\"\",#REF!=\"\"),\"\",IF(#REF!=\"Récréation\",CONCATENATE(#REF!&\" / \"&#REF!)&CHAR(10)&\"RECREATION\",CONCATENATE(#REF!&\" / \"&#REF!)&CHAR(10)&\"Matière : \"&#REF!&CHAR(10)&\"Compétences : \"&#REF!))","v":{"$error":"#REF!"}},{"$f":"IF(AND(#REF!=\"\",#REF!=\"\"),\"\",IF(#REF!=\"Récréation\",CONCATENATE(#REF!&\" / \"&#REF!)&CHAR(10)&\"RECREATION\",CONCATENATE(#REF!&\" / \"&#REF!)&CHAR(10)&\"Matière : \"&#REF!&CHAR(10)&\"Compétences : \"&#REF!))","v":{"$error":"#REF!"}},{"$f":"IF(AND(#REF!=\"\",#REF!=\"\"),\"\",IF(#REF!=\"Récréation\",CONCATENATE(#REF!&\" / \"&#REF!)&CHAR(10)&\"RECREATION\",CONCATENATE(#REF!&\" / \"&#REF!)&CHAR(10)&\"Matière : \"&#REF!&CHAR(10)&\"Compétences : \"&#REF!))","v":{"$error":"#REF!"}},{"$f":"IF(AND(#REF!=\"\",#REF!=\"\"),\"\",IF(#REF!=\"Récréation\",CONCATENATE(#REF!&\" / \"&#REF!)&CHAR(10)&\"RECREATION\",CONCATENATE(#REF!&\" / \"&#REF!)&CHAR(10)&\"Matière : \"&#REF!&CHAR(10)&\"Compétences : \"&#REF!))","v":{"$error":"#REF!"}},{"$f":"IF(AND(#REF!=\"\",#REF!=\"\"),\"\",IF(#REF!=\"Récréation\",CONCATENATE(#REF!&\" / \"&#REF!)&CHAR(10)&\"RECREATION\",CONCATENATE(#REF!&\" / \"&#REF!)&CHAR(10)&\"Matière : \"&#REF!&CHAR(10)&\"Compétences : \"&#REF!))","v":{"$error":"#REF!"}}]
[{"$f":"IF(AND(#REF!=\"\",#REF!=\"\"),\"\",IF(#REF!=\"Récréation\",CONCATENATE(#REF!&\" / \"&#REF!)&CHAR(10)&\"RECREATION\",CONCATENATE(#REF!&\" / \"&#REF!)&CHAR(10)&\"Matière : \"&#REF!&CHAR(10)&\"Compétences : \"&#REF!))","v":{"$error":"#REF!"}},{"$f":"IF(AND(#REF!=\"\",#REF!=\"\"),\"\",IF(#REF!=\"Récréation\",CONCATENATE(#REF!&\" / \"&#REF!)&CHAR(10)&\"RECREATION\",CONCATENATE(#REF!&\" / \"&#REF!)&CHAR(10)&\"Matière : \"&#REF!&CHAR(10)&\"Compétences : \"&#REF!))","v":{"$error":"#REF!"}},{"$f":"IF(AND(#REF!=\"\",#REF!=\"\"),\"\",IF(#REF!=\"Récréation\",CONCATENATE(#REF!&\" / \"&#REF!)&CHAR(10)&\"RECREATION\",CONCATENATE(#REF!&\" / \"&#REF!)&CHAR(10)&\"Matière : \"&#REF!&CHAR(10)&\"Compétences : \"&#REF!))","v":{"$error":"#REF!"}},{"$f":"IF(AND(#REF!=\"\",#REF!=\"\"),\"\",IF(#REF!=\"Récréation\",CONCATENATE(#REF!&\" / \"&#REF!)&CHAR(10)&\"RECREATION\",CONCATENATE(#REF!&\" / \"&#REF!)&CHAR(10)&\"Matière : \"&#REF!&CHAR(10)&\"Compétences : \"&#REF!))","v":{"$error":"#REF!"}},{"$f":"IF(AND(#REF!=\"\",#REF!=\"\"),\"\",IF(#REF!=\"Récréation\",CONCATENATE(#REF!&\" / \"&#REF!)&CHAR(10)&\"RECREATION\",CONCATENATE(#REF!&\" / \"&#REF!)&CHAR(10)&\"Matière : \"&#REF!&CHAR(10)&\"Compétences : \"&#REF!))","v":{"$error":"#REF!"}}]
[{"$f":"IF(AND(#REF!=\"\",#REF!=\"\"),\"\",IF(#REF!=\"Récréation\",CONCATENATE(#REF!&\" / \"&#REF!)&CHAR(10)&\"RECREATION\",CONCATENATE(#REF!&\" / \"&#REF!)&CHAR(10)&\"Matière : \"&#REF!&CHAR(10)&\"Compétences : \"&#REF!))","v":{"$error":"#REF!"}},{"$f":"IF(AND(#REF!=\"\",#REF!=\"\"),\"\",IF(#REF!=\"Récréation\",CONCATENATE(#REF!&\" / \"&#REF!)&CHAR(10)&\"RECREATION\",CONCATENATE(#REF!&\" / \"&#REF!)&CHAR(10)&\"Matière : \"&#REF!&CHAR(10)&\"Compétences : \"&#REF!))","v":{"$error":"#REF!"}},{"$f":"IF(AND(#REF!=\"\",#REF!=\"\"),\"\",IF(#REF!=\"Récréation\",CONCATENATE(#REF!&\" / \"&#REF!)&CHAR(10)&\"RECREATION\",CONCATENATE(#REF!&\" / \"&#REF!)&CHAR(10)&\"Matière : \"&#REF!&CHAR(10)&\"Compétences : \"&#REF!))","v":{"$error":"#REF!"}},{"$f":"IF(AND(#REF!=\"\",#REF!=\"\"),\"\",IF(#REF!=\"Récréation\",CONCATENATE(#REF!&\" / \"&#REF!)&CHAR(10)&\"RECREATION\",CONCATENATE(#REF!&\" / \"&#REF!)&CHAR(10)&\"Matière : \"&#REF!&CHAR(10)&\"Compétences : \"&#REF!))","v":{"$error":"#REF!"}},{"$f":"IF(AND(#REF!=\"\",#REF!=\"\"),\"\",IF(#REF!=\"Récréation\",CONCATENATE(#REF!&\" / \"&#REF!)&CHAR(10)&\"RECREATION\",CONCATENATE(#REF!&\" / \"&#REF!)&CHAR(10)&\"Matière : \"&#REF!&CHAR(10)&\"Compétences : \"&#REF!))","v":{"$error":"#REF!"}}]
[{"$f":"IF(AND(#REF!=\"\",#REF!=\"\"),\"\",IF(#REF!=\"Récréation\",CONCATENATE(#REF!&\" / \"&#REF!)&CHAR(10)&\"RECREATION\",CONCATENATE(#REF!&\" / \"&#REF!)&CHAR(10)&\"Matière : \"&#REF!&CHAR(10)&\"Compétences : \"&#REF!))","v":{"$error":"#REF!"}},{"$f":"IF(AND(#REF!=\"\",#REF!=\"\"),\"\",IF(#REF!=\"Récréation\",CONCATENATE(#REF!&\" / \"&#REF!)&CHAR(10)&\"RECREATION\",CONCATENATE(#REF!&\" / \"&#REF!)&CHAR(10)&\"Matière : \"&#REF!&CHAR(10)&\"Compétences : \"&#REF!))","v":{"$error":"#REF!"}},{"$f":"IF(AND(#REF!=\"\",#REF!=\"\"),\"\",IF(#REF!=\"Récréation\",CONCATENATE(#REF!&\" / \"&#REF!)&CHAR(10)&\"RECREATION\",CONCATENATE(#REF!&\" / \"&#REF!)&CHAR(10)&\"Matière : \"&#REF!&CHAR(10)&\"Compétences : \"&#REF!))","v":{"$error":"#REF!"}},{"$f":"IF(AND(#REF!=\"\",#REF!=\"\"),\"\",IF(#REF!=\"Récréation\",CONCATENATE(#REF!&\" / \"&#REF!)&CHAR(10)&\"RECREATION\",CONCATENATE(#REF!&\" / \"&#REF!)&CHAR(10)&\"Matière : \"&#REF!&CHAR(10)&\"Compétences : \"&#REF!))","v":{"$error":"#REF!"}},{"$f":"IF(AND(#REF!=\"\",#REF!=\"\"),\"\",IF(#REF!=\"Récréation\",CONCATENATE(#REF!&\" / \"&#REF!)&CHAR(10)&\"RECREATION\",CONCATENATE(#REF!&\" / \"&#REF!)&CHAR(10)&\"Matière : \"&#REF!&CHAR(10)&\"Compétences : \"&#REF!))","v":{"$error":"#REF!"}}]
[{"$f":"IF(AND(#REF!=\"\",#REF!=\"\"),\"\",IF(#REF!=\"Récréation\",CONCATENATE(#REF!&\" / \"&#REF!)&CHAR(10)&\"RECREATION\",CONCATENATE(#REF!&\" / \"&#REF!)&CHAR(10)&\"Matière : \"&#REF!&CHAR(10)&\"Compétences : \"&#REF!))","v":{"$error":"#REF!"}},{"$f":"IF(AND(#REF!=\"\",#REF!=\"\"),\"\",IF(#REF!=\"Récréation\",CONCATENATE(#REF!&\" / \"&#REF!)&CHAR(10)&\"RECREATION\",CONCATENATE(#REF!&\" / \"&#REF!)&CHAR(10)&\"Matière : \"&#REF!&CHAR(10)&\"Compétences : \"&#REF!))","v":{"$error":"#REF!"}},{"$f":"IF(AND(#REF!=\"\",#REF!=\"\"),\"\",IF(#REF!=\"Récréation\",CONCATENATE(#REF!&\" / \"&#REF!)&CHAR(10)&\"RECREATION\",CONCATENATE(#REF!&\" / \"&#REF!)&CHAR(10)&\"Matière : \"&#REF!&CHAR(10)&\"Compétences : \"&#REF!))","v":{"$error":"#REF!"}},{"$f":"IF(AND(#REF!=\"\",#REF!=\"\"),\"\",IF(#REF!=\"Récréation\",CONCATENATE(#REF!&\" / \"&#REF!)&CHAR(10)&\"RECREATION\",CONCATENATE(#REF!&\" / \"&#REF!)&CHAR(10)&\"Matière : \"&#REF!&CHAR(10)&\"Compétences : \"&#REF!))","v":{"$error":"#REF!"}},{"$f":"IF(AND(#REF!=\"\",#REF!=\"\"),\"\",IF(#REF!=\"Récréation\",CONCATENATE(#REF!&\" / \"&#REF!)&CHAR(10)&\"RECREATION\",CONCATENATE(#REF!&\" / \"&#REF!)&CHAR(10)&\"Matière : \"&#REF!&CHAR(10)&\"Compétences : \"&#REF!))","v":{"$error":"#REF!"}}]
[{"$f":"IF(AND(#REF!=\"\",#REF!=\"\"),\"\",IF(#REF!=\"Récréation\",CONCATENATE(#REF!&\" / \"&#REF!)&CHAR(10)&\"RECREATION\",CONCATENATE(#REF!&\" / \"&#REF!)&CHAR(10)&\"Matière : \"&#REF!&CHAR(10)&\"Compétences : \"&#REF!))","v":{"$error":"#REF!"}},{"$f":"IF(AND(#REF!=\"\",#REF!=\"\"),\"\",IF(#REF!=\"Récréation\",CONCATENATE(#REF!&\" / \"&#REF!)&CHAR(10)&\"RECREATION\",CONCATENATE(#REF!&\" / \"&#REF!)&CHAR(10)&\"Matière : \"&#REF!&CHAR(10)&\"Compétences : \"&#REF!))","v":{"$error":"#REF!"}},{"$f":"IF(AND(#REF!=\"\",#REF!=\"\"),\"\",IF(#REF!=\"Récréation\",CONCATENATE(#REF!&\" / \"&#REF!)&CHAR(10)&\"RECREATION\",CONCATENATE(#REF!&\" / \"&#REF!)&CHAR(10)&\"Matière : \"&#REF!&CHAR(10)&\"Compétences : \"&#REF!))","v":{"$error":"#REF!"}},{"$f":"IF(AND(#REF!=\"\",#REF!=\"\"),\"\",IF(#REF!=\"Récréation\",CONCATENATE(#REF!&\" / \"&#REF!)&CHAR(10)&\"RECREATION\",CONCATENATE(#REF!&\" / \"&#REF!)&CHAR(10)&\"Matière : \"&#REF!&CHAR(10)&\"Compétences : \"&#REF!))","v":{"$error":"#REF!"}},{"$f":"IF(AND(#REF!=\"\",#REF!=\"\"),\"\",IF(#REF!=\"Récréation\",CONCATENATE(#REF!&\" / \"&#REF!)&CHAR(10)&\"RECREATION\",CONCATENATE(#REF!&\" / \"&#REF!)&CHAR(10)&\"Matière : \"&#REF!&CHAR(10)&\"Compétences : \"&#REF!))","v":{"$error":"#REF!"}}]
[{"$f":"IF(AND(#REF!=\"\",#REF!=\"\"),\"\",IF(#REF!=\"Récréation\",CONCATENATE(#REF!&\" / \"&#REF!)&CHAR(10)&\"RECREATION\",CONCATENATE(#REF!&\" / \"&#REF!)&CHAR(10)&\"Matière : \"&#REF!&CHAR(10)&\"Compétences : \"&#REF!))","v":{"$error":"#REF!"}},{"$f":"IF(AND(#REF!=\"\",#REF!=\"\"),\"\",IF(#REF!=\"Récréation\",CONCATENATE(#REF!&\" / \"&#REF!)&CHAR(10)&\"RECREATION\",CONCATENATE(#REF!&\" / \"&#REF!)&CHAR(10)&\"Matière : \"&#REF!&CHAR(10)&\"Compétences : \"&#REF!))","v":{"$error":"#REF!"}},{"$f":"IF(AND(#REF!=\"\",#REF!=\"\"),\"\",IF(#REF!=\"Récréation\",CONCATENATE(#REF!&\" / \"&#REF!)&CHAR(10)&\"RECREATION\",CONCATENATE(#REF!&\" / \"&#REF!)&CHAR(10)&\"Matière : \"&#REF!&CHAR(10)&\"Compétences : \"&#REF!))","v":{"$error":"#REF!"}},{"$f":"IF(AND(#REF!=\"\",#REF!=\"\"),\"\",IF(#REF!=\"Récréation\",CONCATENATE(#REF!&\" / \"&#REF!)&CHAR(10)&\"RECREATION\",CONCATENATE(#REF!&\" / \"&#REF!)&CHAR(10)&\"Matière : \"&#REF!&CHAR(10)&\"Compétences : \"&#REF!))","v":{"$error":"#REF!"}},{"$f":"IF(AND(#REF!=\"\",#REF!=\"\"),\"\",IF(#REF!=\"Récréation\",CONCATENATE(#REF!&\" / \"&#REF!)&CHAR(10)&\"RECREATION\",CONCATENATE(#REF!&\" / \"&#REF!)&CHAR(10)&\"Matière : \"&#REF!&CHAR(10)&\"Compétences : \"&#REF!))","v":{"$error":"#REF!"}}]
[{"$f":"IF(AND(#REF!=\"\",#REF!=\"\"),\"\",IF(#REF!=\"Récréation\",CONCATENATE(#REF!&\" / \"&#REF!)&CHAR(10)&\"RECREATION\",CONCATENATE(#REF!&\" / \"&#REF!)&CHAR(10)&\"Matière : \"&#REF!&CHAR(10)&\"Compétences : \"&#REF!))","v":{"$error":"#REF!"}},{"$f":"IF(AND(#REF!=\"\",#REF!=\"\"),\"\",IF(#REF!=\"Récréation\",CONCATENATE(#REF!&\" / \"&#REF!)&CHAR(10)&\"RECREATION\",CONCATENATE(#REF!&\" / \"&#REF!)&CHAR(10)&\"Matière : \"&#REF!&CHAR(10)&\"Compétences : \"&#REF!))","v":{"$error":"#REF!"}},{"$f":"IF(AND(#REF!=\"\",#REF!=\"\"),\"\",IF(#REF!=\"Récréation\",CONCATENATE(#REF!&\" / \"&#REF!)&CHAR(10)&\"RECREATION\",CONCATENATE(#REF!&\" / \"&#REF!)&CHAR(10)&\"Matière : \"&#REF!&CHAR(10)&\"Compétences : \"&#REF!))","v":{"$error":"#REF!"}},{"$f":"IF(AND(#REF!=\"\",#REF!=\"\"),\"\",IF(#REF!=\"Récréation\",CONCATENATE(#REF!&\" / \"&#REF!)&CHAR(10)&\"RECREATION\",CONCATENATE(#REF!&\" / \"&#REF!)&CHAR(10)&\"Matière : \"&#REF!&CHAR(10)&\"Compétences : \"&#REF!))","v":{"$error":"#REF!"}},{"$f":"IF(AND(#REF!=\"\",#REF!=\"\"),\"\",IF(#REF!=\"Récréation\",CONCATENATE(#REF!&\" / \"&#REF!)&CHAR(10)&\"RECREATION\",CONCATENATE(#REF!&\" / \"&#REF!)&CHAR(10)&\"Matière : \"&#REF!&CHAR(10)&\"Compétences : \"&#REF!))","v":{"$error":"#REF!"}}]
[{"$f":"IF(AND(#REF!=\"\",#REF!=\"\"),\"\",IF(#REF!=\"Récréation\",CONCATENATE(#REF!&\" / \"&#REF!)&CHAR(10)&\"RECREATION\",CONCATENATE(#REF!&\" / \"&#REF!)&CHAR(10)&\"Matière : \"&#REF!&CHAR(10)&\"Compétences : \"&#REF!))","v":{"$error":"#REF!"}},{"$f":"IF(AND(#REF!=\"\",#REF!=\"\"),\"\",IF(#REF!=\"Récréation\",CONCATENATE(#REF!&\" / \"&#REF!)&CHAR(10)&\"RECREATION\",CONCATENATE(#REF!&\" / \"&#REF!)&CHAR(10)&\"Matière : \"&#REF!&CHAR(10)&\"Compétences : \"&#REF!))","v":{"$error":"#REF!"}},{"$f":"IF(AND(#REF!=\"\",#REF!=\"\"),\"\",IF(#REF!=\"Récréation\",CONCATENATE(#REF!&\" / \"&#REF!)&CHAR(10)&\"RECREATION\",CONCATENATE(#REF!&\" / \"&#REF!)&CHAR(10)&\"Matière : \"&#REF!&CHAR(10)&\"Compétences : \"&#REF!))","v":{"$error":"#REF!"}},{"$f":"IF(AND(#REF!=\"\",#REF!=\"\"),\"\",IF(#REF!=\"Récréation\",CONCATENATE(#REF!&\" / \"&#REF!)&CHAR(10)&\"RECREATION\",CONCATENATE(#REF!&\" / \"&#REF!)&CHAR(10)&\"Matière : \"&#REF!&CHAR(10)&\"Compétences : \"&#REF!))","v":{"$error":"#REF!"}},{"$f":"IF(AND(#REF!=\"\",#REF!=\"\"),\"\",IF(#REF!=\"Récréation\",CONCATENATE(#REF!&\" / \"&#REF!)&CHAR(10)&\"RECREATION\",CONCATENATE(#REF!&\" / \"&#REF!)&CHAR(10)&\"Matière : \"&#REF!&CHAR(10)&\"Compétences : \"&#REF!))","v":{"$error":"#REF!"}}]
[{"$f":"IF(AND(#REF!=\"\",#REF!=\"\"),\"\",IF(#REF!=\"Récréation\",CONCATENATE(#REF!&\" / \"&#REF!)&CHAR(10)&\"RECREATION\",CONCATENATE(#REF!&\" / \"&#REF!)&CHAR(10)&\"Matière : \"&#REF!&CHAR(10)&\"Compétences : \"&#REF!))","v":{"$error":"#REF!"}},{"$f":"IF(AND(#REF!=\"\",#REF!=\"\"),\"\",IF(#REF!=\"Récréation\",CONCATENATE(#REF!&\" / \"&#REF!)&CHAR(10)&\"RECREATION\",CONCATENATE(#REF!&\" / \"&#REF!)&CHAR(10)&\"Matière : \"&#REF!&CHAR(10)&\"Compétences : \"&#REF!))","v":{"$error":"#REF!"}},{"$f":"IF(AND(#REF!=\"\",#REF!=\"\"),\"\",IF(#REF!=\"Récréation\",CONCATENATE(#REF!&\" / \"&#REF!)&CHAR(10)&\"RECREATION\",CONCATENATE(#REF!&\" / \"&#REF!)&CHAR(10)&\"Matière : \"&#REF!&CHAR(10)&\"Compétences : \"&#REF!))","v":{"$error":"#REF!"}},{"$f":"IF(AND(#REF!=\"\",#REF!=\"\"),\"\",IF(#REF!=\"Récréation\",CONCATENATE(#REF!&\" / \"&#REF!)&CHAR(10)&\"RECREATION\",CONCATENATE(#REF!&\" / \"&#REF!)&CHAR(10)&\"Matière : \"&#REF!&CHAR(10)&\"Compétences : \"&#REF!))","v":{"$error":"#REF!"}},{"$f":"IF(AND(#REF!=\"\",#REF!=\"\"),\"\",IF(#REF!=\"Récréation\",CONCATENATE(#REF!&\" / \"&#REF!)&CHAR(10)&\"RECREATION\",CONCATENATE(#REF!&\" / \"&#REF!)&CHAR(10)&\"Matière : \"&#REF!&CHAR(10)&\"Compétences : \"&#REF!))","v":{"$error":"#REF!"}}]
[{"$f":"IF(AND(#REF!=\"\",#REF!=\"\"),\"\",IF(#REF!=\"Récréation\",CONCATENATE(#REF!&\" / \"&#REF!)&CHAR(10)&\"RECREATION\",CONCATENATE(#REF!&\" / \"&#REF!)&CHAR(10)&\"Matière : \"&#REF!&CHAR(10)&\"Compétences : \"&#REF!))","v":{"$error":"#REF!"}},{"$f":"IF(AND(#REF!=\"\",#REF!=\"\"),\"\",IF(#REF!=\"Récréation\",CONCATENATE(#REF!&\" / \"&#REF!)&CHAR(10)&\"RECREATION\",CONCATENATE(#REF!&\" / \"&#REF!)&CHAR(10)&\"Matière : \"&#REF!&CHAR(10)&\"Compétences : \"&#REF!))","v":{"$error":"#REF!"}},{"$f":"IF(AND(#REF!=\"\",#REF!=\"\"),\"\",IF(#REF!=\"Récréation\",CONCATENATE(#REF!&\" / \"&#REF!)&CHAR(10)&\"RECREATION\",CONCATENATE(#REF!&\" / \"&#REF!)&CHAR(10)&\"Matière : \"&#REF!&CHAR(10)&\"Compétences : \"&#REF!))","v":{"$error":"#REF!"}},{"$f":"IF(AND(#REF!=\"\",#REF!=\"\"),\"\",IF(#REF!=\"Récréation\",CONCATENATE(#REF!&\" / \"&#REF!)&CHAR(10)&\"RECREATION\",CONCATENATE(#REF!&\" / \"&#REF!)&CHAR(10)&\"Matière : \"&#REF!&CHAR(10)&\"Compétences : \"&#REF!))","v":{"$error":"#REF!"}},{"$f":"IF(AND(#REF!=\"\",#REF!=\"\"),\"\",IF(#REF!=\"Récréation\",CONCATENATE(#REF!&\" / \"&#REF!)&CHAR(10)&\"RECREATION\",CONCATENATE(#REF!&\" / \"&#REF!)&CHAR(10)&\"Matière : \"&#REF!&CHAR(10)&\"Compétences : \"&#REF!))","v":{"$error":"#REF!"}}]
[{"$f":"IF(AND(#REF!=\"\",#REF!=\"\"),\"\",IF(#REF!=\"Récréation\",CONCATENATE(#REF!&\" / \"&#REF!)&CHAR(10)&\"RECREATION\",CONCATENATE(#REF!&\" / \"&#REF!)&CHAR(10)&\"Matière : \"&#REF!&CHAR(10)&\"Compétences : \"&#REF!))","v":{"$error":"#REF!"}},{"$f":"IF(AND(#REF!=\"\",#REF!=\"\"),\"\",IF(#REF!=\"Récréation\",CONCATENATE(#REF!&\" / \"&#REF!)&CHAR(10)&\"RECREATION\",CONCATENATE(#REF!&\" / \"&#REF!)&CHAR(10)&\"Matière : \"&#REF!&CHAR(10)&\"Compétences : \"&#REF!))","v":{"$error":"#REF!"}},{"$f":"IF(AND(#REF!=\"\",#REF!=\"\"),\"\",IF(#REF!=\"Récréation\",CONCATENATE(#REF!&\" / \"&#REF!)&CHAR(10)&\"RECREATION\",CONCATENATE(#REF!&\" / \"&#REF!)&CHAR(10)&\"Matière : \"&#REF!&CHAR(10)&\"Compétences : \"&#REF!))","v":{"$error":"#REF!"}},{"$f":"IF(AND(#REF!=\"\",#REF!=\"\"),\"\",IF(#REF!=\"Récréation\",CONCATENATE(#REF!&\" / \"&#REF!)&CHAR(10)&\"RECREATION\",CONCATENATE(#REF!&\" / \"&#REF!)&CHAR(10)&\"Matière : \"&#REF!&CHAR(10)&\"Compétences : \"&#REF!))","v":{"$error":"#REF!"}},{"$f":"IF(AND(#REF!=\"\",#REF!=\"\"),\"\",IF(#REF!=\"Récréation\",CONCATENATE(#REF!&\" / \"&#REF!)&CHAR(10)&\"RECREATION\",CONCATENATE(#REF!&\" / \"&#REF!)&CHAR(10)&\"Matière : \"&#REF!&CHAR(10)&\"Compétences : \"&#REF!))","v":{"$error":"#REF!"}}]
[{"$f":"IF(AND(#REF!=\"\",#REF!=\"\"),\"\",IF(#REF!=\"Récréation\",CONCATENATE(#REF!&\" / \"&#REF!)&CHAR(10)&\"RECREATION\",CONCATENATE(#REF!&\" / \"&#REF!)&CHAR(10)&\"Matière : \"&#REF!&CHAR(10)&\"Compétences : \"&#REF!))","v":{"$error":"#REF!"}},{"$f":"IF(AND(#REF!=\"\",#REF!=\"\"),\"\",IF(#REF!=\"Récréation\",CONCATENATE(#REF!&\" / \"&#REF!)&CHAR(10)&\"RECREATION\",CONCATENATE(#REF!&\" / \"&#REF!)&CHAR(10)&\"Matière : \"&#REF!&CHAR(10)&\"Compétences : \"&#REF!))","v":{"$error":"#REF!"}},{"$f":"IF(AND(#REF!=\"\",#REF!=\"\"),\"\",IF(#REF!=\"Récréation\",CONCATENATE(#REF!&\" / \"&#REF!)&CHAR(10)&\"RECREATION\",CONCATENATE(#REF!&\" / \"&#REF!)&CHAR(10)&\"Matière : \"&#REF!&CHAR(10)&\"Compétences : \"&#REF!))","v":{"$error":"#REF!"}},{"$f":"IF(AND(#REF!=\"\",#REF!=\"\"),\"\",IF(#REF!=\"Récréation\",CONCATENATE(#REF!&\" / \"&#REF!)&CHAR(10)&\"RECREATION\",CONCATENATE(#REF!&\" / \"&#REF!)&CHAR(10)&\"Matière : \"&#REF!&CHAR(10)&\"Compétences : \"&#REF!))","v":{"$error":"#REF!"}},{"$f":"IF(AND(#REF!=\"\",#REF!=\"\"),\"\",IF(#REF!=\"Récréation\",CONCATENATE(#REF!&\" / \"&#REF!)&CHAR(10)&\"RECREATION\",CONCATENATE(#REF!&\" / \"&#REF!)&CHAR(10)&\"Matière : \"&#REF!&CHAR(10)&\"Compétences : \"&#REF!))","v":{"$error":"#REF!"}}]
[{"$f":"IF(AND(#REF!=\"\",#REF!=\"\"),\"\",IF(#REF!=\"Récréation\",CONCATENATE(#REF!&\" / \"&#REF!)&CHAR(10)&\"RECREATION\",CONCATENATE(#REF!&\" / \"&#REF!)&CHAR(10)&\"Matière : \"&#REF!&CHAR(10)&\"Compétences : \"&#REF!))","v":{"$error":"#REF!"}},{"$f":"IF(AND(#REF!=\"\",#REF!=\"\"),\"\",IF(#REF!=\"Récréation\",CONCATENATE(#REF!&\" / \"&#REF!)&CHAR(10)&\"RECREATION\",CONCATENATE(#REF!&\" / \"&#REF!)&CHAR(10)&\"Matière : \"&#REF!&CHAR(10)&\"Compétences : \"&#REF!))","v":{"$error":"#REF!"}},{"$f":"IF(AND(#REF!=\"\",#REF!=\"\"),\"\",IF(#REF!=\"Récréation\",CONCATENATE(#REF!&\" / \"&#REF!)&CHAR(10)&\"RECREATION\",CONCATENATE(#REF!&\" / \"&#REF!)&CHAR(10)&\"Matière : \"&#REF!&CHAR(10)&\"Compétences : \"&#REF!))","v":{"$error":"#REF!"}},{"$f":"IF(AND(#REF!=\"\",#REF!=\"\"),\"\",IF(#REF!=\"Récréation\",CONCATENATE(#REF!&\" / \"&#REF!)&CHAR(10)&\"RECREATION\",CONCATENATE(#REF!&\" / \"&#REF!)&CHAR(10)&\"Matière : \"&#REF!&CHAR(10)&\"Compétences : \"&#REF!))","v":{"$error":"#REF!"}},{"$f":"IF(AND(#REF!=\"\",#REF!=\"\"),\"\",IF(#REF!=\"Récréation\",CONCATENATE(#REF!&\" / \"&#REF!)&CHAR(10)&\"RECREATION\",CONCATENATE(#REF!&\" / \"&#REF!)&CHAR(10)&\"Matière : \"&#REF!&CHAR(10)&\"Compétences : \"&#REF!))","v":{"$error":"#REF!"}}]
[{"$f":"IF(AND(#REF!=\"\",#REF!=\"\"),\"\",IF(#REF!=\"Récréation\",CONCATENATE(#REF!&\" / \"&#REF!)&CHAR(10)&\"RECREATION\",CONCATENATE(#REF!&\" / \"&#REF!)&CHAR(10)&\"Matière : \"&#REF!&CHAR(10)&\"Compétences : \"&#REF!))","v":{"$error":"#REF!"}},{"$f":"IF(AND(#REF!=\"\",#REF!=\"\"),\"\",IF(#REF!=\"Récréation\",CONCATENATE(#REF!&\" / \"&#REF!)&CHAR(10)&\"RECREATION\",CONCATENATE(#REF!&\" / \"&#REF!)&CHAR(10)&\"Matière : \"&#REF!&CHAR(10)&\"Compétences : \"&#REF!))","v":{"$error":"#REF!"}},{"$f":"IF(AND(#REF!=\"\",#REF!=\"\"),\"\",IF(#REF!=\"Récréation\",CONCATENATE(#REF!&\" / \"&#REF!)&CHAR(10)&\"RECREATION\",CONCATENATE(#REF!&\" / \"&#REF!)&CHAR(10)&\"Matière : \"&#REF!&CHAR(10)&\"Compétences : \"&#REF!))","v":{"$error":"#REF!"}},{"$f":"IF(AND(#REF!=\"\",#REF!=\"\"),\"\",IF(#REF!=\"Récréation\",CONCATENATE(#REF!&\" / \"&#REF!)&CHAR(10)&\"RECREATION\",CONCATENATE(#REF!&\" / \"&#REF!)&CHAR(10)&\"Matière : \"&#REF!&CHAR(10)&\"Compétences : \"&#REF!))","v":{"$error":"#REF!"}},{"$f":"IF(AND(#REF!=\"\",#REF!=\"\"),\"\",IF(#REF!=\"Récréation\",CONCATENATE(#REF!&\" / \"&#REF!)&CHAR(10)&\"RECREATION\",CONCATENATE(#REF!&\" / \"&#REF!)&CHAR(10)&\"Matière : \"&#REF!&CHAR(10)&\"Compétences : \"&#REF!))","v":{"$error":"#REF!"}}]
[{"$f":"IF(AND(#REF!=\"\",#REF!=\"\"),\"\",IF(#REF!=\"Récréation\",CONCATENATE(#REF!&\" / \"&#REF!)&CHAR(10)&\"RECREATION\",CONCATENATE(#REF!&\" / \"&#REF!)&CHAR(10)&\"Matière : \"&#REF!&CHAR(10)&\"Compétences : \"&#REF!))","v":{"$error":"#REF!"}},{"$f":"IF(AND(#REF!=\"\",#REF!=\"\"),\"\",IF(#REF!=\"Récréation\",CONCATENATE(#REF!&\" / \"&#REF!)&CHAR(10)&\"RECREATION\",CONCATENATE(#REF!&\" / \"&#REF!)&CHAR(10)&\"Matière : \"&#REF!&CHAR(10)&\"Compétences : \"&#REF!))","v":{"$error":"#REF!"}},{"$f":"IF(AND(#REF!=\"\",#REF!=\"\"),\"\",IF(#REF!=\"Récréation\",CONCATENATE(#REF!&\" / \"&#REF!)&CHAR(10)&\"RECREATION\",CONCATENATE(#REF!&\" / \"&#REF!)&CHAR(10)&\"Matière : \"&#REF!&CHAR(10)&\"Compétences : \"&#REF!))","v":{"$error":"#REF!"}},{"$f":"IF(AND(#REF!=\"\",#REF!=\"\"),\"\",IF(#REF!=\"Récréation\",CONCATENATE(#REF!&\" / \"&#REF!)&CHAR(10)&\"RECREATION\",CONCATENATE(#REF!&\" / \"&#REF!)&CHAR(10)&\"Matière : \"&#REF!&CHAR(10)&\"Compétences : \"&#REF!))","v":{"$error":"#REF!"}},{"$f":"IF(AND(#REF!=\"\",#REF!=\"\"),\"\",IF(#REF!=\"Récréation\",CONCATENATE(#REF!&\" / \"&#REF!)&CHAR(10)&\"RECREATION\",CONCATENATE(#REF!&\" / \"&#REF!)&CHAR(10)&\"Matière : \"&#REF!&CHAR(10)&\"Compétences : \"&#REF!))","v":{"$error":"#REF!"}}]
[{"$f":"IF(AND(#REF!=\"\",#REF!=\"\"),\"\",IF(#REF!=\"Récréation\",CONCATENATE(#REF!&\" / \"&#REF!)&CHAR(10)&\"RECREATION\",CONCATENATE(#REF!&\" / \"&#REF!)&CHAR(10)&\"Matière : \"&#REF!&CHAR(10)&\"Compétences : \"&#REF!))","v":{"$error":"#REF!"}},{"$f":"IF(AND(#REF!=\"\",#REF!=\"\"),\"\",IF(#REF!=\"Récréation\",CONCATENATE(#REF!&\" / \"&#REF!)&CHAR(10)&\"RECREATION\",CONCATENATE(#REF!&\" / \"&#REF!)&CHAR(10)&\"Matière : \"&#REF!&CHAR(10)&\"Compétences : \"&#REF!))","v":{"$error":"#REF!"}},{"$f":"IF(AND(#REF!=\"\",#REF!=\"\"),\"\",IF(#REF!=\"Récréation\",CONCATENATE(#REF!&\" / \"&#REF!)&CHAR(10)&\"RECREATION\",CONCATENATE(#REF!&\" / \"&#REF!)&CHAR(10)&\"Matière : \"&#REF!&CHAR(10)&\"Compétences : \"&#REF!))","v":{"$error":"#REF!"}},{"$f":"IF(AND(#REF!=\"\",#REF!=\"\"),\"\",IF(#REF!=\"Récréation\",CONCATENATE(#REF!&\" / \"&#REF!)&CHAR(10)&\"RECREATION\",CONCATENATE(#REF!&\" / \"&#REF!)&CHAR(10)&\"Matière : \"&#REF!&CHAR(10)&\"Compétences : \"&#REF!))","v":{"$error":"#REF!"}},{"$f":"IF(AND(#REF!=\"\",#REF!=\"\"),\"\",IF(#REF!=\"Récréation\",CONCATENATE(#REF!&\" / \"&#REF!)&CHAR(10)&\"RECREATION\",CONCATENATE(#REF!&\" / \"&#REF!)&CHAR(10)&\"Matière : \"&#REF!&CHAR(10)&\"Compétences : \"&#REF!))","v":{"$error":"#REF!"}}]
[{"$f":"IF(AND(#REF!=\"\",#REF!=\"\"),\"\",IF(#REF!=\"Récréation\",CONCATENATE(#REF!&\" / \"&#REF!)&CHAR(10)&\"RECREATION\",CONCATENATE(#REF!&\" / \"&#REF!)&CHAR(10)&\"Matière : \"&#REF!&CHAR(10)&\"Compétences : \"&#REF!))","v":{"$error":"#REF!"}},{"$f":"IF(AND(#REF!=\"\",#REF!=\"\"),\"\",IF(#REF!=\"Récréation\",CONCATENATE(#REF!&\" / \"&#REF!)&CHAR(10)&\"RECREATION\",CONCATENATE(#REF!&\" / \"&#REF!)&CHAR(10)&\"Matière : \"&#REF!&CHAR(10)&\"Compétences : \"&#REF!))","v":{"$error":"#REF!"}},{"$f":"IF(AND(#REF!=\"\",#REF!=\"\"),\"\",IF(#REF!=\"Récréation\",CONCATENATE(#REF!&\" / \"&#REF!)&CHAR(10)&\"RECREATION\",CONCATENATE(#REF!&\" / \"&#REF!)&CHAR(10)&\"Matière : \"&#REF!&CHAR(10)&\"Compétences : \"&#REF!))","v":{"$error":"#REF!"}},{"$f":"IF(AND(#REF!=\"\",#REF!=\"\"),\"\",IF(#REF!=\"Récréation\",CONCATENATE(#REF!&\" / \"&#REF!)&CHAR(10)&\"RECREATION\",CONCATENATE(#REF!&\" / \"&#REF!)&CHAR(10)&\"Matière : \"&#REF!&CHAR(10)&\"Compétences : \"&#REF!))","v":{"$error":"#REF!"}},{"$f":"IF(AND(#REF!=\"\",#REF!=\"\"),\"\",IF(#REF!=\"Récréation\",CONCATENATE(#REF!&\" / \"&#REF!)&CHAR(10)&\"RECREATION\",CONCATENATE(#REF!&\" / \"&#REF!)&CHAR(10)&\"Matière : \"&#REF!&CHAR(10)&\"Compétences : \"&#REF!))","v":{"$error":"#REF!"}}]
[{"$f":"IF(AND(#REF!=\"\",#REF!=\"\"),\"\",IF(#REF!=\"Récréation\",CONCATENATE(#REF!&\" / \"&#REF!)&CHAR(10)&\"RECREATION\",CONCATENATE(#REF!&\" / \"&#REF!)&CHAR(10)&\"Matière : \"&#REF!&CHAR(10)&\"Compétences : \"&#REF!))","v":{"$error":"#REF!"}},{"$f":"IF(AND(#REF!=\"\",#REF!=\"\"),\"\",IF(#REF!=\"Récréation\",CONCATENATE(#REF!&\" / \"&#REF!)&CHAR(10)&\"RECREATION\",CONCATENATE(#REF!&\" / \"&#REF!)&CHAR(10)&\"Matière : \"&#REF!&CHAR(10)&\"Compétences : \"&#REF!))","v":{"$error":"#REF!"}},{"$f":"IF(AND(#REF!=\"\",#REF!=\"\"),\"\",IF(#REF!=\"Récréation\",CONCATENATE(#REF!&\" / \"&#REF!)&CHAR(10)&\"RECREATION\",CONCATENATE(#REF!&\" / \"&#REF!)&CHAR(10)&\"Matière : \"&#REF!&CHAR(10)&\"Compétences : \"&#REF!))","v":{"$error":"#REF!"}},{"$f":"IF(AND(#REF!=\"\",#REF!=\"\"),\"\",IF(#REF!=\"Récréation\",CONCATENATE(#REF!&\" / \"&#REF!)&CHAR(10)&\"RECREATION\",CONCATENATE(#REF!&\" / \"&#REF!)&CHAR(10)&\"Matière : \"&#REF!&CHAR(10)&\"Compétences : \"&#REF!))","v":{"$error":"#REF!"}},{"$f":"IF(AND(#REF!=\"\",#REF!=\"\"),\"\",IF(#REF!=\"Récréation\",CONCATENATE(#REF!&\" / \"&#REF!)&CHAR(10)&\"RECREATION\",CONCATENATE(#REF!&\" / \"&#REF!)&CHAR(10)&\"Matière : \"&#REF!&CHAR(10)&\"Compétences : \"&#REF!))","v":{"$error":"#REF!"}}]
[{"$f":"IF(AND(#REF!=\"\",#REF!=\"\"),\"\",IF(#REF!=\"Récréation\",CONCATENATE(#REF!&\" / \"&#REF!)&CHAR(10)&\"RECREATION\",CONCATENATE(#REF!&\" / \"&#REF!)&CHAR(10)&\"Matière : \"&#REF!&CHAR(10)&\"Compétences : \"&#REF!))","v":{"$error":"#REF!"}},{"$f":"IF(AND(#REF!=\"\",#REF!=\"\"),\"\",IF(#REF!=\"Récréation\",CONCATENATE(#REF!&\" / \"&#REF!)&CHAR(10)&\"RECREATION\",CONCATENATE(#REF!&\" / \"&#REF!)&CHAR(10)&\"Matière : \"&#REF!&CHAR(10)&\"Compétences : \"&#REF!))","v":{"$error":"#REF!"}},{"$f":"IF(AND(#REF!=\"\",#REF!=\"\"),\"\",IF(#REF!=\"Récréation\",CONCATENATE(#REF!&\" / \"&#REF!)&CHAR(10)&\"RECREATION\",CONCATENATE(#REF!&\" / \"&#REF!)&CHAR(10)&\"Matière : \"&#REF!&CHAR(10)&\"Compétences : \"&#REF!))","v":{"$error":"#REF!"}},{"$f":"IF(AND(#REF!=\"\",#REF!=\"\"),\"\",IF(#REF!=\"Récréation\",CONCATENATE(#REF!&\" / \"&#REF!)&CHAR(10)&\"RECREATION\",CONCATENATE(#REF!&\" / \"&#REF!)&CHAR(10)&\"Matière : \"&#REF!&CHAR(10)&\"Compétences : \"&#REF!))","v":{"$error":"#REF!"}},{"$f":"IF(AND(#REF!=\"\",#REF!=\"\"),\"\",IF(#REF!=\"Récréation\",CONCATENATE(#REF!&\" / \"&#REF!)&CHAR(10)&\"RECREATION\",CONCATENATE(#REF!&\" / \"&#REF!)&CHAR(10)&\"Matière : \"&#REF!&CHAR(10)&\"Compétences : \"&#REF!))","v":{"$error":"#REF!"}}]
[{"$f":"IF(AND(#REF!=\"\",#REF!=\"\"),\"\",IF(#REF!=\"Récréation\",CONCATENATE(#REF!&\" / \"&#REF!)&CHAR(10)&\"RECREATION\",CONCATENATE(#REF!&\" / \"&#REF!)&CHAR(10)&\"Matière : \"&#REF!&CHAR(10)&\"Compétences : \"&#REF!))","v":{"$error":"#REF!"}},{"$f":"IF(AND(#REF!=\"\",#REF!=\"\"),\"\",IF(#REF!=\"Récréation\",CONCATENATE(#REF!&\" / \"&#REF!)&CHAR(10)&\"RECREATION\",CONCATENATE(#REF!&\" / \"&#REF!)&CHAR(10)&\"Matière : \"&#REF!&CHAR(10)&\"Compétences : \"&#REF!))","v":{"$error":"#REF!"}},{"$f":"IF(AND(#REF!=\"\",#REF!=\"\"),\"\",IF(#REF!=\"Récréation\",CONCATENATE(#REF!&\" / \"&#REF!)&CHAR(10)&\"RECREATION\",CONCATENATE(#REF!&\" / \"&#REF!)&CHAR(10)&\"Matière : \"&#REF!&CHAR(10)&\"Compétences : \"&#REF!))","v":{"$error":"#REF!"}},{"$f":"IF(AND(#REF!=\"\",#REF!=\"\"),\"\",IF(#REF!=\"Récréation\",CONCATENATE(#REF!&\" / \"&#REF!)&CHAR(10)&\"RECREATION\",CONCATENATE(#REF!&\" / \"&#REF!)&CHAR(10)&\"Matière : \"&#REF!&CHAR(10)&\"Compétences : \"&#REF!))","v":{"$error":"#REF!"}},{"$f":"IF(AND(#REF!=\"\",#REF!=\"\"),\"\",IF(#REF!=\"Récréation\",CONCATENATE(#REF!&\" / \"&#REF!)&CHAR(10)&\"RECREATION\",CONCATENATE(#REF!&\" / \"&#REF!)&CHAR(10)&\"Matière : \"&#REF!&CHAR(10)&\"Compétences : \"&#REF!))","v":{"$error":"#REF!"}}]
[{"$f":"IF(AND(#REF!=\"\",#REF!=\"\"),\"\",IF(#REF!=\"Récréation\",CONCATENATE(#REF!&\" / \"&#REF!)&CHAR(10)&\"RECREATION\",CONCATENATE(#REF!&\" / \"&#REF!)&CHAR(10)&\"Matière : \"&#REF!&CHAR(10)&\"Compétences : \"&#REF!))","v":{"$error":"#REF!"}},{"$f":"IF(AND(#REF!=\"\",#REF!=\"\"),\"\",IF(#REF!=\"Récréation\",CONCATENATE(#REF!&\" / \"&#REF!)&CHAR(10)&\"RECREATION\",CONCATENATE(#REF!&\" / \"&#REF!)&CHAR(10)&\"Matière : \"&#REF!&CHAR(10)&\"Compétences : \"&#REF!))","v":{"$error":"#REF!"}},{"$f":"IF(AND(#REF!=\"\",#REF!=\"\"),\"\",IF(#REF!=\"Récréation\",CONCATENATE(#REF!&\" / \"&#REF!)&CHAR(10)&\"RECREATION\",CONCATENATE(#REF!&\" / \"&#REF!)&CHAR(10)&\"Matière : \"&#REF!&CHAR(10)&\"Compétences : \"&#REF!))","v":{"$error":"#REF!"}},{"$f":"IF(AND(#REF!=\"\",#REF!=\"\"),\"\",IF(#REF!=\"Récréation\",CONCATENATE(#REF!&\" / \"&#REF!)&CHAR(10)&\"RECREATION\",CONCATENATE(#REF!&\" / \"&#REF!)&CHAR(10)&\"Matière : \"&#REF!&CHAR(10)&\"Compétences : \"&#REF!))","v":{"$error":"#REF!"}},{"$f":"IF(AND(#REF!=\"\",#REF!=\"\"),\"\",IF(#REF!=\"Récréation\",CONCATENATE(#REF!&\" / \"&#REF!)&CHAR(10)&\"RECREATION\",CONCATENATE(#REF!&\" / \"&#REF!)&CHAR(10)&\"Matière : \"&#REF!&CHAR(10)&\"Compétences : \"&#REF!))","v":{"$error":"#REF!"}}]
[{"$f":"IF(AND(#REF!=\"\",#REF!=\"\"),\"\",IF(#REF!=\"Récréation\",CONCATENATE(#REF!&\" / \"&#REF!)&CHAR(10)&\"RECREATION\",CONCATENATE(#REF!&\" / \"&#REF!)&CHAR(10)&\"Matière : \"&#REF!&CHAR(10)&\"Compétences : \"&#REF!))","v":{"$error":"#REF!"}},{"$f":"IF(AND(#REF!=\"\",#REF!=\"\"),\"\",IF(#REF!=\"Récréation\",CONCATENATE(#REF!&\" / \"&#REF!)&CHAR(10)&\"RECREATION\",CONCATENATE(#REF!&\" / \"&#REF!)&CHAR(10)&\"Matière : \"&#REF!&CHAR(10)&\"Compétences : \"&#REF!))","v":{"$error":"#REF!"}},{"$f":"IF(AND(#REF!=\"\",#REF!=\"\"),\"\",IF(#REF!=\"Récréation\",CONCATENATE(#REF!&\" / \"&#REF!)&CHAR(10)&\"RECREATION\",CONCATENATE(#REF!&\" / \"&#REF!)&CHAR(10)&\"Matière : \"&#REF!&CHAR(10)&\"Compétences : \"&#REF!))","v":{"$error":"#REF!"}},{"$f":"IF(AND(#REF!=\"\",#REF!=\"\"),\"\",IF(#REF!=\"Récréation\",CONCATENATE(#REF!&\" / \"&#REF!)&CHAR(10)&\"RECREATION\",CONCATENATE(#REF!&\" / \"&#REF!)&CHAR(10)&\"Matière : \"&#REF!&CHAR(10)&\"Compétences : \"&#REF!))","v":{"$error":"#REF!"}},{"$f":"IF(AND(#REF!=\"\",#REF!=\"\"),\"\",IF(#REF!=\"Récréation\",CONCATENATE(#REF!&\" / \"&#REF!)&CHAR(10)&\"RECREATION\",CONCATENATE(#REF!&\" / \"&#REF!)&CHAR(10)&\"Matière : \"&#REF!&CHAR(10)&\"Compétences : \"&#REF!))","v":{"$error":"#REF!"}}]
[{"$f":"IF(AND(#REF!=\"\",#REF!=\"\"),\"\",IF(#REF!=\"Récréation\",CONCATENATE(#REF!&\" / \"&#REF!)&CHAR(10)&\"RECREATION\",CONCATENATE(#REF!&\" / \"&#REF!)&CHAR(10)&\"Matière : \"&#REF!&CHAR(10)&\"Compétences : \"&#REF!))","v":{"$error":"#REF!"}},{"$f":"IF(AND(#REF!=\"\",#REF!=\"\"),\"\",IF(#REF!=\"Récréation\",CONCATENATE(#REF!&\" / \"&#REF!)&CHAR(10)&\"RECREATION\",CONCATENATE(#REF!&\" / \"&#REF!)&CHAR(10)&\"Matière : \"&#REF!&CHAR(10)&\"Compétences : \"&#REF!))","v":{"$error":"#REF!"}},{"$f":"IF(AND(#REF!=\"\",#REF!=\"\"),\"\",IF(#REF!=\"Récréation\",CONCATENATE(#REF!&\" / \"&#REF!)&CHAR(10)&\"RECREATION\",CONCATENATE(#REF!&\" / \"&#REF!)&CHAR(10)&\"Matière : \"&#REF!&CHAR(10)&\"Compétences : \"&#REF!))","v":{"$error":"#REF!"}},{"$f":"IF(AND(#REF!=\"\",#REF!=\"\"),\"\",IF(#REF!=\"Récréation\",CONCATENATE(#REF!&\" / \"&#REF!)&CHAR(10)&\"RECREATION\",CONCATENATE(#REF!&\" / \"&#REF!)&CHAR(10)&\"Matière : \"&#REF!&CHAR(10)&\"Compétences : \"&#REF!))","v":{"$error":"#REF!"}},{"$f":"IF(AND(#REF!=\"\",#REF!=\"\"),\"\",IF(#REF!=\"Récréation\",CONCATENATE(#REF!&\" / \"&#REF!)&CHAR(10)&\"RECREATION\",CONCATENATE(#REF!&\" / \"&#REF!)&CHAR(10)&\"Matière : \"&#REF!&CHAR(10)&\"Compétences : \"&#REF!))","v":{"$error":"#REF!"}}]
[{"$f":"IF(AND(#REF!=\"\",#REF!=\"\"),\"\",IF(#REF!=\"Récréation\",CONCATENATE(#REF!&\" / \"&#REF!)&CHAR(10)&\"RECREATION\",CONCATENATE(#REF!&\" / \"&#REF!)&CHAR(10)&\"Matière : \"&#REF!&CHAR(10)&\"Compétences : \"&#REF!))","v":{"$error":"#REF!"}},{"$f":"IF(AND(#REF!=\"\",#REF!=\"\"),\"\",IF(#REF!=\"Récréation\",CONCATENATE(#REF!&\" / \"&#REF!)&CHAR(10)&\"RECREATION\",CONCATENATE(#REF!&\" / \"&#REF!)&CHAR(10)&\"Matière : \"&#REF!&CHAR(10)&\"Compétences : \"&#REF!))","v":{"$error":"#REF!"}},{"$f":"IF(AND(#REF!=\"\",#REF!=\"\"),\"\",IF(#REF!=\"Récréation\",CONCATENATE(#REF!&\" / \"&#REF!)&CHAR(10)&\"RECREATION\",CONCATENATE(#REF!&\" / \"&#REF!)&CHAR(10)&\"Matière : \"&#REF!&CHAR(10)&\"Compétences : \"&#REF!))","v":{"$error":"#REF!"}},{"$f":"IF(AND(#REF!=\"\",#REF!=\"\"),\"\",IF(#REF!=\"Récréation\",CONCATENATE(#REF!&\" / \"&#REF!)&CHAR(10)&\"RECREATION\",CONCATENATE(#REF!&\" / \"&#REF!)&CHAR(10)&\"Matière : \"&#REF!&CHAR(10)&\"Compétences : \"&#REF!))","v":{"$error":"#REF!"}},{"$f":"IF(AND(#REF!=\"\",#REF!=\"\"),\"\",IF(#REF!=\"Récréation\",CONCATENATE(#REF!&\" / \"&#REF!)&CHAR(10)&\"RECREATION\",CONCATENATE(#REF!&\" / \"&#REF!)&CHAR(10)&\"Matière : \"&#REF!&CHAR(10)&\"Compétences : \"&#REF!))","v":{"$error":"#REF!"}}]
[{"$f":"IF(AND(#REF!=\"\",#REF!=\"\"),\"\",IF(#REF!=\"Récréation\",CONCATENATE(#REF!&\" / \"&#REF!)&CHAR(10)&\"RECREATION\",CONCATENATE(#REF!&\" / \"&#REF!)&CHAR(10)&\"Matière : \"&#REF!&CHAR(10)&\"Compétences : \"&#REF!))","v":{"$error":"#REF!"}},{"$f":"IF(AND(#REF!=\"\",#REF!=\"\"),\"\",IF(#REF!=\"Récréation\",CONCATENATE(#REF!&\" / \"&#REF!)&CHAR(10)&\"RECREATION\",CONCATENATE(#REF!&\" / \"&#REF!)&CHAR(10)&\"Matière : \"&#REF!&CHAR(10)&\"Compétences : \"&#REF!))","v":{"$error":"#REF!"}},{"$f":"IF(AND(#REF!=\"\",#REF!=\"\"),\"\",IF(#REF!=\"Récréation\",CONCATENATE(#REF!&\" / \"&#REF!)&CHAR(10)&\"RECREATION\",CONCATENATE(#REF!&\" / \"&#REF!)&CHAR(10)&\"Matière : \"&#REF!&CHAR(10)&\"Compétences : \"&#REF!))","v":{"$error":"#REF!"}},{"$f":"IF(AND(#REF!=\"\",#REF!=\"\"),\"\",IF(#REF!=\"Récréation\",CONCATENATE(#REF!&\" / \"&#REF!)&CHAR(10)&\"RECREATION\",CONCATENATE(#REF!&\" / \"&#REF!)&CHAR(10)&\"Matière : \"&#REF!&CHAR(10)&\"Compétences : \"&#REF!))","v":{"$error":"#REF!"}},{"$f":"IF(AND(#REF!=\"\",#REF!=\"\"),\"\",IF(#REF!=\"Récréation\",CONCATENATE(#REF!&\" / \"&#REF!)&CHAR(10)&\"RECREATION\",CONCATENATE(#REF!&\" / \"&#REF!)&CHAR(10)&\"Matière : \"&#REF!&CHAR(10)&\"Compétences : \"&#REF!))","v":{"$error":"#REF!"}}]
[{"$f":"IF(AND(#REF!=\"\",#REF!=\"\"),\"\",IF(#REF!=\"Récréation\",CONCATENATE(#REF!&\" / \"&#REF!)&CHAR(10)&\"RECREATION\",CONCATENATE(#REF!&\" / \"&#REF!)&CHAR(10)&\"Matière : \"&#REF!&CHAR(10)&\"Compétences : \"&#REF!))","v":{"$error":"#REF!"}},{"$f":"IF(AND(#REF!=\"\",#REF!=\"\"),\"\",IF(#REF!=\"Récréation\",CONCATENATE(#REF!&\" / \"&#REF!)&CHAR(10)&\"RECREATION\",CONCATENATE(#REF!&\" / \"&#REF!)&CHAR(10)&\"Matière : \"&#REF!&CHAR(10)&\"Compétences : \"&#REF!))","v":{"$error":"#REF!"}},{"$f":"IF(AND(#REF!=\"\",#REF!=\"\"),\"\",IF(#REF!=\"Récréation\",CONCATENATE(#REF!&\" / \"&#REF!)&CHAR(10)&\"RECREATION\",CONCATENATE(#REF!&\" / \"&#REF!)&CHAR(10)&\"Matière : \"&#REF!&CHAR(10)&\"Compétences : \"&#REF!))","v":{"$error":"#REF!"}},{"$f":"IF(AND(#REF!=\"\",#REF!=\"\"),\"\",IF(#REF!=\"Récréation\",CONCATENATE(#REF!&\" / \"&#REF!)&CHAR(10)&\"RECREATION\",CONCATENATE(#REF!&\" / \"&#REF!)&CHAR(10)&\"Matière : \"&#REF!&CHAR(10)&\"Compétences : \"&#REF!))","v":{"$error":"#REF!"}},{"$f":"IF(AND(#REF!=\"\",#REF!=\"\"),\"\",IF(#REF!=\"Récréation\",CONCATENATE(#REF!&\" / \"&#REF!)&CHAR(10)&\"RECREATION\",CONCATENATE(#REF!&\" / \"&#REF!)&CHAR(10)&\"Matière : \"&#REF!&CHAR(10)&\"Compétences : \"&#REF!))","v":{"$error":"#REF!"}}]
[{"$f":"IF(AND(#REF!=\"\",#REF!=\"\"),\"\",IF(#REF!=\"Récréation\",CONCATENATE(#REF!&\" / \"&#REF!)&CHAR(10)&\"RECREATION\",CONCATENATE(#REF!&\" / \"&#REF!)&CHAR(10)&\"Matière : \"&#REF!&CHAR(10)&\"Compétences : \"&#REF!))","v":{"$error":"#REF!"}},{"$f":"IF(AND(#REF!=\"\",#REF!=\"\"),\"\",IF(#REF!=\"Récréation\",CONCATENATE(#REF!&\" / \"&#REF!)&CHAR(10)&\"RECREATION\",CONCATENATE(#REF!&\" / \"&#REF!)&CHAR(10)&\"Matière : \"&#REF!&CHAR(10)&\"Compétences : \"&#REF!))","v":{"$error":"#REF!"}},{"$f":"IF(AND(#REF!=\"\",#REF!=\"\"),\"\",IF(#REF!=\"Récréation\",CONCATENATE(#REF!&\" / \"&#REF!)&CHAR(10)&\"RECREATION\",CONCATENATE(#REF!&\" / \"&#REF!)&CHAR(10)&\"Matière : \"&#REF!&CHAR(10)&\"Compétences : \"&#REF!))","v":{"$error":"#REF!"}},{"$f":"IF(AND(#REF!=\"\",#REF!=\"\"),\"\",IF(#REF!=\"Récréation\",CONCATENATE(#REF!&\" / \"&#REF!)&CHAR(10)&\"RECREATION\",CONCATENATE(#REF!&\" / \"&#REF!)&CHAR(10)&\"Matière : \"&#REF!&CHAR(10)&\"Compétences : \"&#REF!))","v":{"$error":"#REF!"}},{"$f":"IF(AND(#REF!=\"\",#REF!=\"\"),\"\",IF(#REF!=\"Récréation\",CONCATENATE(#REF!&\" / \"&#REF!)&CHAR(10)&\"RECREATION\",CONCATENATE(#REF!&\" / \"&#REF!)&CHAR(10)&\"Matière : \"&#REF!&CHAR(10)&\"Compétences : \"&#REF!))","v":{"$error":"#REF!"}}]
[{"$f":"IF(AND(#REF!=\"\",#REF!=\"\"),\"\",IF(#REF!=\"Récréation\",CONCATENATE(#REF!&\" / \"&#REF!)&CHAR(10)&\"RECREATION\",CONCATENATE(#REF!&\" / \"&#REF!)&CHAR(10)&\"Matière : \"&#REF!&CHAR(10)&\"Compétences : \"&#REF!))","v":{"$error":"#REF!"}},{"$f":"IF(AND(#REF!=\"\",#REF!=\"\"),\"\",IF(#REF!=\"Récréation\",CONCATENATE(#REF!&\" / \"&#REF!)&CHAR(10)&\"RECREATION\",CONCATENATE(#REF!&\" / \"&#REF!)&CHAR(10)&\"Matière : \"&#REF!&CHAR(10)&\"Compétences : \"&#REF!))","v":{"$error":"#REF!"}},{"$f":"IF(AND(#REF!=\"\",#REF!=\"\"),\"\",IF(#REF!=\"Récréation\",CONCATENATE(#REF!&\" / \"&#REF!)&CHAR(10)&\"RECREATION\",CONCATENATE(#REF!&\" / \"&#REF!)&CHAR(10)&\"Matière : \"&#REF!&CHAR(10)&\"Compétences : \"&#REF!))","v":{"$error":"#REF!"}},{"$f":"IF(AND(#REF!=\"\",#REF!=\"\"),\"\",IF(#REF!=\"Récréation\",CONCATENATE(#REF!&\" / \"&#REF!)&CHAR(10)&\"RECREATION\",CONCATENATE(#REF!&\" / \"&#REF!)&CHAR(10)&\"Matière : \"&#REF!&CHAR(10)&\"Compétences : \"&#REF!))","v":{"$error":"#REF!"}},{"$f":"IF(AND(#REF!=\"\",#REF!=\"\"),\"\",IF(#REF!=\"Récréation\",CONCATENATE(#REF!&\" / \"&#REF!)&CHAR(10)&\"RECREATION\",CONCATENATE(#REF!&\" / \"&#REF!)&CHAR(10)&\"Matière : \"&#REF!&CHAR(10)&\"Compétences : \"&#REF!))","v":{"$error":"#REF!"}}]
[{"$f":"IF(AND(#REF!=\"\",#REF!=\"\"),\"\",IF(#REF!=\"Récréation\",CONCATENATE(#REF!&\" / \"&#REF!)&CHAR(10)&\"RECREATION\",CONCATENATE(#REF!&\" / \"&#REF!)&CHAR(10)&\"Matière : \"&#REF!&CHAR(10)&\"Compétences : \"&#REF!))","v":{"$error":"#REF!"}},{"$f":"IF(AND(#REF!=\"\",#REF!=\"\"),\"\",IF(#REF!=\"Récréation\",CONCATENATE(#REF!&\" / \"&#REF!)&CHAR(10)&\"RECREATION\",CONCATENATE(#REF!&\" / \"&#REF!)&CHAR(10)&\"Matière : \"&#REF!&CHAR(10)&\"Compétences : \"&#REF!))","v":{"$error":"#REF!"}},{"$f":"IF(AND(#REF!=\"\",#REF!=\"\"),\"\",IF(#REF!=\"Récréation\",CONCATENATE(#REF!&\" / \"&#REF!)&CHAR(10)&\"RECREATION\",CONCATENATE(#REF!&\" / \"&#REF!)&CHAR(10)&\"Matière : \"&#REF!&CHAR(10)&\"Compétences : \"&#REF!))","v":{"$error":"#REF!"}},{"$f":"IF(AND(#REF!=\"\",#REF!=\"\"),\"\",IF(#REF!=\"Récréation\",CONCATENATE(#REF!&\" / \"&#REF!)&CHAR(10)&\"RECREATION\",CONCATENATE(#REF!&\" / \"&#REF!)&CHAR(10)&\"Matière : \"&#REF!&CHAR(10)&\"Compétences : \"&#REF!))","v":{"$error":"#REF!"}},{"$f":"IF(AND(#REF!=\"\",#REF!=\"\"),\"\",IF(#REF!=\"Récréation\",CONCATENATE(#REF!&\" / \"&#REF!)&CHAR(10)&\"RECREATION\",CONCATENATE(#REF!&\" / \"&#REF!)&CHAR(10)&\"Matière : \"&#REF!&CHAR(10)&\"Compétences : \"&#REF!))","v":{"$error":"#REF!"}}]
[{"$f":"IF(AND(#REF!=\"\",#REF!=\"\"),\"\",IF(#REF!=\"Récréation\",CONCATENATE(#REF!&\" / \"&#REF!)&CHAR(10)&\"RECREATION\",CONCATENATE(#REF!&\" / \"&#REF!)&CHAR(10)&\"Matière : \"&#REF!&CHAR(10)&\"Compétences : \"&#REF!))","v":{"$error":"#REF!"}},{"$f":"IF(AND(#REF!=\"\",#REF!=\"\"),\"\",IF(#REF!=\"Récréation\",CONCATENATE(#REF!&\" / \"&#REF!)&CHAR(10)&\"RECREATION\",CONCATENATE(#REF!&\" / \"&#REF!)&CHAR(10)&\"Matière : \"&#REF!&CHAR(10)&\"Compétences : \"&#REF!))","v":{"$error":"#REF!"}},{"$f":"IF(AND(#REF!=\"\",#REF!=\"\"),\"\",IF(#REF!=\"Récréation\",CONCATENATE(#REF!&\" / \"&#REF!)&CHAR(10)&\"RECREATION\",CONCATENATE(#REF!&\" / \"&#REF!)&CHAR(10)&\"Matière : \"&#REF!&CHAR(10)&\"Compétences : \"&#REF!))","v":{"$error":"#REF!"}},{"$f":"IF(AND(#REF!=\"\",#REF!=\"\"),\"\",IF(#REF!=\"Récréation\",CONCATENATE(#REF!&\" / \"&#REF!)&CHAR(10)&\"RECREATION\",CONCATENATE(#REF!&\" / \"&#REF!)&CHAR(10)&\"Matière : \"&#REF!&CHAR(10)&\"Compétences : \"&#REF!))","v":{"$error":"#REF!"}},{"$f":"IF(AND(#REF!=\"\",#REF!=\"\"),\"\",IF(#REF!=\"Récréation\",CONCATENATE(#REF!&\" / \"&#REF!)&CHAR(10)&\"RECREATION\",CONCATENATE(#REF!&\" / \"&#REF!)&CHAR(10)&\"Matière : \"&#REF!&CHAR(10)&\"Compétences : \"&#REF!))","v":{"$error":"#REF!"}}]
[{"$f":"IF(AND(#REF!=\"\",#REF!=\"\"),\"\",IF(#REF!=\"Récréation\",CONCATENATE(#REF!&\" / \"&#REF!)&CHAR(10)&\"RECREATION\",CONCATENATE(#REF!&\" / \"&#REF!)&CHAR(10)&\"Matière : \"&#REF!&CHAR(10)&\"Compétences : \"&#REF!))","v":{"$error":"#REF!"}},{"$f":"IF(AND(#REF!=\"\",#REF!=\"\"),\"\",IF(#REF!=\"Récréation\",CONCATENATE(#REF!&\" / \"&#REF!)&CHAR(10)&\"RECREATION\",CONCATENATE(#REF!&\" / \"&#REF!)&CHAR(10)&\"Matière : \"&#REF!&CHAR(10)&\"Compétences : \"&#REF!))","v":{"$error":"#REF!"}},{"$f":"IF(AND(#REF!=\"\",#REF!=\"\"),\"\",IF(#REF!=\"Récréation\",CONCATENATE(#REF!&\" / \"&#REF!)&CHAR(10)&\"RECREATION\",CONCATENATE(#REF!&\" / \"&#REF!)&CHAR(10)&\"Matière : \"&#REF!&CHAR(10)&\"Compétences : \"&#REF!))","v":{"$error":"#REF!"}},{"$f":"IF(AND(#REF!=\"\",#REF!=\"\"),\"\",IF(#REF!=\"Récréation\",CONCATENATE(#REF!&\" / \"&#REF!)&CHAR(10)&\"RECREATION\",CONCATENATE(#REF!&\" / \"&#REF!)&CHAR(10)&\"Matière : \"&#REF!&CHAR(10)&\"Compétences : \"&#REF!))","v":{"$error":"#REF!"}},{"$f":"IF(AND(#REF!=\"\",#REF!=\"\"),\"\",IF(#REF!=\"Récréation\",CONCATENATE(#REF!&\" / \"&#REF!)&CHAR(10)&\"RECREATION\",CONCATENATE(#REF!&\" / \"&#REF!)&CHAR(10)&\"Matière : \"&#REF!&CHAR(10)&\"Compétences : \"&#REF!))","v":{"$error":"#REF!"}}]
[{"$f":"IF(AND(#REF!=\"\",#REF!=\"\"),\"\",IF(#REF!=\"Récréation\",CONCATENATE(#REF!&\" / \"&#REF!)&CHAR(10)&\"RECREATION\",CONCATENATE(#REF!&\" / \"&#REF!)&CHAR(10)&\"Matière : \"&#REF!&CHAR(10)&\"Compétences : \"&#REF!))","v":{"$error":"#REF!"}},{"$f":"IF(AND(#REF!=\"\",#REF!=\"\"),\"\",IF(#REF!=\"Récréation\",CONCATENATE(#REF!&\" / \"&#REF!)&CHAR(10)&\"RECREATION\",CONCATENATE(#REF!&\" / \"&#REF!)&CHAR(10)&\"Matière : \"&#REF!&CHAR(10)&\"Compétences : \"&#REF!))","v":{"$error":"#REF!"}},{"$f":"IF(AND(#REF!=\"\",#REF!=\"\"),\"\",IF(#REF!=\"Récréation\",CONCATENATE(#REF!&\" / \"&#REF!)&CHAR(10)&\"RECREATION\",CONCATENATE(#REF!&\" / \"&#REF!)&CHAR(10)&\"Matière : \"&#REF!&CHAR(10)&\"Compétences : \"&#REF!))","v":{"$error":"#REF!"}},{"$f":"IF(AND(#REF!=\"\",#REF!=\"\"),\"\",IF(#REF!=\"Récréation\",CONCATENATE(#REF!&\" / \"&#REF!)&CHAR(10)&\"RECREATION\",CONCATENATE(#REF!&\" / \"&#REF!)&CHAR(10)&\"Matière : \"&#REF!&CHAR(10)&\"Compétences : \"&#REF!))","v":{"$error":"#REF!"}},{"$f":"IF(AND(#REF!=\"\",#REF!=\"\"),\"\",IF(#REF!=\"Récréation\",CONCATENATE(#REF!&\" / \"&#REF!)&CHAR(10)&\"RECREATION\",CONCATENATE(#REF!&\" / \"&#REF!)&CHAR(10)&\"Matière : \"&#REF!&CHAR(10)&\"Compétences : \"&#REF!))","v":{"$error":"#REF!"}}]
[{"$f":"IF(AND(#REF!=\"\",#REF!=\"\"),\"\",IF(#REF!=\"Récréation\",CONCATENATE(#REF!&\" / \"&#REF!)&CHAR(10)&\"RECREATION\",CONCATENATE(#REF!&\" / \"&#REF!)&CHAR(10)&\"Matière : \"&#REF!&CHAR(10)&\"Compétences : \"&#REF!))","v":{"$error":"#REF!"}},{"$f":"IF(AND(#REF!=\"\",#REF!=\"\"),\"\",IF(#REF!=\"Récréation\",CONCATENATE(#REF!&\" / \"&#REF!)&CHAR(10)&\"RECREATION\",CONCATENATE(#REF!&\" / \"&#REF!)&CHAR(10)&\"Matière : \"&#REF!&CHAR(10)&\"Compétences : \"&#REF!))","v":{"$error":"#REF!"}},{"$f":"IF(AND(#REF!=\"\",#REF!=\"\"),\"\",IF(#REF!=\"Récréation\",CONCATENATE(#REF!&\" / \"&#REF!)&CHAR(10)&\"RECREATION\",CONCATENATE(#REF!&\" / \"&#REF!)&CHAR(10)&\"Matière : \"&#REF!&CHAR(10)&\"Compétences : \"&#REF!))","v":{"$error":"#REF!"}},{"$f":"IF(AND(#REF!=\"\",#REF!=\"\"),\"\",IF(#REF!=\"Récréation\",CONCATENATE(#REF!&\" / \"&#REF!)&CHAR(10)&\"RECREATION\",CONCATENATE(#REF!&\" / \"&#REF!)&CHAR(10)&\"Matière : \"&#REF!&CHAR(10)&\"Compétences : \"&#REF!))","v":{"$error":"#REF!"}},{"$f":"IF(AND(#REF!=\"\",#REF!=\"\"),\"\",IF(#REF!=\"Récréation\",CONCATENATE(#REF!&\" / \"&#REF!)&CHAR(10)&\"RECREATION\",CONCATENATE(#REF!&\" / \"&#REF!)&CHAR(10)&\"Matière : \"&#REF!&CHAR(10)&\"Compétences : \"&#REF!))","v":{"$error":"#REF!"}}]
[{"$f":"IF(AND(#REF!=\"\",#REF!=\"\"),\"\",IF(#REF!=\"Récréation\",CONCATENATE(#REF!&\" / \"&#REF!)&CHAR(10)&\"RECREATION\",CONCATENATE(#REF!&\" / \"&#REF!)&CHAR(10)&\"Matière : \"&#REF!&CHAR(10)&\"Compétences : \"&#REF!))","v":{"$error":"#REF!"}},{"$f":"IF(AND(#REF!=\"\",#REF!=\"\"),\"\",IF(#REF!=\"Récréation\",CONCATENATE(#REF!&\" / \"&#REF!)&CHAR(10)&\"RECREATION\",CONCATENATE(#REF!&\" / \"&#REF!)&CHAR(10)&\"Matière : \"&#REF!&CHAR(10)&\"Compétences : \"&#REF!))","v":{"$error":"#REF!"}},{"$f":"IF(AND(#REF!=\"\",#REF!=\"\"),\"\",IF(#REF!=\"Récréation\",CONCATENATE(#REF!&\" / \"&#REF!)&CHAR(10)&\"RECREATION\",CONCATENATE(#REF!&\" / \"&#REF!)&CHAR(10)&\"Matière : \"&#REF!&CHAR(10)&\"Compétences : \"&#REF!))","v":{"$error":"#REF!"}},{"$f":"IF(AND(#REF!=\"\",#REF!=\"\"),\"\",IF(#REF!=\"Récréation\",CONCATENATE(#REF!&\" / \"&#REF!)&CHAR(10)&\"RECREATION\",CONCATENATE(#REF!&\" / \"&#REF!)&CHAR(10)&\"Matière : \"&#REF!&CHAR(10)&\"Compétences : \"&#REF!))","v":{"$error":"#REF!"}},{"$f":"IF(AND(#REF!=\"\",#REF!=\"\"),\"\",IF(#REF!=\"Récréation\",CONCATENATE(#REF!&\" / \"&#REF!)&CHAR(10)&\"RECREATION\",CONCATENATE(#REF!&\" / \"&#REF!)&CHAR(10)&\"Matière : \"&#REF!&CHAR(10)&\"Compétences : \"&#REF!))","v":{"$error":"#REF!"}}]
[{"$f":"IF(AND(#REF!=\"\",#REF!=\"\"),\"\",IF(#REF!=\"Récréation\",CONCATENATE(#REF!&\" / \"&#REF!)&CHAR(10)&\"RECREATION\",CONCATENATE(#REF!&\" / \"&#REF!)&CHAR(10)&\"Matière : \"&#REF!&CHAR(10)&\"Compétences : \"&#REF!))","v":{"$error":"#REF!"}},{"$f":"IF(AND(#REF!=\"\",#REF!=\"\"),\"\",IF(#REF!=\"Récréation\",CONCATENATE(#REF!&\" / \"&#REF!)&CHAR(10)&\"RECREATION\",CONCATENATE(#REF!&\" / \"&#REF!)&CHAR(10)&\"Matière : \"&#REF!&CHAR(10)&\"Compétences : \"&#REF!))","v":{"$error":"#REF!"}},{"$f":"IF(AND(#REF!=\"\",#REF!=\"\"),\"\",IF(#REF!=\"Récréation\",CONCATENATE(#REF!&\" / \"&#REF!)&CHAR(10)&\"RECREATION\",CONCATENATE(#REF!&\" / \"&#REF!)&CHAR(10)&\"Matière : \"&#REF!&CHAR(10)&\"Compétences : \"&#REF!))","v":{"$error":"#REF!"}},{"$f":"IF(AND(#REF!=\"\",#REF!=\"\"),\"\",IF(#REF!=\"Récréation\",CONCATENATE(#REF!&\" / \"&#REF!)&CHAR(10)&\"RECREATION\",CONCATENATE(#REF!&\" / \"&#REF!)&CHAR(10)&\"Matière : \"&#REF!&CHAR(10)&\"Compétences : \"&#REF!))","v":{"$error":"#REF!"}},{"$f":"IF(AND(#REF!=\"\",#REF!=\"\"),\"\",IF(#REF!=\"Récréation\",CONCATENATE(#REF!&\" / \"&#REF!)&CHAR(10)&\"RECREATION\",CONCATENATE(#REF!&\" / \"&#REF!)&CHAR(10)&\"Matière : \"&#REF!&CHAR(10)&\"Compétences : \"&#REF!))","v":{"$error":"#REF!"}}]
[{"$f":"IF(AND(#REF!=\"\",#REF!=\"\"),\"\",IF(#REF!=\"Récréation\",CONCATENATE(#REF!&\" / \"&#REF!)&CHAR(10)&\"RECREATION\",CONCATENATE(#REF!&\" / \"&#REF!)&CHAR(10)&\"Matière : \"&#REF!&CHAR(10)&\"Compétences : \"&#REF!))","v":{"$error":"#REF!"}},{"$f":"IF(AND(#REF!=\"\",#REF!=\"\"),\"\",IF(#REF!=\"Récréation\",CONCATENATE(#REF!&\" / \"&#REF!)&CHAR(10)&\"RECREATION\",CONCATENATE(#REF!&\" / \"&#REF!)&CHAR(10)&\"Matière : \"&#REF!&CHAR(10)&\"Compétences : \"&#REF!))","v":{"$error":"#REF!"}},{"$f":"IF(AND(#REF!=\"\",#REF!=\"\"),\"\",IF(#REF!=\"Récréation\",CONCATENATE(#REF!&\" / \"&#REF!)&CHAR(10)&\"RECREATION\",CONCATENATE(#REF!&\" / \"&#REF!)&CHAR(10)&\"Matière : \"&#REF!&CHAR(10)&\"Compétences : \"&#REF!))","v":{"$error":"#REF!"}},{"$f":"IF(AND(#REF!=\"\",#REF!=\"\"),\"\",IF(#REF!=\"Récréation\",CONCATENATE(#REF!&\" / \"&#REF!)&CHAR(10)&\"RECREATION\",CONCATENATE(#REF!&\" / \"&#REF!)&CHAR(10)&\"Matière : \"&#REF!&CHAR(10)&\"Compétences : \"&#REF!))","v":{"$error":"#REF!"}},{"$f":"IF(AND(#REF!=\"\",#REF!=\"\"),\"\",IF(#REF!=\"Récréation\",CONCATENATE(#REF!&\" / \"&#REF!)&CHAR(10)&\"RECREATION\",CONCATENATE(#REF!&\" / \"&#REF!)&CHAR(10)&\"Matière : \"&#REF!&CHAR(10)&\"Compétences : \"&#REF!))","v":{"$error":"#REF!"}}]
[{"$f":"IF(AND(#REF!=\"\",#REF!=\"\"),\"\",IF(#REF!=\"Récréation\",CONCATENATE(#REF!&\" / \"&#REF!)&CHAR(10)&\"RECREATION\",CONCATENATE(#REF!&\" / \"&#REF!)&CHAR(10)&\"Matière : \"&#REF!&CHAR(10)&\"Compétences : \"&#REF!))","v":{"$error":"#REF!"}},{"$f":"IF(AND(#REF!=\"\",#REF!=\"\"),\"\",IF(#REF!=\"Récréation\",CONCATENATE(#REF!&\" / \"&#REF!)&CHAR(10)&\"RECREATION\",CONCATENATE(#REF!&\" / \"&#REF!)&CHAR(10)&\"Matière : \"&#REF!&CHAR(10)&\"Compétences : \"&#REF!))","v":{"$error":"#REF!"}},{"$f":"IF(AND(#REF!=\"\",#REF!=\"\"),\"\",IF(#REF!=\"Récréation\",CONCATENATE(#REF!&\" / \"&#REF!)&CHAR(10)&\"RECREATION\",CONCATENATE(#REF!&\" / \"&#REF!)&CHAR(10)&\"Matière : \"&#REF!&CHAR(10)&\"Compétences : \"&#REF!))","v":{"$error":"#REF!"}},{"$f":"IF(AND(#REF!=\"\",#REF!=\"\"),\"\",IF(#REF!=\"Récréation\",CONCATENATE(#REF!&\" / \"&#REF!)&CHAR(10)&\"RECREATION\",CONCATENATE(#REF!&\" / \"&#REF!)&CHAR(10)&\"Matière : \"&#REF!&CHAR(10)&\"Compétences : \"&#REF!))","v":{"$error":"#REF!"}},{"$f":"IF(AND(#REF!=\"\",#REF!=\"\"),\"\",IF(#REF!=\"Récréation\",CONCATENATE(#REF!&\" / \"&#REF!)&CHAR(10)&\"RECREATION\",CONCATENATE(#REF!&\" / \"&#REF!)&CHAR(10)&\"Matière : \"&#REF!&CHAR(10)&\"Compétences : \"&#REF!))","v":{"$error":"#REF!"}}]
[{"$f":"IF(AND(#REF!=\"\",#REF!=\"\"),\"\",IF(#REF!=\"Récréation\",CONCATENATE(#REF!&\" / \"&#REF!)&CHAR(10)&\"RECREATION\",CONCATENATE(#REF!&\" / \"&#REF!)&CHAR(10)&\"Matière : \"&#REF!&CHAR(10)&\"Compétences : \"&#REF!))","v":{"$error":"#REF!"}},{"$f":"IF(AND(#REF!=\"\",#REF!=\"\"),\"\",IF(#REF!=\"Récréation\",CONCATENATE(#REF!&\" / \"&#REF!)&CHAR(10)&\"RECREATION\",CONCATENATE(#REF!&\" / \"&#REF!)&CHAR(10)&\"Matière : \"&#REF!&CHAR(10)&\"Compétences : \"&#REF!))","v":{"$error":"#REF!"}},{"$f":"IF(AND(#REF!=\"\",#REF!=\"\"),\"\",IF(#REF!=\"Récréation\",CONCATENATE(#REF!&\" / \"&#REF!)&CHAR(10)&\"RECREATION\",CONCATENATE(#REF!&\" / \"&#REF!)&CHAR(10)&\"Matière : \"&#REF!&CHAR(10)&\"Compétences : \"&#REF!))","v":{"$error":"#REF!"}},{"$f":"IF(AND(#REF!=\"\",#REF!=\"\"),\"\",IF(#REF!=\"Récréation\",CONCATENATE(#REF!&\" / \"&#REF!)&CHAR(10)&\"RECREATION\",CONCATENATE(#REF!&\" / \"&#REF!)&CHAR(10)&\"Matière : \"&#REF!&CHAR(10)&\"Compétences : \"&#REF!))","v":{"$error":"#REF!"}},{"$f":"IF(AND(#REF!=\"\",#REF!=\"\"),\"\",IF(#REF!=\"Récréation\",CONCATENATE(#REF!&\" / \"&#REF!)&CHAR(10)&\"RECREATION\",CONCATENATE(#REF!&\" / \"&#REF!)&CHAR(10)&\"Matière : \"&#REF!&CHAR(10)&\"Compétences : \"&#REF!))","v":{"$error":"#REF!"}}]
[{"$f":"IF(AND(#REF!=\"\",#REF!=\"\"),\"\",IF(#REF!=\"Récréation\",CONCATENATE(#REF!&\" / \"&#REF!)&CHAR(10)&\"RECREATION\",CONCATENATE(#REF!&\" / \"&#REF!)&CHAR(10)&\"Matière : \"&#REF!&CHAR(10)&\"Compétences : \"&#REF!))","v":{"$error":"#REF!"}},{"$f":"IF(AND(#REF!=\"\",#REF!=\"\"),\"\",IF(#REF!=\"Récréation\",CONCATENATE(#REF!&\" / \"&#REF!)&CHAR(10)&\"RECREATION\",CONCATENATE(#REF!&\" / \"&#REF!)&CHAR(10)&\"Matière : \"&#REF!&CHAR(10)&\"Compétences : \"&#REF!))","v":{"$error":"#REF!"}},{"$f":"IF(AND(#REF!=\"\",#REF!=\"\"),\"\",IF(#REF!=\"Récréation\",CONCATENATE(#REF!&\" / \"&#REF!)&CHAR(10)&\"RECREATION\",CONCATENATE(#REF!&\" / \"&#REF!)&CHAR(10)&\"Matière : \"&#REF!&CHAR(10)&\"Compétences : \"&#REF!))","v":{"$error":"#REF!"}},{"$f":"IF(AND(#REF!=\"\",#REF!=\"\"),\"\",IF(#REF!=\"Récréation\",CONCATENATE(#REF!&\" / \"&#REF!)&CHAR(10)&\"RECREATION\",CONCATENATE(#REF!&\" / \"&#REF!)&CHAR(10)&\"Matière : \"&#REF!&CHAR(10)&\"Compétences : \"&#REF!))","v":{"$error":"#REF!"}},{"$f":"IF(AND(#REF!=\"\",#REF!=\"\"),\"\",IF(#REF!=\"Récréation\",CONCATENATE(#REF!&\" / \"&#REF!)&CHAR(10)&\"RECREATION\",CONCATENATE(#REF!&\" / \"&#REF!)&CHAR(10)&\"Matière : \"&#REF!&CHAR(10)&\"Compétences : \"&#REF!))","v":{"$error":"#REF!"}}]
[{"$f":"IF(AND(#REF!=\"\",#REF!=\"\"),\"\",IF(#REF!=\"Récréation\",CONCATENATE(#REF!&\" / \"&#REF!)&CHAR(10)&\"RECREATION\",CONCATENATE(#REF!&\" / \"&#REF!)&CHAR(10)&\"Matière : \"&#REF!&CHAR(10)&\"Compétences : \"&#REF!))","v":{"$error":"#REF!"}},{"$f":"IF(AND(#REF!=\"\",#REF!=\"\"),\"\",IF(#REF!=\"Récréation\",CONCATENATE(#REF!&\" / \"&#REF!)&CHAR(10)&\"RECREATION\",CONCATENATE(#REF!&\" / \"&#REF!)&CHAR(10)&\"Matière : \"&#REF!&CHAR(10)&\"Compétences : \"&#REF!))","v":{"$error":"#REF!"}},{"$f":"IF(AND(#REF!=\"\",#REF!=\"\"),\"\",IF(#REF!=\"Récréation\",CONCATENATE(#REF!&\" / \"&#REF!)&CHAR(10)&\"RECREATION\",CONCATENATE(#REF!&\" / \"&#REF!)&CHAR(10)&\"Matière : \"&#REF!&CHAR(10)&\"Compétences : \"&#REF!))","v":{"$error":"#REF!"}},{"$f":"IF(AND(#REF!=\"\",#REF!=\"\"),\"\",IF(#REF!=\"Récréation\",CONCATENATE(#REF!&\" / \"&#REF!)&CHAR(10)&\"RECREATION\",CONCATENATE(#REF!&\" / \"&#REF!)&CHAR(10)&\"Matière : \"&#REF!&CHAR(10)&\"Compétences : \"&#REF!))","v":{"$error":"#REF!"}},{"$f":"IF(AND(#REF!=\"\",#REF!=\"\"),\"\",IF(#REF!=\"Récréation\",CONCATENATE(#REF!&\" / \"&#REF!)&CHAR(10)&\"RECREATION\",CONCATENATE(#REF!&\" / \"&#REF!)&CHAR(10)&\"Matière : \"&#REF!&CHAR(10)&\"Compétences : \"&#REF!))","v":{"$error":"#REF!"}}]
[{"$f":"IF(AND(#REF!=\"\",#REF!=\"\"),\"\",IF(#REF!=\"Récréation\",CONCATENATE(#REF!&\" / \"&#REF!)&CHAR(10)&\"RECREATION\",CONCATENATE(#REF!&\" / \"&#REF!)&CHAR(10)&\"Matière : \"&#REF!&CHAR(10)&\"Compétences : \"&#REF!))","v":{"$error":"#REF!"}},{"$f":"IF(AND(#REF!=\"\",#REF!=\"\"),\"\",IF(#REF!=\"Récréation\",CONCATENATE(#REF!&\" / \"&#REF!)&CHAR(10)&\"RECREATION\",CONCATENATE(#REF!&\" / \"&#REF!)&CHAR(10)&\"Matière : \"&#REF!&CHAR(10)&\"Compétences : \"&#REF!))","v":{"$error":"#REF!"}},{"$f":"IF(AND(#REF!=\"\",#REF!=\"\"),\"\",IF(#REF!=\"Récréation\",CONCATENATE(#REF!&\" / \"&#REF!)&CHAR(10)&\"RECREATION\",CONCATENATE(#REF!&\" / \"&#REF!)&CHAR(10)&\"Matière : \"&#REF!&CHAR(10)&\"Compétences : \"&#REF!))","v":{"$error":"#REF!"}},{"$f":"IF(AND(#REF!=\"\",#REF!=\"\"),\"\",IF(#REF!=\"Récréation\",CONCATENATE(#REF!&\" / \"&#REF!)&CHAR(10)&\"RECREATION\",CONCATENATE(#REF!&\" / \"&#REF!)&CHAR(10)&\"Matière : \"&#REF!&CHAR(10)&\"Compétences : \"&#REF!))","v":{"$error":"#REF!"}},{"$f":"IF(AND(#REF!=\"\",#REF!=\"\"),\"\",IF(#REF!=\"Récréation\",CONCATENATE(#REF!&\" / \"&#REF!)&CHAR(10)&\"RECREATION\",CONCATENATE(#REF!&\" / \"&#REF!)&CHAR(10)&\"Matière : \"&#REF!&CHAR(10)&\"Compétences : \"&#REF!))","v":{"$error":"#REF!"}}]
[{"$f":"IF(AND(#REF!=\"\",#REF!=\"\"),\"\",IF(#REF!=\"Récréation\",CONCATENATE(#REF!&\" / \"&#REF!)&CHAR(10)&\"RECREATION\",CONCATENATE(#REF!&\" / \"&#REF!)&CHAR(10)&\"Matière : \"&#REF!&CHAR(10)&\"Compétences : \"&#REF!))","v":{"$error":"#REF!"}},{"$f":"IF(AND(#REF!=\"\",#REF!=\"\"),\"\",IF(#REF!=\"Récréation\",CONCATENATE(#REF!&\" / \"&#REF!)&CHAR(10)&\"RECREATION\",CONCATENATE(#REF!&\" / \"&#REF!)&CHAR(10)&\"Matière : \"&#REF!&CHAR(10)&\"Compétences : \"&#REF!))","v":{"$error":"#REF!"}},{"$f":"IF(AND(#REF!=\"\",#REF!=\"\"),\"\",IF(#REF!=\"Récréation\",CONCATENATE(#REF!&\" / \"&#REF!)&CHAR(10)&\"RECREATION\",CONCATENATE(#REF!&\" / \"&#REF!)&CHAR(10)&\"Matière : \"&#REF!&CHAR(10)&\"Compétences : \"&#REF!))","v":{"$error":"#REF!"}},{"$f":"IF(AND(#REF!=\"\",#REF!=\"\"),\"\",IF(#REF!=\"Récréation\",CONCATENATE(#REF!&\" / \"&#REF!)&CHAR(10)&\"RECREATION\",CONCATENATE(#REF!&\" / \"&#REF!)&CHAR(10)&\"Matière : \"&#REF!&CHAR(10)&\"Compétences : \"&#REF!))","v":{"$error":"#REF!"}},{"$f":"IF(AND(#REF!=\"\",#REF!=\"\"),\"\",IF(#REF!=\"Récréation\",CONCATENATE(#REF!&\" / \"&#REF!)&CHAR(10)&\"RECREATION\",CONCATENATE(#REF!&\" / \"&#REF!)&CHAR(10)&\"Matière : \"&#REF!&CHAR(10)&\"Compétences : \"&#REF!))","v":{"$error":"#REF!"}}]
[{"$f":"IF(AND(#REF!=\"\",#REF!=\"\"),\"\",IF(#REF!=\"Récréation\",CONCATENATE(#REF!&\" / \"&#REF!)&CHAR(10)&\"RECREATION\",CONCATENATE(#REF!&\" / \"&#REF!)&CHAR(10)&\"Matière : \"&#REF!&CHAR(10)&\"Compétences : \"&#REF!))","v":{"$error":"#REF!"}},{"$f":"IF(AND(#REF!=\"\",#REF!=\"\"),\"\",IF(#REF!=\"Récréation\",CONCATENATE(#REF!&\" / \"&#REF!)&CHAR(10)&\"RECREATION\",CONCATENATE(#REF!&\" / \"&#REF!)&CHAR(10)&\"Matière : \"&#REF!&CHAR(10)&\"Compétences : \"&#REF!))","v":{"$error":"#REF!"}},{"$f":"IF(AND(#REF!=\"\",#REF!=\"\"),\"\",IF(#REF!=\"Récréation\",CONCATENATE(#REF!&\" / \"&#REF!)&CHAR(10)&\"RECREATION\",CONCATENATE(#REF!&\" / \"&#REF!)&CHAR(10)&\"Matière : \"&#REF!&CHAR(10)&\"Compétences : \"&#REF!))","v":{"$error":"#REF!"}},{"$f":"IF(AND(#REF!=\"\",#REF!=\"\"),\"\",IF(#REF!=\"Récréation\",CONCATENATE(#REF!&\" / \"&#REF!)&CHAR(10)&\"RECREATION\",CONCATENATE(#REF!&\" / \"&#REF!)&CHAR(10)&\"Matière : \"&#REF!&CHAR(10)&\"Compétences : \"&#REF!))","v":{"$error":"#REF!"}},{"$f":"IF(AND(#REF!=\"\",#REF!=\"\"),\"\",IF(#REF!=\"Récréation\",CONCATENATE(#REF!&\" / \"&#REF!)&CHAR(10)&\"RECREATION\",CONCATENATE(#REF!&\" / \"&#REF!)&CHAR(10)&\"Matière : \"&#REF!&CHAR(10)&\"Compétences : \"&#REF!))","v":{"$error":"#REF!"}}]
[{"$f":"IF(AND(#REF!=\"\",#REF!=\"\"),\"\",IF(#REF!=\"Récréation\",CONCATENATE(#REF!&\" / \"&#REF!)&CHAR(10)&\"RECREATION\",CONCATENATE(#REF!&\" / \"&#REF!)&CHAR(10)&\"Matière : \"&#REF!&CHAR(10)&\"Compétences : \"&#REF!))","v":{"$error":"#REF!"}},{"$f":"IF(AND(#REF!=\"\",#REF!=\"\"),\"\",IF(#REF!=\"Récréation\",CONCATENATE(#REF!&\" / \"&#REF!)&CHAR(10)&\"RECREATION\",CONCATENATE(#REF!&\" / \"&#REF!)&CHAR(10)&\"Matière : \"&#REF!&CHAR(10)&\"Compétences : \"&#REF!))","v":{"$error":"#REF!"}},{"$f":"IF(AND(#REF!=\"\",#REF!=\"\"),\"\",IF(#REF!=\"Récréation\",CONCATENATE(#REF!&\" / \"&#REF!)&CHAR(10)&\"RECREATION\",CONCATENATE(#REF!&\" / \"&#REF!)&CHAR(10)&\"Matière : \"&#REF!&CHAR(10)&\"Compétences : \"&#REF!))","v":{"$error":"#REF!"}},{"$f":"IF(AND(#REF!=\"\",#REF!=\"\"),\"\",IF(#REF!=\"Récréation\",CONCATENATE(#REF!&\" / \"&#REF!)&CHAR(10)&\"RECREATION\",CONCATENATE(#REF!&\" / \"&#REF!)&CHAR(10)&\"Matière : \"&#REF!&CHAR(10)&\"Compétences : \"&#REF!))","v":{"$error":"#REF!"}},{"$f":"IF(AND(#REF!=\"\",#REF!=\"\"),\"\",IF(#REF!=\"Récréation\",CONCATENATE(#REF!&\" / \"&#REF!)&CHAR(10)&\"RECREATION\",CONCATENATE(#REF!&\" / \"&#REF!)&CHAR(10)&\"Matière : \"&#REF!&CHAR(10)&\"Compétences : \"&#REF!))","v":{"$error":"#REF!"}}]
[{"$f":"IF(AND(#REF!=\"\",#REF!=\"\"),\"\",IF(#REF!=\"Récréation\",CONCATENATE(#REF!&\" / \"&#REF!)&CHAR(10)&\"RECREATION\",CONCATENATE(#REF!&\" / \"&#REF!)&CHAR(10)&\"Matière : \"&#REF!&CHAR(10)&\"Compétences : \"&#REF!))","v":{"$error":"#REF!"}},{"$f":"IF(AND(#REF!=\"\",#REF!=\"\"),\"\",IF(#REF!=\"Récréation\",CONCATENATE(#REF!&\" / \"&#REF!)&CHAR(10)&\"RECREATION\",CONCATENATE(#REF!&\" / \"&#REF!)&CHAR(10)&\"Matière : \"&#REF!&CHAR(10)&\"Compétences : \"&#REF!))","v":{"$error":"#REF!"}},{"$f":"IF(AND(#REF!=\"\",#REF!=\"\"),\"\",IF(#REF!=\"Récréation\",CONCATENATE(#REF!&\" / \"&#REF!)&CHAR(10)&\"RECREATION\",CONCATENATE(#REF!&\" / \"&#REF!)&CHAR(10)&\"Matière : \"&#REF!&CHAR(10)&\"Compétences : \"&#REF!))","v":{"$error":"#REF!"}},{"$f":"IF(AND(#REF!=\"\",#REF!=\"\"),\"\",IF(#REF!=\"Récréation\",CONCATENATE(#REF!&\" / \"&#REF!)&CHAR(10)&\"RECREATION\",CONCATENATE(#REF!&\" / \"&#REF!)&CHAR(10)&\"Matière : \"&#REF!&CHAR(10)&\"Compétences : \"&#REF!))","v":{"$error":"#REF!"}},{"$f":"IF(AND(#REF!=\"\",#REF!=\"\"),\"\",IF(#REF!=\"Récréation\",CONCATENATE(#REF!&\" / \"&#REF!)&CHAR(10)&\"RECREATION\",CONCATENATE(#REF!&\" / \"&#REF!)&CHAR(10)&\"Matière : \"&#REF!&CHAR(10)&\"Compétences : \"&#REF!))","v":{"$error":"#REF!"}}]
[{"$f":"IF(AND(#REF!=\"\",#REF!=\"\"),\"\",IF(#REF!=\"Récréation\",CONCATENATE(#REF!&\" / \"&#REF!)&CHAR(10)&\"RECREATION\",CONCATENATE(#REF!&\" / \"&#REF!)&CHAR(10)&\"Matière : \"&#REF!&CHAR(10)&\"Compétences : \"&#REF!))","v":{"$error":"#REF!"}},{"$f":"IF(AND(#REF!=\"\",#REF!=\"\"),\"\",IF(#REF!=\"Récréation\",CONCATENATE(#REF!&\" / \"&#REF!)&CHAR(10)&\"RECREATION\",CONCATENATE(#REF!&\" / \"&#REF!)&CHAR(10)&\"Matière : \"&#REF!&CHAR(10)&\"Compétences : \"&#REF!))","v":{"$error":"#REF!"}},{"$f":"IF(AND(#REF!=\"\",#REF!=\"\"),\"\",IF(#REF!=\"Récréation\",CONCATENATE(#REF!&\" / \"&#REF!)&CHAR(10)&\"RECREATION\",CONCATENATE(#REF!&\" / \"&#REF!)&CHAR(10)&\"Matière : \"&#REF!&CHAR(10)&\"Compétences : \"&#REF!))","v":{"$error":"#REF!"}},{"$f":"IF(AND(#REF!=\"\",#REF!=\"\"),\"\",IF(#REF!=\"Récréation\",CONCATENATE(#REF!&\" / \"&#REF!)&CHAR(10)&\"RECREATION\",CONCATENATE(#REF!&\" / \"&#REF!)&CHAR(10)&\"Matière : \"&#REF!&CHAR(10)&\"Compétences : \"&#REF!))","v":{"$error":"#REF!"}},{"$f":"IF(AND(#REF!=\"\",#REF!=\"\"),\"\",IF(#REF!=\"Récréation\",CONCATENATE(#REF!&\" / \"&#REF!)&CHAR(10)&\"RECREATION\",CONCATENATE(#REF!&\" / \"&#REF!)&CHAR(10)&\"Matière : \"&#REF!&CHAR(10)&\"Compétences : \"&#REF!))","v":{"$error":"#REF!"}}]
[{"$f":"IF(AND(#REF!=\"\",#REF!=\"\"),\"\",IF(#REF!=\"Récréation\",CONCATENATE(#REF!&\" / \"&#REF!)&CHAR(10)&\"RECREATION\",CONCATENATE(#REF!&\" / \"&#REF!)&CHAR(10)&\"Matière : \"&#REF!&CHAR(10)&\"Compétences : \"&#REF!))","v":{"$error":"#REF!"}},{"$f":"IF(AND(#REF!=\"\",#REF!=\"\"),\"\",IF(#REF!=\"Récréation\",CONCATENATE(#REF!&\" / \"&#REF!)&CHAR(10)&\"RECREATION\",CONCATENATE(#REF!&\" / \"&#REF!)&CHAR(10)&\"Matière : \"&#REF!&CHAR(10)&\"Compétences : \"&#REF!))","v":{"$error":"#REF!"}},{"$f":"IF(AND(#REF!=\"\",#REF!=\"\"),\"\",IF(#REF!=\"Récréation\",CONCATENATE(#REF!&\" / \"&#REF!)&CHAR(10)&\"RECREATION\",CONCATENATE(#REF!&\" / \"&#REF!)&CHAR(10)&\"Matière : \"&#REF!&CHAR(10)&\"Compétences : \"&#REF!))","v":{"$error":"#REF!"}},{"$f":"IF(AND(#REF!=\"\",#REF!=\"\"),\"\",IF(#REF!=\"Récréation\",CONCATENATE(#REF!&\" / \"&#REF!)&CHAR(10)&\"RECREATION\",CONCATENATE(#REF!&\" / \"&#REF!)&CHAR(10)&\"Matière : \"&#REF!&CHAR(10)&\"Compétences : \"&#REF!))","v":{"$error":"#REF!"}},{"$f":"IF(AND(#REF!=\"\",#REF!=\"\"),\"\",IF(#REF!=\"Récréation\",CONCATENATE(#REF!&\" / \"&#REF!)&CHAR(10)&\"RECREATION\",CONCATENATE(#REF!&\" / \"&#REF!)&CHAR(10)&\"Matière : \"&#REF!&CHAR(10)&\"Compétences : \"&#REF!))","v":{"$error":"#REF!"}}]
[{"$f":"IF(AND(#REF!=\"\",#REF!=\"\"),\"\",IF(#REF!=\"Récréation\",CONCATENATE(#REF!&\" / \"&#REF!)&CHAR(10)&\"RECREATION\",CONCATENATE(#REF!&\" / \"&#REF!)&CHAR(10)&\"Matière : \"&#REF!&CHAR(10)&\"Compétences : \"&#REF!))","v":{"$error":"#REF!"}},{"$f":"IF(AND(#REF!=\"\",#REF!=\"\"),\"\",IF(#REF!=\"Récréation\",CONCATENATE(#REF!&\" / \"&#REF!)&CHAR(10)&\"RECREATION\",CONCATENATE(#REF!&\" / \"&#REF!)&CHAR(10)&\"Matière : \"&#REF!&CHAR(10)&\"Compétences : \"&#REF!))","v":{"$error":"#REF!"}},{"$f":"IF(AND(#REF!=\"\",#REF!=\"\"),\"\",IF(#REF!=\"Récréation\",CONCATENATE(#REF!&\" / \"&#REF!)&CHAR(10)&\"RECREATION\",CONCATENATE(#REF!&\" / \"&#REF!)&CHAR(10)&\"Matière : \"&#REF!&CHAR(10)&\"Compétences : \"&#REF!))","v":{"$error":"#REF!"}},{"$f":"IF(AND(#REF!=\"\",#REF!=\"\"),\"\",IF(#REF!=\"Récréation\",CONCATENATE(#REF!&\" / \"&#REF!)&CHAR(10)&\"RECREATION\",CONCATENATE(#REF!&\" / \"&#REF!)&CHAR(10)&\"Matière : \"&#REF!&CHAR(10)&\"Compétences : \"&#REF!))","v":{"$error":"#REF!"}},{"$f":"IF(AND(#REF!=\"\",#REF!=\"\"),\"\",IF(#REF!=\"Récréation\",CONCATENATE(#REF!&\" / \"&#REF!)&CHAR(10)&\"RECREATION\",CONCATENATE(#REF!&\" / \"&#REF!)&CHAR(10)&\"Matière : \"&#REF!&CHAR(10)&\"Compétences : \"&#REF!))","v":{"$error":"#REF!"}}]
[{"$f":"IF(AND(#REF!=\"\",#REF!=\"\"),\"\",IF(#REF!=\"Récréation\",CONCATENATE(#REF!&\" / \"&#REF!)&CHAR(10)&\"RECREATION\",CONCATENATE(#REF!&\" / \"&#REF!)&CHAR(10)&\"Matière : \"&#REF!&CHAR(10)&\"Compétences : \"&#REF!))","v":{"$error":"#REF!"}},{"$f":"IF(AND(#REF!=\"\",#REF!=\"\"),\"\",IF(#REF!=\"Récréation\",CONCATENATE(#REF!&\" / \"&#REF!)&CHAR(10)&\"RECREATION\",CONCATENATE(#REF!&\" / \"&#REF!)&CHAR(10)&\"Matière : \"&#REF!&CHAR(10)&\"Compétences : \"&#REF!))","v":{"$error":"#REF!"}},{"$f":"IF(AND(#REF!=\"\",#REF!=\"\"),\"\",IF(#REF!=\"Récréation\",CONCATENATE(#REF!&\" / \"&#REF!)&CHAR(10)&\"RECREATION\",CONCATENATE(#REF!&\" / \"&#REF!)&CHAR(10)&\"Matière : \"&#REF!&CHAR(10)&\"Compétences : \"&#REF!))","v":{"$error":"#REF!"}},{"$f":"IF(AND(#REF!=\"\",#REF!=\"\"),\"\",IF(#REF!=\"Récréation\",CONCATENATE(#REF!&\" / \"&#REF!)&CHAR(10)&\"RECREATION\",CONCATENATE(#REF!&\" / \"&#REF!)&CHAR(10)&\"Matière : \"&#REF!&CHAR(10)&\"Compétences : \"&#REF!))","v":{"$error":"#REF!"}},{"$f":"IF(AND(#REF!=\"\",#REF!=\"\"),\"\",IF(#REF!=\"Récréation\",CONCATENATE(#REF!&\" / \"&#REF!)&CHAR(10)&\"RECREATION\",CONCATENATE(#REF!&\" / \"&#REF!)&CHAR(10)&\"Matière : \"&#REF!&CHAR(10)&\"Compétences : \"&#REF!))","v":{"$error":"#REF!"}}]
[{"$f":"IF(AND(#REF!=\"\",#REF!=\"\"),\"\",IF(#REF!=\"Récréation\",CONCATENATE(#REF!&\" / \"&#REF!)&CHAR(10)&\"RECREATION\",CONCATENATE(#REF!&\" / \"&#REF!)&CHAR(10)&\"Matière : \"&#REF!&CHAR(10)&\"Compétences : \"&#REF!))","v":{"$error":"#REF!"}},{"$f":"IF(AND(#REF!=\"\",#REF!=\"\"),\"\",IF(#REF!=\"Récréation\",CONCATENATE(#REF!&\" / \"&#REF!)&CHAR(10)&\"RECREATION\",CONCATENATE(#REF!&\" / \"&#REF!)&CHAR(10)&\"Matière : \"&#REF!&CHAR(10)&\"Compétences : \"&#REF!))","v":{"$error":"#REF!"}},{"$f":"IF(AND(#REF!=\"\",#REF!=\"\"),\"\",IF(#REF!=\"Récréation\",CONCATENATE(#REF!&\" / \"&#REF!)&CHAR(10)&\"RECREATION\",CONCATENATE(#REF!&\" / \"&#REF!)&CHAR(10)&\"Matière : \"&#REF!&CHAR(10)&\"Compétences : \"&#REF!))","v":{"$error":"#REF!"}},{"$f":"IF(AND(#REF!=\"\",#REF!=\"\"),\"\",IF(#REF!=\"Récréation\",CONCATENATE(#REF!&\" / \"&#REF!)&CHAR(10)&\"RECREATION\",CONCATENATE(#REF!&\" / \"&#REF!)&CHAR(10)&\"Matière : \"&#REF!&CHAR(10)&\"Compétences : \"&#REF!))","v":{"$error":"#REF!"}},{"$f":"IF(AND(#REF!=\"\",#REF!=\"\"),\"\",IF(#REF!=\"Récréation\",CONCATENATE(#REF!&\" / \"&#REF!)&CHAR(10)&\"RECREATION\",CONCATENATE(#REF!&\" / \"&#REF!)&CHAR(10)&\"Matière : \"&#REF!&CHAR(10)&\"Compétences : \"&#REF!))","v":{"$error":"#REF!"}}]
[{"$f":"IF(AND(#REF!=\"\",#REF!=\"\"),\"\",IF(#REF!=\"Récréation\",CONCATENATE(#REF!&\" / \"&#REF!)&CHAR(10)&\"RECREATION\",CONCATENATE(#REF!&\" / \"&#REF!)&CHAR(10)&\"Matière : \"&#REF!&CHAR(10)&\"Compétences : \"&#REF!))","v":{"$error":"#REF!"}},{"$f":"IF(AND(#REF!=\"\",#REF!=\"\"),\"\",IF(#REF!=\"Récréation\",CONCATENATE(#REF!&\" / \"&#REF!)&CHAR(10)&\"RECREATION\",CONCATENATE(#REF!&\" / \"&#REF!)&CHAR(10)&\"Matière : \"&#REF!&CHAR(10)&\"Compétences : \"&#REF!))","v":{"$error":"#REF!"}},{"$f":"IF(AND(#REF!=\"\",#REF!=\"\"),\"\",IF(#REF!=\"Récréation\",CONCATENATE(#REF!&\" / \"&#REF!)&CHAR(10)&\"RECREATION\",CONCATENATE(#REF!&\" / \"&#REF!)&CHAR(10)&\"Matière : \"&#REF!&CHAR(10)&\"Compétences : \"&#REF!))","v":{"$error":"#REF!"}},{"$f":"IF(AND(#REF!=\"\",#REF!=\"\"),\"\",IF(#REF!=\"Récréation\",CONCATENATE(#REF!&\" / \"&#REF!)&CHAR(10)&\"RECREATION\",CONCATENATE(#REF!&\" / \"&#REF!)&CHAR(10)&\"Matière : \"&#REF!&CHAR(10)&\"Compétences : \"&#REF!))","v":{"$error":"#REF!"}},{"$f":"IF(AND(#REF!=\"\",#REF!=\"\"),\"\",IF(#REF!=\"Récréation\",CONCATENATE(#REF!&\" / \"&#REF!)&CHAR(10)&\"RECREATION\",CONCATENATE(#REF!&\" / \"&#REF!)&CHAR(10)&\"Matière : \"&#REF!&CHAR(10)&\"Compétences : \"&#REF!))","v":{"$error":"#REF!"}}]
[{"$f":"IF(AND(#REF!=\"\",#REF!=\"\"),\"\",IF(#REF!=\"Récréation\",CONCATENATE(#REF!&\" / \"&#REF!)&CHAR(10)&\"RECREATION\",CONCATENATE(#REF!&\" / \"&#REF!)&CHAR(10)&\"Matière : \"&#REF!&CHAR(10)&\"Compétences : \"&#REF!))","v":{"$error":"#REF!"}},{"$f":"IF(AND(#REF!=\"\",#REF!=\"\"),\"\",IF(#REF!=\"Récréation\",CONCATENATE(#REF!&\" / \"&#REF!)&CHAR(10)&\"RECREATION\",CONCATENATE(#REF!&\" / \"&#REF!)&CHAR(10)&\"Matière : \"&#REF!&CHAR(10)&\"Compétences : \"&#REF!))","v":{"$error":"#REF!"}},{"$f":"IF(AND(#REF!=\"\",#REF!=\"\"),\"\",IF(#REF!=\"Récréation\",CONCATENATE(#REF!&\" / \"&#REF!)&CHAR(10)&\"RECREATION\",CONCATENATE(#REF!&\" / \"&#REF!)&CHAR(10)&\"Matière : \"&#REF!&CHAR(10)&\"Compétences : \"&#REF!))","v":{"$error":"#REF!"}},{"$f":"IF(AND(#REF!=\"\",#REF!=\"\"),\"\",IF(#REF!=\"Récréation\",CONCATENATE(#REF!&\" / \"&#REF!)&CHAR(10)&\"RECREATION\",CONCATENATE(#REF!&\" / \"&#REF!)&CHAR(10)&\"Matière : \"&#REF!&CHAR(10)&\"Compétences : \"&#REF!))","v":{"$error":"#REF!"}},{"$f":"IF(AND(#REF!=\"\",#REF!=\"\"),\"\",IF(#REF!=\"Récréation\",CONCATENATE(#REF!&\" / \"&#REF!)&CHAR(10)&\"RECREATION\",CONCATENATE(#REF!&\" / \"&#REF!)&CHAR(10)&\"Matière : \"&#REF!&CHAR(10)&\"Compétences : \"&#REF!))","v":{"$error":"#REF!"}}]
[{"$f":"IF(AND(#REF!=\"\",#REF!=\"\"),\"\",IF(#REF!=\"Récréation\",CONCATENATE(#REF!&\" / \"&#REF!)&CHAR(10)&\"RECREATION\",CONCATENATE(#REF!&\" / \"&#REF!)&CHAR(10)&\"Matière : \"&#REF!&CHAR(10)&\"Compétences : \"&#REF!))","v":{"$error":"#REF!"}},{"$f":"IF(AND(#REF!=\"\",#REF!=\"\"),\"\",IF(#REF!=\"Récréation\",CONCATENATE(#REF!&\" / \"&#REF!)&CHAR(10)&\"RECREATION\",CONCATENATE(#REF!&\" / \"&#REF!)&CHAR(10)&\"Matière : \"&#REF!&CHAR(10)&\"Compétences : \"&#REF!))","v":{"$error":"#REF!"}},{"$f":"IF(AND(#REF!=\"\",#REF!=\"\"),\"\",IF(#REF!=\"Récréation\",CONCATENATE(#REF!&\" / \"&#REF!)&CHAR(10)&\"RECREATION\",CONCATENATE(#REF!&\" / \"&#REF!)&CHAR(10)&\"Matière : \"&#REF!&CHAR(10)&\"Compétences : \"&#REF!))","v":{"$error":"#REF!"}},{"$f":"IF(AND(#REF!=\"\",#REF!=\"\"),\"\",IF(#REF!=\"Récréation\",CONCATENATE(#REF!&\" / \"&#REF!)&CHAR(10)&\"RECREATION\",CONCATENATE(#REF!&\" / \"&#REF!)&CHAR(10)&\"Matière : \"&#REF!&CHAR(10)&\"Compétences : \"&#REF!))","v":{"$error":"#REF!"}},{"$f":"IF(AND(#REF!=\"\",#REF!=\"\"),\"\",IF(#REF!=\"Récréation\",CONCATENATE(#REF!&\" / \"&#REF!)&CHAR(10)&\"RECREATION\",CONCATENATE(#REF!&\" / \"&#REF!)&CHAR(10)&\"Matière : \"&#REF!&CHAR(10)&\"Compétences : \"&#REF!))","v":{"$error":"#REF!"}}]
[{"$f":"IF(AND(#REF!=\"\",#REF!=\"\"),\"\",IF(#REF!=\"Récréation\",CONCATENATE(#REF!&\" / \"&#REF!)&CHAR(10)&\"RECREATION\",CONCATENATE(#REF!&\" / \"&#REF!)&CHAR(10)&\"Matière : \"&#REF!&CHAR(10)&\"Compétences : \"&#REF!))","v":{"$error":"#REF!"}},{"$f":"IF(AND(#REF!=\"\",#REF!=\"\"),\"\",IF(#REF!=\"Récréation\",CONCATENATE(#REF!&\" / \"&#REF!)&CHAR(10)&\"RECREATION\",CONCATENATE(#REF!&\" / \"&#REF!)&CHAR(10)&\"Matière : \"&#REF!&CHAR(10)&\"Compétences : \"&#REF!))","v":{"$error":"#REF!"}},{"$f":"IF(AND(#REF!=\"\",#REF!=\"\"),\"\",IF(#REF!=\"Récréation\",CONCATENATE(#REF!&\" / \"&#REF!)&CHAR(10)&\"RECREATION\",CONCATENATE(#REF!&\" / \"&#REF!)&CHAR(10)&\"Matière : \"&#REF!&CHAR(10)&\"Compétences : \"&#REF!))","v":{"$error":"#REF!"}},{"$f":"IF(AND(#REF!=\"\",#REF!=\"\"),\"\",IF(#REF!=\"Récréation\",CONCATENATE(#REF!&\" / \"&#REF!)&CHAR(10)&\"RECREATION\",CONCATENATE(#REF!&\" / \"&#REF!)&CHAR(10)&\"Matière : \"&#REF!&CHAR(10)&\"Compétences : \"&#REF!))","v":{"$error":"#REF!"}},{"$f":"IF(AND(#REF!=\"\",#REF!=\"\"),\"\",IF(#REF!=\"Récréation\",CONCATENATE(#REF!&\" / \"&#REF!)&CHAR(10)&\"RECREATION\",CONCATENATE(#REF!&\" / \"&#REF!)&CHAR(10)&\"Matière : \"&#REF!&CHAR(10)&\"Compétences : \"&#REF!))","v":{"$error":"#REF!"}}]
[{"$f":"IF(AND(#REF!=\"\",#REF!=\"\"),\"\",IF(#REF!=\"Récréation\",CONCATENATE(#REF!&\" / \"&#REF!)&CHAR(10)&\"RECREATION\",CONCATENATE(#REF!&\" / \"&#REF!)&CHAR(10)&\"Matière : \"&#REF!&CHAR(10)&\"Compétences : \"&#REF!))","v":{"$error":"#REF!"}},{"$f":"IF(AND(#REF!=\"\",#REF!=\"\"),\"\",IF(#REF!=\"Récréation\",CONCATENATE(#REF!&\" / \"&#REF!)&CHAR(10)&\"RECREATION\",CONCATENATE(#REF!&\" / \"&#REF!)&CHAR(10)&\"Matière : \"&#REF!&CHAR(10)&\"Compétences : \"&#REF!))","v":{"$error":"#REF!"}},{"$f":"IF(AND(#REF!=\"\",#REF!=\"\"),\"\",IF(#REF!=\"Récréation\",CONCATENATE(#REF!&\" / \"&#REF!)&CHAR(10)&\"RECREATION\",CONCATENATE(#REF!&\" / \"&#REF!)&CHAR(10)&\"Matière : \"&#REF!&CHAR(10)&\"Compétences : \"&#REF!))","v":{"$error":"#REF!"}},{"$f":"IF(AND(#REF!=\"\",#REF!=\"\"),\"\",IF(#REF!=\"Récréation\",CONCATENATE(#REF!&\" / \"&#REF!)&CHAR(10)&\"RECREATION\",CONCATENATE(#REF!&\" / \"&#REF!)&CHAR(10)&\"Matière : \"&#REF!&CHAR(10)&\"Compétences : \"&#REF!))","v":{"$error":"#REF!"}},{"$f":"IF(AND(#REF!=\"\",#REF!=\"\"),\"\",IF(#REF!=\"Récréation\",CONCATENATE(#REF!&\" / \"&#REF!)&CHAR(10)&\"RECREATION\",CONCATENATE(#REF!&\" / \"&#REF!)&CHAR(10)&\"Matière : \"&#REF!&CHAR(10)&\"Compétences : \"&#REF!))","v":{"$error":"#REF!"}}]
[{"$f":"IF(AND(#REF!=\"\",#REF!=\"\"),\"\",IF(#REF!=\"Récréation\",CONCATENATE(#REF!&\" / \"&#REF!)&CHAR(10)&\"RECREATION\",CONCATENATE(#REF!&\" / \"&#REF!)&CHAR(10)&\"Matière : \"&#REF!&CHAR(10)&\"Compétences : \"&#REF!))","v":{"$error":"#REF!"}},{"$f":"IF(AND(#REF!=\"\",#REF!=\"\"),\"\",IF(#REF!=\"Récréation\",CONCATENATE(#REF!&\" / \"&#REF!)&CHAR(10)&\"RECREATION\",CONCATENATE(#REF!&\" / \"&#REF!)&CHAR(10)&\"Matière : \"&#REF!&CHAR(10)&\"Compétences : \"&#REF!))","v":{"$error":"#REF!"}},{"$f":"IF(AND(#REF!=\"\",#REF!=\"\"),\"\",IF(#REF!=\"Récréation\",CONCATENATE(#REF!&\" / \"&#REF!)&CHAR(10)&\"RECREATION\",CONCATENATE(#REF!&\" / \"&#REF!)&CHAR(10)&\"Matière : \"&#REF!&CHAR(10)&\"Compétences : \"&#REF!))","v":{"$error":"#REF!"}},{"$f":"IF(AND(#REF!=\"\",#REF!=\"\"),\"\",IF(#REF!=\"Récréation\",CONCATENATE(#REF!&\" / \"&#REF!)&CHAR(10)&\"RECREATION\",CONCATENATE(#REF!&\" / \"&#REF!)&CHAR(10)&\"Matière : \"&#REF!&CHAR(10)&\"Compétences : \"&#REF!))","v":{"$error":"#REF!"}},{"$f":"IF(AND(#REF!=\"\",#REF!=\"\"),\"\",IF(#REF!=\"Récréation\",CONCATENATE(#REF!&\" / \"&#REF!)&CHAR(10)&\"RECREATION\",CONCATENATE(#REF!&\" / \"&#REF!)&CHAR(10)&\"Matière : \"&#REF!&CHAR(10)&\"Compétences : \"&#REF!))","v":{"$error":"#REF!"}}]
[{"$f":"IF(AND(#REF!=\"\",#REF!=\"\"),\"\",IF(#REF!=\"Récréation\",CONCATENATE(#REF!&\" / \"&#REF!)&CHAR(10)&\"RECREATION\",CONCATENATE(#REF!&\" / \"&#REF!)&CHAR(10)&\"Matière : \"&#REF!&CHAR(10)&\"Compétences : \"&#REF!))","v":{"$error":"#REF!"}},{"$f":"IF(AND(#REF!=\"\",#REF!=\"\"),\"\",IF(#REF!=\"Récréation\",CONCATENATE(#REF!&\" / \"&#REF!)&CHAR(10)&\"RECREATION\",CONCATENATE(#REF!&\" / \"&#REF!)&CHAR(10)&\"Matière : \"&#REF!&CHAR(10)&\"Compétences : \"&#REF!))","v":{"$error":"#REF!"}},{"$f":"IF(AND(#REF!=\"\",#REF!=\"\"),\"\",IF(#REF!=\"Récréation\",CONCATENATE(#REF!&\" / \"&#REF!)&CHAR(10)&\"RECREATION\",CONCATENATE(#REF!&\" / \"&#REF!)&CHAR(10)&\"Matière : \"&#REF!&CHAR(10)&\"Compétences : \"&#REF!))","v":{"$error":"#REF!"}},{"$f":"IF(AND(#REF!=\"\",#REF!=\"\"),\"\",IF(#REF!=\"Récréation\",CONCATENATE(#REF!&\" / \"&#REF!)&CHAR(10)&\"RECREATION\",CONCATENATE(#REF!&\" / \"&#REF!)&CHAR(10)&\"Matière : \"&#REF!&CHAR(10)&\"Compétences : \"&#REF!))","v":{"$error":"#REF!"}},{"$f":"IF(AND(#REF!=\"\",#REF!=\"\"),\"\",IF(#REF!=\"Récréation\",CONCATENATE(#REF!&\" / \"&#REF!)&CHAR(10)&\"RECREATION\",CONCATENATE(#REF!&\" / \"&#REF!)&CHAR(10)&\"Matière : \"&#REF!&CHAR(10)&\"Compétences : \"&#REF!))","v":{"$error":"#REF!"}}]
[{"$f":"IF(AND(#REF!=\"\",#REF!=\"\"),\"\",IF(#REF!=\"Récréation\",CONCATENATE(#REF!&\" / \"&#REF!)&CHAR(10)&\"RECREATION\",CONCATENATE(#REF!&\" / \"&#REF!)&CHAR(10)&\"Matière : \"&#REF!&CHAR(10)&\"Compétences : \"&#REF!))","v":{"$error":"#REF!"}},{"$f":"IF(AND(#REF!=\"\",#REF!=\"\"),\"\",IF(#REF!=\"Récréation\",CONCATENATE(#REF!&\" / \"&#REF!)&CHAR(10)&\"RECREATION\",CONCATENATE(#REF!&\" / \"&#REF!)&CHAR(10)&\"Matière : \"&#REF!&CHAR(10)&\"Compétences : \"&#REF!))","v":{"$error":"#REF!"}},{"$f":"IF(AND(#REF!=\"\",#REF!=\"\"),\"\",IF(#REF!=\"Récréation\",CONCATENATE(#REF!&\" / \"&#REF!)&CHAR(10)&\"RECREATION\",CONCATENATE(#REF!&\" / \"&#REF!)&CHAR(10)&\"Matière : \"&#REF!&CHAR(10)&\"Compétences : \"&#REF!))","v":{"$error":"#REF!"}},{"$f":"IF(AND(#REF!=\"\",#REF!=\"\"),\"\",IF(#REF!=\"Récréation\",CONCATENATE(#REF!&\" / \"&#REF!)&CHAR(10)&\"RECREATION\",CONCATENATE(#REF!&\" / \"&#REF!)&CHAR(10)&\"Matière : \"&#REF!&CHAR(10)&\"Compétences : \"&#REF!))","v":{"$error":"#REF!"}},{"$f":"IF(AND(#REF!=\"\",#REF!=\"\"),\"\",IF(#REF!=\"Récréation\",CONCATENATE(#REF!&\" / \"&#REF!)&CHAR(10)&\"RECREATION\",CONCATENATE(#REF!&\" / \"&#REF!)&CHAR(10)&\"Matière : \"&#REF!&CHAR(10)&\"Compétences : \"&#REF!))","v":{"$error":"#REF!"}}]
[{"$f":"IF(AND(#REF!=\"\",#REF!=\"\"),\"\",IF(#REF!=\"Récréation\",CONCATENATE(#REF!&\" / \"&#REF!)&CHAR(10)&\"RECREATION\",CONCATENATE(#REF!&\" / \"&#REF!)&CHAR(10)&\"Matière : \"&#REF!&CHAR(10)&\"Compétences : \"&#REF!))","v":{"$error":"#REF!"}},{"$f":"IF(AND(#REF!=\"\",#REF!=\"\"),\"\",IF(#REF!=\"Récréation\",CONCATENATE(#REF!&\" / \"&#REF!)&CHAR(10)&\"RECREATION\",CONCATENATE(#REF!&\" / \"&#REF!)&CHAR(10)&\"Matière : \"&#REF!&CHAR(10)&\"Compétences : \"&#REF!))","v":{"$error":"#REF!"}},{"$f":"IF(AND(#REF!=\"\",#REF!=\"\"),\"\",IF(#REF!=\"Récréation\",CONCATENATE(#REF!&\" / \"&#REF!)&CHAR(10)&\"RECREATION\",CONCATENATE(#REF!&\" / \"&#REF!)&CHAR(10)&\"Matière : \"&#REF!&CHAR(10)&\"Compétences : \"&#REF!))","v":{"$error":"#REF!"}},{"$f":"IF(AND(#REF!=\"\",#REF!=\"\"),\"\",IF(#REF!=\"Récréation\",CONCATENATE(#REF!&\" / \"&#REF!)&CHAR(10)&\"RECREATION\",CONCATENATE(#REF!&\" / \"&#REF!)&CHAR(10)&\"Matière : \"&#REF!&CHAR(10)&\"Compétences : \"&#REF!))","v":{"$error":"#REF!"}},{"$f":"IF(AND(#REF!=\"\",#REF!=\"\"),\"\",IF(#REF!=\"Récréation\",CONCATENATE(#REF!&\" / \"&#REF!)&CHAR(10)&\"RECREATION\",CONCATENATE(#REF!&\" / \"&#REF!)&CHAR(10)&\"Matière : \"&#REF!&CHAR(10)&\"Compétences : \"&#REF!))","v":{"$error":"#REF!"}}]
[{"$f":"IF(AND(#REF!=\"\",#REF!=\"\"),\"\",IF(#REF!=\"Récréation\",CONCATENATE(#REF!&\" / \"&#REF!)&CHAR(10)&\"RECREATION\",CONCATENATE(#REF!&\" / \"&#REF!)&CHAR(10)&\"Matière : \"&#REF!&CHAR(10)&\"Compétences : \"&#REF!))","v":{"$error":"#REF!"}},{"$f":"IF(AND(#REF!=\"\",#REF!=\"\"),\"\",IF(#REF!=\"Récréation\",CONCATENATE(#REF!&\" / \"&#REF!)&CHAR(10)&\"RECREATION\",CONCATENATE(#REF!&\" / \"&#REF!)&CHAR(10)&\"Matière : \"&#REF!&CHAR(10)&\"Compétences : \"&#REF!))","v":{"$error":"#REF!"}},{"$f":"IF(AND(#REF!=\"\",#REF!=\"\"),\"\",IF(#REF!=\"Récréation\",CONCATENATE(#REF!&\" / \"&#REF!)&CHAR(10)&\"RECREATION\",CONCATENATE(#REF!&\" / \"&#REF!)&CHAR(10)&\"Matière : \"&#REF!&CHAR(10)&\"Compétences : \"&#REF!))","v":{"$error":"#REF!"}},{"$f":"IF(AND(#REF!=\"\",#REF!=\"\"),\"\",IF(#REF!=\"Récréation\",CONCATENATE(#REF!&\" / \"&#REF!)&CHAR(10)&\"RECREATION\",CONCATENATE(#REF!&\" / \"&#REF!)&CHAR(10)&\"Matière : \"&#REF!&CHAR(10)&\"Compétences : \"&#REF!))","v":{"$error":"#REF!"}},{"$f":"IF(AND(#REF!=\"\",#REF!=\"\"),\"\",IF(#REF!=\"Récréation\",CONCATENATE(#REF!&\" / \"&#REF!)&CHAR(10)&\"RECREATION\",CONCATENATE(#REF!&\" / \"&#REF!)&CHAR(10)&\"Matière : \"&#REF!&CHAR(10)&\"Compétences : \"&#REF!))","v":{"$error":"#REF!"}}]
[{"$f":"IF(AND(#REF!=\"\",#REF!=\"\"),\"\",IF(#REF!=\"Récréation\",CONCATENATE(#REF!&\" / \"&#REF!)&CHAR(10)&\"RECREATION\",CONCATENATE(#REF!&\" / \"&#REF!)&CHAR(10)&\"Matière : \"&#REF!&CHAR(10)&\"Compétences : \"&#REF!))","v":{"$error":"#REF!"}},{"$f":"IF(AND(#REF!=\"\",#REF!=\"\"),\"\",IF(#REF!=\"Récréation\",CONCATENATE(#REF!&\" / \"&#REF!)&CHAR(10)&\"RECREATION\",CONCATENATE(#REF!&\" / \"&#REF!)&CHAR(10)&\"Matière : \"&#REF!&CHAR(10)&\"Compétences : \"&#REF!))","v":{"$error":"#REF!"}},{"$f":"IF(AND(#REF!=\"\",#REF!=\"\"),\"\",IF(#REF!=\"Récréation\",CONCATENATE(#REF!&\" / \"&#REF!)&CHAR(10)&\"RECREATION\",CONCATENATE(#REF!&\" / \"&#REF!)&CHAR(10)&\"Matière : \"&#REF!&CHAR(10)&\"Compétences : \"&#REF!))","v":{"$error":"#REF!"}},{"$f":"IF(AND(#REF!=\"\",#REF!=\"\"),\"\",IF(#REF!=\"Récréation\",CONCATENATE(#REF!&\" / \"&#REF!)&CHAR(10)&\"RECREATION\",CONCATENATE(#REF!&\" / \"&#REF!)&CHAR(10)&\"Matière : \"&#REF!&CHAR(10)&\"Compétences : \"&#REF!))","v":{"$error":"#REF!"}},{"$f":"IF(AND(#REF!=\"\",#REF!=\"\"),\"\",IF(#REF!=\"Récréation\",CONCATENATE(#REF!&\" / \"&#REF!)&CHAR(10)&\"RECREATION\",CONCATENATE(#REF!&\" / \"&#REF!)&CHAR(10)&\"Matière : \"&#REF!&CHAR(10)&\"Compétences : \"&#REF!))","v":{"$error":"#REF!"}}]
[{"$f":"IF(AND(#REF!=\"\",#REF!=\"\"),\"\",IF(#REF!=\"Récréation\",CONCATENATE(#REF!&\" / \"&#REF!)&CHAR(10)&\"RECREATION\",CONCATENATE(#REF!&\" / \"&#REF!)&CHAR(10)&\"Matière : \"&#REF!&CHAR(10)&\"Compétences : \"&#REF!))","v":{"$error":"#REF!"}},{"$f":"IF(AND(#REF!=\"\",#REF!=\"\"),\"\",IF(#REF!=\"Récréation\",CONCATENATE(#REF!&\" / \"&#REF!)&CHAR(10)&\"RECREATION\",CONCATENATE(#REF!&\" / \"&#REF!)&CHAR(10)&\"Matière : \"&#REF!&CHAR(10)&\"Compétences : \"&#REF!))","v":{"$error":"#REF!"}},{"$f":"IF(AND(#REF!=\"\",#REF!=\"\"),\"\",IF(#REF!=\"Récréation\",CONCATENATE(#REF!&\" / \"&#REF!)&CHAR(10)&\"RECREATION\",CONCATENATE(#REF!&\" / \"&#REF!)&CHAR(10)&\"Matière : \"&#REF!&CHAR(10)&\"Compétences : \"&#REF!))","v":{"$error":"#REF!"}},{"$f":"IF(AND(#REF!=\"\",#REF!=\"\"),\"\",IF(#REF!=\"Récréation\",CONCATENATE(#REF!&\" / \"&#REF!)&CHAR(10)&\"RECREATION\",CONCATENATE(#REF!&\" / \"&#REF!)&CHAR(10)&\"Matière : \"&#REF!&CHAR(10)&\"Compétences : \"&#REF!))","v":{"$error":"#REF!"}},{"$f":"IF(AND(#REF!=\"\",#REF!=\"\"),\"\",IF(#REF!=\"Récréation\",CONCATENATE(#REF!&\" / \"&#REF!)&CHAR(10)&\"RECREATION\",CONCATENATE(#REF!&\" / \"&#REF!)&CHAR(10)&\"Matière : \"&#REF!&CHAR(10)&\"Compétences : \"&#REF!))","v":{"$error":"#REF!"}}]
[{"$f":"IF(AND(#REF!=\"\",#REF!=\"\"),\"\",IF(#REF!=\"Récréation\",CONCATENATE(#REF!&\" / \"&#REF!)&CHAR(10)&\"RECREATION\",CONCATENATE(#REF!&\" / \"&#REF!)&CHAR(10)&\"Matière : \"&#REF!&CHAR(10)&\"Compétences : \"&#REF!))","v":{"$error":"#REF!"}},{"$f":"IF(AND(#REF!=\"\",#REF!=\"\"),\"\",IF(#REF!=\"Récréation\",CONCATENATE(#REF!&\" / \"&#REF!)&CHAR(10)&\"RECREATION\",CONCATENATE(#REF!&\" / \"&#REF!)&CHAR(10)&\"Matière : \"&#REF!&CHAR(10)&\"Compétences : \"&#REF!))","v":{"$error":"#REF!"}},{"$f":"IF(AND(#REF!=\"\",#REF!=\"\"),\"\",IF(#REF!=\"Récréation\",CONCATENATE(#REF!&\" / \"&#REF!)&CHAR(10)&\"RECREATION\",CONCATENATE(#REF!&\" / \"&#REF!)&CHAR(10)&\"Matière : \"&#REF!&CHAR(10)&\"Compétences : \"&#REF!))","v":{"$error":"#REF!"}},{"$f":"IF(AND(#REF!=\"\",#REF!=\"\"),\"\",IF(#REF!=\"Récréation\",CONCATENATE(#REF!&\" / \"&#REF!)&CHAR(10)&\"RECREATION\",CONCATENATE(#REF!&\" / \"&#REF!)&CHAR(10)&\"Matière : \"&#REF!&CHAR(10)&\"Compétences : \"&#REF!))","v":{"$error":"#REF!"}},{"$f":"IF(AND(#REF!=\"\",#REF!=\"\"),\"\",IF(#REF!=\"Récréation\",CONCATENATE(#REF!&\" / \"&#REF!)&CHAR(10)&\"RECREATION\",CONCATENATE(#REF!&\" / \"&#REF!)&CHAR(10)&\"Matière : \"&#REF!&CHAR(10)&\"Compétences : \"&#REF!))","v":{"$error":"#REF!"}}]
[{"$f":"IF(AND(#REF!=\"\",#REF!=\"\"),\"\",IF(#REF!=\"Récréation\",CONCATENATE(#REF!&\" / \"&#REF!)&CHAR(10)&\"RECREATION\",CONCATENATE(#REF!&\" / \"&#REF!)&CHAR(10)&\"Matière : \"&#REF!&CHAR(10)&\"Compétences : \"&#REF!))","v":{"$error":"#REF!"}},{"$f":"IF(AND(#REF!=\"\",#REF!=\"\"),\"\",IF(#REF!=\"Récréation\",CONCATENATE(#REF!&\" / \"&#REF!)&CHAR(10)&\"RECREATION\",CONCATENATE(#REF!&\" / \"&#REF!)&CHAR(10)&\"Matière : \"&#REF!&CHAR(10)&\"Compétences : \"&#REF!))","v":{"$error":"#REF!"}},{"$f":"IF(AND(#REF!=\"\",#REF!=\"\"),\"\",IF(#REF!=\"Récréation\",CONCATENATE(#REF!&\" / \"&#REF!)&CHAR(10)&\"RECREATION\",CONCATENATE(#REF!&\" / \"&#REF!)&CHAR(10)&\"Matière : \"&#REF!&CHAR(10)&\"Compétences : \"&#REF!))","v":{"$error":"#REF!"}},{"$f":"IF(AND(#REF!=\"\",#REF!=\"\"),\"\",IF(#REF!=\"Récréation\",CONCATENATE(#REF!&\" / \"&#REF!)&CHAR(10)&\"RECREATION\",CONCATENATE(#REF!&\" / \"&#REF!)&CHAR(10)&\"Matière : \"&#REF!&CHAR(10)&\"Compétences : \"&#REF!))","v":{"$error":"#REF!"}},{"$f":"IF(AND(#REF!=\"\",#REF!=\"\"),\"\",IF(#REF!=\"Récréation\",CONCATENATE(#REF!&\" / \"&#REF!)&CHAR(10)&\"RECREATION\",CONCATENATE(#REF!&\" / \"&#REF!)&CHAR(10)&\"Matière : \"&#REF!&CHAR(10)&\"Compétences : \"&#REF!))","v":{"$error":"#REF!"}}]
[{"$f":"IF(AND(#REF!=\"\",#REF!=\"\"),\"\",IF(#REF!=\"Récréation\",CONCATENATE(#REF!&\" / \"&#REF!)&CHAR(10)&\"RECREATION\",CONCATENATE(#REF!&\" / \"&#REF!)&CHAR(10)&\"Matière : \"&#REF!&CHAR(10)&\"Compétences : \"&#REF!))","v":{"$error":"#REF!"}},{"$f":"IF(AND(#REF!=\"\",#REF!=\"\"),\"\",IF(#REF!=\"Récréation\",CONCATENATE(#REF!&\" / \"&#REF!)&CHAR(10)&\"RECREATION\",CONCATENATE(#REF!&\" / \"&#REF!)&CHAR(10)&\"Matière : \"&#REF!&CHAR(10)&\"Compétences : \"&#REF!))","v":{"$error":"#REF!"}},{"$f":"IF(AND(#REF!=\"\",#REF!=\"\"),\"\",IF(#REF!=\"Récréation\",CONCATENATE(#REF!&\" / \"&#REF!)&CHAR(10)&\"RECREATION\",CONCATENATE(#REF!&\" / \"&#REF!)&CHAR(10)&\"Matière : \"&#REF!&CHAR(10)&\"Compétences : \"&#REF!))","v":{"$error":"#REF!"}},{"$f":"IF(AND(#REF!=\"\",#REF!=\"\"),\"\",IF(#REF!=\"Récréation\",CONCATENATE(#REF!&\" / \"&#REF!)&CHAR(10)&\"RECREATION\",CONCATENATE(#REF!&\" / \"&#REF!)&CHAR(10)&\"Matière : \"&#REF!&CHAR(10)&\"Compétences : \"&#REF!))","v":{"$error":"#REF!"}},{"$f":"IF(AND(#REF!=\"\",#REF!=\"\"),\"\",IF(#REF!=\"Récréation\",CONCATENATE(#REF!&\" / \"&#REF!)&CHAR(10)&\"RECREATION\",CONCATENATE(#REF!&\" / \"&#REF!)&CHAR(10)&\"Matière : \"&#REF!&CHAR(10)&\"Compétences : \"&#REF!))","v":{"$error":"#REF!"}}]
[{"$f":"IF(AND(#REF!=\"\",#REF!=\"\"),\"\",IF(#REF!=\"Récréation\",CONCATENATE(#REF!&\" / \"&#REF!)&CHAR(10)&\"RECREATION\",CONCATENATE(#REF!&\" / \"&#REF!)&CHAR(10)&\"Matière : \"&#REF!&CHAR(10)&\"Compétences : \"&#REF!))","v":{"$error":"#REF!"}},{"$f":"IF(AND(#REF!=\"\",#REF!=\"\"),\"\",IF(#REF!=\"Récréation\",CONCATENATE(#REF!&\" / \"&#REF!)&CHAR(10)&\"RECREATION\",CONCATENATE(#REF!&\" / \"&#REF!)&CHAR(10)&\"Matière : \"&#REF!&CHAR(10)&\"Compétences : \"&#REF!))","v":{"$error":"#REF!"}},{"$f":"IF(AND(#REF!=\"\",#REF!=\"\"),\"\",IF(#REF!=\"Récréation\",CONCATENATE(#REF!&\" / \"&#REF!)&CHAR(10)&\"RECREATION\",CONCATENATE(#REF!&\" / \"&#REF!)&CHAR(10)&\"Matière : \"&#REF!&CHAR(10)&\"Compétences : \"&#REF!))","v":{"$error":"#REF!"}},{"$f":"IF(AND(#REF!=\"\",#REF!=\"\"),\"\",IF(#REF!=\"Récréation\",CONCATENATE(#REF!&\" / \"&#REF!)&CHAR(10)&\"RECREATION\",CONCATENATE(#REF!&\" / \"&#REF!)&CHAR(10)&\"Matière : \"&#REF!&CHAR(10)&\"Compétences : \"&#REF!))","v":{"$error":"#REF!"}},{"$f":"IF(AND(#REF!=\"\",#REF!=\"\"),\"\",IF(#REF!=\"Récréation\",CONCATENATE(#REF!&\" / \"&#REF!)&CHAR(10)&\"RECREATION\",CONCATENATE(#REF!&\" / \"&#REF!)&CHAR(10)&\"Matière : \"&#REF!&CHAR(10)&\"Compétences : \"&#REF!))","v":{"$error":"#REF!"}}]
[{"$f":"IF(AND(#REF!=\"\",#REF!=\"\"),\"\",IF(#REF!=\"Récréation\",CONCATENATE(#REF!&\" / \"&#REF!)&CHAR(10)&\"RECREATION\",CONCATENATE(#REF!&\" / \"&#REF!)&CHAR(10)&\"Matière : \"&#REF!&CHAR(10)&\"Compétences : \"&#REF!))","v":{"$error":"#REF!"}},{"$f":"IF(AND(#REF!=\"\",#REF!=\"\"),\"\",IF(#REF!=\"Récréation\",CONCATENATE(#REF!&\" / \"&#REF!)&CHAR(10)&\"RECREATION\",CONCATENATE(#REF!&\" / \"&#REF!)&CHAR(10)&\"Matière : \"&#REF!&CHAR(10)&\"Compétences : \"&#REF!))","v":{"$error":"#REF!"}},{"$f":"IF(AND(#REF!=\"\",#REF!=\"\"),\"\",IF(#REF!=\"Récréation\",CONCATENATE(#REF!&\" / \"&#REF!)&CHAR(10)&\"RECREATION\",CONCATENATE(#REF!&\" / \"&#REF!)&CHAR(10)&\"Matière : \"&#REF!&CHAR(10)&\"Compétences : \"&#REF!))","v":{"$error":"#REF!"}},{"$f":"IF(AND(#REF!=\"\",#REF!=\"\"),\"\",IF(#REF!=\"Récréation\",CONCATENATE(#REF!&\" / \"&#REF!)&CHAR(10)&\"RECREATION\",CONCATENATE(#REF!&\" / \"&#REF!)&CHAR(10)&\"Matière : \"&#REF!&CHAR(10)&\"Compétences : \"&#REF!))","v":{"$error":"#REF!"}},{"$f":"IF(AND(#REF!=\"\",#REF!=\"\"),\"\",IF(#REF!=\"Récréation\",CONCATENATE(#REF!&\" / \"&#REF!)&CHAR(10)&\"RECREATION\",CONCATENATE(#REF!&\" / \"&#REF!)&CHAR(10)&\"Matière : \"&#REF!&CHAR(10)&\"Compétences : \"&#REF!))","v":{"$error":"#REF!"}}]
[{"$f":"IF(AND(#REF!=\"\",#REF!=\"\"),\"\",IF(#REF!=\"Récréation\",CONCATENATE(#REF!&\" / \"&#REF!)&CHAR(10)&\"RECREATION\",CONCATENATE(#REF!&\" / \"&#REF!)&CHAR(10)&\"Matière : \"&#REF!&CHAR(10)&\"Compétences : \"&#REF!))","v":{"$error":"#REF!"}},{"$f":"IF(AND(#REF!=\"\",#REF!=\"\"),\"\",IF(#REF!=\"Récréation\",CONCATENATE(#REF!&\" / \"&#REF!)&CHAR(10)&\"RECREATION\",CONCATENATE(#REF!&\" / \"&#REF!)&CHAR(10)&\"Matière : \"&#REF!&CHAR(10)&\"Compétences : \"&#REF!))","v":{"$error":"#REF!"}},{"$f":"IF(AND(#REF!=\"\",#REF!=\"\"),\"\",IF(#REF!=\"Récréation\",CONCATENATE(#REF!&\" / \"&#REF!)&CHAR(10)&\"RECREATION\",CONCATENATE(#REF!&\" / \"&#REF!)&CHAR(10)&\"Matière : \"&#REF!&CHAR(10)&\"Compétences : \"&#REF!))","v":{"$error":"#REF!"}},{"$f":"IF(AND(#REF!=\"\",#REF!=\"\"),\"\",IF(#REF!=\"Récréation\",CONCATENATE(#REF!&\" / \"&#REF!)&CHAR(10)&\"RECREATION\",CONCATENATE(#REF!&\" / \"&#REF!)&CHAR(10)&\"Matière : \"&#REF!&CHAR(10)&\"Compétences : \"&#REF!))","v":{"$error":"#REF!"}},{"$f":"IF(AND(#REF!=\"\",#REF!=\"\"),\"\",IF(#REF!=\"Récréation\",CONCATENATE(#REF!&\" / \"&#REF!)&CHAR(10)&\"RECREATION\",CONCATENATE(#REF!&\" / \"&#REF!)&CHAR(10)&\"Matière : \"&#REF!&CHAR(10)&\"Compétences : \"&#REF!))","v":{"$error":"#REF!"}}]
[{"$f":"IF(AND(#REF!=\"\",#REF!=\"\"),\"\",IF(#REF!=\"Récréation\",CONCATENATE(#REF!&\" / \"&#REF!)&CHAR(10)&\"RECREATION\",CONCATENATE(#REF!&\" / \"&#REF!)&CHAR(10)&\"Matière : \"&#REF!&CHAR(10)&\"Compétences : \"&#REF!))","v":{"$error":"#REF!"}},{"$f":"IF(AND(#REF!=\"\",#REF!=\"\"),\"\",IF(#REF!=\"Récréation\",CONCATENATE(#REF!&\" / \"&#REF!)&CHAR(10)&\"RECREATION\",CONCATENATE(#REF!&\" / \"&#REF!)&CHAR(10)&\"Matière : \"&#REF!&CHAR(10)&\"Compétences : \"&#REF!))","v":{"$error":"#REF!"}},{"$f":"IF(AND(#REF!=\"\",#REF!=\"\"),\"\",IF(#REF!=\"Récréation\",CONCATENATE(#REF!&\" / \"&#REF!)&CHAR(10)&\"RECREATION\",CONCATENATE(#REF!&\" / \"&#REF!)&CHAR(10)&\"Matière : \"&#REF!&CHAR(10)&\"Compétences : \"&#REF!))","v":{"$error":"#REF!"}},{"$f":"IF(AND(#REF!=\"\",#REF!=\"\"),\"\",IF(#REF!=\"Récréation\",CONCATENATE(#REF!&\" / \"&#REF!)&CHAR(10)&\"RECREATION\",CONCATENATE(#REF!&\" / \"&#REF!)&CHAR(10)&\"Matière : \"&#REF!&CHAR(10)&\"Compétences : \"&#REF!))","v":{"$error":"#REF!"}},{"$f":"IF(AND(#REF!=\"\",#REF!=\"\"),\"\",IF(#REF!=\"Récréation\",CONCATENATE(#REF!&\" / \"&#REF!)&CHAR(10)&\"RECREATION\",CONCATENATE(#REF!&\" / \"&#REF!)&CHAR(10)&\"Matière : \"&#REF!&CHAR(10)&\"Compétences : \"&#REF!))","v":{"$error":"#REF!"}}]
[{"$f":"IF(AND(#REF!=\"\",#REF!=\"\"),\"\",IF(#REF!=\"Récréation\",CONCATENATE(#REF!&\" / \"&#REF!)&CHAR(10)&\"RECREATION\",CONCATENATE(#REF!&\" / \"&#REF!)&CHAR(10)&\"Matière : \"&#REF!&CHAR(10)&\"Compétences : \"&#REF!))","v":{"$error":"#REF!"}},{"$f":"IF(AND(#REF!=\"\",#REF!=\"\"),\"\",IF(#REF!=\"Récréation\",CONCATENATE(#REF!&\" / \"&#REF!)&CHAR(10)&\"RECREATION\",CONCATENATE(#REF!&\" / \"&#REF!)&CHAR(10)&\"Matière : \"&#REF!&CHAR(10)&\"Compétences : \"&#REF!))","v":{"$error":"#REF!"}},{"$f":"IF(AND(#REF!=\"\",#REF!=\"\"),\"\",IF(#REF!=\"Récréation\",CONCATENATE(#REF!&\" / \"&#REF!)&CHAR(10)&\"RECREATION\",CONCATENATE(#REF!&\" / \"&#REF!)&CHAR(10)&\"Matière : \"&#REF!&CHAR(10)&\"Compétences : \"&#REF!))","v":{"$error":"#REF!"}},{"$f":"IF(AND(#REF!=\"\",#REF!=\"\"),\"\",IF(#REF!=\"Récréation\",CONCATENATE(#REF!&\" / \"&#REF!)&CHAR(10)&\"RECREATION\",CONCATENATE(#REF!&\" / \"&#REF!)&CHAR(10)&\"Matière : \"&#REF!&CHAR(10)&\"Compétences : \"&#REF!))","v":{"$error":"#REF!"}},{"$f":"IF(AND(#REF!=\"\",#REF!=\"\"),\"\",IF(#REF!=\"Récréation\",CONCATENATE(#REF!&\" / \"&#REF!)&CHAR(10)&\"RECREATION\",CONCATENATE(#REF!&\" / \"&#REF!)&CHAR(10)&\"Matière : \"&#REF!&CHAR(10)&\"Compétences : \"&#REF!))","v":{"$error":"#REF!"}}]
[{"$f":"IF(AND(#REF!=\"\",#REF!=\"\"),\"\",IF(#REF!=\"Récréation\",CONCATENATE(#REF!&\" / \"&#REF!)&CHAR(10)&\"RECREATION\",CONCATENATE(#REF!&\" / \"&#REF!)&CHAR(10)&\"Matière : \"&#REF!&CHAR(10)&\"Compétences : \"&#REF!))","v":{"$error":"#REF!"}},{"$f":"IF(AND(#REF!=\"\",#REF!=\"\"),\"\",IF(#REF!=\"Récréation\",CONCATENATE(#REF!&\" / \"&#REF!)&CHAR(10)&\"RECREATION\",CONCATENATE(#REF!&\" / \"&#REF!)&CHAR(10)&\"Matière : \"&#REF!&CHAR(10)&\"Compétences : \"&#REF!))","v":{"$error":"#REF!"}},{"$f":"IF(AND(#REF!=\"\",#REF!=\"\"),\"\",IF(#REF!=\"Récréation\",CONCATENATE(#REF!&\" / \"&#REF!)&CHAR(10)&\"RECREATION\",CONCATENATE(#REF!&\" / \"&#REF!)&CHAR(10)&\"Matière : \"&#REF!&CHAR(10)&\"Compétences : \"&#REF!))","v":{"$error":"#REF!"}},{"$f":"IF(AND(#REF!=\"\",#REF!=\"\"),\"\",IF(#REF!=\"Récréation\",CONCATENATE(#REF!&\" / \"&#REF!)&CHAR(10)&\"RECREATION\",CONCATENATE(#REF!&\" / \"&#REF!)&CHAR(10)&\"Matière : \"&#REF!&CHAR(10)&\"Compétences : \"&#REF!))","v":{"$error":"#REF!"}},{"$f":"IF(AND(#REF!=\"\",#REF!=\"\"),\"\",IF(#REF!=\"Récréation\",CONCATENATE(#REF!&\" / \"&#REF!)&CHAR(10)&\"RECREATION\",CONCATENATE(#REF!&\" / \"&#REF!)&CHAR(10)&\"Matière : \"&#REF!&CHAR(10)&\"Compétences : \"&#REF!))","v":{"$error":"#REF!"}}]
[{"$f":"IF(AND(#REF!=\"\",#REF!=\"\"),\"\",IF(#REF!=\"Récréation\",CONCATENATE(#REF!&\" / \"&#REF!)&CHAR(10)&\"RECREATION\",CONCATENATE(#REF!&\" / \"&#REF!)&CHAR(10)&\"Matière : \"&#REF!&CHAR(10)&\"Compétences : \"&#REF!))","v":{"$error":"#REF!"}},{"$f":"IF(AND(#REF!=\"\",#REF!=\"\"),\"\",IF(#REF!=\"Récréation\",CONCATENATE(#REF!&\" / \"&#REF!)&CHAR(10)&\"RECREATION\",CONCATENATE(#REF!&\" / \"&#REF!)&CHAR(10)&\"Matière : \"&#REF!&CHAR(10)&\"Compétences : \"&#REF!))","v":{"$error":"#REF!"}},{"$f":"IF(AND(#REF!=\"\",#REF!=\"\"),\"\",IF(#REF!=\"Récréation\",CONCATENATE(#REF!&\" / \"&#REF!)&CHAR(10)&\"RECREATION\",CONCATENATE(#REF!&\" / \"&#REF!)&CHAR(10)&\"Matière : \"&#REF!&CHAR(10)&\"Compétences : \"&#REF!))","v":{"$error":"#REF!"}},{"$f":"IF(AND(#REF!=\"\",#REF!=\"\"),\"\",IF(#REF!=\"Récréation\",CONCATENATE(#REF!&\" / \"&#REF!)&CHAR(10)&\"RECREATION\",CONCATENATE(#REF!&\" / \"&#REF!)&CHAR(10)&\"Matière : \"&#REF!&CHAR(10)&\"Compétences : \"&#REF!))","v":{"$error":"#REF!"}},{"$f":"IF(AND(#REF!=\"\",#REF!=\"\"),\"\",IF(#REF!=\"Récréation\",CONCATENATE(#REF!&\" / \"&#REF!)&CHAR(10)&\"RECREATION\",CONCATENATE(#REF!&\" / \"&#REF!)&CHAR(10)&\"Matière : \"&#REF!&CHAR(10)&\"Compétences : \"&#REF!))","v":{"$error":"#REF!"}}]
[{"$f":"IF(AND(#REF!=\"\",#REF!=\"\"),\"\",IF(#REF!=\"Récréation\",CONCATENATE(#REF!&\" / \"&#REF!)&CHAR(10)&\"RECREATION\",CONCATENATE(#REF!&\" / \"&#REF!)&CHAR(10)&\"Matière : \"&#REF!&CHAR(10)&\"Compétences : \"&#REF!))","v":{"$error":"#REF!"}},{"$f":"IF(AND(#REF!=\"\",#REF!=\"\"),\"\",IF(#REF!=\"Récréation\",CONCATENATE(#REF!&\" / \"&#REF!)&CHAR(10)&\"RECREATION\",CONCATENATE(#REF!&\" / \"&#REF!)&CHAR(10)&\"Matière : \"&#REF!&CHAR(10)&\"Compétences : \"&#REF!))","v":{"$error":"#REF!"}},{"$f":"IF(AND(#REF!=\"\",#REF!=\"\"),\"\",IF(#REF!=\"Récréation\",CONCATENATE(#REF!&\" / \"&#REF!)&CHAR(10)&\"RECREATION\",CONCATENATE(#REF!&\" / \"&#REF!)&CHAR(10)&\"Matière : \"&#REF!&CHAR(10)&\"Compétences : \"&#REF!))","v":{"$error":"#REF!"}},{"$f":"IF(AND(#REF!=\"\",#REF!=\"\"),\"\",IF(#REF!=\"Récréation\",CONCATENATE(#REF!&\" / \"&#REF!)&CHAR(10)&\"RECREATION\",CONCATENATE(#REF!&\" / \"&#REF!)&CHAR(10)&\"Matière : \"&#REF!&CHAR(10)&\"Compétences : \"&#REF!))","v":{"$error":"#REF!"}},{"$f":"IF(AND(#REF!=\"\",#REF!=\"\"),\"\",IF(#REF!=\"Récréation\",CONCATENATE(#REF!&\" / \"&#REF!)&CHAR(10)&\"RECREATION\",CONCATENATE(#REF!&\" / \"&#REF!)&CHAR(10)&\"Matière : \"&#REF!&CHAR(10)&\"Compétences : \"&#REF!))","v":{"$error":"#REF!"}}]
[{"$f":"IF(AND(#REF!=\"\",#REF!=\"\"),\"\",IF(#REF!=\"Récréation\",CONCATENATE(#REF!&\" / \"&#REF!)&CHAR(10)&\"RECREATION\",CONCATENATE(#REF!&\" / \"&#REF!)&CHAR(10)&\"Matière : \"&#REF!&CHAR(10)&\"Compétences : \"&#REF!))","v":{"$error":"#REF!"}},{"$f":"IF(AND(#REF!=\"\",#REF!=\"\"),\"\",IF(#REF!=\"Récréation\",CONCATENATE(#REF!&\" / \"&#REF!)&CHAR(10)&\"RECREATION\",CONCATENATE(#REF!&\" / \"&#REF!)&CHAR(10)&\"Matière : \"&#REF!&CHAR(10)&\"Compétences : \"&#REF!))","v":{"$error":"#REF!"}},{"$f":"IF(AND(#REF!=\"\",#REF!=\"\"),\"\",IF(#REF!=\"Récréation\",CONCATENATE(#REF!&\" / \"&#REF!)&CHAR(10)&\"RECREATION\",CONCATENATE(#REF!&\" / \"&#REF!)&CHAR(10)&\"Matière : \"&#REF!&CHAR(10)&\"Compétences : \"&#REF!))","v":{"$error":"#REF!"}},{"$f":"IF(AND(#REF!=\"\",#REF!=\"\"),\"\",IF(#REF!=\"Récréation\",CONCATENATE(#REF!&\" / \"&#REF!)&CHAR(10)&\"RECREATION\",CONCATENATE(#REF!&\" / \"&#REF!)&CHAR(10)&\"Matière : \"&#REF!&CHAR(10)&\"Compétences : \"&#REF!))","v":{"$error":"#REF!"}},{"$f":"IF(AND(#REF!=\"\",#REF!=\"\"),\"\",IF(#REF!=\"Récréation\",CONCATENATE(#REF!&\" / \"&#REF!)&CHAR(10)&\"RECREATION\",CONCATENATE(#REF!&\" / \"&#REF!)&CHAR(10)&\"Matière : \"&#REF!&CHAR(10)&\"Compétences : \"&#REF!))","v":{"$error":"#REF!"}}]
[{"$f":"IF(AND(#REF!=\"\",#REF!=\"\"),\"\",IF(#REF!=\"Récréation\",CONCATENATE(#REF!&\" / \"&#REF!)&CHAR(10)&\"RECREATION\",CONCATENATE(#REF!&\" / \"&#REF!)&CHAR(10)&\"Matière : \"&#REF!&CHAR(10)&\"Compétences : \"&#REF!))","v":{"$error":"#REF!"}},{"$f":"IF(AND(#REF!=\"\",#REF!=\"\"),\"\",IF(#REF!=\"Récréation\",CONCATENATE(#REF!&\" / \"&#REF!)&CHAR(10)&\"RECREATION\",CONCATENATE(#REF!&\" / \"&#REF!)&CHAR(10)&\"Matière : \"&#REF!&CHAR(10)&\"Compétences : \"&#REF!))","v":{"$error":"#REF!"}},{"$f":"IF(AND(#REF!=\"\",#REF!=\"\"),\"\",IF(#REF!=\"Récréation\",CONCATENATE(#REF!&\" / \"&#REF!)&CHAR(10)&\"RECREATION\",CONCATENATE(#REF!&\" / \"&#REF!)&CHAR(10)&\"Matière : \"&#REF!&CHAR(10)&\"Compétences : \"&#REF!))","v":{"$error":"#REF!"}},{"$f":"IF(AND(#REF!=\"\",#REF!=\"\"),\"\",IF(#REF!=\"Récréation\",CONCATENATE(#REF!&\" / \"&#REF!)&CHAR(10)&\"RECREATION\",CONCATENATE(#REF!&\" / \"&#REF!)&CHAR(10)&\"Matière : \"&#REF!&CHAR(10)&\"Compétences : \"&#REF!))","v":{"$error":"#REF!"}},{"$f":"IF(AND(#REF!=\"\",#REF!=\"\"),\"\",IF(#REF!=\"Récréation\",CONCATENATE(#REF!&\" / \"&#REF!)&CHAR(10)&\"RECREATION\",CONCATENATE(#REF!&\" / \"&#REF!)&CHAR(10)&\"Matière : \"&#REF!&CHAR(10)&\"Compétences : \"&#REF!))","v":{"$error":"#REF!"}}]
[{"$f":"IF(AND(#REF!=\"\",#REF!=\"\"),\"\",IF(#REF!=\"Récréation\",CONCATENATE(#REF!&\" / \"&#REF!)&CHAR(10)&\"RECREATION\",CONCATENATE(#REF!&\" / \"&#REF!)&CHAR(10)&\"Matière : \"&#REF!&CHAR(10)&\"Compétences : \"&#REF!))","v":{"$error":"#REF!"}},{"$f":"IF(AND(#REF!=\"\",#REF!=\"\"),\"\",IF(#REF!=\"Récréation\",CONCATENATE(#REF!&\" / \"&#REF!)&CHAR(10)&\"RECREATION\",CONCATENATE(#REF!&\" / \"&#REF!)&CHAR(10)&\"Matière : \"&#REF!&CHAR(10)&\"Compétences : \"&#REF!))","v":{"$error":"#REF!"}},{"$f":"IF(AND(#REF!=\"\",#REF!=\"\"),\"\",IF(#REF!=\"Récréation\",CONCATENATE(#REF!&\" / \"&#REF!)&CHAR(10)&\"RECREATION\",CONCATENATE(#REF!&\" / \"&#REF!)&CHAR(10)&\"Matière : \"&#REF!&CHAR(10)&\"Compétences : \"&#REF!))","v":{"$error":"#REF!"}},{"$f":"IF(AND(#REF!=\"\",#REF!=\"\"),\"\",IF(#REF!=\"Récréation\",CONCATENATE(#REF!&\" / \"&#REF!)&CHAR(10)&\"RECREATION\",CONCATENATE(#REF!&\" / \"&#REF!)&CHAR(10)&\"Matière : \"&#REF!&CHAR(10)&\"Compétences : \"&#REF!))","v":{"$error":"#REF!"}},{"$f":"IF(AND(#REF!=\"\",#REF!=\"\"),\"\",IF(#REF!=\"Récréation\",CONCATENATE(#REF!&\" / \"&#REF!)&CHAR(10)&\"RECREATION\",CONCATENATE(#REF!&\" / \"&#REF!)&CHAR(10)&\"Matière : \"&#REF!&CHAR(10)&\"Compétences : \"&#REF!))","v":{"$error":"#REF!"}}]
[{"$f":"IF(AND(#REF!=\"\",#REF!=\"\"),\"\",IF(#REF!=\"Récréation\",CONCATENATE(#REF!&\" / \"&#REF!)&CHAR(10)&\"RECREATION\",CONCATENATE(#REF!&\" / \"&#REF!)&CHAR(10)&\"Matière : \"&#REF!&CHAR(10)&\"Compétences : \"&#REF!))","v":{"$error":"#REF!"}},{"$f":"IF(AND(#REF!=\"\",#REF!=\"\"),\"\",IF(#REF!=\"Récréation\",CONCATENATE(#REF!&\" / \"&#REF!)&CHAR(10)&\"RECREATION\",CONCATENATE(#REF!&\" / \"&#REF!)&CHAR(10)&\"Matière : \"&#REF!&CHAR(10)&\"Compétences : \"&#REF!))","v":{"$error":"#REF!"}},{"$f":"IF(AND(#REF!=\"\",#REF!=\"\"),\"\",IF(#REF!=\"Récréation\",CONCATENATE(#REF!&\" / \"&#REF!)&CHAR(10)&\"RECREATION\",CONCATENATE(#REF!&\" / \"&#REF!)&CHAR(10)&\"Matière : \"&#REF!&CHAR(10)&\"Compétences : \"&#REF!))","v":{"$error":"#REF!"}},{"$f":"IF(AND(#REF!=\"\",#REF!=\"\"),\"\",IF(#REF!=\"Récréation\",CONCATENATE(#REF!&\" / \"&#REF!)&CHAR(10)&\"RECREATION\",CONCATENATE(#REF!&\" / \"&#REF!)&CHAR(10)&\"Matière : \"&#REF!&CHAR(10)&\"Compétences : \"&#REF!))","v":{"$error":"#REF!"}},{"$f":"IF(AND(#REF!=\"\",#REF!=\"\"),\"\",IF(#REF!=\"Récréation\",CONCATENATE(#REF!&\" / \"&#REF!)&CHAR(10)&\"RECREATION\",CONCATENATE(#REF!&\" / \"&#REF!)&CHAR(10)&\"Matière : \"&#REF!&CHAR(10)&\"Compétences : \"&#REF!))","v":{"$error":"#REF!"}}]
[{"$f":"IF(AND(#REF!=\"\",#REF!=\"\"),\"\",IF(#REF!=\"Récréation\",CONCATENATE(#REF!&\" / \"&#REF!)&CHAR(10)&\"RECREATION\",CONCATENATE(#REF!&\" / \"&#REF!)&CHAR(10)&\"Matière : \"&#REF!&CHAR(10)&\"Compétences : \"&#REF!))","v":{"$error":"#REF!"}},{"$f":"IF(AND(#REF!=\"\",#REF!=\"\"),\"\",IF(#REF!=\"Récréation\",CONCATENATE(#REF!&\" / \"&#REF!)&CHAR(10)&\"RECREATION\",CONCATENATE(#REF!&\" / \"&#REF!)&CHAR(10)&\"Matière : \"&#REF!&CHAR(10)&\"Compétences : \"&#REF!))","v":{"$error":"#REF!"}},{"$f":"IF(AND(#REF!=\"\",#REF!=\"\"),\"\",IF(#REF!=\"Récréation\",CONCATENATE(#REF!&\" / \"&#REF!)&CHAR(10)&\"RECREATION\",CONCATENATE(#REF!&\" / \"&#REF!)&CHAR(10)&\"Matière : \"&#REF!&CHAR(10)&\"Compétences : \"&#REF!))","v":{"$error":"#REF!"}},{"$f":"IF(AND(#REF!=\"\",#REF!=\"\"),\"\",IF(#REF!=\"Récréation\",CONCATENATE(#REF!&\" / \"&#REF!)&CHAR(10)&\"RECREATION\",CONCATENATE(#REF!&\" / \"&#REF!)&CHAR(10)&\"Matière : \"&#REF!&CHAR(10)&\"Compétences : \"&#REF!))","v":{"$error":"#REF!"}},{"$f":"IF(AND(#REF!=\"\",#REF!=\"\"),\"\",IF(#REF!=\"Récréation\",CONCATENATE(#REF!&\" / \"&#REF!)&CHAR(10)&\"RECREATION\",CONCATENATE(#REF!&\" / \"&#REF!)&CHAR(10)&\"Matière : \"&#REF!&CHAR(10)&\"Compétences : \"&#REF!))","v":{"$error":"#REF!"}}]
[{"$f":"IF(AND(#REF!=\"\",#REF!=\"\"),\"\",IF(#REF!=\"Récréation\",CONCATENATE(#REF!&\" / \"&#REF!)&CHAR(10)&\"RECREATION\",CONCATENATE(#REF!&\" / \"&#REF!)&CHAR(10)&\"Matière : \"&#REF!&CHAR(10)&\"Compétences : \"&#REF!))","v":{"$error":"#REF!"}},{"$f":"IF(AND(#REF!=\"\",#REF!=\"\"),\"\",IF(#REF!=\"Récréation\",CONCATENATE(#REF!&\" / \"&#REF!)&CHAR(10)&\"RECREATION\",CONCATENATE(#REF!&\" / \"&#REF!)&CHAR(10)&\"Matière : \"&#REF!&CHAR(10)&\"Compétences : \"&#REF!))","v":{"$error":"#REF!"}},{"$f":"IF(AND(#REF!=\"\",#REF!=\"\"),\"\",IF(#REF!=\"Récréation\",CONCATENATE(#REF!&\" / \"&#REF!)&CHAR(10)&\"RECREATION\",CONCATENATE(#REF!&\" / \"&#REF!)&CHAR(10)&\"Matière : \"&#REF!&CHAR(10)&\"Compétences : \"&#REF!))","v":{"$error":"#REF!"}},{"$f":"IF(AND(#REF!=\"\",#REF!=\"\"),\"\",IF(#REF!=\"Récréation\",CONCATENATE(#REF!&\" / \"&#REF!)&CHAR(10)&\"RECREATION\",CONCATENATE(#REF!&\" / \"&#REF!)&CHAR(10)&\"Matière : \"&#REF!&CHAR(10)&\"Compétences : \"&#REF!))","v":{"$error":"#REF!"}},{"$f":"IF(AND(#REF!=\"\",#REF!=\"\"),\"\",IF(#REF!=\"Récréation\",CONCATENATE(#REF!&\" / \"&#REF!)&CHAR(10)&\"RECREATION\",CONCATENATE(#REF!&\" / \"&#REF!)&CHAR(10)&\"Matière : \"&#REF!&CHAR(10)&\"Compétences : \"&#REF!))","v":{"$error":"#REF!"}}]
[{"$f":"IF(AND(#REF!=\"\",#REF!=\"\"),\"\",IF(#REF!=\"Récréation\",CONCATENATE(#REF!&\" / \"&#REF!)&CHAR(10)&\"RECREATION\",CONCATENATE(#REF!&\" / \"&#REF!)&CHAR(10)&\"Matière : \"&#REF!&CHAR(10)&\"Compétences : \"&#REF!))","v":{"$error":"#REF!"}},{"$f":"IF(AND(#REF!=\"\",#REF!=\"\"),\"\",IF(#REF!=\"Récréation\",CONCATENATE(#REF!&\" / \"&#REF!)&CHAR(10)&\"RECREATION\",CONCATENATE(#REF!&\" / \"&#REF!)&CHAR(10)&\"Matière : \"&#REF!&CHAR(10)&\"Compétences : \"&#REF!))","v":{"$error":"#REF!"}},{"$f":"IF(AND(#REF!=\"\",#REF!=\"\"),\"\",IF(#REF!=\"Récréation\",CONCATENATE(#REF!&\" / \"&#REF!)&CHAR(10)&\"RECREATION\",CONCATENATE(#REF!&\" / \"&#REF!)&CHAR(10)&\"Matière : \"&#REF!&CHAR(10)&\"Compétences : \"&#REF!))","v":{"$error":"#REF!"}},{"$f":"IF(AND(#REF!=\"\",#REF!=\"\"),\"\",IF(#REF!=\"Récréation\",CONCATENATE(#REF!&\" / \"&#REF!)&CHAR(10)&\"RECREATION\",CONCATENATE(#REF!&\" / \"&#REF!)&CHAR(10)&\"Matière : \"&#REF!&CHAR(10)&\"Compétences : \"&#REF!))","v":{"$error":"#REF!"}},{"$f":"IF(AND(#REF!=\"\",#REF!=\"\"),\"\",IF(#REF!=\"Récréation\",CONCATENATE(#REF!&\" / \"&#REF!)&CHAR(10)&\"RECREATION\",CONCATENATE(#REF!&\" / \"&#REF!)&CHAR(10)&\"Matière : \"&#REF!&CHAR(10)&\"Compétences : \"&#REF!))","v":{"$error":"#REF!"}}]
[{"$f":"IF(AND(#REF!=\"\",#REF!=\"\"),\"\",IF(#REF!=\"Récréation\",CONCATENATE(#REF!&\" / \"&#REF!)&CHAR(10)&\"RECREATION\",CONCATENATE(#REF!&\" / \"&#REF!)&CHAR(10)&\"Matière : \"&#REF!&CHAR(10)&\"Compétences : \"&#REF!))","v":{"$error":"#REF!"}},{"$f":"IF(AND(#REF!=\"\",#REF!=\"\"),\"\",IF(#REF!=\"Récréation\",CONCATENATE(#REF!&\" / \"&#REF!)&CHAR(10)&\"RECREATION\",CONCATENATE(#REF!&\" / \"&#REF!)&CHAR(10)&\"Matière : \"&#REF!&CHAR(10)&\"Compétences : \"&#REF!))","v":{"$error":"#REF!"}},{"$f":"IF(AND(#REF!=\"\",#REF!=\"\"),\"\",IF(#REF!=\"Récréation\",CONCATENATE(#REF!&\" / \"&#REF!)&CHAR(10)&\"RECREATION\",CONCATENATE(#REF!&\" / \"&#REF!)&CHAR(10)&\"Matière : \"&#REF!&CHAR(10)&\"Compétences : \"&#REF!))","v":{"$error":"#REF!"}},{"$f":"IF(AND(#REF!=\"\",#REF!=\"\"),\"\",IF(#REF!=\"Récréation\",CONCATENATE(#REF!&\" / \"&#REF!)&CHAR(10)&\"RECREATION\",CONCATENATE(#REF!&\" / \"&#REF!)&CHAR(10)&\"Matière : \"&#REF!&CHAR(10)&\"Compétences : \"&#REF!))","v":{"$error":"#REF!"}},{"$f":"IF(AND(#REF!=\"\",#REF!=\"\"),\"\",IF(#REF!=\"Récréation\",CONCATENATE(#REF!&\" / \"&#REF!)&CHAR(10)&\"RECREATION\",CONCATENATE(#REF!&\" / \"&#REF!)&CHAR(10)&\"Matière : \"&#REF!&CHAR(10)&\"Compétences : \"&#REF!))","v":{"$error":"#REF!"}}]
[{"$f":"IF(AND(#REF!=\"\",#REF!=\"\"),\"\",IF(#REF!=\"Récréation\",CONCATENATE(#REF!&\" / \"&#REF!)&CHAR(10)&\"RECREATION\",CONCATENATE(#REF!&\" / \"&#REF!)&CHAR(10)&\"Matière : \"&#REF!&CHAR(10)&\"Compétences : \"&#REF!))","v":{"$error":"#REF!"}},{"$f":"IF(AND(#REF!=\"\",#REF!=\"\"),\"\",IF(#REF!=\"Récréation\",CONCATENATE(#REF!&\" / \"&#REF!)&CHAR(10)&\"RECREATION\",CONCATENATE(#REF!&\" / \"&#REF!)&CHAR(10)&\"Matière : \"&#REF!&CHAR(10)&\"Compétences : \"&#REF!))","v":{"$error":"#REF!"}},{"$f":"IF(AND(#REF!=\"\",#REF!=\"\"),\"\",IF(#REF!=\"Récréation\",CONCATENATE(#REF!&\" / \"&#REF!)&CHAR(10)&\"RECREATION\",CONCATENATE(#REF!&\" / \"&#REF!)&CHAR(10)&\"Matière : \"&#REF!&CHAR(10)&\"Compétences : \"&#REF!))","v":{"$error":"#REF!"}},{"$f":"IF(AND(#REF!=\"\",#REF!=\"\"),\"\",IF(#REF!=\"Récréation\",CONCATENATE(#REF!&\" / \"&#REF!)&CHAR(10)&\"RECREATION\",CONCATENATE(#REF!&\" / \"&#REF!)&CHAR(10)&\"Matière : \"&#REF!&CHAR(10)&\"Compétences : \"&#REF!))","v":{"$error":"#REF!"}},{"$f":"IF(AND(#REF!=\"\",#REF!=\"\"),\"\",IF(#REF!=\"Récréation\",CONCATENATE(#REF!&\" / \"&#REF!)&CHAR(10)&\"RECREATION\",CONCATENATE(#REF!&\" / \"&#REF!)&CHAR(10)&\"Matière : \"&#REF!&CHAR(10)&\"Compétences : \"&#REF!))","v":{"$error":"#REF!"}}]
[{"$f":"IF(AND(#REF!=\"\",#REF!=\"\"),\"\",IF(#REF!=\"Récréation\",CONCATENATE(#REF!&\" / \"&#REF!)&CHAR(10)&\"RECREATION\",CONCATENATE(#REF!&\" / \"&#REF!)&CHAR(10)&\"Matière : \"&#REF!&CHAR(10)&\"Compétences : \"&#REF!))","v":{"$error":"#REF!"}},{"$f":"IF(AND(#REF!=\"\",#REF!=\"\"),\"\",IF(#REF!=\"Récréation\",CONCATENATE(#REF!&\" / \"&#REF!)&CHAR(10)&\"RECREATION\",CONCATENATE(#REF!&\" / \"&#REF!)&CHAR(10)&\"Matière : \"&#REF!&CHAR(10)&\"Compétences : \"&#REF!))","v":{"$error":"#REF!"}},{"$f":"IF(AND(#REF!=\"\",#REF!=\"\"),\"\",IF(#REF!=\"Récréation\",CONCATENATE(#REF!&\" / \"&#REF!)&CHAR(10)&\"RECREATION\",CONCATENATE(#REF!&\" / \"&#REF!)&CHAR(10)&\"Matière : \"&#REF!&CHAR(10)&\"Compétences : \"&#REF!))","v":{"$error":"#REF!"}},{"$f":"IF(AND(#REF!=\"\",#REF!=\"\"),\"\",IF(#REF!=\"Récréation\",CONCATENATE(#REF!&\" / \"&#REF!)&CHAR(10)&\"RECREATION\",CONCATENATE(#REF!&\" / \"&#REF!)&CHAR(10)&\"Matière : \"&#REF!&CHAR(10)&\"Compétences : \"&#REF!))","v":{"$error":"#REF!"}},{"$f":"IF(AND(#REF!=\"\",#REF!=\"\"),\"\",IF(#REF!=\"Récréation\",CONCATENATE(#REF!&\" / \"&#REF!)&CHAR(10)&\"RECREATION\",CONCATENATE(#REF!&\" / \"&#REF!)&CHAR(10)&\"Matière : \"&#REF!&CHAR(10)&\"Compétences : \"&#REF!))","v":{"$error":"#REF!"}}]
[{"$f":"IF(AND(#REF!=\"\",#REF!=\"\"),\"\",IF(#REF!=\"Récréation\",CONCATENATE(#REF!&\" / \"&#REF!)&CHAR(10)&\"RECREATION\",CONCATENATE(#REF!&\" / \"&#REF!)&CHAR(10)&\"Matière : \"&#REF!&CHAR(10)&\"Compétences : \"&#REF!))","v":{"$error":"#REF!"}},{"$f":"IF(AND(#REF!=\"\",#REF!=\"\"),\"\",IF(#REF!=\"Récréation\",CONCATENATE(#REF!&\" / \"&#REF!)&CHAR(10)&\"RECREATION\",CONCATENATE(#REF!&\" / \"&#REF!)&CHAR(10)&\"Matière : \"&#REF!&CHAR(10)&\"Compétences : \"&#REF!))","v":{"$error":"#REF!"}},{"$f":"IF(AND(#REF!=\"\",#REF!=\"\"),\"\",IF(#REF!=\"Récréation\",CONCATENATE(#REF!&\" / \"&#REF!)&CHAR(10)&\"RECREATION\",CONCATENATE(#REF!&\" / \"&#REF!)&CHAR(10)&\"Matière : \"&#REF!&CHAR(10)&\"Compétences : \"&#REF!))","v":{"$error":"#REF!"}},{"$f":"IF(AND(#REF!=\"\",#REF!=\"\"),\"\",IF(#REF!=\"Récréation\",CONCATENATE(#REF!&\" / \"&#REF!)&CHAR(10)&\"RECREATION\",CONCATENATE(#REF!&\" / \"&#REF!)&CHAR(10)&\"Matière : \"&#REF!&CHAR(10)&\"Compétences : \"&#REF!))","v":{"$error":"#REF!"}},{"$f":"IF(AND(#REF!=\"\",#REF!=\"\"),\"\",IF(#REF!=\"Récréation\",CONCATENATE(#REF!&\" / \"&#REF!)&CHAR(10)&\"RECREATION\",CONCATENATE(#REF!&\" / \"&#REF!)&CHAR(10)&\"Matière : \"&#REF!&CHAR(10)&\"Compétences : \"&#REF!))","v":{"$error":"#REF!"}}]
[{"$f":"IF(AND(#REF!=\"\",#REF!=\"\"),\"\",IF(#REF!=\"Récréation\",CONCATENATE(#REF!&\" / \"&#REF!)&CHAR(10)&\"RECREATION\",CONCATENATE(#REF!&\" / \"&#REF!)&CHAR(10)&\"Matière : \"&#REF!&CHAR(10)&\"Compétences : \"&#REF!))","v":{"$error":"#REF!"}},{"$f":"IF(AND(#REF!=\"\",#REF!=\"\"),\"\",IF(#REF!=\"Récréation\",CONCATENATE(#REF!&\" / \"&#REF!)&CHAR(10)&\"RECREATION\",CONCATENATE(#REF!&\" / \"&#REF!)&CHAR(10)&\"Matière : \"&#REF!&CHAR(10)&\"Compétences : \"&#REF!))","v":{"$error":"#REF!"}},{"$f":"IF(AND(#REF!=\"\",#REF!=\"\"),\"\",IF(#REF!=\"Récréation\",CONCATENATE(#REF!&\" / \"&#REF!)&CHAR(10)&\"RECREATION\",CONCATENATE(#REF!&\" / \"&#REF!)&CHAR(10)&\"Matière : \"&#REF!&CHAR(10)&\"Compétences : \"&#REF!))","v":{"$error":"#REF!"}},{"$f":"IF(AND(#REF!=\"\",#REF!=\"\"),\"\",IF(#REF!=\"Récréation\",CONCATENATE(#REF!&\" / \"&#REF!)&CHAR(10)&\"RECREATION\",CONCATENATE(#REF!&\" / \"&#REF!)&CHAR(10)&\"Matière : \"&#REF!&CHAR(10)&\"Compétences : \"&#REF!))","v":{"$error":"#REF!"}},{"$f":"IF(AND(#REF!=\"\",#REF!=\"\"),\"\",IF(#REF!=\"Récréation\",CONCATENATE(#REF!&\" / \"&#REF!)&CHAR(10)&\"RECREATION\",CONCATENATE(#REF!&\" / \"&#REF!)&CHAR(10)&\"Matière : \"&#REF!&CHAR(10)&\"Compétences : \"&#REF!))","v":{"$error":"#REF!"}}]
[{"$f":"IF(AND(#REF!=\"\",#REF!=\"\"),\"\",IF(#REF!=\"Récréation\",CONCATENATE(#REF!&\" / \"&#REF!)&CHAR(10)&\"RECREATION\",CONCATENATE(#REF!&\" / \"&#REF!)&CHAR(10)&\"Matière : \"&#REF!&CHAR(10)&\"Compétences : \"&#REF!))","v":{"$error":"#REF!"}},{"$f":"IF(AND(#REF!=\"\",#REF!=\"\"),\"\",IF(#REF!=\"Récréation\",CONCATENATE(#REF!&\" / \"&#REF!)&CHAR(10)&\"RECREATION\",CONCATENATE(#REF!&\" / \"&#REF!)&CHAR(10)&\"Matière : \"&#REF!&CHAR(10)&\"Compétences : \"&#REF!))","v":{"$error":"#REF!"}},{"$f":"IF(AND(#REF!=\"\",#REF!=\"\"),\"\",IF(#REF!=\"Récréation\",CONCATENATE(#REF!&\" / \"&#REF!)&CHAR(10)&\"RECREATION\",CONCATENATE(#REF!&\" / \"&#REF!)&CHAR(10)&\"Matière : \"&#REF!&CHAR(10)&\"Compétences : \"&#REF!))","v":{"$error":"#REF!"}},{"$f":"IF(AND(#REF!=\"\",#REF!=\"\"),\"\",IF(#REF!=\"Récréation\",CONCATENATE(#REF!&\" / \"&#REF!)&CHAR(10)&\"RECREATION\",CONCATENATE(#REF!&\" / \"&#REF!)&CHAR(10)&\"Matière : \"&#REF!&CHAR(10)&\"Compétences : \"&#REF!))","v":{"$error":"#REF!"}},{"$f":"IF(AND(#REF!=\"\",#REF!=\"\"),\"\",IF(#REF!=\"Récréation\",CONCATENATE(#REF!&\" / \"&#REF!)&CHAR(10)&\"RECREATION\",CONCATENATE(#REF!&\" / \"&#REF!)&CHAR(10)&\"Matière : \"&#REF!&CHAR(10)&\"Compétences : \"&#REF!))","v":{"$error":"#REF!"}}]
[{"$f":"IF(AND(#REF!=\"\",#REF!=\"\"),\"\",IF(#REF!=\"Récréation\",CONCATENATE(#REF!&\" / \"&#REF!)&CHAR(10)&\"RECREATION\",CONCATENATE(#REF!&\" / \"&#REF!)&CHAR(10)&\"Matière : \"&#REF!&CHAR(10)&\"Compétences : \"&#REF!))","v":{"$error":"#REF!"}},{"$f":"IF(AND(#REF!=\"\",#REF!=\"\"),\"\",IF(#REF!=\"Récréation\",CONCATENATE(#REF!&\" / \"&#REF!)&CHAR(10)&\"RECREATION\",CONCATENATE(#REF!&\" / \"&#REF!)&CHAR(10)&\"Matière : \"&#REF!&CHAR(10)&\"Compétences : \"&#REF!))","v":{"$error":"#REF!"}},{"$f":"IF(AND(#REF!=\"\",#REF!=\"\"),\"\",IF(#REF!=\"Récréation\",CONCATENATE(#REF!&\" / \"&#REF!)&CHAR(10)&\"RECREATION\",CONCATENATE(#REF!&\" / \"&#REF!)&CHAR(10)&\"Matière : \"&#REF!&CHAR(10)&\"Compétences : \"&#REF!))","v":{"$error":"#REF!"}},{"$f":"IF(AND(#REF!=\"\",#REF!=\"\"),\"\",IF(#REF!=\"Récréation\",CONCATENATE(#REF!&\" / \"&#REF!)&CHAR(10)&\"RECREATION\",CONCATENATE(#REF!&\" / \"&#REF!)&CHAR(10)&\"Matière : \"&#REF!&CHAR(10)&\"Compétences : \"&#REF!))","v":{"$error":"#REF!"}},{"$f":"IF(AND(#REF!=\"\",#REF!=\"\"),\"\",IF(#REF!=\"Récréation\",CONCATENATE(#REF!&\" / \"&#REF!)&CHAR(10)&\"RECREATION\",CONCATENATE(#REF!&\" / \"&#REF!)&CHAR(10)&\"Matière : \"&#REF!&CHAR(10)&\"Compétences : \"&#REF!))","v":{"$error":"#REF!"}}]
[{"$f":"IF(AND(#REF!=\"\",#REF!=\"\"),\"\",IF(#REF!=\"Récréation\",CONCATENATE(#REF!&\" / \"&#REF!)&CHAR(10)&\"RECREATION\",CONCATENATE(#REF!&\" / \"&#REF!)&CHAR(10)&\"Matière : \"&#REF!&CHAR(10)&\"Compétences : \"&#REF!))","v":{"$error":"#REF!"}},{"$f":"IF(AND(#REF!=\"\",#REF!=\"\"),\"\",IF(#REF!=\"Récréation\",CONCATENATE(#REF!&\" / \"&#REF!)&CHAR(10)&\"RECREATION\",CONCATENATE(#REF!&\" / \"&#REF!)&CHAR(10)&\"Matière : \"&#REF!&CHAR(10)&\"Compétences : \"&#REF!))","v":{"$error":"#REF!"}},{"$f":"IF(AND(#REF!=\"\",#REF!=\"\"),\"\",IF(#REF!=\"Récréation\",CONCATENATE(#REF!&\" / \"&#REF!)&CHAR(10)&\"RECREATION\",CONCATENATE(#REF!&\" / \"&#REF!)&CHAR(10)&\"Matière : \"&#REF!&CHAR(10)&\"Compétences : \"&#REF!))","v":{"$error":"#REF!"}},{"$f":"IF(AND(#REF!=\"\",#REF!=\"\"),\"\",IF(#REF!=\"Récréation\",CONCATENATE(#REF!&\" / \"&#REF!)&CHAR(10)&\"RECREATION\",CONCATENATE(#REF!&\" / \"&#REF!)&CHAR(10)&\"Matière : \"&#REF!&CHAR(10)&\"Compétences : \"&#REF!))","v":{"$error":"#REF!"}},{"$f":"IF(AND(#REF!=\"\",#REF!=\"\"),\"\",IF(#REF!=\"Récréation\",CONCATENATE(#REF!&\" / \"&#REF!)&CHAR(10)&\"RECREATION\",CONCATENATE(#REF!&\" / \"&#REF!)&CHAR(10)&\"Matière : \"&#REF!&CHAR(10)&\"Compétences : \"&#REF!))","v":{"$error":"#REF!"}}]
[{"$f":"IF(AND(#REF!=\"\",#REF!=\"\"),\"\",IF(#REF!=\"Récréation\",CONCATENATE(#REF!&\" / \"&#REF!)&CHAR(10)&\"RECREATION\",CONCATENATE(#REF!&\" / \"&#REF!)&CHAR(10)&\"Matière : \"&#REF!&CHAR(10)&\"Compétences : \"&#REF!))","v":{"$error":"#REF!"}},{"$f":"IF(AND(#REF!=\"\",#REF!=\"\"),\"\",IF(#REF!=\"Récréation\",CONCATENATE(#REF!&\" / \"&#REF!)&CHAR(10)&\"RECREATION\",CONCATENATE(#REF!&\" / \"&#REF!)&CHAR(10)&\"Matière : \"&#REF!&CHAR(10)&\"Compétences : \"&#REF!))","v":{"$error":"#REF!"}},{"$f":"IF(AND(#REF!=\"\",#REF!=\"\"),\"\",IF(#REF!=\"Récréation\",CONCATENATE(#REF!&\" / \"&#REF!)&CHAR(10)&\"RECREATION\",CONCATENATE(#REF!&\" / \"&#REF!)&CHAR(10)&\"Matière : \"&#REF!&CHAR(10)&\"Compétences : \"&#REF!))","v":{"$error":"#REF!"}},{"$f":"IF(AND(#REF!=\"\",#REF!=\"\"),\"\",IF(#REF!=\"Récréation\",CONCATENATE(#REF!&\" / \"&#REF!)&CHAR(10)&\"RECREATION\",CONCATENATE(#REF!&\" / \"&#REF!)&CHAR(10)&\"Matière : \"&#REF!&CHAR(10)&\"Compétences : \"&#REF!))","v":{"$error":"#REF!"}},{"$f":"IF(AND(#REF!=\"\",#REF!=\"\"),\"\",IF(#REF!=\"Récréation\",CONCATENATE(#REF!&\" / \"&#REF!)&CHAR(10)&\"RECREATION\",CONCATENATE(#REF!&\" / \"&#REF!)&CHAR(10)&\"Matière : \"&#REF!&CHAR(10)&\"Compétences : \"&#REF!))","v":{"$error":"#REF!"}}]
[{"$f":"IF(AND(#REF!=\"\",#REF!=\"\"),\"\",IF(#REF!=\"Récréation\",CONCATENATE(#REF!&\" / \"&#REF!)&CHAR(10)&\"RECREATION\",CONCATENATE(#REF!&\" / \"&#REF!)&CHAR(10)&\"Matière : \"&#REF!&CHAR(10)&\"Compétences : \"&#REF!))","v":{"$error":"#REF!"}},{"$f":"IF(AND(#REF!=\"\",#REF!=\"\"),\"\",IF(#REF!=\"Récréation\",CONCATENATE(#REF!&\" / \"&#REF!)&CHAR(10)&\"RECREATION\",CONCATENATE(#REF!&\" / \"&#REF!)&CHAR(10)&\"Matière : \"&#REF!&CHAR(10)&\"Compétences : \"&#REF!))","v":{"$error":"#REF!"}},{"$f":"IF(AND(#REF!=\"\",#REF!=\"\"),\"\",IF(#REF!=\"Récréation\",CONCATENATE(#REF!&\" / \"&#REF!)&CHAR(10)&\"RECREATION\",CONCATENATE(#REF!&\" / \"&#REF!)&CHAR(10)&\"Matière : \"&#REF!&CHAR(10)&\"Compétences : \"&#REF!))","v":{"$error":"#REF!"}},{"$f":"IF(AND(#REF!=\"\",#REF!=\"\"),\"\",IF(#REF!=\"Récréation\",CONCATENATE(#REF!&\" / \"&#REF!)&CHAR(10)&\"RECREATION\",CONCATENATE(#REF!&\" / \"&#REF!)&CHAR(10)&\"Matière : \"&#REF!&CHAR(10)&\"Compétences : \"&#REF!))","v":{"$error":"#REF!"}},{"$f":"IF(AND(#REF!=\"\",#REF!=\"\"),\"\",IF(#REF!=\"Récréation\",CONCATENATE(#REF!&\" / \"&#REF!)&CHAR(10)&\"RECREATION\",CONCATENATE(#REF!&\" / \"&#REF!)&CHAR(10)&\"Matière : \"&#REF!&CHAR(10)&\"Compétences : \"&#REF!))","v":{"$error":"#REF!"}}]
[{"$f":"IF(AND(#REF!=\"\",#REF!=\"\"),\"\",IF(#REF!=\"Récréation\",CONCATENATE(#REF!&\" / \"&#REF!)&CHAR(10)&\"RECREATION\",CONCATENATE(#REF!&\" / \"&#REF!)&CHAR(10)&\"Matière : \"&#REF!&CHAR(10)&\"Compétences : \"&#REF!))","v":{"$error":"#REF!"}},{"$f":"IF(AND(#REF!=\"\",#REF!=\"\"),\"\",IF(#REF!=\"Récréation\",CONCATENATE(#REF!&\" / \"&#REF!)&CHAR(10)&\"RECREATION\",CONCATENATE(#REF!&\" / \"&#REF!)&CHAR(10)&\"Matière : \"&#REF!&CHAR(10)&\"Compétences : \"&#REF!))","v":{"$error":"#REF!"}},{"$f":"IF(AND(#REF!=\"\",#REF!=\"\"),\"\",IF(#REF!=\"Récréation\",CONCATENATE(#REF!&\" / \"&#REF!)&CHAR(10)&\"RECREATION\",CONCATENATE(#REF!&\" / \"&#REF!)&CHAR(10)&\"Matière : \"&#REF!&CHAR(10)&\"Compétences : \"&#REF!))","v":{"$error":"#REF!"}},{"$f":"IF(AND(#REF!=\"\",#REF!=\"\"),\"\",IF(#REF!=\"Récréation\",CONCATENATE(#REF!&\" / \"&#REF!)&CHAR(10)&\"RECREATION\",CONCATENATE(#REF!&\" / \"&#REF!)&CHAR(10)&\"Matière : \"&#REF!&CHAR(10)&\"Compétences : \"&#REF!))","v":{"$error":"#REF!"}},{"$f":"IF(AND(#REF!=\"\",#REF!=\"\"),\"\",IF(#REF!=\"Récréation\",CONCATENATE(#REF!&\" / \"&#REF!)&CHAR(10)&\"RECREATION\",CONCATENATE(#REF!&\" / \"&#REF!)&CHAR(10)&\"Matière : \"&#REF!&CHAR(10)&\"Compétences : \"&#REF!))","v":{"$error":"#REF!"}}]
[{"$f":"IF(AND(#REF!=\"\",#REF!=\"\"),\"\",IF(#REF!=\"Récréation\",CONCATENATE(#REF!&\" / \"&#REF!)&CHAR(10)&\"RECREATION\",CONCATENATE(#REF!&\" / \"&#REF!)&CHAR(10)&\"Matière : \"&#REF!&CHAR(10)&\"Compétences : \"&#REF!))","v":{"$error":"#REF!"}},{"$f":"IF(AND(#REF!=\"\",#REF!=\"\"),\"\",IF(#REF!=\"Récréation\",CONCATENATE(#REF!&\" / \"&#REF!)&CHAR(10)&\"RECREATION\",CONCATENATE(#REF!&\" / \"&#REF!)&CHAR(10)&\"Matière : \"&#REF!&CHAR(10)&\"Compétences : \"&#REF!))","v":{"$error":"#REF!"}},{"$f":"IF(AND(#REF!=\"\",#REF!=\"\"),\"\",IF(#REF!=\"Récréation\",CONCATENATE(#REF!&\" / \"&#REF!)&CHAR(10)&\"RECREATION\",CONCATENATE(#REF!&\" / \"&#REF!)&CHAR(10)&\"Matière : \"&#REF!&CHAR(10)&\"Compétences : \"&#REF!))","v":{"$error":"#REF!"}},{"$f":"IF(AND(#REF!=\"\",#REF!=\"\"),\"\",IF(#REF!=\"Récréation\",CONCATENATE(#REF!&\" / \"&#REF!)&CHAR(10)&\"RECREATION\",CONCATENATE(#REF!&\" / \"&#REF!)&CHAR(10)&\"Matière : \"&#REF!&CHAR(10)&\"Compétences : \"&#REF!))","v":{"$error":"#REF!"}},{"$f":"IF(AND(#REF!=\"\",#REF!=\"\"),\"\",IF(#REF!=\"Récréation\",CONCATENATE(#REF!&\" / \"&#REF!)&CHAR(10)&\"RECREATION\",CONCATENATE(#REF!&\" / \"&#REF!)&CHAR(10)&\"Matière : \"&#REF!&CHAR(10)&\"Compétences : \"&#REF!))","v":{"$error":"#REF!"}}]
[{"$f":"IF(AND(#REF!=\"\",#REF!=\"\"),\"\",IF(#REF!=\"Récréation\",CONCATENATE(#REF!&\" / \"&#REF!)&CHAR(10)&\"RECREATION\",CONCATENATE(#REF!&\" / \"&#REF!)&CHAR(10)&\"Matière : \"&#REF!&CHAR(10)&\"Compétences : \"&#REF!))","v":{"$error":"#REF!"}},{"$f":"IF(AND(#REF!=\"\",#REF!=\"\"),\"\",IF(#REF!=\"Récréation\",CONCATENATE(#REF!&\" / \"&#REF!)&CHAR(10)&\"RECREATION\",CONCATENATE(#REF!&\" / \"&#REF!)&CHAR(10)&\"Matière : \"&#REF!&CHAR(10)&\"Compétences : \"&#REF!))","v":{"$error":"#REF!"}},{"$f":"IF(AND(#REF!=\"\",#REF!=\"\"),\"\",IF(#REF!=\"Récréation\",CONCATENATE(#REF!&\" / \"&#REF!)&CHAR(10)&\"RECREATION\",CONCATENATE(#REF!&\" / \"&#REF!)&CHAR(10)&\"Matière : \"&#REF!&CHAR(10)&\"Compétences : \"&#REF!))","v":{"$error":"#REF!"}},{"$f":"IF(AND(#REF!=\"\",#REF!=\"\"),\"\",IF(#REF!=\"Récréation\",CONCATENATE(#REF!&\" / \"&#REF!)&CHAR(10)&\"RECREATION\",CONCATENATE(#REF!&\" / \"&#REF!)&CHAR(10)&\"Matière : \"&#REF!&CHAR(10)&\"Compétences : \"&#REF!))","v":{"$error":"#REF!"}},{"$f":"IF(AND(#REF!=\"\",#REF!=\"\"),\"\",IF(#REF!=\"Récréation\",CONCATENATE(#REF!&\" / \"&#REF!)&CHAR(10)&\"RECREATION\",CONCATENATE(#REF!&\" / \"&#REF!)&CHAR(10)&\"Matière : \"&#REF!&CHAR(10)&\"Compétences : \"&#REF!))","v":{"$error":"#REF!"}}]
[{"$f":"IF(AND(#REF!=\"\",#REF!=\"\"),\"\",IF(#REF!=\"Récréation\",CONCATENATE(#REF!&\" / \"&#REF!)&CHAR(10)&\"RECREATION\",CONCATENATE(#REF!&\" / \"&#REF!)&CHAR(10)&\"Matière : \"&#REF!&CHAR(10)&\"Compétences : \"&#REF!))","v":{"$error":"#REF!"}},{"$f":"IF(AND(#REF!=\"\",#REF!=\"\"),\"\",IF(#REF!=\"Récréation\",CONCATENATE(#REF!&\" / \"&#REF!)&CHAR(10)&\"RECREATION\",CONCATENATE(#REF!&\" / \"&#REF!)&CHAR(10)&\"Matière : \"&#REF!&CHAR(10)&\"Compétences : \"&#REF!))","v":{"$error":"#REF!"}},{"$f":"IF(AND(#REF!=\"\",#REF!=\"\"),\"\",IF(#REF!=\"Récréation\",CONCATENATE(#REF!&\" / \"&#REF!)&CHAR(10)&\"RECREATION\",CONCATENATE(#REF!&\" / \"&#REF!)&CHAR(10)&\"Matière : \"&#REF!&CHAR(10)&\"Compétences : \"&#REF!))","v":{"$error":"#REF!"}},{"$f":"IF(AND(#REF!=\"\",#REF!=\"\"),\"\",IF(#REF!=\"Récréation\",CONCATENATE(#REF!&\" / \"&#REF!)&CHAR(10)&\"RECREATION\",CONCATENATE(#REF!&\" / \"&#REF!)&CHAR(10)&\"Matière : \"&#REF!&CHAR(10)&\"Compétences : \"&#REF!))","v":{"$error":"#REF!"}},{"$f":"IF(AND(#REF!=\"\",#REF!=\"\"),\"\",IF(#REF!=\"Récréation\",CONCATENATE(#REF!&\" / \"&#REF!)&CHAR(10)&\"RECREATION\",CONCATENATE(#REF!&\" / \"&#REF!)&CHAR(10)&\"Matière : \"&#REF!&CHAR(10)&\"Compétences : \"&#REF!))","v":{"$error":"#REF!"}}]
[{"$f":"IF(AND(#REF!=\"\",#REF!=\"\"),\"\",IF(#REF!=\"Récréation\",CONCATENATE(#REF!&\" / \"&#REF!)&CHAR(10)&\"RECREATION\",CONCATENATE(#REF!&\" / \"&#REF!)&CHAR(10)&\"Matière : \"&#REF!&CHAR(10)&\"Compétences : \"&#REF!))","v":{"$error":"#REF!"}},{"$f":"IF(AND(#REF!=\"\",#REF!=\"\"),\"\",IF(#REF!=\"Récréation\",CONCATENATE(#REF!&\" / \"&#REF!)&CHAR(10)&\"RECREATION\",CONCATENATE(#REF!&\" / \"&#REF!)&CHAR(10)&\"Matière : \"&#REF!&CHAR(10)&\"Compétences : \"&#REF!))","v":{"$error":"#REF!"}},{"$f":"IF(AND(#REF!=\"\",#REF!=\"\"),\"\",IF(#REF!=\"Récréation\",CONCATENATE(#REF!&\" / \"&#REF!)&CHAR(10)&\"RECREATION\",CONCATENATE(#REF!&\" / \"&#REF!)&CHAR(10)&\"Matière : \"&#REF!&CHAR(10)&\"Compétences : \"&#REF!))","v":{"$error":"#REF!"}},{"$f":"IF(AND(#REF!=\"\",#REF!=\"\"),\"\",IF(#REF!=\"Récréation\",CONCATENATE(#REF!&\" / \"&#REF!)&CHAR(10)&\"RECREATION\",CONCATENATE(#REF!&\" / \"&#REF!)&CHAR(10)&\"Matière : \"&#REF!&CHAR(10)&\"Compétences : \"&#REF!))","v":{"$error":"#REF!"}},{"$f":"IF(AND(#REF!=\"\",#REF!=\"\"),\"\",IF(#REF!=\"Récréation\",CONCATENATE(#REF!&\" / \"&#REF!)&CHAR(10)&\"RECREATION\",CONCATENATE(#REF!&\" / \"&#REF!)&CHAR(10)&\"Matière : \"&#REF!&CHAR(10)&\"Compétences : \"&#REF!))","v":{"$error":"#REF!"}}]
[{"$f":"IF(AND(#REF!=\"\",#REF!=\"\"),\"\",IF(#REF!=\"Récréation\",CONCATENATE(#REF!&\" / \"&#REF!)&CHAR(10)&\"RECREATION\",CONCATENATE(#REF!&\" / \"&#REF!)&CHAR(10)&\"Matière : \"&#REF!&CHAR(10)&\"Compétences : \"&#REF!))","v":{"$error":"#REF!"}},{"$f":"IF(AND(#REF!=\"\",#REF!=\"\"),\"\",IF(#REF!=\"Récréation\",CONCATENATE(#REF!&\" / \"&#REF!)&CHAR(10)&\"RECREATION\",CONCATENATE(#REF!&\" / \"&#REF!)&CHAR(10)&\"Matière : \"&#REF!&CHAR(10)&\"Compétences : \"&#REF!))","v":{"$error":"#REF!"}},{"$f":"IF(AND(#REF!=\"\",#REF!=\"\"),\"\",IF(#REF!=\"Récréation\",CONCATENATE(#REF!&\" / \"&#REF!)&CHAR(10)&\"RECREATION\",CONCATENATE(#REF!&\" / \"&#REF!)&CHAR(10)&\"Matière : \"&#REF!&CHAR(10)&\"Compétences : \"&#REF!))","v":{"$error":"#REF!"}},{"$f":"IF(AND(#REF!=\"\",#REF!=\"\"),\"\",IF(#REF!=\"Récréation\",CONCATENATE(#REF!&\" / \"&#REF!)&CHAR(10)&\"RECREATION\",CONCATENATE(#REF!&\" / \"&#REF!)&CHAR(10)&\"Matière : \"&#REF!&CHAR(10)&\"Compétences : \"&#REF!))","v":{"$error":"#REF!"}},{"$f":"IF(AND(#REF!=\"\",#REF!=\"\"),\"\",IF(#REF!=\"Récréation\",CONCATENATE(#REF!&\" / \"&#REF!)&CHAR(10)&\"RECREATION\",CONCATENATE(#REF!&\" / \"&#REF!)&CHAR(10)&\"Matière : \"&#REF!&CHAR(10)&\"Compétences : \"&#REF!))","v":{"$error":"#REF!"}}]
[{"$f":"IF(AND(#REF!=\"\",#REF!=\"\"),\"\",IF(#REF!=\"Récréation\",CONCATENATE(#REF!&\" / \"&#REF!)&CHAR(10)&\"RECREATION\",CONCATENATE(#REF!&\" / \"&#REF!)&CHAR(10)&\"Matière : \"&#REF!&CHAR(10)&\"Compétences : \"&#REF!))","v":{"$error":"#REF!"}},{"$f":"IF(AND(#REF!=\"\",#REF!=\"\"),\"\",IF(#REF!=\"Récréation\",CONCATENATE(#REF!&\" / \"&#REF!)&CHAR(10)&\"RECREATION\",CONCATENATE(#REF!&\" / \"&#REF!)&CHAR(10)&\"Matière : \"&#REF!&CHAR(10)&\"Compétences : \"&#REF!))","v":{"$error":"#REF!"}},{"$f":"IF(AND(#REF!=\"\",#REF!=\"\"),\"\",IF(#REF!=\"Récréation\",CONCATENATE(#REF!&\" / \"&#REF!)&CHAR(10)&\"RECREATION\",CONCATENATE(#REF!&\" / \"&#REF!)&CHAR(10)&\"Matière : \"&#REF!&CHAR(10)&\"Compétences : \"&#REF!))","v":{"$error":"#REF!"}},{"$f":"IF(AND(#REF!=\"\",#REF!=\"\"),\"\",IF(#REF!=\"Récréation\",CONCATENATE(#REF!&\" / \"&#REF!)&CHAR(10)&\"RECREATION\",CONCATENATE(#REF!&\" / \"&#REF!)&CHAR(10)&\"Matière : \"&#REF!&CHAR(10)&\"Compétences : \"&#REF!))","v":{"$error":"#REF!"}},{"$f":"IF(AND(#REF!=\"\",#REF!=\"\"),\"\",IF(#REF!=\"Récréation\",CONCATENATE(#REF!&\" / \"&#REF!)&CHAR(10)&\"RECREATION\",CONCATENATE(#REF!&\" / \"&#REF!)&CHAR(10)&\"Matière : \"&#REF!&CHAR(10)&\"Compétences : \"&#REF!))","v":{"$error":"#REF!"}}]
[{"$f":"IF(AND(#REF!=\"\",#REF!=\"\"),\"\",IF(#REF!=\"Récréation\",CONCATENATE(#REF!&\" / \"&#REF!)&CHAR(10)&\"RECREATION\",CONCATENATE(#REF!&\" / \"&#REF!)&CHAR(10)&\"Matière : \"&#REF!&CHAR(10)&\"Compétences : \"&#REF!))","v":{"$error":"#REF!"}},{"$f":"IF(AND(#REF!=\"\",#REF!=\"\"),\"\",IF(#REF!=\"Récréation\",CONCATENATE(#REF!&\" / \"&#REF!)&CHAR(10)&\"RECREATION\",CONCATENATE(#REF!&\" / \"&#REF!)&CHAR(10)&\"Matière : \"&#REF!&CHAR(10)&\"Compétences : \"&#REF!))","v":{"$error":"#REF!"}},{"$f":"IF(AND(#REF!=\"\",#REF!=\"\"),\"\",IF(#REF!=\"Récréation\",CONCATENATE(#REF!&\" / \"&#REF!)&CHAR(10)&\"RECREATION\",CONCATENATE(#REF!&\" / \"&#REF!)&CHAR(10)&\"Matière : \"&#REF!&CHAR(10)&\"Compétences : \"&#REF!))","v":{"$error":"#REF!"}},{"$f":"IF(AND(#REF!=\"\",#REF!=\"\"),\"\",IF(#REF!=\"Récréation\",CONCATENATE(#REF!&\" / \"&#REF!)&CHAR(10)&\"RECREATION\",CONCATENATE(#REF!&\" / \"&#REF!)&CHAR(10)&\"Matière : \"&#REF!&CHAR(10)&\"Compétences : \"&#REF!))","v":{"$error":"#REF!"}},{"$f":"IF(AND(#REF!=\"\",#REF!=\"\"),\"\",IF(#REF!=\"Récréation\",CONCATENATE(#REF!&\" / \"&#REF!)&CHAR(10)&\"RECREATION\",CONCATENATE(#REF!&\" / \"&#REF!)&CHAR(10)&\"Matière : \"&#REF!&CHAR(10)&\"Compétences : \"&#REF!))","v":{"$error":"#REF!"}}]
[{"$f":"IF(AND(#REF!=\"\",#REF!=\"\"),\"\",IF(#REF!=\"Récréation\",CONCATENATE(#REF!&\" / \"&#REF!)&CHAR(10)&\"RECREATION\",CONCATENATE(#REF!&\" / \"&#REF!)&CHAR(10)&\"Matière : \"&#REF!&CHAR(10)&\"Compétences : \"&#REF!))","v":{"$error":"#REF!"}},{"$f":"IF(AND(#REF!=\"\",#REF!=\"\"),\"\",IF(#REF!=\"Récréation\",CONCATENATE(#REF!&\" / \"&#REF!)&CHAR(10)&\"RECREATION\",CONCATENATE(#REF!&\" / \"&#REF!)&CHAR(10)&\"Matière : \"&#REF!&CHAR(10)&\"Compétences : \"&#REF!))","v":{"$error":"#REF!"}},{"$f":"IF(AND(#REF!=\"\",#REF!=\"\"),\"\",IF(#REF!=\"Récréation\",CONCATENATE(#REF!&\" / \"&#REF!)&CHAR(10)&\"RECREATION\",CONCATENATE(#REF!&\" / \"&#REF!)&CHAR(10)&\"Matière : \"&#REF!&CHAR(10)&\"Compétences : \"&#REF!))","v":{"$error":"#REF!"}},{"$f":"IF(AND(#REF!=\"\",#REF!=\"\"),\"\",IF(#REF!=\"Récréation\",CONCATENATE(#REF!&\" / \"&#REF!)&CHAR(10)&\"RECREATION\",CONCATENATE(#REF!&\" / \"&#REF!)&CHAR(10)&\"Matière : \"&#REF!&CHAR(10)&\"Compétences : \"&#REF!))","v":{"$error":"#REF!"}},{"$f":"IF(AND(#REF!=\"\",#REF!=\"\"),\"\",IF(#REF!=\"Récréation\",CONCATENATE(#REF!&\" / \"&#REF!)&CHAR(10)&\"RECREATION\",CONCATENATE(#REF!&\" / \"&#REF!)&CHAR(10)&\"Matière : \"&#REF!&CHAR(10)&\"Compétences : \"&#REF!))","v":{"$error":"#REF!"}}]
[{"$f":"IF(AND(#REF!=\"\",#REF!=\"\"),\"\",IF(#REF!=\"Récréation\",CONCATENATE(#REF!&\" / \"&#REF!)&CHAR(10)&\"RECREATION\",CONCATENATE(#REF!&\" / \"&#REF!)&CHAR(10)&\"Matière : \"&#REF!&CHAR(10)&\"Compétences : \"&#REF!))","v":{"$error":"#REF!"}},{"$f":"IF(AND(#REF!=\"\",#REF!=\"\"),\"\",IF(#REF!=\"Récréation\",CONCATENATE(#REF!&\" / \"&#REF!)&CHAR(10)&\"RECREATION\",CONCATENATE(#REF!&\" / \"&#REF!)&CHAR(10)&\"Matière : \"&#REF!&CHAR(10)&\"Compétences : \"&#REF!))","v":{"$error":"#REF!"}},{"$f":"IF(AND(#REF!=\"\",#REF!=\"\"),\"\",IF(#REF!=\"Récréation\",CONCATENATE(#REF!&\" / \"&#REF!)&CHAR(10)&\"RECREATION\",CONCATENATE(#REF!&\" / \"&#REF!)&CHAR(10)&\"Matière : \"&#REF!&CHAR(10)&\"Compétences : \"&#REF!))","v":{"$error":"#REF!"}},{"$f":"IF(AND(#REF!=\"\",#REF!=\"\"),\"\",IF(#REF!=\"Récréation\",CONCATENATE(#REF!&\" / \"&#REF!)&CHAR(10)&\"RECREATION\",CONCATENATE(#REF!&\" / \"&#REF!)&CHAR(10)&\"Matière : \"&#REF!&CHAR(10)&\"Compétences : \"&#REF!))","v":{"$error":"#REF!"}},{"$f":"IF(AND(#REF!=\"\",#REF!=\"\"),\"\",IF(#REF!=\"Récréation\",CONCATENATE(#REF!&\" / \"&#REF!)&CHAR(10)&\"RECREATION\",CONCATENATE(#REF!&\" / \"&#REF!)&CHAR(10)&\"Matière : \"&#REF!&CHAR(10)&\"Compétences : \"&#REF!))","v":{"$error":"#REF!"}}]
[{"$f":"IF(AND(#REF!=\"\",#REF!=\"\"),\"\",IF(#REF!=\"Récréation\",CONCATENATE(#REF!&\" / \"&#REF!)&CHAR(10)&\"RECREATION\",CONCATENATE(#REF!&\" / \"&#REF!)&CHAR(10)&\"Matière : \"&#REF!&CHAR(10)&\"Compétences : \"&#REF!))","v":{"$error":"#REF!"}},{"$f":"IF(AND(#REF!=\"\",#REF!=\"\"),\"\",IF(#REF!=\"Récréation\",CONCATENATE(#REF!&\" / \"&#REF!)&CHAR(10)&\"RECREATION\",CONCATENATE(#REF!&\" / \"&#REF!)&CHAR(10)&\"Matière : \"&#REF!&CHAR(10)&\"Compétences : \"&#REF!))","v":{"$error":"#REF!"}},{"$f":"IF(AND(#REF!=\"\",#REF!=\"\"),\"\",IF(#REF!=\"Récréation\",CONCATENATE(#REF!&\" / \"&#REF!)&CHAR(10)&\"RECREATION\",CONCATENATE(#REF!&\" / \"&#REF!)&CHAR(10)&\"Matière : \"&#REF!&CHAR(10)&\"Compétences : \"&#REF!))","v":{"$error":"#REF!"}},{"$f":"IF(AND(#REF!=\"\",#REF!=\"\"),\"\",IF(#REF!=\"Récréation\",CONCATENATE(#REF!&\" / \"&#REF!)&CHAR(10)&\"RECREATION\",CONCATENATE(#REF!&\" / \"&#REF!)&CHAR(10)&\"Matière : \"&#REF!&CHAR(10)&\"Compétences : \"&#REF!))","v":{"$error":"#REF!"}},{"$f":"IF(AND(#REF!=\"\",#REF!=\"\"),\"\",IF(#REF!=\"Récréation\",CONCATENATE(#REF!&\" / \"&#REF!)&CHAR(10)&\"RECREATION\",CONCATENATE(#REF!&\" / \"&#REF!)&CHAR(10)&\"Matière : \"&#REF!&CHAR(10)&\"Compétences : \"&#REF!))","v":{"$error":"#REF!"}}]
[{"$f":"IF(AND(#REF!=\"\",#REF!=\"\"),\"\",IF(#REF!=\"Récréation\",CONCATENATE(#REF!&\" / \"&#REF!)&CHAR(10)&\"RECREATION\",CONCATENATE(#REF!&\" / \"&#REF!)&CHAR(10)&\"Matière : \"&#REF!&CHAR(10)&\"Compétences : \"&#REF!))","v":{"$error":"#REF!"}},{"$f":"IF(AND(#REF!=\"\",#REF!=\"\"),\"\",IF(#REF!=\"Récréation\",CONCATENATE(#REF!&\" / \"&#REF!)&CHAR(10)&\"RECREATION\",CONCATENATE(#REF!&\" / \"&#REF!)&CHAR(10)&\"Matière : \"&#REF!&CHAR(10)&\"Compétences : \"&#REF!))","v":{"$error":"#REF!"}},{"$f":"IF(AND(#REF!=\"\",#REF!=\"\"),\"\",IF(#REF!=\"Récréation\",CONCATENATE(#REF!&\" / \"&#REF!)&CHAR(10)&\"RECREATION\",CONCATENATE(#REF!&\" / \"&#REF!)&CHAR(10)&\"Matière : \"&#REF!&CHAR(10)&\"Compétences : \"&#REF!))","v":{"$error":"#REF!"}},{"$f":"IF(AND(#REF!=\"\",#REF!=\"\"),\"\",IF(#REF!=\"Récréation\",CONCATENATE(#REF!&\" / \"&#REF!)&CHAR(10)&\"RECREATION\",CONCATENATE(#REF!&\" / \"&#REF!)&CHAR(10)&\"Matière : \"&#REF!&CHAR(10)&\"Compétences : \"&#REF!))","v":{"$error":"#REF!"}},{"$f":"IF(AND(#REF!=\"\",#REF!=\"\"),\"\",IF(#REF!=\"Récréation\",CONCATENATE(#REF!&\" / \"&#REF!)&CHAR(10)&\"RECREATION\",CONCATENATE(#REF!&\" / \"&#REF!)&CHAR(10)&\"Matière : \"&#REF!&CHAR(10)&\"Compétences : \"&#REF!))","v":{"$error":"#REF!"}}]
[{"$f":"IF(AND(#REF!=\"\",#REF!=\"\"),\"\",IF(#REF!=\"Récréation\",CONCATENATE(#REF!&\" / \"&#REF!)&CHAR(10)&\"RECREATION\",CONCATENATE(#REF!&\" / \"&#REF!)&CHAR(10)&\"Matière : \"&#REF!&CHAR(10)&\"Compétences : \"&#REF!))","v":{"$error":"#REF!"}},{"$f":"IF(AND(#REF!=\"\",#REF!=\"\"),\"\",IF(#REF!=\"Récréation\",CONCATENATE(#REF!&\" / \"&#REF!)&CHAR(10)&\"RECREATION\",CONCATENATE(#REF!&\" / \"&#REF!)&CHAR(10)&\"Matière : \"&#REF!&CHAR(10)&\"Compétences : \"&#REF!))","v":{"$error":"#REF!"}},{"$f":"IF(AND(#REF!=\"\",#REF!=\"\"),\"\",IF(#REF!=\"Récréation\",CONCATENATE(#REF!&\" / \"&#REF!)&CHAR(10)&\"RECREATION\",CONCATENATE(#REF!&\" / \"&#REF!)&CHAR(10)&\"Matière : \"&#REF!&CHAR(10)&\"Compétences : \"&#REF!))","v":{"$error":"#REF!"}},{"$f":"IF(AND(#REF!=\"\",#REF!=\"\"),\"\",IF(#REF!=\"Récréation\",CONCATENATE(#REF!&\" / \"&#REF!)&CHAR(10)&\"RECREATION\",CONCATENATE(#REF!&\" / \"&#REF!)&CHAR(10)&\"Matière : \"&#REF!&CHAR(10)&\"Compétences : \"&#REF!))","v":{"$error":"#REF!"}},{"$f":"IF(AND(#REF!=\"\",#REF!=\"\"),\"\",IF(#REF!=\"Récréation\",CONCATENATE(#REF!&\" / \"&#REF!)&CHAR(10)&\"RECREATION\",CONCATENATE(#REF!&\" / \"&#REF!)&CHAR(10)&\"Matière : \"&#REF!&CHAR(10)&\"Compétences : \"&#REF!))","v":{"$error":"#REF!"}}]
[{"$f":"IF(AND(#REF!=\"\",#REF!=\"\"),\"\",IF(#REF!=\"Récréation\",CONCATENATE(#REF!&\" / \"&#REF!)&CHAR(10)&\"RECREATION\",CONCATENATE(#REF!&\" / \"&#REF!)&CHAR(10)&\"Matière : \"&#REF!&CHAR(10)&\"Compétences : \"&#REF!))","v":{"$error":"#REF!"}},{"$f":"IF(AND(#REF!=\"\",#REF!=\"\"),\"\",IF(#REF!=\"Récréation\",CONCATENATE(#REF!&\" / \"&#REF!)&CHAR(10)&\"RECREATION\",CONCATENATE(#REF!&\" / \"&#REF!)&CHAR(10)&\"Matière : \"&#REF!&CHAR(10)&\"Compétences : \"&#REF!))","v":{"$error":"#REF!"}},{"$f":"IF(AND(#REF!=\"\",#REF!=\"\"),\"\",IF(#REF!=\"Récréation\",CONCATENATE(#REF!&\" / \"&#REF!)&CHAR(10)&\"RECREATION\",CONCATENATE(#REF!&\" / \"&#REF!)&CHAR(10)&\"Matière : \"&#REF!&CHAR(10)&\"Compétences : \"&#REF!))","v":{"$error":"#REF!"}},{"$f":"IF(AND(#REF!=\"\",#REF!=\"\"),\"\",IF(#REF!=\"Récréation\",CONCATENATE(#REF!&\" / \"&#REF!)&CHAR(10)&\"RECREATION\",CONCATENATE(#REF!&\" / \"&#REF!)&CHAR(10)&\"Matière : \"&#REF!&CHAR(10)&\"Compétences : \"&#REF!))","v":{"$error":"#REF!"}},{"$f":"IF(AND(#REF!=\"\",#REF!=\"\"),\"\",IF(#REF!=\"Récréation\",CONCATENATE(#REF!&\" / \"&#REF!)&CHAR(10)&\"RECREATION\",CONCATENATE(#REF!&\" / \"&#REF!)&CHAR(10)&\"Matière : \"&#REF!&CHAR(10)&\"Compétences : \"&#REF!))","v":{"$error":"#REF!"}}]
[{"$f":"IF(AND(#REF!=\"\",#REF!=\"\"),\"\",IF(#REF!=\"Récréation\",CONCATENATE(#REF!&\" / \"&#REF!)&CHAR(10)&\"RECREATION\",CONCATENATE(#REF!&\" / \"&#REF!)&CHAR(10)&\"Matière : \"&#REF!&CHAR(10)&\"Compétences : \"&#REF!))","v":{"$error":"#REF!"}},{"$f":"IF(AND(#REF!=\"\",#REF!=\"\"),\"\",IF(#REF!=\"Récréation\",CONCATENATE(#REF!&\" / \"&#REF!)&CHAR(10)&\"RECREATION\",CONCATENATE(#REF!&\" / \"&#REF!)&CHAR(10)&\"Matière : \"&#REF!&CHAR(10)&\"Compétences : \"&#REF!))","v":{"$error":"#REF!"}},{"$f":"IF(AND(#REF!=\"\",#REF!=\"\"),\"\",IF(#REF!=\"Récréation\",CONCATENATE(#REF!&\" / \"&#REF!)&CHAR(10)&\"RECREATION\",CONCATENATE(#REF!&\" / \"&#REF!)&CHAR(10)&\"Matière : \"&#REF!&CHAR(10)&\"Compétences : \"&#REF!))","v":{"$error":"#REF!"}},{"$f":"IF(AND(#REF!=\"\",#REF!=\"\"),\"\",IF(#REF!=\"Récréation\",CONCATENATE(#REF!&\" / \"&#REF!)&CHAR(10)&\"RECREATION\",CONCATENATE(#REF!&\" / \"&#REF!)&CHAR(10)&\"Matière : \"&#REF!&CHAR(10)&\"Compétences : \"&#REF!))","v":{"$error":"#REF!"}},{"$f":"IF(AND(#REF!=\"\",#REF!=\"\"),\"\",IF(#REF!=\"Récréation\",CONCATENATE(#REF!&\" / \"&#REF!)&CHAR(10)&\"RECREATION\",CONCATENATE(#REF!&\" / \"&#REF!)&CHAR(10)&\"Matière : \"&#REF!&CHAR(10)&\"Compétences : \"&#REF!))","v":{"$error":"#REF!"}}]
[{"$f":"IF(AND(#REF!=\"\",#REF!=\"\"),\"\",IF(#REF!=\"Récréation\",CONCATENATE(#REF!&\" / \"&#REF!)&CHAR(10)&\"RECREATION\",CONCATENATE(#REF!&\" / \"&#REF!)&CHAR(10)&\"Matière : \"&#REF!&CHAR(10)&\"Compétences : \"&#REF!))","v":{"$error":"#REF!"}},{"$f":"IF(AND(#REF!=\"\",#REF!=\"\"),\"\",IF(#REF!=\"Récréation\",CONCATENATE(#REF!&\" / \"&#REF!)&CHAR(10)&\"RECREATION\",CONCATENATE(#REF!&\" / \"&#REF!)&CHAR(10)&\"Matière : \"&#REF!&CHAR(10)&\"Compétences : \"&#REF!))","v":{"$error":"#REF!"}},{"$f":"IF(AND(#REF!=\"\",#REF!=\"\"),\"\",IF(#REF!=\"Récréation\",CONCATENATE(#REF!&\" / \"&#REF!)&CHAR(10)&\"RECREATION\",CONCATENATE(#REF!&\" / \"&#REF!)&CHAR(10)&\"Matière : \"&#REF!&CHAR(10)&\"Compétences : \"&#REF!))","v":{"$error":"#REF!"}},{"$f":"IF(AND(#REF!=\"\",#REF!=\"\"),\"\",IF(#REF!=\"Récréation\",CONCATENATE(#REF!&\" / \"&#REF!)&CHAR(10)&\"RECREATION\",CONCATENATE(#REF!&\" / \"&#REF!)&CHAR(10)&\"Matière : \"&#REF!&CHAR(10)&\"Compétences : \"&#REF!))","v":{"$error":"#REF!"}},{"$f":"IF(AND(#REF!=\"\",#REF!=\"\"),\"\",IF(#REF!=\"Récréation\",CONCATENATE(#REF!&\" / \"&#REF!)&CHAR(10)&\"RECREATION\",CONCATENATE(#REF!&\" / \"&#REF!)&CHAR(10)&\"Matière : \"&#REF!&CHAR(10)&\"Compétences : \"&#REF!))","v":{"$error":"#REF!"}}]
[{"$f":"IF(AND(#REF!=\"\",#REF!=\"\"),\"\",IF(#REF!=\"Récréation\",CONCATENATE(#REF!&\" / \"&#REF!)&CHAR(10)&\"RECREATION\",CONCATENATE(#REF!&\" / \"&#REF!)&CHAR(10)&\"Matière : \"&#REF!&CHAR(10)&\"Compétences : \"&#REF!))","v":{"$error":"#REF!"}},{"$f":"IF(AND(#REF!=\"\",#REF!=\"\"),\"\",IF(#REF!=\"Récréation\",CONCATENATE(#REF!&\" / \"&#REF!)&CHAR(10)&\"RECREATION\",CONCATENATE(#REF!&\" / \"&#REF!)&CHAR(10)&\"Matière : \"&#REF!&CHAR(10)&\"Compétences : \"&#REF!))","v":{"$error":"#REF!"}},{"$f":"IF(AND(#REF!=\"\",#REF!=\"\"),\"\",IF(#REF!=\"Récréation\",CONCATENATE(#REF!&\" / \"&#REF!)&CHAR(10)&\"RECREATION\",CONCATENATE(#REF!&\" / \"&#REF!)&CHAR(10)&\"Matière : \"&#REF!&CHAR(10)&\"Compétences : \"&#REF!))","v":{"$error":"#REF!"}},{"$f":"IF(AND(#REF!=\"\",#REF!=\"\"),\"\",IF(#REF!=\"Récréation\",CONCATENATE(#REF!&\" / \"&#REF!)&CHAR(10)&\"RECREATION\",CONCATENATE(#REF!&\" / \"&#REF!)&CHAR(10)&\"Matière : \"&#REF!&CHAR(10)&\"Compétences : \"&#REF!))","v":{"$error":"#REF!"}},{"$f":"IF(AND(#REF!=\"\",#REF!=\"\"),\"\",IF(#REF!=\"Récréation\",CONCATENATE(#REF!&\" / \"&#REF!)&CHAR(10)&\"RECREATION\",CONCATENATE(#REF!&\" / \"&#REF!)&CHAR(10)&\"Matière : \"&#REF!&CHAR(10)&\"Compétences : \"&#REF!))","v":{"$error":"#REF!"}}]
[{"$f":"IF(AND(#REF!=\"\",#REF!=\"\"),\"\",IF(#REF!=\"Récréation\",CONCATENATE(#REF!&\" / \"&#REF!)&CHAR(10)&\"RECREATION\",CONCATENATE(#REF!&\" / \"&#REF!)&CHAR(10)&\"Matière : \"&#REF!&CHAR(10)&\"Compétences : \"&#REF!))","v":{"$error":"#REF!"}},{"$f":"IF(AND(#REF!=\"\",#REF!=\"\"),\"\",IF(#REF!=\"Récréation\",CONCATENATE(#REF!&\" / \"&#REF!)&CHAR(10)&\"RECREATION\",CONCATENATE(#REF!&\" / \"&#REF!)&CHAR(10)&\"Matière : \"&#REF!&CHAR(10)&\"Compétences : \"&#REF!))","v":{"$error":"#REF!"}},{"$f":"IF(AND(#REF!=\"\",#REF!=\"\"),\"\",IF(#REF!=\"Récréation\",CONCATENATE(#REF!&\" / \"&#REF!)&CHAR(10)&\"RECREATION\",CONCATENATE(#REF!&\" / \"&#REF!)&CHAR(10)&\"Matière : \"&#REF!&CHAR(10)&\"Compétences : \"&#REF!))","v":{"$error":"#REF!"}},{"$f":"IF(AND(#REF!=\"\",#REF!=\"\"),\"\",IF(#REF!=\"Récréation\",CONCATENATE(#REF!&\" / \"&#REF!)&CHAR(10)&\"RECREATION\",CONCATENATE(#REF!&\" / \"&#REF!)&CHAR(10)&\"Matière : \"&#REF!&CHAR(10)&\"Compétences : \"&#REF!))","v":{"$error":"#REF!"}},{"$f":"IF(AND(#REF!=\"\",#REF!=\"\"),\"\",IF(#REF!=\"Récréation\",CONCATENATE(#REF!&\" / \"&#REF!)&CHAR(10)&\"RECREATION\",CONCATENATE(#REF!&\" / \"&#REF!)&CHAR(10)&\"Matière : \"&#REF!&CHAR(10)&\"Compétences : \"&#REF!))","v":{"$error":"#REF!"}}]
[{"$f":"IF(AND(#REF!=\"\",#REF!=\"\"),\"\",IF(#REF!=\"Récréation\",CONCATENATE(#REF!&\" / \"&#REF!)&CHAR(10)&\"RECREATION\",CONCATENATE(#REF!&\" / \"&#REF!)&CHAR(10)&\"Matière : \"&#REF!&CHAR(10)&\"Compétences : \"&#REF!))","v":{"$error":"#REF!"}},{"$f":"IF(AND(#REF!=\"\",#REF!=\"\"),\"\",IF(#REF!=\"Récréation\",CONCATENATE(#REF!&\" / \"&#REF!)&CHAR(10)&\"RECREATION\",CONCATENATE(#REF!&\" / \"&#REF!)&CHAR(10)&\"Matière : \"&#REF!&CHAR(10)&\"Compétences : \"&#REF!))","v":{"$error":"#REF!"}},{"$f":"IF(AND(#REF!=\"\",#REF!=\"\"),\"\",IF(#REF!=\"Récréation\",CONCATENATE(#REF!&\" / \"&#REF!)&CHAR(10)&\"RECREATION\",CONCATENATE(#REF!&\" / \"&#REF!)&CHAR(10)&\"Matière : \"&#REF!&CHAR(10)&\"Compétences : \"&#REF!))","v":{"$error":"#REF!"}},{"$f":"IF(AND(#REF!=\"\",#REF!=\"\"),\"\",IF(#REF!=\"Récréation\",CONCATENATE(#REF!&\" / \"&#REF!)&CHAR(10)&\"RECREATION\",CONCATENATE(#REF!&\" / \"&#REF!)&CHAR(10)&\"Matière : \"&#REF!&CHAR(10)&\"Compétences : \"&#REF!))","v":{"$error":"#REF!"}},{"$f":"IF(AND(#REF!=\"\",#REF!=\"\"),\"\",IF(#REF!=\"Récréation\",CONCATENATE(#REF!&\" / \"&#REF!)&CHAR(10)&\"RECREATION\",CONCATENATE(#REF!&\" / \"&#REF!)&CHAR(10)&\"Matière : \"&#REF!&CHAR(10)&\"Compétences : \"&#REF!))","v":{"$error":"#REF!"}}]
[{"$f":"IF(AND(#REF!=\"\",#REF!=\"\"),\"\",IF(#REF!=\"Récréation\",CONCATENATE(#REF!&\" / \"&#REF!)&CHAR(10)&\"RECREATION\",CONCATENATE(#REF!&\" / \"&#REF!)&CHAR(10)&\"Matière : \"&#REF!&CHAR(10)&\"Compétences : \"&#REF!))","v":{"$error":"#REF!"}},{"$f":"IF(AND(#REF!=\"\",#REF!=\"\"),\"\",IF(#REF!=\"Récréation\",CONCATENATE(#REF!&\" / \"&#REF!)&CHAR(10)&\"RECREATION\",CONCATENATE(#REF!&\" / \"&#REF!)&CHAR(10)&\"Matière : \"&#REF!&CHAR(10)&\"Compétences : \"&#REF!))","v":{"$error":"#REF!"}},{"$f":"IF(AND(#REF!=\"\",#REF!=\"\"),\"\",IF(#REF!=\"Récréation\",CONCATENATE(#REF!&\" / \"&#REF!)&CHAR(10)&\"RECREATION\",CONCATENATE(#REF!&\" / \"&#REF!)&CHAR(10)&\"Matière : \"&#REF!&CHAR(10)&\"Compétences : \"&#REF!))","v":{"$error":"#REF!"}},{"$f":"IF(AND(#REF!=\"\",#REF!=\"\"),\"\",IF(#REF!=\"Récréation\",CONCATENATE(#REF!&\" / \"&#REF!)&CHAR(10)&\"RECREATION\",CONCATENATE(#REF!&\" / \"&#REF!)&CHAR(10)&\"Matière : \"&#REF!&CHAR(10)&\"Compétences : \"&#REF!))","v":{"$error":"#REF!"}},{"$f":"IF(AND(#REF!=\"\",#REF!=\"\"),\"\",IF(#REF!=\"Récréation\",CONCATENATE(#REF!&\" / \"&#REF!)&CHAR(10)&\"RECREATION\",CONCATENATE(#REF!&\" / \"&#REF!)&CHAR(10)&\"Matière : \"&#REF!&CHAR(10)&\"Compétences : \"&#REF!))","v":{"$error":"#REF!"}}]
[{"$f":"IF(AND(#REF!=\"\",#REF!=\"\"),\"\",IF(#REF!=\"Récréation\",CONCATENATE(#REF!&\" / \"&#REF!)&CHAR(10)&\"RECREATION\",CONCATENATE(#REF!&\" / \"&#REF!)&CHAR(10)&\"Matière : \"&#REF!&CHAR(10)&\"Compétences : \"&#REF!))","v":{"$error":"#REF!"}},{"$f":"IF(AND(#REF!=\"\",#REF!=\"\"),\"\",IF(#REF!=\"Récréation\",CONCATENATE(#REF!&\" / \"&#REF!)&CHAR(10)&\"RECREATION\",CONCATENATE(#REF!&\" / \"&#REF!)&CHAR(10)&\"Matière : \"&#REF!&CHAR(10)&\"Compétences : \"&#REF!))","v":{"$error":"#REF!"}},{"$f":"IF(AND(#REF!=\"\",#REF!=\"\"),\"\",IF(#REF!=\"Récréation\",CONCATENATE(#REF!&\" / \"&#REF!)&CHAR(10)&\"RECREATION\",CONCATENATE(#REF!&\" / \"&#REF!)&CHAR(10)&\"Matière : \"&#REF!&CHAR(10)&\"Compétences : \"&#REF!))","v":{"$error":"#REF!"}},{"$f":"IF(AND(#REF!=\"\",#REF!=\"\"),\"\",IF(#REF!=\"Récréation\",CONCATENATE(#REF!&\" / \"&#REF!)&CHAR(10)&\"RECREATION\",CONCATENATE(#REF!&\" / \"&#REF!)&CHAR(10)&\"Matière : \"&#REF!&CHAR(10)&\"Compétences : \"&#REF!))","v":{"$error":"#REF!"}},{"$f":"IF(AND(#REF!=\"\",#REF!=\"\"),\"\",IF(#REF!=\"Récréation\",CONCATENATE(#REF!&\" / \"&#REF!)&CHAR(10)&\"RECREATION\",CONCATENATE(#REF!&\" / \"&#REF!)&CHAR(10)&\"Matière : \"&#REF!&CHAR(10)&\"Compétences : \"&#REF!))","v":{"$error":"#REF!"}}]
[{"$f":"IF(AND(#REF!=\"\",#REF!=\"\"),\"\",IF(#REF!=\"Récréation\",CONCATENATE(#REF!&\" / \"&#REF!)&CHAR(10)&\"RECREATION\",CONCATENATE(#REF!&\" / \"&#REF!)&CHAR(10)&\"Matière : \"&#REF!&CHAR(10)&\"Compétences : \"&#REF!))","v":{"$error":"#REF!"}},{"$f":"IF(AND(#REF!=\"\",#REF!=\"\"),\"\",IF(#REF!=\"Récréation\",CONCATENATE(#REF!&\" / \"&#REF!)&CHAR(10)&\"RECREATION\",CONCATENATE(#REF!&\" / \"&#REF!)&CHAR(10)&\"Matière : \"&#REF!&CHAR(10)&\"Compétences : \"&#REF!))","v":{"$error":"#REF!"}},{"$f":"IF(AND(#REF!=\"\",#REF!=\"\"),\"\",IF(#REF!=\"Récréation\",CONCATENATE(#REF!&\" / \"&#REF!)&CHAR(10)&\"RECREATION\",CONCATENATE(#REF!&\" / \"&#REF!)&CHAR(10)&\"Matière : \"&#REF!&CHAR(10)&\"Compétences : \"&#REF!))","v":{"$error":"#REF!"}},{"$f":"IF(AND(#REF!=\"\",#REF!=\"\"),\"\",IF(#REF!=\"Récréation\",CONCATENATE(#REF!&\" / \"&#REF!)&CHAR(10)&\"RECREATION\",CONCATENATE(#REF!&\" / \"&#REF!)&CHAR(10)&\"Matière : \"&#REF!&CHAR(10)&\"Compétences : \"&#REF!))","v":{"$error":"#REF!"}},{"$f":"IF(AND(#REF!=\"\",#REF!=\"\"),\"\",IF(#REF!=\"Récréation\",CONCATENATE(#REF!&\" / \"&#REF!)&CHAR(10)&\"RECREATION\",CONCATENATE(#REF!&\" / \"&#REF!)&CHAR(10)&\"Matière : \"&#REF!&CHAR(10)&\"Compétences : \"&#REF!))","v":{"$error":"#REF!"}}]
[{"$f":"IF(AND(#REF!=\"\",#REF!=\"\"),\"\",IF(#REF!=\"Récréation\",CONCATENATE(#REF!&\" / \"&#REF!)&CHAR(10)&\"RECREATION\",CONCATENATE(#REF!&\" / \"&#REF!)&CHAR(10)&\"Matière : \"&#REF!&CHAR(10)&\"Compétences : \"&#REF!))","v":{"$error":"#REF!"}},{"$f":"IF(AND(#REF!=\"\",#REF!=\"\"),\"\",IF(#REF!=\"Récréation\",CONCATENATE(#REF!&\" / \"&#REF!)&CHAR(10)&\"RECREATION\",CONCATENATE(#REF!&\" / \"&#REF!)&CHAR(10)&\"Matière : \"&#REF!&CHAR(10)&\"Compétences : \"&#REF!))","v":{"$error":"#REF!"}},{"$f":"IF(AND(#REF!=\"\",#REF!=\"\"),\"\",IF(#REF!=\"Récréation\",CONCATENATE(#REF!&\" / \"&#REF!)&CHAR(10)&\"RECREATION\",CONCATENATE(#REF!&\" / \"&#REF!)&CHAR(10)&\"Matière : \"&#REF!&CHAR(10)&\"Compétences : \"&#REF!))","v":{"$error":"#REF!"}},{"$f":"IF(AND(#REF!=\"\",#REF!=\"\"),\"\",IF(#REF!=\"Récréation\",CONCATENATE(#REF!&\" / \"&#REF!)&CHAR(10)&\"RECREATION\",CONCATENATE(#REF!&\" / \"&#REF!)&CHAR(10)&\"Matière : \"&#REF!&CHAR(10)&\"Compétences : \"&#REF!))","v":{"$error":"#REF!"}},{"$f":"IF(AND(#REF!=\"\",#REF!=\"\"),\"\",IF(#REF!=\"Récréation\",CONCATENATE(#REF!&\" / \"&#REF!)&CHAR(10)&\"RECREATION\",CONCATENATE(#REF!&\" / \"&#REF!)&CHAR(10)&\"Matière : \"&#REF!&CHAR(10)&\"Compétences : \"&#REF!))","v":{"$error":"#REF!"}}]
[{"$f":"IF(AND(#REF!=\"\",#REF!=\"\"),\"\",IF(#REF!=\"Récréation\",CONCATENATE(#REF!&\" / \"&#REF!)&CHAR(10)&\"RECREATION\",CONCATENATE(#REF!&\" / \"&#REF!)&CHAR(10)&\"Matière : \"&#REF!&CHAR(10)&\"Compétences : \"&#REF!))","v":{"$error":"#REF!"}},{"$f":"IF(AND(#REF!=\"\",#REF!=\"\"),\"\",IF(#REF!=\"Récréation\",CONCATENATE(#REF!&\" / \"&#REF!)&CHAR(10)&\"RECREATION\",CONCATENATE(#REF!&\" / \"&#REF!)&CHAR(10)&\"Matière : \"&#REF!&CHAR(10)&\"Compétences : \"&#REF!))","v":{"$error":"#REF!"}},{"$f":"IF(AND(#REF!=\"\",#REF!=\"\"),\"\",IF(#REF!=\"Récréation\",CONCATENATE(#REF!&\" / \"&#REF!)&CHAR(10)&\"RECREATION\",CONCATENATE(#REF!&\" / \"&#REF!)&CHAR(10)&\"Matière : \"&#REF!&CHAR(10)&\"Compétences : \"&#REF!))","v":{"$error":"#REF!"}},{"$f":"IF(AND(#REF!=\"\",#REF!=\"\"),\"\",IF(#REF!=\"Récréation\",CONCATENATE(#REF!&\" / \"&#REF!)&CHAR(10)&\"RECREATION\",CONCATENATE(#REF!&\" / \"&#REF!)&CHAR(10)&\"Matière : \"&#REF!&CHAR(10)&\"Compétences : \"&#REF!))","v":{"$error":"#REF!"}},{"$f":"IF(AND(#REF!=\"\",#REF!=\"\"),\"\",IF(#REF!=\"Récréation\",CONCATENATE(#REF!&\" / \"&#REF!)&CHAR(10)&\"RECREATION\",CONCATENATE(#REF!&\" / \"&#REF!)&CHAR(10)&\"Matière : \"&#REF!&CHAR(10)&\"Compétences : \"&#REF!))","v":{"$error":"#REF!"}}]
[{"$f":"IF(AND(#REF!=\"\",#REF!=\"\"),\"\",IF(#REF!=\"Récréation\",\"RECREATION\",\"Matière : \"&#REF!&\" \"&\"Compétences : \"&#REF!))","v":{"$error":"#REF!"}}]
[{"$f":"IF(AND(#REF!=\"\",#REF!=\"\"),\"\",IF(#REF!=\"Récréation\",\"RECREATION\",\"Matière : \"&#REF!&\" \"&\"Compétences : \"&#REF!))","v":{"$error":"#REF!"}}]
[{"$f":"IF(AND(#REF!=\"\",#REF!=\"\"),\"\",IF(#REF!=\"Récréation\",\"RECREATION\",\"Matière : \"&#REF!&\" \"&\"Compétences : \"&#REF!))","v":{"$error":"#REF!"}}]
[{"$f":"IF(AND(#REF!=\"\",#REF!=\"\"),\"\",IF(#REF!=\"Récréation\",\"RECREATION\",\"Matière : \"&#REF!&\" \"&\"Compétences : \"&#REF!))","v":{"$error":"#REF!"}}]
[{"$f":"IF(AND(#REF!=\"\",#REF!=\"\"),\"\",IF(#REF!=\"Récréation\",\"RECREATION\",\"Matière : \"&#REF!&\" \"&\"Compétences : \"&#REF!))","v":{"$error":"#REF!"}}]
[{"$f":"IF(AND(#REF!=\"\",#REF!=\"\"),\"\",IF(#REF!=\"Récréation\",\"RECREATION\",\"Matière : \"&#REF!&\" \"&\"Compétences : \"&#REF!))","v":{"$error":"#REF!"}}]
[{"$f":"IF(AND(#REF!=\"\",#REF!=\"\"),\"\",IF(#REF!=\"Récréation\",\"RECREATION\",\"Matière : \"&#REF!&\" \"&\"Compétences : \"&#REF!))","v":{"$error":"#REF!"}}]
[{"$f":"IF(AND(#REF!=\"\",#REF!=\"\"),\"\",IF(#REF!=\"Récréation\",\"RECREATION\",\"Matière : \"&#REF!&\" \"&\"Compétences : \"&#REF!))","v":{"$error":"#REF!"}}]
[{"$f":"IF(AND(#REF!=\"\",#REF!=\"\"),\"\",IF(#REF!=\"Récréation\",\"RECREATION\",\"Matière : \"&#REF!&\" \"&\"Compétences : \"&#REF!))","v":{"$error":"#REF!"}}]
[{"$f":"IF(AND(#REF!=\"\",#REF!=\"\"),\"\",IF(#REF!=\"Récréation\",\"RECREATION\",\"Matière : \"&#REF!&\" \"&\"Compétences : \"&#REF!))","v":{"$error":"#REF!"}}]
[{"$f":"IF(AND(#REF!=\"\",#REF!=\"\"),\"\",IF(#REF!=\"Récréation\",\"RECREATION\",\"Matière : \"&#REF!&\" \"&\"Compétences : \"&#REF!))","v":{"$error":"#REF!"}}]
[{"$f":"IF(AND(#REF!=\"\",#REF!=\"\"),\"\",IF(#REF!=\"Récréation\",\"RECREATION\",\"Matière : \"&#REF!&\" \"&\"Compétences : \"&#REF!))","v":{"$error":"#REF!"}}]
[{"$f":"IF(AND(#REF!=\"\",#REF!=\"\"),\"\",IF(#REF!=\"Récréation\",\"RECREATION\",\"Matière : \"&#REF!&\" \"&\"Compétences : \"&#REF!))","v":{"$error":"#REF!"}}]
[{"$f":"IF(AND(#REF!=\"\",#REF!=\"\"),\"\",IF(#REF!=\"Récréation\",\"RECREATION\",\"Matière : \"&#REF!&\" \"&\"Compétences : \"&#REF!))","v":{"$error":"#REF!"}}]
[{"$f":"IF(AND(#REF!=\"\",#REF!=\"\"),\"\",IF(#REF!=\"Récréation\",\"RECREATION\",\"Matière : \"&#REF!&\" \"&\"Compétences : \"&#REF!))","v":{"$error":"#REF!"}}]
[{"$f":"IF(AND(#REF!=\"\",#REF!=\"\"),\"\",IF(#REF!=\"Récréation\",\"RECREATION\",\"Matière : \"&#REF!&\" \"&\"Compétences : \"&#REF!))","v":{"$error":"#REF!"}}]
[{"$f":"IF(AND(#REF!=\"\",#REF!=\"\"),\"\",IF(#REF!=\"Récréation\",\"RECREATION\",\"Matière : \"&#REF!&\" \"&\"Compétences : \"&#REF!))","v":{"$error":"#REF!"}}]
[{"$f":"IF(AND(#REF!=\"\",#REF!=\"\"),\"\",IF(#REF!=\"Récréation\",\"RECREATION\",\"Matière : \"&#REF!&\" \"&\"Compétences : \"&#REF!))","v":{"$error":"#REF!"}}]
[{"$f":"IF(AND(#REF!=\"\",#REF!=\"\"),\"\",IF(#REF!=\"Récréation\",\"RECREATION\",\"Matière : \"&#REF!&\" \"&\"Compétences : \"&#REF!))","v":{"$error":"#REF!"}}]
[{"$f":"IF(AND(#REF!=\"\",#REF!=\"\"),\"\",IF(#REF!=\"Récréation\",\"RECREATION\",\"Matière : \"&#REF!&\" \"&\"Compétences : \"&#REF!))","v":{"$error":"#REF!"}}]
[{"$f":"IF(AND(#REF!=\"\",#REF!=\"\"),\"\",IF(#REF!=\"Récréation\",\"RECREATION\",\"Matière : \"&#REF!&\" \"&\"Compétences : \"&#REF!))","v":{"$error":"#REF!"}}]
[{"$f":"IF(AND(#REF!=\"\",#REF!=\"\"),\"\",IF(#REF!=\"Récréation\",\"RECREATION\",\"Matière : \"&#REF!&\" \"&\"Compétences : \"&#REF!))","v":{"$error":"#REF!"}}]
[{"$f":"IF(AND(#REF!=\"\",#REF!=\"\"),\"\",IF(#REF!=\"Récréation\",\"RECREATION\",\"Matière : \"&#REF!&\" \"&\"Compétences : \"&#REF!))","v":{"$error":"#REF!"}}]
[{"$f":"IF(AND(#REF!=\"\",#REF!=\"\"),\"\",IF(#REF!=\"Récréation\",\"RECREATION\",\"Matière : \"&#REF!&\" \"&\"Compétences : \"&#REF!))","v":{"$error":"#REF!"}}]
[{"$f":"IF(AND(#REF!=\"\",#REF!=\"\"),\"\",IF(#REF!=\"Récréation\",\"RECREATION\",\"Matière : \"&#REF!&\" \"&\"Compétences : \"&#REF!))","v":{"$error":"#REF!"}}]
[{"$f":"IF(AND(#REF!=\"\",#REF!=\"\"),\"\",IF(#REF!=\"Récréation\",\"RECREATION\",\"Matière : \"&#REF!&\" \"&\"Compétences : \"&#REF!))","v":{"$error":"#REF!"}}]
[{"$f":"IF(AND(#REF!=\"\",#REF!=\"\"),\"\",IF(#REF!=\"Récréation\",\"RECREATION\",\"Matière : \"&#REF!&\" \"&\"Compétences : \"&#REF!))","v":{"$error":"#REF!"}}]
[{"$f":"IF(AND(#REF!=\"\",#REF!=\"\"),\"\",IF(#REF!=\"Récréation\",\"RECREATION\",\"Matière : \"&#REF!&\" \"&\"Compétences : \"&#REF!))","v":{"$error":"#REF!"}}]
[{"$f":"IF(AND(#REF!=\"\",#REF!=\"\"),\"\",IF(#REF!=\"Récréation\",\"RECREATION\",\"Matière : \"&#REF!&\" \"&\"Compétences : \"&#REF!))","v":{"$error":"#REF!"}}]
[{"$f":"IF(AND(#REF!=\"\",#REF!=\"\"),\"\",IF(#REF!=\"Récréation\",\"RECREATION\",\"Matière : \"&#REF!&\" \"&\"Compétences : \"&#REF!))","v":{"$error":"#REF!"}}]
[{"$f":"IF(AND(#REF!=\"\",#REF!=\"\"),\"\",IF(#REF!=\"Récréation\",\"RECREATION\",\"Matière : \"&#REF!&\" \"&\"Compétences : \"&#REF!))","v":{"$error":"#REF!"}}]
[{"$f":"IF(AND(#REF!=\"\",#REF!=\"\"),\"\",IF(#REF!=\"Récréation\",\"RECREATION\",\"Matière : \"&#REF!&\" \"&\"Compétences : \"&#REF!))","v":{"$error":"#REF!"}}]
[{"$f":"IF(AND(#REF!=\"\",#REF!=\"\"),\"\",IF(#REF!=\"Récréation\",\"RECREATION\",\"Matière : \"&#REF!&\" \"&\"Compétences : \"&#REF!))","v":{"$error":"#REF!"}}]
[{"$f":"IF(AND(#REF!=\"\",#REF!=\"\"),\"\",IF(#REF!=\"Récréation\",\"RECREATION\",\"Matière : \"&#REF!&\" \"&\"Compétences : \"&#REF!))","v":{"$error":"#REF!"}}]
[{"$f":"IF(AND(#REF!=\"\",#REF!=\"\"),\"\",IF(#REF!=\"Récréation\",\"RECREATION\",\"Matière : \"&#REF!&\" \"&\"Compétences : \"&#REF!))","v":{"$error":"#REF!"}}]
[{"$f":"IF(AND(#REF!=\"\",#REF!=\"\"),\"\",IF(#REF!=\"Récréation\",\"RECREATION\",\"Matière : \"&#REF!&\" \"&\"Compétences : \"&#REF!))","v":{"$error":"#REF!"}}]
[{"$f":"IF(AND(#REF!=\"\",#REF!=\"\"),\"\",IF(#REF!=\"Récréation\",\"RECREATION\",\"Matière : \"&#REF!&\" \"&\"Compétences : \"&#REF!))","v":{"$error":"#REF!"}}]
[{"$f":"IF(AND(#REF!=\"\",#REF!=\"\"),\"\",IF(#REF!=\"Récréation\",\"RECREATION\",\"Matière : \"&#REF!&\" \"&\"Compétences : \"&#REF!))","v":{"$error":"#REF!"}}]
[{"$f":"IF(AND(#REF!=\"\",#REF!=\"\"),\"\",IF(#REF!=\"Récréation\",\"RECREATION\",\"Matière : \"&#REF!&\" \"&\"Compétences : \"&#REF!))","v":{"$error":"#REF!"}}]
[{"$f":"IF(AND(#REF!=\"\",#REF!=\"\"),\"\",IF(#REF!=\"Récréation\",\"RECREATION\",\"Matière : \"&#REF!&\" \"&\"Compétences : \"&#REF!))","v":{"$error":"#REF!"}}]
[{"$f":"IF(AND(#REF!=\"\",#REF!=\"\"),\"\",IF(#REF!=\"Récréation\",\"RECREATION\",\"Matière : \"&#REF!&\" \"&\"Compétences : \"&#REF!))","v":{"$error":"#REF!"}}]
[{"$f":"IF(AND(#REF!=\"\",#REF!=\"\"),\"\",IF(#REF!=\"Récréation\",\"RECREATION\",\"Matière : \"&#REF!&\" \"&\"Compétences : \"&#REF!))","v":{"$error":"#REF!"}}]
[{"$f":"IF(AND(#REF!=\"\",#REF!=\"\"),\"\",IF(#REF!=\"Récréation\",\"RECREATION\",\"Matière : \"&#REF!&\" \"&\"Compétences : \"&#REF!))","v":{"$error":"#REF!"}}]
[{"$f":"IF(AND(#REF!=\"\",#REF!=\"\"),\"\",IF(#REF!=\"Récréation\",\"RECREATION\",\"Matière : \"&#REF!&\" \"&\"Compétences : \"&#REF!))","v":{"$error":"#REF!"}}]
[{"$f":"IF(AND(#REF!=\"\",#REF!=\"\"),\"\",IF(#REF!=\"Récréation\",\"RECREATION\",\"Matière : \"&#REF!&\" \"&\"Compétences : \"&#REF!))","v":{"$error":"#REF!"}}]
[{"$f":"IF(AND(#REF!=\"\",#REF!=\"\"),\"\",IF(#REF!=\"Récréation\",\"RECREATION\",\"Matière : \"&#REF!&\" \"&\"Compétences : \"&#REF!))","v":{"$error":"#REF!"}}]
[{"$f":"IF(AND(#REF!=\"\",#REF!=\"\"),\"\",IF(#REF!=\"Récréation\",\"RECREATION\",\"Matière : \"&#REF!&\" \"&\"Compétences : \"&#REF!))","v":{"$error":"#REF!"}}]
[{"$f":"IF(AND(#REF!=\"\",#REF!=\"\"),\"\",IF(#REF!=\"Récréation\",\"RECREATION\",\"Matière : \"&#REF!&\" \"&\"Compétences : \"&#REF!))","v":{"$error":"#REF!"}}]
[{"$f":"IF(AND(#REF!=\"\",#REF!=\"\"),\"\",IF(#REF!=\"Récréation\",\"RECREATION\",\"Matière : \"&#REF!&\" \"&\"Compétences : \"&#REF!))","v":{"$error":"#REF!"}}]
[{"$f":"IF(AND(#REF!=\"\",#REF!=\"\"),\"\",IF(#REF!=\"Récréation\",\"RECREATION\",\"Matière : \"&#REF!&\" \"&\"Compétences : \"&#REF!))","v":{"$error":"#REF!"}}]
[{"$f":"IF(AND(#REF!=\"\",#REF!=\"\"),\"\",IF(#REF!=\"Récréation\",\"RECREATION\",\"Matière : \"&#REF!&\" \"&\"Compétences : \"&#REF!))","v":{"$error":"#REF!"}}]
[{"$f":"IF(AND(#REF!=\"\",#REF!=\"\"),\"\",IF(#REF!=\"Récréation\",\"RECREATION\",\"Matière : \"&#REF!&\" \"&\"Compétences : \"&#REF!))","v":{"$error":"#REF!"}}]
[{"$f":"IF(AND(#REF!=\"\",#REF!=\"\"),\"\",IF(#REF!=\"Récréation\",\"RECREATION\",\"Matière : \"&#REF!&\" \"&\"Compétences : \"&#REF!))","v":{"$error":"#REF!"}}]
[{"$f":"IF(AND(#REF!=\"\",#REF!=\"\"),\"\",IF(#REF!=\"Récréation\",\"RECREATION\",\"Matière : \"&#REF!&\" \"&\"Compétences : \"&#REF!))","v":{"$error":"#REF!"}}]
[{"$f":"IF(AND(#REF!=\"\",#REF!=\"\"),\"\",IF(#REF!=\"Récréation\",\"RECREATION\",\"Matière : \"&#REF!&\" \"&\"Compétences : \"&#REF!))","v":{"$error":"#REF!"}}]
[{"$f":"IF(AND(#REF!=\"\",#REF!=\"\"),\"\",IF(#REF!=\"Récréation\",\"RECREATION\",\"Matière : \"&#REF!&\" \"&\"Compétences : \"&#REF!))","v":{"$error":"#REF!"}}]
[{"$f":"IF(AND(#REF!=\"\",#REF!=\"\"),\"\",IF(#REF!=\"Récréation\",\"RECREATION\",\"Matière : \"&#REF!&\" \"&\"Compétences : \"&#REF!))","v":{"$error":"#REF!"}}]
[{"$f":"IF(AND(#REF!=\"\",#REF!=\"\"),\"\",IF(#REF!=\"Récréation\",\"RECREATION\",\"Matière : \"&#REF!&\" \"&\"Compétences : \"&#REF!))","v":{"$error":"#REF!"}}]
[{"$f":"IF(AND(#REF!=\"\",#REF!=\"\"),\"\",IF(#REF!=\"Récréation\",\"RECREATION\",\"Matière : \"&#REF!&\" \"&\"Compétences : \"&#REF!))","v":{"$error":"#REF!"}}]
[{"$f":"IF(AND(#REF!=\"\",#REF!=\"\"),\"\",IF(#REF!=\"Récréation\",\"RECREATION\",\"Matière : \"&#REF!&\" \"&\"Compétences : \"&#REF!))","v":{"$error":"#REF!"}}]
[{"$f":"IF(AND(#REF!=\"\",#REF!=\"\"),\"\",IF(#REF!=\"Récréation\",\"RECREATION\",\"Matière : \"&#REF!&\" \"&\"Compétences : \"&#REF!))","v":{"$error":"#REF!"}}]
[{"$f":"IF(AND(#REF!=\"\",#REF!=\"\"),\"\",IF(#REF!=\"Récréation\",\"RECREATION\",\"Matière : \"&#REF!&\" \"&\"Compétences : \"&#REF!))","v":{"$error":"#REF!"}}]
[{"$f":"IF(AND(#REF!=\"\",#REF!=\"\"),\"\",IF(#REF!=\"Récréation\",\"RECREATION\",\"Matière : \"&#REF!&\" \"&\"Compétences : \"&#REF!))","v":{"$error":"#REF!"}}]
[{"$f":"IF(AND(#REF!=\"\",#REF!=\"\"),\"\",IF(#REF!=\"Récréation\",\"RECREATION\",\"Matière : \"&#REF!&\" \"&\"Compétences : \"&#REF!))","v":{"$error":"#REF!"}}]
[{"$f":"IF(AND(#REF!=\"\",#REF!=\"\"),\"\",IF(#REF!=\"Récréation\",\"RECREATION\",\"Matière : \"&#REF!&\" \"&\"Compétences : \"&#REF!))","v":{"$error":"#REF!"}}]
[{"$f":"IF(AND(#REF!=\"\",#REF!=\"\"),\"\",IF(#REF!=\"Récréation\",\"RECREATION\",\"Matière : \"&#REF!&\" \"&\"Compétences : \"&#REF!))","v":{"$error":"#REF!"}}]
[{"$f":"IF(AND(#REF!=\"\",#REF!=\"\"),\"\",IF(#REF!=\"Récréation\",\"RECREATION\",\"Matière : \"&#REF!&\" \"&\"Compétences : \"&#REF!))","v":{"$error":"#REF!"}}]
[{"$f":"IF(AND(#REF!=\"\",#REF!=\"\"),\"\",IF(#REF!=\"Récréation\",\"RECREATION\",\"Matière : \"&#REF!&\" \"&\"Compétences : \"&#REF!))","v":{"$error":"#REF!"}}]
[{"$f":"IF(AND(#REF!=\"\",#REF!=\"\"),\"\",IF(#REF!=\"Récréation\",\"RECREATION\",\"Matière : \"&#REF!&\" \"&\"Compétences : \"&#REF!))","v":{"$error":"#REF!"}}]
[{"$f":"IF(AND(#REF!=\"\",#REF!=\"\"),\"\",IF(#REF!=\"Récréation\",\"RECREATION\",\"Matière : \"&#REF!&\" \"&\"Compétences : \"&#REF!))","v":{"$error":"#REF!"}}]
[{"$f":"IF(AND(#REF!=\"\",#REF!=\"\"),\"\",IF(#REF!=\"Récréation\",\"RECREATION\",\"Matière : \"&#REF!&\" \"&\"Compétences : \"&#REF!))","v":{"$error":"#REF!"}}]
[{"$f":"IF(AND(#REF!=\"\",#REF!=\"\"),\"\",IF(#REF!=\"Récréation\",\"RECREATION\",\"Matière : \"&#REF!&\" \"&\"Compétences : \"&#REF!))","v":{"$error":"#REF!"}}]
[{"$f":"IF(AND(#REF!=\"\",#REF!=\"\"),\"\",IF(#REF!=\"Récréation\",\"RECREATION\",\"Matière : \"&#REF!&\" \"&\"Compétences : \"&#REF!))","v":{"$error":"#REF!"}}]

{"sheet":"LISTE DES PROFS","index":6,"n_rows":39,"n_cols":12,"rows_kept":39,"cut":false,"hidden":false,"merged":[]}
["MAR PAUL","ccv",null,null,"patrick clayes","anim",null,"Yohan ","SPIRAL ","AUDIO",null,"lundi"]
["RICHTER AURELIEN","ccv",null,null," Christophe Palma","anim",null,"Mathias","LEITE","CCV2"]
["FITER MATTHIAS","ccv",null,null,"daniele scali","anim",null,"Cyrianne","ALLIEN","CCV3"]
["VERJUX FRANCK","ccv",null,null,null,null,null,"Charlotte ","PICOUILLA","CCV2"]
[" RAPEZYNSKI  JONATHAN","ccv",null,null,null,null,null,"Marie-Charlotte","PEPIN","CCV3"]
["BOURDIER LAURENT","ccv",null,null,null,null,null,"Ophélie ","DURA","CCV2"]
["PHILIPPON SYLVAIN","ccv",null,null,null,null,null,"Matthieu ","DE VALENCE","CCV3"]
["COGNON PIERRE","ccv",null,null,null,null,null,"MARINE","REMI","CCV3"]
["CAUSSIDERY ROLLAND","ccv",null,null,null,null,null,"LEA","FERNANDES","CCV3"]
["LOUART SAMUEL","ccv",null,null,null,null,null,"CYRIENNE","MESTRES","CCV3"]
["LLUIS STEPHANE","ccv",null,null,null,null,null,"MATTHIAS","MOISE","CCV1",null,"mardi "]
["LE STRAT THIERRY","ccv",null,null,null,null,null,"CHARLENE","GARCIAS","CCV1",null,"mercredi"]
["SEMPE  WILFRIED","ccv",null,null,null,null,null,"LUCAS","COURBY","CCV1",null,"jeudi"]
[null,null,null,null,null,null,null,"ALLAN","ROLFE","CCV3"]
[null,null,null,null,null,null,null,"LUDWIG","van hoeylanet","CCV1",null,"vendredi"]
[null,null,null,null,null,null,null,"EMELINE","BIEHLMANN","AUDIO"]
[null,null,null,null,null,null,null,"ARTHUR","GARCIA","CCV1"]
[null,null,null,null,null,null,null,"ALYSSA","SANTIAGO","CCV1"]
[null,null,null,null,null,null,null,"CORWIN","CHABIN","CCV1"]
[null,null,null,null,null,null,null,"MARINE","DELORME","CCV3"]
[null,null,null,null,null,null,null,"DE SAGA","KELIAN","AUDIO"]
[null,null,null,null,null,null,null,"ELODIE","TORRENTS","CCV1"]
[null,null,null,null,null,null,null,"ANNE SOPHIE","ABADIE","CCV2"]
[null,null,null,null,null,null,null,"FLORENT","PAYRASTRE","CCV1"]
[null,null,null,null,null,null,null,"EULALIE","DUBOSCQ","CCV2"]
[null,null,null,null,null,null,null,"LUCAS","BARBIER","CCV1"]
[null,null,null,null,null,null,null,"CYRIL","FERNANDEZ","CCV1"]
[null,null,null,null,null,null,null,"JADE","LOPEZ","CCV1"]
[null,null,null,null,null,null,null,"CAMILLE","GALEA","CCV3"]
[null,null,null,null,null,null,null,"Matthieu ","ALESSI","CCV3"]
[null,null,null,null,null,null,null,"SARAH","LAUTRE","CCV3"]
[null,null,null,null,null,null,null,"NAZHIA","cherat","CCV2"]
[null,null,null,null,null,null,null,"LAURA","RANDLA","ANIM3"]
[null,null,null,null,null,null,null,"ANTONIN","FELIX","ANIM2"]
[null,null,null,null,null,null,null,"MARC","AUGEY","AUDIO"]
[null,null,null,null,null,null,null,"julianna","SISLET","CCV3"]
[null,null,null,null,null,null,null,"julien","Armitano grivel","CCV1"]
[null,null,null,null,null,null,null,"alexandre","MEILLERAY","CCV2"]
[null,null,null,null,null,null,null,"maelys","UBIERTA","CCV2"]